Workbook

Sheet Consolidated Cap Structure
A1: Atmos Energy Corp. - Consolidated | H1: Atmos Energy Corp. - Consolidated
A2: Capital Structure and Proforma Cost of Capital | H2: Capital Structure with Earned ROR Computed
A4: 13 Month Average at June 30, 2017 | F4: Proforma | H4: =+A4 -> 13 Month Average at June 30, 2017 | K4: Actual
A5: Line | F5: Wtd Cost | J5: Actual | K5: Wtd Cost
A6: No. | B6: Description | C6: Capital | D6: Ratio | E6: Cost Rate | F6: of Capital | H6: Description | I6: Capital | J6: Cost Rate | K6: of Capital
B7: (a) | C7: (b) | D7: (c) | E7: (d) | F7: (e) | H7: (f) | I7: (g) | J7: (h) | K7: (i)
B8: Atmos Energy Corp., Consolidated:
A9: 1 | B9: Long Term Debt Capital | C9: ='LTD rate'!T36 -> 2564406257 | D9: =+C9/C$12 -> 0.3689720088 | E9: =+'LTD rate'!U37 -> 0.05749704146 | F9: =+D9*E9 -> 0.02121479889 | H9: =+B9 -> Long Term Debt Capital | I9: 2564406257 | J9: =+E9 -> 0.05749704146 | K9: =+F9 -> 0.02121479889
A10: 2 | B10: Short Term Debt | C10: =+'Consolidated Balance Detail'!I26 -> 717504312.5 | D10: =+C10/C$12 -> 0.1032359857 | E10: =+'Consolidated Balance Detail'!K26 -> 0.01278888363 | F10: =+D10*E10 -> 0.001320273007 | H10: Short Term Debt | I10: 717504312.5 | J10: =+E10 -> 0.01278888363 | K10: =+F10 -> 0.001320273007 | N10: (12 Mth Avg)
A11: 3 | B11: Equity Capital | C11: =+'Consolidated Balance Detail'!F26 -> 3668227097 | D11: =+C11/C$12 -> 0.5277920055 | E11: 0.103 | F11: =+D11*E11 -> 0.05436257657 | H11: Equity Capital | I11: 3668227097 | J11: =+K11/D11 ->  | K11: =+K15-K9-K10 -> 
A12: 4 | B12: Total Capital | C12: =SUM(C9:C11) -> 6950137667 | D12: =SUM(D9:D11) -> 1 | F12: =SUM(F9:F11) -> 0.07689764846 | H12: Total Capital | I12: 6950137667
H15: Juris Average Rate Base | J15: ROR | K15: =+I14/I15 -> 
A18: =+A1 -> Atmos Energy Corp. - Consolidated | H18: =+H1 -> Atmos Energy Corp. - Consolidated
A19: =+A2 -> Capital Structure and Proforma Cost of Capital | H19: =+H2 -> Capital Structure with Earned ROR Computed
A20: ='LTD rate'!A3 -> June 30, 2017 | F20: Proforma | H20: =+A20 -> June 30, 2017 | K20: Actual
A21: Line | F21: Wtd Cost | J21: Actual | K21: Wtd Cost
A22: No. | B22: Description | C22: Capital | D22: Ratio | E22: Cost Rate | F22: of Capital | H22: Description | I22: Capital | J22: Cost Rate | K22: of Capital
B23: (a) | C23: (b) | D23: (c) | E23: (d) | F23: (e) | H23: (f) | I23: (g) | J23: (h) | K23: (i)
B24: Atmos Energy Corp., Consolidated:
A25: 5 | B25: Long Term Debt Capital | C25: =+'Consolidated Balance Detail'!D23 -> 3066734196 | D25: =+C25/C$28 -> 0.4243429767 | E25: =+'LTD rate'!Q37 -> 0.05129962406 | F25: =+D25*E25 -> 0.02176863518 | H25: =+B25 -> Long Term Debt Capital | I25: 3066734196 | J25: =+E25 -> 0.05129962406 | K25: =+F25 -> 0.02176863518
A26: 6 | B26: Short Term Debt | C26: =+'Consolidated Balance Detail'!E23 -> 258573383 | D26: =+C26/C$28 -> 0.03577871183 | E26: =+E10 -> 0.01278888363 | F26: =+D26*E26 -> 0.0004575697819 | H26: Short Term Debt | I26: 258573383 | J26: =+E26 -> 0.01278888363 | K26: =+F26 -> 0.0004575697819
A27: 7 | B27: Equity Capital | C27: =+'Consolidated Balance Detail'!F23 -> 3901710103 | D27: =+C27/C$28 -> 0.5398783115 | E27: =+E11 -> 0.103 | F27: =+D27*E27 -> 0.05560746608 | H27: Equity Capital | I27: 3901710103 | J27: =+K27/D27 ->  | K27: =+#REF!-K25-K26 -> 
A28: 8 | B28: Total Capital | C28: =SUM(C25:C27) -> 7227017682 | D28: =SUM(D25:D27) -> 1 | F28: =SUM(F25:F27) -> 0.07783367104 | H28: Total Capital | I28: 7227017682
H30: Juris NOI (after tax) | I30: =+I14 -> 0

Sheet Consolidated Balance Detail
A1: Atmos Energy Corp - Consolidated
O2: RBS-Effective 05/02/11 Ended 9/24/15
A3: Schedule of Debt and Equity | N3: Commitment | O3: CA-Effective 09/25/15 to mature 9/25/20
A4: ='LTD rate'!A3 -> June 30, 2017 | M4: Interest on CP or Interest on | N4: Fees on Credit | O4: Bank Fees on
I5: 12 Month Avg | J5: 12 Month Avg | M5: Draws on Credit Facilitiy | N5: Facility | O5: AEC Credit Facility
D6: Atmos Consolidated Balances | I6: Atmos Consolidated - calc of STD rate | N6: 30120,30121 | O6: 30121
A7: Line | D7: Long-Term | E7: Short-Term | I7: STD | J7: STD | K7: STD | L7: STD | M7: Detail of Colm (f) Consolidated Int Exp & Fees
A8: No. | B8: Date | D8: Debt** | E8: Debt | F8: Equity | I8: Avg Daily Bal | J8: Int Exp & fees | K8: avg rate | L8: Rate w/ June | O8: Utility
B9: (a) | D9: (b) | E9: (c) | F9: (d) | I9: (e) | J9: (f) | K9: (g) | M9: Int Exp | N9: Commit fees | O9: Bank Admin
A11: 1 | B11: 2016-06-30 | D11: 2455644849 | E11: 670465758.5 | F11: 3466723837
A12: 2 | B12: 2016-07-31 | D12: 2455673372 | E12: 660469446.8 | F12: 3472256616 | I12: 642466903.2 | J12: =SUM(M12:O12) -> 564897.6323 | L12: =I12-500000000 -> 142466903.2 | M12: 372737.5634 | N12: 110292.7989 | O12: 81867.27
A13: 3 | B13: 2016-08-31 | D13: 2455701896 | E13: 713363904 | F13: 3438618783 | I13: 685968967.7 | J13: 594036.1869 | L13: =I13-500000000 -> 185968967.7 | M13: 401876.118 | N13: 110292.7989 | O13: 81867.27
A14: 4 | B14: 2016-09-30 | D14: 2438778635 | E14: 829811164.2 | F14: 3463058963 | I14: 792821200 | J14: 667351.1502 | L14: 292821200 | M14: 479473.9135 | N14: 106734.9667 | O14: 81142.27
A15: 5 | B15: 2016-10-31 | D15: 2563918889 | E15: 800464658.4 | F15: 3520473562 | I15: 840360387.1 | J15: 790491.6646 | L15: 340360387.1 | M15: 565888.227 | N15: 129035.6689 | O15: 95567.76871
A16: 6 | B16: 2016-11-30 | D16: 2564059143 | E16: 909674672.3 | F16: 3595033060 | I16: 831273066.7 | J16: 787919.558 | L16: 331273066.7 | M16: 563056.978 | N16: 127561.4 | O16: 97301.18
A17: 7 | B17: 2016-12-31 | D17: 2564199396 | E17: 940746590.9 | F17: 3698975167 | I17: 928395161.3 | J17: 928656.8344 | L17: 428395161.3 | M17: 699542.2077 | N17: 131813.4467 | O17: 97301.18
A18: 8 | B18: 2017-01-31 | D18: 2564339650 | E18: 775069471.4 | F18: 3778803299 | I18: 790401000 | J18: 887194.7097 | L18: 290401000 | M18: 658072.953 | N18: 131820.5767 | O18: 97301.18
A19: 9 | B19: 2017-02-28 | D19: 2564479903 | E19: 724278560.1 | F19: 3790503944 | I19: 725202178.6 | J19: 787662.3057 | L19: 225202178.6 | M19: 571297.379 | N19: 119063.7467 | O19: 97301.18
A20: 10 | B20: 2017-03-31 | D20: 2564620157 | E20: 670606792.4 | F20: 3834864598 | I20: 694191935.5 | J20: 871975.1841 | L20: 194191935.5 | M20: 642853.4274 | N20: 131820.5767 | O20: 97301.18
A21: 11 | B21: 2017-04-30 | D21: 2564760410 | E21: 644134763.3 | F21: 3861648697 | I21: 629596166.7 | J21: 826079.532 | L21: 129596166.7 | M21: 601210.052 | N21: 127568.3 | O21: 97301.18
A22: 12 | B22: 2017-05-31 | D22: 2564900664 | E22: 629857849.5 | F22: 3864281638 | I22: 625090516.1 | J22: 844131.6023 | L22: 125090516.1 | M22: 615009.8456 | N22: 131820.5767 | O22: 97301.18
A23: 13 | B23: 2016-06-30 | D23: 3066734196 | E23: 258573383 | F23: 3901710103 | I23: 424284266.7 | J23: =SUM(M23:O23) -> 625682.794 | L23: ='Utility STD'!H39 -> 224284266.7 | M23: 400813.314 | N23: 127568.3 | O23: 97301.18
A24: 14 | J24: =SUM(J12:J23) -> 9176079.154 | M24: =SUM(M12:M23) -> 6571831.979 | N24: =SUM(N12:N23) -> 1485393.157 | O24: =SUM(O12:O23) -> 1118854.019
A25: 15
A26: 16 | B26: Average | D26: =AVERAGE(D11:D23) -> 2568293166 | E26: =AVERAGE(E11:E23) -> 709809001.1 | F26: =AVERAGE(F11:F23) -> 3668227097 | I26: =AVERAGE(I12:I23) -> 717504312.5 | K26: =+J24/I26 -> 0.01278888363 | L26: =AVERAGE(L11:L23) -> 242504312.5 | M26: per STD rpts: | N26: =+M24+N24+O24 -> 9176079.154
B28: Note: | D28: **In Sept 16 the Company implemented FASB ASU 201503. | K28: =M24/I26 -> 0.009159292654

Sheet LTD rate
A1: Atmos Energy Corporation
A2: Consolidated Long-Term Debt Outstanding w/ calculation of Effective Interest Rates
A3: June 30, 2017 | Z3: Unamort Debt | AC3: (Offset to | AF3: (Offset to 4280, 4310) | AG3: (Offset to 4281) | AH3: (Offset to 4280, 4290) | AI3: (Offset to 4270 or 2530)
Y4: Annualized | Z4: Exp 2241, 1650 | AB4: (Offset to 2150) | AC4: 2241,1650) | AD4: (Offset to 2260, 2250) | AE4: (Offset to 1890) | AF4: Unamort Debt Exp | AG4: Unamort Loss | AH4: Debt Dsct/Prem | AI4: App Retained Earnings
X5: Annualized | Y5: 4280, 4281, 4290 & 4310 | Z5: Penalty 1890 | AB5: 4270.30937 | AC5: 4280, 4310 | AD5: 4280, 4290 | AE5: 4281 | AF5: 2241, 1650 | AG5: 1890 | AH5: 2260, 2250 | AI5: 2150
A6: Atmos Energy Corp., Consolidated: | D6: Outstanding | E6: Outstanding | F6: Outstanding | G6: Outstanding | H6: Outstanding | I6: Outstanding | J6: Outstanding | K6: Outstanding | L6: Outstanding | M6: Outstanding | N6: Outstanding | O6: Outstanding | P6: Outstanding | Q6: End | R6: Annual Int at | T6: Outstanding | U6: Avg | V6: Annual Int | X6: 4270 Amort | Y6: Amortization | Z6: Dsct 2260 | AB6: Exp on T-lock/Swaps | AC6: Mthly Debt Exp | AD6: Mthly Dsct/Prem. Exp | AE6: Mthly Exp | AF6: Balance | AG6: Balance | AH6: Balance | AI6: T-Lock/Swap Balance
A7: Line | B7: Debt Series | C7: Issued | D7: 2016-06-30 | E7: 2016-07-31 | F7: 2016-08-31 | G7: 2016-09-30 | H7: 2016-10-31 | I7: 2016-11-30 | J7: 2016-12-31 | K7: 2017-01-31 | L7: 2017-02-28 | M7: 2017-03-31 | N7: 2017-04-30 | O7: 2017-05-31 | P7: 2017-06-30 | Q7: Int Rate | R7: =A3 -> June 30, 2017 | T7: 13 mth Average | U7: Int Rate | V7: =+T7 -> 13 mth Average | X7: for T-lock/Swaps | Y7: Debt Exp, Dsct & Prem | Z7: =A3 -> June 30, 2017 | AB7: =A3 -> June 30, 2017 | AC7: =AB7 -> June 30, 2017 | AD7: June 30, 2017 | AE7: June 30, 2017 | AF7: June 30, 2017 | AG7: June 30, 2017 | AH7: June 30, 2017 | AI7: =AH7 -> June 30, 2017
B8: (a) | C8: (b) | D8: (c) | E8: (d) | F8: (e) | G8: (f) | H8: (g) | I8: (h) | J8: (i) | K8: (j) | L8: (k) | M8: (l) | N8: (m) | O8: (n) | P8: (o) | Q8: (p) | R8: (q) | S8: (r) | T8: (s) | U8: (t) | V8: (u) | W8: (v) | X8: (w) | Y8: (x) | Z8: (y) | AA8: (z) | AB8: (aa) | AC8: (ab) | AD8: (ac) | AE8: (ad) | AF8: (ae) | AG8: (af) | AH8: (ag) | AI8: (ah)
A10: 1 | B10: 9.40% First Mortgage Bond J due May 2021/RET 2005 | C10: 1991-04-01 | D10: 0 | E10: 0 | F10: 0 | G10: 0 | H10: 0 | I10: 0 | J10: 0 | K10: 0 | L10: 0 | M10: 0 | N10: 0 | O10: 0 | P10: 0 | Q10: 0.094 | R10: =+P10*Q10 -> 0 | T10: =AVERAGE(D10:P10) -> 0 | U10: 0.094 | V10: =+T10*U10 -> 0 | X10: =+AB10*12 -> 0 | Y10: =SUM(AC10:AE10)*12 -> 560397.48 | Z10: =SUM(AF10:AH10) -> 2148190.24 | AE10: =-'1890 Unamort Loss on Reacq Debt'!N16 -> 46699.79 | AF10: 0 | AG10: ='1890 Unamort Loss on Reacq Debt'!N36 -> 2148190.24
A11: 2 | B11: 6.75% Debentures Unsecured due July 2028 | C11: 1998-07-27 | D11: 150000000 | E11: 150000000 | F11: 150000000 | G11: 150000000 | H11: 150000000 | I11: 150000000 | J11: 150000000 | K11: 150000000 | L11: 150000000 | M11: 150000000 | N11: 150000000 | O11: 150000000 | P11: 150000000 | Q11: 0.0675 | R11: =+P11*Q11 -> 10125000 | T11: =AVERAGE(D11:P11) -> 150000000 | U11: 0.0675 | V11: =+T11*U11 -> 10125000 | X11: =+AB11*12 -> 0 | Y11: =SUM(AC11:AE11)*12 -> 99938.16 | Z11: =SUM(AF11:AH11) -> 1103961.33 | AC11: =-'Acct 2241 Unamort Debt Exp'!U33 -> 4640.68 | AD11: =-'2260 LTDebt Discount'!BK11 -> 3687.5 | AF11: ='Acct 2241 Unamort Debt Exp'!U14 -> 617211.33 | AH11: ='2260 LTDebt Discount'!R11 -> 486750
A12: 3 | B12: 5.125% Senior Note due Jan 2013 | C12: 2003-01-13 | D12: 0 | E12: 0 | F12: 0 | G12: 0 | H12: 0 | I12: 0 | J12: 0 | K12: 0 | L12: 0 | M12: 0 | N12: 0 | O12: 0 | P12: 0 | Q12: 0.05125 | R12: =+P12*Q12 -> 0 | T12: =AVERAGE(D12:P12) -> 0 | U12: 0.05125 | V12: =+T12*U12 -> 0 | X12: =+AB12*12 -> 0 | Y12: 0 | Z12: 0 | AD12: =-'2260 LTDebt Discount'!BK12 -> 0 | AE12: 0 | AF12: 0 | AG12: 0 | AH12: ='2260 LTDebt Discount'!R12 -> 0
A13: 4 | B13: 10.43% First Mortgage Bond P due 2017 (eff 2012) | C13: 1987-11-01 | D13: 0 | E13: 0 | F13: 0 | G13: 0 | H13: 0 | I13: 0 | J13: 0 | K13: 0 | L13: 0 | M13: 0 | N13: 0 | O13: 0 | P13: 0 | Q13: 0.1043 | R13: 0 | T13: =AVERAGE(D13:P13) -> 0 | U13: 0.1043 | V13: 0 | X13: 0 | Y13: 33836.76 | Z13: =SUM(AF13:AH13) -> 11278.93 | AE13: =-'1890 Unamort Loss on Reacq Debt'!N15 -> 2819.73 | AF13: 0 | AG13: ='1890 Unamort Loss on Reacq Debt'!N35 -> 11278.93
A14: 5 | B14: 9.75% First Mortgage Bond Q due Apr 2020/RET 2005 | C14: 1990-04-01 | D14: 0 | E14: 0 | F14: 0 | G14: 0 | H14: 0 | I14: 0 | J14: 0 | K14: 0 | L14: 0 | M14: 0 | N14: 0 | O14: 0 | P14: 0 | Q14: 0.0975 | R14: 0 | T14: 0 | U14: 0.0975 | V14: 0 | X14: 0 | Y14: 337580.76 | Z14: 956478.54 | AE14: =-'1890 Unamort Loss on Reacq Debt'!N12 -> 28131.73 | AF14: 0 | AG14: ='1890 Unamort Loss on Reacq Debt'!N32 -> 956478.54
A15: 6 | B15: 9.32% First Mortgage Bond T due June 2021/RET 2005 | C15: 1991-06-01 | D15: 0 | E15: 0 | F15: 0 | G15: 0 | H15: 0 | I15: 0 | J15: 0 | K15: 0 | L15: 0 | M15: 0 | N15: 0 | O15: 0 | P15: 0 | Q15: 0.0932 | R15: 0 | T15: 0 | U15: 0.0932 | V15: 0 | X15: 0 | Y15: 362746.44 | Z15: 1420756.79 | AE15: =-'1890 Unamort Loss on Reacq Debt'!N13 -> 30228.87 | AF15: 0 | AG15: ='1890 Unamort Loss on Reacq Debt'!N33 -> 1420756.79
A16: 7 | B16: 8.77% First Mortgage Bond U due May 2022/RET 2005 | C16: 1992-05-01 | D16: 0 | E16: 0 | F16: 0 | G16: 0 | H16: 0 | I16: 0 | J16: 0 | K16: 0 | L16: 0 | M16: 0 | N16: 0 | O16: 0 | P16: 0 | Q16: 0.0877 | R16: 0 | T16: 0 | U16: 0.0877 | V16: 0 | X16: 0 | Y16: 368719.08 | Z16: 1782142.62 | AE16: =-'1890 Unamort Loss on Reacq Debt'!N14 -> 30726.59 | AF16: 0 | AG16: ='1890 Unamort Loss on Reacq Debt'!N34 -> 1782142.62
A17: 8 | B17: 6.67% MTN A1 due Dec 2025 | C17: 1995-12-15 | D17: 10000000 | E17: 10000000 | F17: 10000000 | G17: 10000000 | H17: 10000000 | I17: 10000000 | J17: 10000000 | K17: 10000000 | L17: 10000000 | M17: 10000000 | N17: 10000000 | O17: 10000000 | P17: 10000000 | Q17: 0.0667 | R17: =+P17*Q17 -> 667000 | T17: 10000000 | U17: 0.0667 | V17: =+T17*U17 -> 667000 | X17: 0 | Y17: 7776.96 | Z17: 65779.84 | AC17: =-'Acct 2241 Unamort Debt Exp'!U32 -> 648.08 | AF17: ='Acct 2241 Unamort Debt Exp'!U13 -> 65779.84
A18: 9 | B18: 4.95% Sr Note due 10/15/2014 | C18: 2004-10-22 | D18: 0 | E18: 0 | F18: 0 | G18: 0 | H18: 0 | I18: 0 | J18: 0 | K18: 0 | L18: 0 | M18: 0 | N18: 0 | O18: 0 | P18: 0 | Q18: 0.0495 | R18: 0 | T18: =AVERAGE(D18:P18) -> 0 | U18: 0.0495 | V18: =+T18*U18 -> 0 | X18: =SUM(+AB18*12) -> 0 | Y18: =(SUM(AC18:AE18)*12) -> 0 | Z18: -1.195987753e-12 | AB18: ='20102'!L177 -> 0 | AD18: =-'2260 LTDebt Discount'!BK13 -> 0 | AF18: 0 | AH18: ='2260 LTDebt Discount'!R13 -> -1.195987753e-12 | AI18: ='20102'!N177 -> 0
A19: 10 | B19: 5.95% Sr Note due 10/15/2034 | C19: 2004-10-22 | D19: 200000000 | E19: 200000000 | F19: 200000000 | G19: 200000000 | H19: 200000000 | I19: 200000000 | J19: 200000000 | K19: 200000000 | L19: 200000000 | M19: 200000000 | N19: 200000000 | O19: 200000000 | P19: 200000000 | Q19: 0.0595 | R19: 11900000 | T19: 200000000 | U19: 0.0595 | V19: =+T19*U19 -> 11900000 | X19: =+AB19*12 -> -7047.066667 | Y19: 115723.56 | Z19: 2002498.03 | AB19: ='20102'!K177 -> -587.2555556 | AC19: =-'Acct 2241 Unamort Debt Exp'!U34 -> 6265.85 | AD19: =-'2260 LTDebt Discount'!BK14 -> 3377.78 | AF19: ='Acct 2241 Unamort Debt Exp'!U15 -> 1303298.14 | AH19: ='2260 LTDebt Discount'!R14 -> 699199.89 | AI19: ='20102'!M177 -> -122149.1556 | AJ19: Offset to 4270
A20: 11 | B20: 6.35% Sr Note due 6/15/2017 | C20: 06/2007 | D20: 250000000 | E20: 250000000 | F20: 250000000 | G20: 250000000 | H20: 250000000 | I20: 250000000 | J20: 250000000 | K20: 250000000 | L20: 250000000 | M20: 250000000 | N20: 250000000 | O20: 250000000 | P20: 0 | Q20: 0.0635 | R20: 0 | T20: 230769230.8 | U20: 0.0635 | V20: 14653846.15 | X20: =+AB20*12 -> 0 | Y20: =SUM(AC20:AE20)*1 -> 25586.78 | Z20: 1.928128768e-10 | AB20: 0 | AC20: =-'Acct 2241 Unamort Debt Exp'!U35 -> 18260.25 | AD20: =-'2260 LTDebt Discount'!BK15 -> 5646 | AE20: =-'1890 Unamort Loss on Reacq Debt'!N9 -> 1680.53 | AF20: ='Acct 2241 Unamort Debt Exp'!U16 -> 0 | AG20: ='1890 Unamort Loss on Reacq Debt'!N29 -> 0 | AH20: ='2260 LTDebt Discount'!R15 -> 1.928128768e-10 | AI20: 0 | AJ20: Offset to 4270
A21: 12 | B21: Sr Note 5.50% Due 06/15/2041 | C21: 6/10/2011 | D21: 400000000 | E21: 400000000 | F21: 400000000 | G21: 400000000 | H21: 400000000 | I21: 400000000 | J21: 400000000 | K21: 400000000 | L21: 400000000 | M21: 400000000 | N21: 400000000 | O21: 400000000 | P21: 400000000 | Q21: 0.055 | R21: 22000000 | T21: 400000000 | U21: 0.055 | V21: 22000000 | X21: =+AB21*12 -> -669301.5667 | Y21: 186859.56 | Z21: 4469058.68 | AB21: =-'20105'!C98 -> -55775.13056 | AC21: =-'Acct 2241 Unamort Debt Exp'!U37 -> 11993.85 | AD21: =-'2260 LTDebt Discount'!BK16 -> 3577.78 | AF21: ='Acct 2241 Unamort Debt Exp'!U18 -> 3442236.57 | AH21: ='2260 LTDebt Discount'!R16 -> 1026822.11 | AI21: ='20105'!D98 -> -16007462.47 | AJ21: Offset to 4270
A22: 13 | B22: 8.50% Sr Note due 3/15/2019 | C22: 2009-03-23 | D22: 450000000 | E22: 450000000 | F22: 450000000 | G22: 450000000 | H22: 450000000 | I22: 450000000 | J22: 450000000 | K22: 450000000 | L22: 450000000 | M22: 450000000 | N22: 450000000 | O22: 450000000 | P22: 450000000 | Q22: 0.085 | R22: 38250000 | T22: 450000000 | U22: 0.085 | V22: 38250000 | X22: =AB22*12 -> -77733.568 | Y22: 1161169.44 | Z22: =SUM(AF22:AH22) -> 2032046.33 | AB22: =-'20104'!C124 -> -6477.797333 | AC22: =-'Acct 2241 Unamort Debt Exp'!U36 -> 30868.81 | AD22: =-'2260 LTDebt Discount'!BK17 -> 7012.5 | AE22: =-'1890 Unamort Loss on Reacq Debt'!N10 -> 58882.81 | AF22: ='Acct 2241 Unamort Debt Exp'!U17 -> 648245.09 | AG22: ='1890 Unamort Loss on Reacq Debt'!N30 -> 1236538.74 | AH22: ='2260 LTDebt Discount'!R17 -> 147262.5 | AI22: ='20104'!D124 -> -136033.744 | AJ22: Offset to 4270
A23: 14 | B23: 4.15% Sr Note due 1/15/2043 | C23: 2013-01-15 | D23: 500000000 | E23: 500000000 | F23: 500000000 | G23: 500000000 | H23: 500000000 | I23: 500000000 | J23: 500000000 | K23: 500000000 | L23: 500000000 | M23: 500000000 | N23: 500000000 | O23: 500000000 | P23: 500000000 | Q23: 0.0415 | R23: 20750000 | T23: =AVERAGE(D23:P23) -> 500000000 | U23: 0.0415 | V23: =+T23*U23 -> 20750000 | X23: =AB23*12 -> 2220856.802 | Y23: 378080.28 | Z23: 9655492.72 | AB23: =-'20107'!C77 -> 185071.4001 | AC23: =-'Acct 2241 Unamort Debt Exp'!U38 -> 14907.23 | AD23: =-'2260 LTDebt Discount'!BK18 -> 2611.11 | AE23: =-'1890 Unamort Loss on Reacq Debt'!N11 -> 13988.35 | AF23: ='Acct 2241 Unamort Debt Exp'!U19 -> 4569065.13 | AG23: ='1890 Unamort Loss on Reacq Debt'!N31 -> 4287427.53 | AH23: ='2260 LTDebt Discount'!R18 -> 799000.06 | AI23: ='20107'!D77 -> 56816919.84 | AJ23: Offset to 4270
A24: 15 | B24: 4.125% Sr Note due 10/15/2044 (500MM(2014) & 250MM(2017) | C24: 10/15/2014 | D24: 500000000 | E24: 500000000 | F24: 500000000 | G24: 500000000 | H24: 500000000 | I24: 500000000 | J24: 500000000 | K24: 500000000 | L24: 500000000 | M24: 500000000 | N24: 500000000 | O24: 500000000 | P24: 750000000 | Q24: 0.04125 | R24: 30937500 | T24: =AVERAGE(D24:P24) -> 519230769.2 | U24: 0.04125 | V24: =+T24*U24 -> 21418269.23 | X24: =AB24*12 -> -445478.3333 | Y24: =SUM(AC24:AE24)*12 -> -93187.36098 | Z24: =SUM(AF24:AH24) -> -1213822.48 | AB24: =SUM('20108'!C57+'20109'!C25)*-1 -> -37123.19444 | AC24: =-'Acct 2241 Unamort Debt Exp'!V39 -> 19402.24 | AD24: =-SUM('2260 LTDebt Discount'!BK19-'2250 LTDebt Premium'!Z11) -> -27167.85341 | AF24: ='Acct 2241 Unamort Debt Exp'!U20 -> 7684770.85 | AH24: ='2260 LTDebt Discount'!R19+'2250 LTDebt Premium'!R11 -> -8898593.33 | AI24: ='20108'!D57+'20109'!D25 -> 24819099.22 | AJ24: Offset to 4270
A25: 16 | B25: 3% Sr Note due 6/15/2027 | C25: 06/2017 | D25: 0 | E25: 0 | F25: 0 | G25: 0 | H25: 0 | I25: 0 | J25: 0 | K25: 0 | L25: 0 | M25: 0 | N25: 0 | O25: 0 | P25: 500000000 | Q25: 0.03 | R25: 15000000 | T25: 38461538.46 | U25: 0.03 | V25: 1153846.154 | X25: =AB25*12 -> 0 | Y25: =SUM(AC25:AE25)*12 -> 273120.48 | Z25: 5439647.78 | AB25: 0 | AC25: =-'Acct 2241 Unamort Debt Exp'!V40 -> 17030.87 | AD25: =-'2260 LTDebt Discount'!BK20 -> 5729.17 | AF25: ='Acct 2241 Unamort Debt Exp'!U21 -> 4070376.95 | AH25: ='2260 LTDebt Discount'!R20 -> 1369270.83 | AI25: 0 | AJ25: Offset to 2530
A26: 17 | B26: March 2019 - Swap Position | C26: 03/2019 | D26: 0 | E26: 0 | F26: 0 | G26: 0 | H26: 0 | I26: 0 | J26: 0 | K26: 0 | L26: 0 | M26: 0 | N26: 0 | O26: 0 | P26: 0 | R26: =+P26*Q26 -> 0 | T26: 0 | V26: 0 | X26: 0 | Y26: =SUM(AC26:AE26)*12 -> 0 | Z26: 0 | AF26: 0 | AI26: ='Mar19 Unsettled Swaps'!J26 -> 108860008.9 | AJ26: Offset to 2530
A27: 18 | B27: $200MM 3YR. Sr Credit Facility (Established 9/22/16) | D27: 0 | E27: 0 | F27: 0 | G27: 0 | H27: 125000000 | I27: 125000000 | J27: 125000000 | K27: 125000000 | L27: 125000000 | M27: 125000000 | N27: 125000000 | O27: 125000000 | P27: 125000000 | Q27: ='Oct16_$200MM TL'!AJ16 -> 0.0219 | R27: =+P27*Q27 -> 2737500 | T27: =AVERAGE(D27:P27) -> 86538461.54 | U27: ='Oct16_$200MM TL'!AK16 -> 0.01817111111 | V27: =+T27*U27 -> 1572500 | X27: 0 | Y27: =SUM(AC27:AE27)*12 -> 115666.68 | Z27: =SUM(AF27:AH27) -> 237358.32 | AC27: =-SUM('Acct 2241 Unamort Debt Exp'!U41+'Acct 1650.13201 Prepayments'!U23) -> 9638.89 | AF27: =SUM('Acct 2241 Unamort Debt Exp'!U22+'Acct 1650.13201 Prepayments'!U13) -> 237358.32
A28: 19 | B28: Subtotal -- Utility Long-Term Debt | D28: =SUM(D10:D27) -> 2460000000 | E28: 2460000000 | F28: =SUM(F10:F27) -> 2460000000 | G28: 2460000000 | H28: 2585000000 | I28: 2585000000 | J28: 2585000000 | K28: 2585000000 | L28: 2585000000 | M28: 2585000000 | N28: 2585000000 | O28: 2585000000 | P28: =SUM(P10:P27) -> 3085000000 | R28: =SUM(R10:R27) -> 152367000 | T28: =SUM(T10:T27) -> 2585000000 | V28: =SUM(V10:V27) -> 142490461.5 | X28: =SUM(X10:X27) -> 1021296.267 | Y28: =SUM(Y10:Y27) -> 3934015.059 | Z28: =SUM(Z10:Z27) -> 30110867.67 | AB28: =SUM(AB10:AB27) -> 85108.02225 | AC28: =SUM(AC10:AC27) -> 133656.75 | AD28: =SUM(AD10:AD27) -> 4473.986585 | AE28: =SUM(AE10:AE27) -> 213158.4 | AF28: 22638342.22 | AG28: 11842813.39 | AH28: -4370287.94 | AI28: =SUM(AI10:AI27) -> 174230382.6
A29: 20
A30: 21 | B30: Atmos Leasing, Inc.
A31: 22 | B31: Industrial Develop Revenue Bond 07/13 | C31: 1991 | D31: 0 | E31: 0 | F31: 0 | G31: 0 | H31: 0 | I31: 0 | J31: 0 | K31: 0 | L31: 0 | M31: 0 | N31: 0 | O31: 0 | P31: 0 | Q31: 0.079 | R31: =+P31*Q31 -> 0 | T31: =AVERAGE(D31:P31) -> 0 | U31: 0.079 | V31: =+T31*U31 -> 0 | X31: =AB31*12 -> 0 | Y31: =SUM(AC31:AE31)*12 -> 0 | Z31: =SUM(AF31:AH31) -> 0
A32: 23 | B32: Total Long-Term Debt | D32: =+D28+D31 -> 2460000000 | E32: 2460000000 | F32: 2460000000 | G32: 2460000000 | H32: 2585000000 | I32: 2585000000 | J32: 2585000000 | K32: 2585000000 | L32: 2585000000 | M32: 2585000000 | N32: 2585000000 | O32: 2585000000 | P32: =+P28+P31 -> 3085000000 | R32: =+R28+R31 -> 152367000 | T32: =+T28+T31 -> 2585000000 | V32: =+V28+V31 -> 142490461.5
A33: 24 | B33: Less Unamortized Debt Discount & Debt Premium | D33: ='2260 LTDebt Discount'!F21 -> 4355151.42 | E33: ='2260 LTDebt Discount'!G21 -> 4326627.81 | F33: ='2260 LTDebt Discount'!H21 -> 4298104.2 | G33: ='2260 LTDebt Discount'!I21 -> 4269580.59 | H33: ='2260 LTDebt Discount'!J21 -> 4241056.98 | I33: ='2260 LTDebt Discount'!K21 -> 4212533.37 | J33: ='2260 LTDebt Discount'!L21 -> 4184009.76 | K33: ='2260 LTDebt Discount'!M21 -> 4155486.15 | L33: ='2260 LTDebt Discount'!N21 -> 4126962.54 | M33: ='2260 LTDebt Discount'!O21 -> 4098438.93 | N33: ='2260 LTDebt Discount'!P21 -> 4069915.32 | O33: ='2260 LTDebt Discount'!Q21 -> 4041391.71 | P33: ='2260 LTDebt Discount'!R21+'2250 LTDebt Premium'!R11 -> -4370287.94 | T33: =AVERAGE(D33:P33) -> 3539151.603 | X33: =+X28+SUM(X30:X32) -> 1021296.267 | Y33: =+Y28+SUM(Y30:Y32) -> 3934015.059 | Z33: =+Z28+SUM(Z30:Z32) -> 30110867.67 | AB33: =AB28 -> 85108.02225 | AC33: =AC28 -> 133656.75 | AD33: =-'2260 LTDebt Discount'!BK21+'2250 LTDebt Premium'!Z11 -> 4473.986585 | AE33: =-'1890 Unamort Loss on Reacq Debt'!N17 -> 213158.4 | AF33: =AF28 -> 22638342.22 | AG33: =AG28 -> 11842813.39 | AH33: =+AH28 -> -4370287.94 | AI33: =+AI28 -> 174230382.6
A34: 25 | B34: Less Unamortized Debt Expense | D34: 0 | E34: 0 | F34: 0 | G34: ='Acct 2241 Unamort Debt Exp'!L23 -> 16951783.95 | H34: ='Acct 2241 Unamort Debt Exp'!M23 -> 16840054.02 | I34: ='Acct 2241 Unamort Debt Exp'!N23 -> 16728324.09 | J34: ='Acct 2241 Unamort Debt Exp'!O23 -> 16616594.16 | K34: ='Acct 2241 Unamort Debt Exp'!P23 -> 16504864.23 | L34: ='Acct 2241 Unamort Debt Exp'!Q23 -> 16393134.3 | M34: ='Acct 2241 Unamort Debt Exp'!R23 -> 16281404.37 | N34: ='Acct 2241 Unamort Debt Exp'!S23 -> 16169674.44 | O34: ='Acct 2241 Unamort Debt Exp'!T23 -> 16057944.51 | P34: =SUM('Acct 2241 Unamort Debt Exp'!U23) -> 22636092.19 | T34: =AVERAGE(D46:P46) -> 17054591.8
A35: 26 | B35: Annualized Amortization of T-Lock Settlement, Debt Exp, Debt Disc. & Debt Prem. | R35: =+X33+Y33 -> 4955311.326 | V35: =+X33+Y33 -> 4955311.326 | AB35: ck | AC35: ck | AD35: ck | AE35: ck | AF35: ck | AG35: ck | AH35: ck | AI35: ck
A36: 27 | F36: Net Debt | G36: =G32-G33-G34 -> 2438778635 | H36: 2563918889 | I36: 2564059143 | J36: 2564199396 | K36: 2564339650 | L36: 2564479903 | M36: =M32-M33-M34 -> 2564620157 | N36: =N32-N33-N34 -> 2564760410 | O36: =O32-O33-O34 -> 2564900664 | P36: =P32-P33-P34 -> 3066734196 | R36: =+R32+R35 -> 157322311.3 | T36: =+T32-T33-T34 -> 2564406257 | V36: =+V32+V35 -> 147445772.9 | X36: check | Y36: check | Z36: check | AB36: =185071.4-99963.38 -> 85108.02 | AC36: =AC33+AD33 -> 138130.7366 | AE36: =-'1890 Unamort Loss on Reacq Debt'!N17 -> 213158.4 | AF36: =SUM('Acct 2241 Unamort Debt Exp'!U23+'Acct 1650.13201 Prepayments'!U14) -> 22638342.22 | AG36: ='1890 Unamort Loss on Reacq Debt'!N37 -> 11842813.39 | AH36: ='2260 LTDebt Discount'!R21+'2250 LTDebt Premium'!R12 -> -4370287.94 | AI36: =AH50 -> 174230382.6
A37: 28 | B37: Effective Avg Cost of Consol Debt | F37: Gross Minus Disc & Exp | Q37: =+R36/P36 -> 0.05129962406 | R37: end of period | U37: =+V36/T36 -> 0.05749704146 | V37: 13 mth avg | X37: =AB33*12 -> 1021296.267 | Y37: =SUM(AC33:AE33)*12 -> 4215469.639 | Z37: =SUM(AF36:AH36) -> 30110867.67 | AA37: diff g/l vs calc | AB37: =+AB33-AB36 -> 0.00224999999 | AC37: =SUM(AC28+AD28)-SUM(AC33+AD33) -> 0 | AE37: =+AE33-AE36 -> 0 | AF37: =+AF33-AF36 -> 0 | AG37: =+AG33-AG36 -> 0 | AH37: =+AH33-AH36 -> 0 | AI37: =+AI33-AI36 -> 0
A38: 29 | B38: Consolidated & Utility | Q38: =(R28+X28+Y28)/(P28-P33-P34) -> 0.05129962406 | R38: end of period | U38: =(V28+X28+Y28)/(T28-T33-T34) -> 0.05749704146 | V38: 13 mth avg | X38: =X33-X37 -> 0 | Y38: =Y33-Y37 -> -281454.58
B39: Note: includes current maturities | O39: ck Fin Rptg Bal | P39: ='Consolidated Balance Detail'!D23 -> 3066734196 | Y39: 6.35% Notes had only 1 mth of amortization remaining at 6/17 | AB39: Diff | AC39: =AC37 -> 0 | AF39: Recon of 2150-20102 thru 2150-20111
O40: diff Fin Rptg vs calc | P40: =+P36-P39 -> 0 | AG40: Per Amort Sch & Value | AH40: Per Amort Sch & Value | AI40: Amort Sch vs. G/L
AF41: Ledger Bal @ 6/30/17 | AG41: Def Tax Bal | AH41: Lock Bal | AI41: Diff
A42: . | AE42: 20102 | AF42: -77564.7 | AG42: ='20102'!F177 -> 44584.44178 | AH42: =SUM(AI18:AI19) -> -122149.1556 | AI42: =AF42-AG42-AH42 -> 0.01377780169 | AJ42: (Offset to 4270)
AE43: 20103 | AF43: 0 | AG43: 0 | AH43: =AI20 -> 0 | AI43: 0 | AJ43: (Offset to 4270)
D44: Acct 1810 | E44: Acct 1810 | F44: Acct 1810 | G44: Acct 2241 | H44: Acct 2241 | I44: Acct 2241 | J44: Acct 2241 | K44: Acct 2241 | L44: Acct 2241 | M44: Acct 2241 | N44: Acct 2241 | O44: Acct 2241 | P44: Acct 2241 | AE44: 20104 | AF44: -86381.49 | AG44: ='20104'!F124 -> 49652.31656 | AH44: =AI22 -> -136033.744 | AI44: -0.06255999932 | AJ44: (Offset to 4270)
D45: 2016-06-30 | E45: 2016-07-31 | F45: 2016-08-31 | G45: 2016-09-30 | H45: 2016-10-31 | I45: 2016-11-30 | J45: 2016-12-31 | K45: 2017-01-31 | L45: 2017-02-28 | M45: 2017-03-31 | N45: 2017-04-30 | O45: 2017-05-31 | P45: 2017-06-30 | R45: 13 mth Average | AE45: 20105 | AF45: -10164738.56 | AG45: ='20105'!F98 -> 5842723.801 | AH45: =AI21 -> -16007462.47 | AI45: 0.1080972776 | AJ45: (Offset to 4270)
A46: Note: | B46: Unamortized Debt Expense | D46: 16946198.73 | E46: 16843274.36 | F46: 16740349.99 | G46: 16951783.95 | H46: 16840054.02 | I46: 16728324.09 | J46: 16616594.16 | K46: 16504864.23 | L46: 16393134.3 | M46: 16281404.37 | N46: 16169674.44 | O46: 16057944.51 | P46: ='Acct 2241 Unamort Debt Exp'!U23 -> 22636092.19 | R46: =AVERAGE(D46:P46) -> 17054591.8 | AE46: 20107 | AF46: 36078744.05 | AG46: ='20107'!F77 -> -20738175.8 | AH46: =AI23 -> 56816919.84 | AI46: 0.007361359894 | AJ46: (Offset to 4270)
B47: **In Sept 16 the Company implemented FASB ASU 201503. | AE47: 20108 | AF47: -7732018.89 | AG47: ='20108'!F57 -> 4444388.839 | AH47: ='20108'!D57 -> -12176407.78 | AI47: 0.04888890684 | AJ47: (Offset to 4270)
AE48: 20109 | AF48: 23492146.95 | AG48: ='20109'!F25 -> -13503360.06 | AH48: ='20109'!D25 -> 36995507 | AI48: =AF48-AG48-AH48 -> 0.005000002682 | AJ48: (Offset to 2530)
AE49: 20111 | AF49: 69126105.64 | AG49: =-SUM('Mar19 Unsettled Swaps'!I27+'Mar19 Unsettled Swaps'!I28) -> -39733903.24 | AH49: =AI26 -> 108860008.9 | AI49: =AF49-AG49-AH49 -> 0 | AJ49: (Offset to 2530)
AF50: =SUM(AF42:AF49) -> 110636293 | AG50: =SUM(AG42:AG49) -> -63594089.7 | AH50: =SUM(AH42:AH49) -> 174230382.6 | AI50: =SUM(AI42:AI49) -> 0.1205653494

Sheet Oct16_$200MM TL
C2: Month of: June 2017
C3: ATMOS ENERGY CORPORATION - LONG TERM DEBT DETAIL | U3: ATMOS ENERGY CORPORATION - LONG TERM DEBT DETAIL
C4: BB&T | E4: 200000000 | I4: Three Year Term Loan | M4: Effective 09/22/16 to 09/21/19 | U4: BB&T | W4: 200000000 | AD4: Three Year Term Loan | AF4: Effective 09/22/16 to 09/21/19 | AK4: 13Mth Avg
E5: Principal | G5: Interest | I5: Interest | K5: Unused | M5: Commitment | O5: Commitment | P5: Utilization | Q5: Utilization | W5: Principal | Y5: Principal | AA5: Interest | AC5: Daily | AD5: Unused | AF5: Commitment | AH5: Commitment | AJ5: Ending | AK5: M/E Average
C6: Date | E6: Outstanding | G6: Rate | K6: Portion of | M6: Fee Rate | O6: Fee | P6: Fee Rate | Q6: Fee | U6: Date | W6: Outstanding | Y6: Outstanding | AA6: Rate | AC6: Interest | AD6: Portion of | AF6: Fee Rate | AH6: Fee | AJ6: Interest | AK6: Interest
K7: Line | Q7: (3) | W7: M/E | Y7: Average | AC7: Calc | AD7: Line | AH7: Calc | AJ7: Rate | AK7: Rate
C8: =DATE(2016,10,1) -> 2016-10-01 | E8: 0 | G8: 0 | I8: =ROUND(E8*G8/366,3) -> 0 | K8: =$E$4-E8 -> 200000000 | M8: 0.001 | O8: =K8*M8/360 -> 555.5555556 | P8: 0 | Q8: =IF(E39<($AA$4*0.5),0,(E39*P8)/360) -> 0 | U8: 2016-10-01 | W8: =+E38 -> 125000000 | Y8: =+W8/13 -> 9615384.615 | AA8: 0.01424 | AC8: =+AA8/360*W8 -> 4944.444444 | AD8: =IF(W8=0,0,200000000-W8) -> 75000000 | AF8: 0.001 | AH8: =+AF8/360*AD8 -> 208.3333333 | AJ8: =((W8*AA8)+(AD8*AF8))/W8 -> 0.01484 | AK8: =((W8*AA8)+(AD8*AF8))/W8 -> 0.01484
C9: =C8+1 -> 2016-10-02 | E9: =+E8 -> 0 | G9: =IF(E9>0,G8,0) -> 0 | I9: 0 | K9: 200000000 | M9: =+M8 -> 0.001 | O9: =K9*M9/360 -> 555.5555556 | P9: 0 | Q9: 0 | U9: 2016-11-01 | W9: =+E68 -> 125000000 | Y9: =IF(W9=0,0,SUM($W$8:W9)/13) -> 19230769.23 | AA9: =+G68 -> 0.015 | AC9: =+AA9/360*W9 -> 5208.333333 | AD9: 75000000 | AF9: =IF(AD9=0,0,0.1%) -> 0.001 | AH9: =+AF9/360*AD9 -> 208.3333333 | AJ9: =IF(W9=0,0,((W9*AA9)+(AD9*AF9))/W9) -> 0.0156 | AK9: =IF(W9=0,0,+((AVERAGE($AC$8:AC9)+AVERAGE($AH$8:AH9))/AVERAGE($W$8:W9))*360) -> 0.01522
C10: =C9+1 -> 2016-10-03 | E10: =+E9 -> 0 | G10: =IF(E10>0,G9,0) -> 0 | I10: 0 | K10: 200000000 | M10: =+M9 -> 0.001 | O10: =K10*M10/360 -> 555.5555556 | P10: 0 | Q10: 0 | U10: 2016-12-01 | W10: =+E99 -> 125000000 | Y10: =IF(W10=0,0,SUM($W$8:W10)/13) -> 28846153.85 | AA10: =+G99 -> 0.0166 | AC10: 5763.888889 | AD10: 75000000 | AF10: =IF(AD10=0,0,0.1%) -> 0.001 | AH10: 208.3333333 | AJ10: 0.0172 | AK10: =IF(W10=0,0,+((AVERAGE($AC$8:AC10)+AVERAGE($AH$8:AH10))/AVERAGE($W$8:W10))*360) -> 0.01588
C11: 2016-10-04 | E11: 0 | G11: 0 | I11: 0 | K11: 200000000 | M11: 0.001 | O11: 555.5555556 | P11: 0 | Q11: 0 | U11: 2017-01-01 | W11: =+E130 -> 125000000 | Y11: =IF(W11=0,0,SUM($W$8:W11)/13) -> 38461538.46 | AA11: =+G130 -> 0.0168 | AC11: 5833.333333 | AD11: 75000000 | AF11: 0.001 | AH11: 208.3333333 | AJ11: =IF(W11=0,0,((W11*AA11)+(AD11*AF11))/W11) -> 0.0174 | AK11: =IF(W11=0,0,+((AVERAGE($AC$8:AC11)+AVERAGE($AH$8:AH11))/AVERAGE($W$8:W11))*360) -> 0.01626
C12: 2016-10-05 | E12: 0 | G12: 0 | I12: 0 | K12: 200000000 | M12: 0.001 | O12: 555.5555556 | P12: 0 | Q12: 0 | U12: 2017-02-01 | W12: =+E158 -> 125000000 | Y12: =IF(W12=0,0,SUM($W$8:W12)/13) -> 48076923.08 | AA12: =+G158 -> 0.0168 | AC12: 5833.333333 | AD12: 75000000 | AF12: 0.001 | AH12: 208.3333333 | AJ12: =IF(W12=0,0,((W12*AA12)+(AD12*AF12))/W12) -> 0.0174 | AK12: =IF(W12=0,0,+((AVERAGE($AC$8:AC12)+AVERAGE($AH$8:AH12))/AVERAGE($W$8:W12))*360) -> 0.016488
C13: 2016-10-06 | E13: 0 | G13: 0 | I13: 0 | K13: 200000000 | M13: 0.001 | O13: 555.5555556 | P13: 0 | Q13: 0 | U13: 2017-03-01 | W13: =+E189 -> 125000000 | Y13: =IF(W13=0,0,SUM($W$8:W13)/13) -> 57692307.69 | AA13: =+G189 -> 0.0189 | AC13: 6562.5 | AD13: 75000000 | AF13: 0.001 | AH13: 208.3333333 | AJ13: 0.0195 | AK13: =IF(W13=0,0,+((AVERAGE($AC$8:AC13)+AVERAGE($AH$8:AH13))/AVERAGE($W$8:W13))*360) -> 0.01699
C14: 2016-10-07 | E14: 0 | G14: 0 | I14: 0 | K14: 200000000 | M14: 0.001 | O14: =K14*M14/360 -> 555.5555556 | P14: 0 | Q14: 0 | U14: 2017-04-01 | W14: =+E219 -> 125000000 | Y14: =IF(W14=0,0,SUM($W$8:W14)/13) -> 67307692.31 | AA14: =+G219 -> 0.019 | AC14: 6597.222222 | AD14: 75000000 | AF14: 0.001 | AH14: 208.3333333 | AJ14: 0.0196 | AK14: =IF(W14=0,0,+((AVERAGE($AC$8:AC14)+AVERAGE($AH$8:AH14))/AVERAGE($W$8:W14))*360) -> 0.01736285714
C15: 2016-10-08 | E15: 0 | G15: 0 | I15: 0 | K15: 200000000 | M15: 0.001 | O15: 555.5555556 | P15: 0 | Q15: 0 | U15: 2017-05-01 | W15: =+E250 -> 125000000 | Y15: =IF(W15=0,0,SUM($W$8:W15)/13) -> 76923076.92 | AA15: =+G250 -> 0.0195 | AC15: 6770.833333 | AD15: 75000000 | AF15: 0.001 | AH15: 208.3333333 | AJ15: 0.0201 | AK15: =IF(W15=0,0,+((AVERAGE($AC$8:AC15)+AVERAGE($AH$8:AH15))/AVERAGE($W$8:W15))*360) -> 0.017705
C16: 2016-10-09 | E16: 0 | G16: 0 | I16: 0 | K16: 200000000 | M16: 0.001 | O16: 555.5555556 | P16: 0 | Q16: 0 | U16: 2017-06-01 | W16: =+E280 -> 125000000 | Y16: =IF(W16=0,0,SUM($W$8:W16)/13) -> 86538461.54 | AA16: =+G280 -> 0.0213 | AC16: 7395.833333 | AD16: 75000000 | AF16: 0.001 | AH16: 208.3333333 | AJ16: 0.0219 | AK16: =IF(W16=0,0,+((AVERAGE($AC$8:AC16)+AVERAGE($AH$8:AH16))/AVERAGE($W$8:W16))*360) -> 0.01817111111
C17: 2016-10-10 | E17: 0 | G17: 0 | I17: 0 | K17: 200000000 | M17: 0.001 | O17: 555.5555556 | P17: 0 | Q17: 0 | U17: 2017-07-01 | W17: =+E311 -> 0 | Y17: =IF(W17=0,0,SUM($W$8:W17)/13) -> 0 | AA17: =+G311 -> 0 | AC17: 0 | AD17: 0 | AF17: 0 | AH17: 0 | AJ17: 0 | AK17: =IF(W17=0,0,+((AVERAGE($AC$8:AC17)+AVERAGE($AH$8:AH17))/AVERAGE($W$8:W17))*360) -> 0
C18: 2016-10-11 | E18: 0 | G18: 0 | I18: 0 | K18: 200000000 | M18: 0.001 | O18: 555.5555556 | P18: 0 | Q18: 0 | U18: 2017-08-01 | W18: =+E342 -> 0 | Y18: =IF(W18=0,0,SUM($W$8:W18)/13) -> 0 | AA18: =+G342 -> 0 | AC18: 0 | AD18: 0 | AF18: 0 | AH18: 0 | AJ18: 0 | AK18: =IF(W18=0,0,+((AVERAGE($AC$8:AC18)+AVERAGE($AH$8:AH18))/AVERAGE($W$8:W18))*360) -> 0
C19: 2016-10-12 | E19: 0 | G19: 0 | I19: 0 | K19: 200000000 | M19: 0.001 | O19: 555.5555556 | P19: 0 | Q19: 0 | U19: 2017-09-01 | W19: =+E372 -> 0 | Y19: =IF(W19=0,0,SUM($W$8:W19)/13) -> 0 | AA19: =+G372 -> 0 | AC19: 0 | AD19: 0 | AF19: 0 | AH19: 0 | AJ19: 0 | AK19: =IF(W19=0,0,+((AVERAGE($AC$8:AC19)+AVERAGE($AH$8:AH19))/AVERAGE($W$8:W19))*360) -> 0
C20: 2016-10-13 | E20: 0 | G20: 0 | I20: 0 | K20: 200000000 | M20: 0.001 | O20: 555.5555556 | P20: 0 | Q20: 0 | U20: 2017-10-01 | W20: =+E403 -> 0 | Y20: =IF(W20=0,0,SUM($W$8:W20)/13) -> 0 | AA20: =+G403 -> 0 | AC20: 0 | AD20: 0 | AF20: 0 | AH20: 0 | AJ20: 0 | AK20: =IF(W20=0,0,+((AVERAGE($AC$8:AC20)+AVERAGE($AH$8:AH20))/AVERAGE($W$8:W20))*360) -> 0
C21: 2016-10-14 | E21: 0 | G21: 0 | I21: 0 | K21: 200000000 | M21: 0.001 | O21: 555.5555556 | P21: 0 | Q21: 0 | U21: 2017-11-01 | Y21: =IF(W21=0,0,SUM(W9:W21)/13) -> 0 | AC21: 0 | AD21: 0 | AF21: 0 | AH21: 0 | AJ21: 0 | AK21: =IF(W21=0,0,+((AVERAGE($AC$8:AC21)+AVERAGE($AH$8:AH21))/AVERAGE($W$8:W21))*360) -> 0
C22: 2016-10-15 | E22: 0 | G22: 0 | I22: 0 | K22: 200000000 | M22: 0.001 | O22: 555.5555556 | P22: 0 | Q22: 0 | U22: 2017-12-01 | Y22: =IF(W22=0,0,SUM(W10:W22)/13) -> 0 | AC22: 0 | AD22: 0 | AF22: 0 | AH22: 0 | AJ22: 0 | AK22: =IF(W22=0,0,+((AVERAGE(AC9:AC22)+AVERAGE(AH9:AH22))/AVERAGE(W9:W22))*360) -> 0
C23: 2016-10-16 | E23: 0 | G23: 0 | I23: 0 | K23: 200000000 | M23: 0.001 | O23: 555.5555556 | P23: 0 | Q23: 0 | U23: 2018-01-01 | Y23: 0 | AC23: 0 | AD23: 0 | AF23: 0 | AH23: 0 | AJ23: 0 | AK23: 0
C24: 2016-10-17 | E24: 0 | G24: 0 | I24: 0 | K24: 200000000 | M24: 0.001 | O24: 555.5555556 | P24: 0 | Q24: 0 | U24: 2018-02-01 | Y24: 0 | AC24: 0 | AD24: 0 | AF24: 0 | AH24: 0 | AJ24: 0 | AK24: 0
C25: 2016-10-18 | E25: 0 | G25: 0 | I25: 0 | K25: 200000000 | M25: 0.001 | O25: 555.5555556 | P25: 0 | Q25: 0 | U25: 2018-03-01 | Y25: 0 | AC25: 0 | AD25: 0 | AF25: 0 | AH25: 0 | AJ25: 0 | AK25: 0
C26: 2016-10-19 | E26: 0 | G26: 0 | I26: 0 | K26: 200000000 | M26: 0.001 | O26: 555.5555556 | P26: 0 | Q26: 0 | U26: 2018-04-01 | Y26: 0 | AC26: 0 | AD26: 0 | AF26: 0 | AH26: 0 | AJ26: 0 | AK26: 0
C27: 2016-10-20 | E27: 0 | G27: 0 | I27: 0 | K27: 200000000 | M27: 0.001 | O27: 555.5555556 | P27: 0 | Q27: 0 | U27: 2018-05-01 | Y27: 0 | AC27: 0 | AD27: 0 | AF27: 0 | AH27: 0 | AJ27: 0 | AK27: 0
C28: 2016-10-21 | E28: 0 | G28: 0 | I28: 0 | K28: 200000000 | M28: 0.001 | O28: 555.5555556 | P28: 0 | Q28: 0 | U28: 2018-06-01 | Y28: 0 | AC28: 0 | AD28: 0 | AF28: 0 | AH28: 0 | AJ28: 0 | AK28: 0
C29: 2016-10-22 | E29: 0 | G29: 0 | I29: 0 | K29: 200000000 | M29: 0.001 | O29: 555.5555556 | P29: 0 | Q29: 0 | U29: 2018-07-01 | Y29: 0 | AC29: 0 | AD29: 0 | AF29: 0 | AH29: 0 | AJ29: 0 | AK29: 0
C30: 2016-10-23 | E30: 0 | G30: 0 | I30: 0 | K30: =$E$4-E30 -> 200000000 | M30: 0.001 | O30: 555.5555556 | P30: 0 | Q30: 0 | U30: 2018-08-01 | Y30: 0 | AC30: 0 | AD30: 0 | AF30: 0 | AH30: 0 | AJ30: 0 | AK30: 0
C31: 2016-10-24 | E31: 125000000 | G31: 0.01424 | I31: =ROUND(E31*G31/360,3) -> 4944.444 | K31: =IF(E31=0,0,$E$4-E31) -> 75000000 | M31: 0.001 | O31: 208.3333333 | P31: 0 | Q31: 0 | U31: 2018-09-01 | Y31: 0 | AC31: 0 | AD31: 0 | AF31: 0 | AH31: 0 | AJ31: 0 | AK31: 0
C32: 2016-10-25 | E32: =+E31 -> 125000000 | G32: 0.01424 | I32: =ROUND(E32*G32/360,3) -> 4944.444 | K32: =IF(E32=0,0,$E$4-E32) -> 75000000 | M32: 0.001 | O32: 208.3333333 | P32: 0 | Q32: 0 | U32: 2018-10-01 | Y32: 0 | AC32: 0 | AD32: 0 | AF32: 0 | AH32: 0 | AJ32: 0 | AK32: 0
C33: 2016-10-26 | E33: =+E32 -> 125000000 | G33: 0.01424 | I33: 4944.444 | K33: 75000000 | M33: 0.001 | O33: 208.3333333 | P33: 0 | Q33: 0 | U33: 2018-11-01 | Y33: 0 | AC33: 0 | AD33: 0 | AF33: 0 | AH33: 0 | AJ33: 0 | AK33: 0
C34: 2016-10-27 | E34: 125000000 | G34: 0.01424 | I34: 4944.444 | K34: 75000000 | M34: 0.001 | O34: 208.3333333 | P34: 0 | Q34: 0 | U34: 2018-12-01 | Y34: 0 | AC34: 0 | AD34: 0 | AF34: 0 | AH34: 0 | AJ34: 0 | AK34: 0
C35: 2016-10-28 | E35: 125000000 | G35: 0.01424 | I35: 4944.444 | K35: 75000000 | M35: 0.001 | O35: 208.3333333 | P35: 0 | Q35: 0 | U35: 2019-01-01 | Y35: 0 | AC35: 0 | AD35: 0 | AF35: 0 | AH35: 0 | AJ35: 0 | AK35: 0
C36: 2016-10-29 | E36: 125000000 | G36: 0.01424 | I36: 4944.444 | K36: 75000000 | M36: 0.001 | O36: 208.3333333 | P36: 0 | Q36: 0 | U36: 2019-02-01 | Y36: 0 | AC36: 0 | AD36: 0 | AF36: 0 | AH36: 0 | AJ36: 0 | AK36: 0
C37: 2016-10-30 | E37: 125000000 | G37: 0.01424 | I37: 4944.444 | K37: 75000000 | M37: 0.001 | O37: 208.3333333 | P37: 0 | Q37: 0 | U37: 2019-03-01 | Y37: 0 | AC37: 0 | AD37: 0 | AF37: 0 | AH37: 0 | AJ37: 0 | AK37: 0
C38: 2016-10-31 | E38: 125000000 | G38: 0.01424 | I38: 4944.444 | K38: 75000000 | M38: 0.001 | O38: 208.3333333 | P38: 0 | Q38: =IF(E68<($AA$4*0.5),0,(E68*P37)/360) -> 0 | U38: 2019-04-01 | Y38: 0 | AC38: 0 | AD38: 0 | AF38: 0 | AH38: 0 | AJ38: 0 | AK38: 0
C39: 2016-11-01 | E39: 125000000 | G39: 0.0143 | I39: =ROUND(E39*G39/360,3) -> 4965.278 | K39: 75000000 | M39: 0.001 | O39: =K39*M39/360 -> 208.3333333 | Q39: =SUM(O8:O37) -> 14236.11111 | U39: 2019-05-01 | Y39: 0 | AC39: 0 | AD39: 0 | AF39: 0 | AH39: 0 | AJ39: 0 | AK39: 0
C40: 2016-11-02 | E40: =+E39 -> 125000000 | G40: 0.0143 | I40: =ROUND(E40*G40/360,3) -> 4965.278 | K40: 75000000 | M40: 0.001 | O40: =K40*M40/360 -> 208.3333333 | U40: 2019-06-01 | Y40: 0 | AC40: 0 | AD40: 0 | AF40: 0 | AH40: 0 | AJ40: 0 | AK40: 0
C41: 2016-11-03 | E41: =+E40 -> 125000000 | G41: 0.0143 | I41: 4965.278 | K41: 75000000 | M41: 0.001 | O41: =K41*M41/360 -> 208.3333333 | U41: 2019-07-01 | Y41: 0 | AC41: 0 | AD41: 0 | AF41: 0 | AH41: 0 | AJ41: 0 | AK41: 0
C42: 2016-11-04 | E42: 125000000 | G42: 0.0143 | I42: 4965.278 | K42: 75000000 | M42: 0.001 | O42: 208.3333333 | U42: 2019-08-01 | Y42: 0 | AC42: 0 | AD42: 0 | AF42: 0 | AH42: 0 | AJ42: 0 | AK42: 0
C43: 2016-11-05 | E43: 125000000 | G43: 0.0143 | I43: 4965.278 | K43: 75000000 | M43: 0.001 | O43: 208.3333333 | U43: 2019-09-01 | Y43: 0 | AC43: 0 | AD43: 0 | AF43: 0 | AH43: 0 | AJ43: 0 | AK43: 0
C44: 2016-11-06 | E44: 125000000 | G44: 0.0143 | I44: 4965.278 | K44: 75000000 | M44: 0.001 | O44: 208.3333333
C45: 2016-11-07 | E45: 125000000 | G45: 0.0143 | I45: 4965.278 | K45: 75000000 | M45: 0.001 | O45: =K45*M45/360 -> 208.3333333
C46: 2016-11-08 | E46: 125000000 | G46: 0.0143 | I46: 4965.278 | K46: 75000000 | M46: 0.001 | O46: 208.3333333
C47: 2016-11-09 | E47: 125000000 | G47: 0.0143 | I47: 4965.278 | K47: 75000000 | M47: 0.001 | O47: 208.3333333
C48: 2016-11-10 | E48: 125000000 | G48: 0.0143 | I48: 4965.278 | K48: 75000000 | M48: 0.001 | O48: 208.3333333
C49: 2016-11-11 | E49: 125000000 | G49: 0.0143 | I49: 4965.278 | K49: 75000000 | M49: 0.001 | O49: 208.3333333
C50: 2016-11-12 | E50: 125000000 | G50: 0.0143 | I50: 4965.278 | K50: 75000000 | M50: 0.001 | O50: 208.3333333
C51: 2016-11-13 | E51: 125000000 | G51: 0.0143 | I51: 4965.278 | K51: 75000000 | M51: 0.001 | O51: 208.3333333
C52: 2016-11-14 | E52: 125000000 | G52: 0.0143 | I52: 4965.278 | K52: 75000000 | M52: 0.001 | O52: 208.3333333
C53: 2016-11-15 | E53: 125000000 | G53: 0.0143 | I53: 4965.278 | K53: 75000000 | M53: 0.001 | O53: 208.3333333
C54: 2016-11-16 | E54: 125000000 | G54: 0.0143 | I54: 4965.278 | K54: 75000000 | M54: 0.001 | O54: 208.3333333
C55: 2016-11-17 | E55: 125000000 | G55: 0.0143 | I55: 4965.278 | K55: 75000000 | M55: 0.001 | O55: 208.3333333
C56: 2016-11-18 | E56: 125000000 | G56: 0.0143 | I56: 4965.278 | K56: 75000000 | M56: 0.001 | O56: 208.3333333
C57: 2016-11-19 | E57: 125000000 | G57: 0.0143 | I57: 4965.278 | K57: 75000000 | M57: 0.001 | O57: 208.3333333
C58: 2016-11-20 | E58: 125000000 | G58: 0.0143 | I58: 4965.278 | K58: 75000000 | M58: 0.001 | O58: 208.3333333
C59: 2016-11-21 | E59: 125000000 | G59: 0.0143 | I59: 4965.278 | K59: 75000000 | M59: 0.001 | O59: 208.3333333
C60: 2016-11-22 | E60: 125000000 | G60: 0.0143 | I60: 4965.278 | K60: 75000000 | M60: 0.001 | O60: 208.3333333
C61: 2016-11-23 | E61: 125000000 | G61: 0.0143 | I61: 4965.278 | K61: 75000000 | M61: 0.001 | O61: 208.3333333
C62: 2016-11-24 | E62: 125000000 | G62: 0.0143 | I62: 4965.278 | K62: 75000000 | M62: 0.001 | O62: 208.3333333
C63: 2016-11-25 | E63: 125000000 | G63: 0.015 | I63: 5208.333 | K63: 75000000 | M63: 0.001 | O63: 208.3333333
C64: 2016-11-26 | E64: =+E63 -> 125000000 | G64: 0.015 | I64: 5208.333 | K64: 75000000 | M64: 0.001 | O64: 208.3333333
C65: 2016-11-27 | E65: 125000000 | G65: 0.015 | I65: 5208.333 | K65: 75000000 | M65: 0.001 | O65: 208.3333333
C66: 2016-11-28 | E66: 125000000 | G66: 0.015 | I66: 5208.333 | K66: 75000000 | M66: 0.001 | O66: 208.3333333
C67: 2016-11-29 | E67: 125000000 | G67: 0.015 | I67: 5208.333 | K67: 75000000 | M67: 0.001 | O67: 208.3333333
C68: 2016-11-30 | E68: 125000000 | G68: 0.015 | I68: 5208.333 | K68: 75000000 | M68: 0.001 | O68: 208.3333333
C69: 2016-12-01 | E69: 125000000 | G69: =IF(E69>0,G68,0) -> 0.015 | I69: =ROUND(E69*G69/360,3) -> 5208.333 | K69: =IF(E69=0,0,$E$4-E69) -> 75000000 | M69: 0.001 | O69: =K69*M69/360 -> 208.3333333
C70: 2016-12-02 | E70: 125000000 | G70: =IF(E70>0,G69,0) -> 0.015 | I70: 5208.333 | K70: 75000000 | M70: 0.001 | O70: 208.3333333
C71: 2016-12-03 | E71: 125000000 | G71: 0.015 | I71: 5208.333 | K71: 75000000 | M71: 0.001 | O71: 208.3333333
C72: 2016-12-04 | E72: 125000000 | G72: 0.015 | I72: 5208.333 | K72: 75000000 | M72: 0.001 | O72: 208.3333333
C73: 2016-12-05 | E73: 125000000 | G73: 0.015 | I73: 5208.333 | K73: 75000000 | M73: 0.001 | O73: 208.3333333
C74: 2016-12-06 | E74: 125000000 | G74: 0.015 | I74: 5208.333 | K74: 75000000 | M74: =+M73 -> 0.001 | O74: 208.3333333
C75: =C74+1 -> 2016-12-07 | E75: 125000000 | G75: 0.015 | I75: 5208.333 | K75: 75000000 | M75: 0.001 | O75: 208.3333333
C76: 2016-12-08 | E76: 125000000 | G76: 0.015 | I76: 5208.333 | K76: 75000000 | M76: 0.001 | O76: 208.3333333
C77: 2016-12-09 | E77: 125000000 | G77: 0.015 | I77: 5208.333 | K77: 75000000 | M77: 0.001 | O77: 208.3333333
C78: 2016-12-10 | E78: 125000000 | G78: 0.015 | I78: 5208.333 | K78: 75000000 | M78: 0.001 | O78: 208.3333333
C79: 2016-12-11 | E79: 125000000 | G79: 0.015 | I79: 5208.333 | K79: 75000000 | M79: 0.001 | O79: 208.3333333
C80: 2016-12-12 | E80: 125000000 | G80: 0.015 | I80: 5208.333 | K80: 75000000 | M80: 0.001 | O80: 208.3333333
C81: 2016-12-13 | E81: 125000000 | G81: 0.015 | I81: 5208.333 | K81: 75000000 | M81: 0.001 | O81: 208.3333333
C82: 2016-12-14 | E82: 125000000 | G82: 0.015 | I82: 5208.333 | K82: 75000000 | M82: 0.001 | O82: 208.3333333
C83: 2016-12-15 | E83: 125000000 | G83: 0.015 | I83: 5208.333 | K83: 75000000 | M83: 0.001 | O83: 208.3333333
C84: 2016-12-16 | E84: 125000000 | G84: 0.015 | I84: 5208.333 | K84: 75000000 | M84: 0.001 | O84: 208.3333333
C85: 2016-12-17 | E85: 125000000 | G85: 0.015 | I85: 5208.333 | K85: 75000000 | M85: 0.001 | O85: 208.3333333
C86: 2016-12-18 | E86: 125000000 | G86: 0.015 | I86: 5208.333 | K86: 75000000 | M86: 0.001 | O86: 208.3333333
C87: 2016-12-19 | E87: 125000000 | G87: 0.015 | I87: 5208.333 | K87: 75000000 | M87: 0.001 | O87: 208.3333333
C88: 2016-12-20 | E88: 125000000 | G88: 0.015 | I88: 5208.333 | K88: 75000000 | M88: 0.001 | O88: 208.3333333
C89: 2016-12-21 | E89: 125000000 | G89: 0.015 | I89: 5208.333 | K89: 75000000 | M89: 0.001 | O89: 208.3333333
C90: 2016-12-22 | E90: 125000000 | G90: 0.015 | I90: 5208.333 | K90: 75000000 | M90: 0.001 | O90: 208.3333333
C91: 2016-12-23 | E91: 125000000 | G91: 0.015 | I91: 5208.333 | K91: 75000000 | M91: 0.001 | O91: 208.3333333
C92: 2016-12-24 | E92: 125000000 | G92: 0.015 | I92: 5208.333 | K92: 75000000 | M92: 0.001 | O92: 208.3333333
C93: 2016-12-25 | E93: 125000000 | G93: 0.015 | I93: 5208.333 | K93: 75000000 | M93: 0.001 | O93: 208.3333333
C94: 2016-12-26 | E94: 125000000 | G94: 0.015 | I94: 5208.333 | K94: 75000000 | M94: 0.001 | O94: 208.3333333
C95: 2016-12-27 | E95: 125000000 | G95: 0.0166 | I95: 5763.889 | K95: 75000000 | M95: 0.001 | O95: 208.3333333
C96: 2016-12-28 | E96: 125000000 | G96: 0.0166 | I96: 5763.889 | K96: 75000000 | M96: 0.001 | O96: 208.3333333
C97: 2016-12-29 | E97: 125000000 | G97: 0.0166 | I97: 5763.889 | K97: 75000000 | M97: 0.001 | O97: 208.3333333
C98: 2016-12-30 | E98: 125000000 | G98: 0.0166 | I98: 5763.889 | K98: 75000000 | M98: 0.001 | O98: 208.3333333
C99: 2016-12-31 | E99: 125000000 | G99: 0.0166 | I99: 5763.889 | K99: 75000000 | M99: 0.001 | O99: 208.3333333
C100: 2017-01-01 | E100: 125000000 | G100: =IF(E100>0,G99,0) -> 0.0166 | I100: =ROUND(E100*G100/360,3) -> 5763.889 | K100: =IF(E100=0,0,$E$4-E100) -> 75000000 | M100: 0.001 | O100: =K100*M100/360 -> 208.3333333
C101: 2017-01-02 | E101: 125000000 | G101: =IF(E101>0,G100,0) -> 0.0166 | I101: 5763.889 | K101: 75000000 | M101: 0.001 | O101: 208.3333333
C102: 2017-01-03 | E102: 125000000 | G102: 0.0166 | I102: 5763.889 | K102: 75000000 | M102: 0.001 | O102: 208.3333333
C103: 2017-01-04 | E103: 125000000 | G103: 0.0166 | I103: 5763.889 | K103: 75000000 | M103: 0.001 | O103: 208.3333333
C104: 2017-01-05 | E104: 125000000 | G104: 0.0166 | I104: 5763.889 | K104: 75000000 | M104: 0.001 | O104: 208.3333333
C105: 2017-01-06 | E105: 125000000 | G105: 0.0166 | I105: 5763.889 | K105: 75000000 | M105: 0.001 | O105: 208.3333333
C106: 2017-01-07 | E106: 125000000 | G106: 0.0166 | I106: 5763.889 | K106: 75000000 | M106: 0.001 | O106: 208.3333333
C107: 2017-01-08 | E107: 125000000 | G107: 0.0166 | I107: 5763.889 | K107: 75000000 | M107: 0.001 | O107: 208.3333333
C108: 2017-01-09 | E108: 125000000 | G108: 0.0166 | I108: 5763.889 | K108: 75000000 | M108: 0.001 | O108: 208.3333333
C109: 2017-01-10 | E109: 125000000 | G109: 0.0166 | I109: 5763.889 | K109: 75000000 | M109: 0.001 | O109: 208.3333333
C110: 2017-01-11 | E110: 125000000 | G110: 0.0166 | I110: 5763.889 | K110: 75000000 | M110: 0.001 | O110: 208.3333333
C111: 2017-01-12 | E111: 125000000 | G111: 0.0166 | I111: 5763.889 | K111: 75000000 | M111: 0.001 | O111: 208.3333333
C112: 2017-01-13 | E112: 125000000 | G112: 0.0166 | I112: 5763.889 | K112: 75000000 | M112: 0.001 | O112: 208.3333333
C113: 2017-01-14 | E113: 125000000 | G113: 0.0166 | I113: 5763.889 | K113: 75000000 | M113: 0.001 | O113: 208.3333333
C114: 2017-01-15 | E114: 125000000 | G114: 0.0166 | I114: 5763.889 | K114: 75000000 | M114: 0.001 | O114: 208.3333333
C115: 2017-01-16 | E115: 125000000 | G115: 0.0166 | I115: 5763.889 | K115: 75000000 | M115: 0.001 | O115: 208.3333333
C116: 2017-01-17 | E116: 125000000 | G116: 0.0166 | I116: 5763.889 | K116: 75000000 | M116: 0.001 | O116: 208.3333333
C117: 2017-01-18 | E117: 125000000 | G117: 0.0166 | I117: 5763.889 | K117: 75000000 | M117: 0.001 | O117: 208.3333333
C118: 2017-01-19 | E118: 125000000 | G118: 0.0166 | I118: 5763.889 | K118: 75000000 | M118: 0.001 | O118: 208.3333333
C119: 2017-01-20 | E119: 125000000 | G119: 0.0166 | I119: 5763.889 | K119: 75000000 | M119: 0.001 | O119: 208.3333333
C120: 2017-01-21 | E120: 125000000 | G120: 0.0166 | I120: 5763.889 | K120: 75000000 | M120: 0.001 | O120: 208.3333333
C121: 2017-01-22 | E121: 125000000 | G121: 0.0166 | I121: 5763.889 | K121: 75000000 | M121: 0.001 | O121: 208.3333333
C122: 2017-01-23 | E122: 125000000 | G122: 0.0166 | I122: 5763.889 | K122: 75000000 | M122: 0.001 | O122: 208.3333333
C123: 2017-01-24 | E123: 125000000 | G123: 0.0166 | I123: 5763.889 | K123: 75000000 | M123: 0.001 | O123: 208.3333333
C124: 2017-01-25 | E124: 125000000 | G124: 0.0166 | I124: 5763.889 | K124: 75000000 | M124: 0.001 | O124: 208.3333333
C125: 2017-01-26 | E125: 125000000 | G125: 0.0166 | I125: 5763.889 | K125: 75000000 | M125: 0.001 | O125: 208.3333333
C126: 2017-01-27 | E126: 125000000 | G126: 0.0168 | I126: 5833.333 | K126: 75000000 | M126: 0.001 | O126: 208.3333333
C127: 2017-01-28 | E127: 125000000 | G127: 0.0168 | I127: 5833.333 | K127: 75000000 | M127: 0.001 | O127: 208.3333333
C128: 2017-01-29 | E128: =+E127 -> 125000000 | G128: 0.0168 | I128: 5833.333 | K128: 75000000 | M128: 0.001 | O128: 208.3333333
C129: 2017-01-30 | E129: 125000000 | G129: 0.0168 | I129: 5833.333 | K129: 75000000 | M129: 0.001 | O129: 208.3333333
C130: 2017-01-31 | E130: 125000000 | G130: 0.0168 | I130: 5833.333 | K130: 75000000 | M130: 0.001 | O130: 208.3333333
C131: 2017-02-01 | E131: 125000000 | G131: 0.0168 | I131: =ROUND(E131*G131/360,3) -> 5833.333 | K131: 75000000 | M131: 0.001 | O131: 208.3333333 | P131: 0 | Q131: =IF(E131<($Y$4*0.5),0,(E131*P131)/360) -> 0
C132: 2017-02-02 | E132: =+E131 -> 125000000 | G132: 0.0168 | I132: =ROUND(E132*G132/360,3) -> 5833.333 | K132: 75000000 | M132: 0.001 | O132: 208.3333333 | P132: 0 | Q132: =IF(E132<($Y$4*0.5),0,(E132*P132)/360) -> 0
C133: 2017-02-03 | E133: =+E132 -> 125000000 | G133: 0.0168 | I133: 5833.333 | K133: 75000000 | M133: 0.001 | O133: 208.3333333 | P133: 0 | Q133: =IF(E133<($Y$4*0.5),0,(E133*P133)/360) -> 0
C134: 2017-02-04 | E134: 125000000 | G134: 0.0168 | I134: 5833.333 | K134: 75000000 | M134: 0.001 | O134: 208.3333333 | P134: 0 | Q134: =IF(E134<($Y$4*0.5),0,(E134*P134)/360) -> 0
C135: 2017-02-05 | E135: 125000000 | G135: 0.0168 | I135: 5833.333 | K135: 75000000 | M135: 0.001 | O135: 208.3333333 | P135: 0 | Q135: 0
C136: 2017-02-06 | E136: 125000000 | G136: 0.0168 | I136: 5833.333 | K136: 75000000 | M136: 0.001 | O136: 208.3333333 | P136: 0 | Q136: 0
C137: 2017-02-07 | E137: 125000000 | G137: 0.0168 | I137: 5833.333 | K137: 75000000 | M137: 0.001 | O137: 208.3333333 | P137: 0 | Q137: 0
C138: 2017-02-08 | E138: 125000000 | G138: 0.0168 | I138: 5833.333 | K138: 75000000 | M138: 0.001 | O138: 208.3333333 | P138: 0 | Q138: 0
C139: =C138+1 -> 2017-02-09 | E139: 125000000 | G139: 0.0168 | I139: 5833.333 | K139: 75000000 | M139: 0.001 | O139: 208.3333333 | P139: 0 | Q139: 0
C140: 2017-02-10 | E140: 125000000 | G140: 0.0168 | I140: 5833.333 | K140: 75000000 | M140: 0.001 | O140: 208.3333333 | P140: 0 | Q140: 0
C141: 2017-02-11 | E141: 125000000 | G141: 0.0168 | I141: 5833.333 | K141: 75000000 | M141: 0.001 | O141: 208.3333333 | P141: 0 | Q141: 0
C142: 2017-02-12 | E142: 125000000 | G142: 0.0168 | I142: 5833.333 | K142: 75000000 | M142: 0.001 | O142: 208.3333333 | P142: 0 | Q142: 0
C143: 2017-02-13 | E143: 125000000 | G143: 0.0168 | I143: 5833.333 | K143: 75000000 | M143: 0.001 | O143: 208.3333333 | P143: 0 | Q143: 0
C144: 2017-02-14 | E144: 125000000 | G144: 0.0168 | I144: 5833.333 | K144: 75000000 | M144: 0.001 | O144: 208.3333333 | P144: 0 | Q144: 0
C145: 2017-02-15 | E145: 125000000 | G145: 0.0168 | I145: 5833.333 | K145: 75000000 | M145: 0.001 | O145: 208.3333333 | P145: 0 | Q145: 0
C146: 2017-02-16 | E146: 125000000 | G146: 0.0168 | I146: 5833.333 | K146: 75000000 | M146: 0.001 | O146: 208.3333333 | P146: 0 | Q146: 0
C147: 2017-02-17 | E147: 125000000 | G147: 0.0168 | I147: 5833.333 | K147: 75000000 | M147: 0.001 | O147: 208.3333333 | P147: 0 | Q147: 0
C148: 2017-02-18 | E148: 125000000 | G148: 0.0168 | I148: 5833.333 | K148: 75000000 | M148: 0.001 | O148: 208.3333333 | P148: 0 | Q148: 0
C149: 2017-02-19 | E149: 125000000 | G149: 0.0168 | I149: 5833.333 | K149: 75000000 | M149: 0.001 | O149: 208.3333333 | P149: 0 | Q149: 0
C150: 2017-02-20 | E150: 125000000 | G150: 0.0168 | I150: 5833.333 | K150: 75000000 | M150: 0.001 | O150: 208.3333333 | P150: 0 | Q150: 0
C151: 2017-02-21 | E151: 125000000 | G151: 0.0168 | I151: 5833.333 | K151: 75000000 | M151: 0.001 | O151: 208.3333333 | P151: 0 | Q151: 0
C152: 2017-02-22 | E152: 125000000 | G152: 0.0168 | I152: 5833.333 | K152: 75000000 | M152: 0.001 | O152: 208.3333333 | P152: 0 | Q152: 0
C153: 2017-02-23 | E153: 125000000 | G153: 0.0168 | I153: 5833.333 | K153: 75000000 | M153: 0.001 | O153: 208.3333333 | P153: 0 | Q153: 0
C154: 2017-02-24 | E154: 125000000 | G154: 0.0168 | I154: 5833.333 | K154: 75000000 | M154: 0.001 | O154: 208.3333333 | P154: 0 | Q154: 0
C155: 2017-02-25 | E155: =+E154 -> 125000000 | G155: 0.0168 | I155: 5833.333 | K155: 75000000 | M155: 0.001 | O155: 208.3333333 | P155: 0 | Q155: 0
C156: 2017-02-26 | E156: =+E155 -> 125000000 | G156: 0.0168 | I156: 5833.333 | K156: 75000000 | M156: 0.001 | O156: 208.3333333 | P156: 0 | Q156: 0
C157: 2017-02-27 | E157: 125000000 | G157: 0.0168 | I157: 5833.333 | K157: 75000000 | M157: 0.001 | O157: 208.3333333 | P157: 0 | Q157: 0
C158: 2017-02-28 | E158: 125000000 | G158: 0.0168 | I158: 5833.333 | K158: 75000000 | M158: 0.001 | O158: 208.3333333 | P158: 0 | Q158: 0
C159: 2017-03-01 | E159: 125000000 | G159: =IF(E159>0,G158,0) -> 0.0168 | I159: =ROUND(E159*G159/360,3) -> 5833.333 | K159: =IF(E159=0,0,$E$4-E159) -> 75000000 | M159: =+M158 -> 0.001 | O159: =K159*M159/360 -> 208.3333333
C160: 2017-03-02 | E160: 125000000 | G160: 0.0168 | I160: 5833.333 | K160: =IF(E160=0,0,$E$4-E160) -> 75000000 | M160: 0.001 | O160: 208.3333333
C161: 2017-03-03 | E161: 125000000 | G161: 0.0168 | I161: 5833.333 | K161: 75000000 | M161: 0.001 | O161: 208.3333333
C162: 2017-03-04 | E162: 125000000 | G162: 0.0168 | I162: 5833.333 | K162: 75000000 | M162: 0.001 | O162: 208.3333333
C163: 2017-03-05 | E163: 125000000 | G163: 0.0168 | I163: 5833.333 | K163: 75000000 | M163: 0.001 | O163: 208.3333333
C164: 2017-03-06 | E164: 125000000 | G164: 0.0168 | I164: 5833.333 | K164: 75000000 | M164: 0.001 | O164: 208.3333333
C165: 2017-03-07 | E165: 125000000 | G165: 0.0168 | I165: 5833.333 | K165: 75000000 | M165: 0.001 | O165: 208.3333333
C166: 2017-03-08 | E166: 125000000 | G166: 0.0168 | I166: 5833.333 | K166: 75000000 | M166: 0.001 | O166: 208.3333333
C167: 2017-03-09 | E167: 125000000 | G167: 0.0168 | I167: 5833.333 | K167: 75000000 | M167: 0.001 | O167: 208.3333333
C168: 2017-03-10 | E168: 125000000 | G168: 0.0168 | I168: 5833.333 | K168: 75000000 | M168: 0.001 | O168: 208.3333333
C169: 2017-03-11 | E169: 125000000 | G169: 0.0168 | I169: 5833.333 | K169: 75000000 | M169: 0.001 | O169: 208.3333333
C170: 2017-03-12 | E170: 125000000 | G170: 0.0168 | I170: 5833.333 | K170: 75000000 | M170: 0.001 | O170: 208.3333333
C171: 2017-03-13 | E171: 125000000 | G171: 0.0168 | I171: 5833.333 | K171: 75000000 | M171: 0.001 | O171: 208.3333333
C172: 2017-03-14 | E172: 125000000 | G172: 0.0168 | I172: 5833.333 | K172: 75000000 | M172: 0.001 | O172: 208.3333333
C173: 2017-03-15 | E173: 125000000 | G173: 0.0168 | I173: 5833.333 | K173: 75000000 | M173: 0.001 | O173: 208.3333333
C174: 2017-03-16 | E174: 125000000 | G174: 0.0168 | I174: 5833.333 | K174: 75000000 | M174: 0.001 | O174: 208.3333333
C175: 2017-03-17 | E175: 125000000 | G175: 0.0168 | I175: 5833.333 | K175: 75000000 | M175: 0.001 | O175: 208.3333333
C176: 2017-03-18 | E176: 125000000 | G176: 0.0168 | I176: 5833.333 | K176: 75000000 | M176: 0.001 | O176: 208.3333333
C177: 2017-03-19 | E177: 125000000 | G177: 0.0168 | I177: 5833.333 | K177: 75000000 | M177: 0.001 | O177: 208.3333333
C178: 2017-03-20 | E178: 125000000 | G178: 0.0168 | I178: 5833.333 | K178: 75000000 | M178: 0.001 | O178: 208.3333333
C179: 2017-03-21 | E179: 125000000 | G179: 0.0168 | I179: 5833.333 | K179: 75000000 | M179: 0.001 | O179: 208.3333333
C180: 2017-03-22 | E180: 125000000 | G180: 0.0168 | I180: 5833.333 | K180: 75000000 | M180: 0.001 | O180: 208.3333333
C181: 2017-03-23 | E181: 125000000 | G181: 0.0168 | I181: 5833.333 | K181: 75000000 | M181: 0.001 | O181: 208.3333333
C182: 2017-03-24 | E182: 125000000 | G182: 0.0168 | I182: 5833.333 | K182: 75000000 | M182: 0.001 | O182: 208.3333333
C183: 2017-03-25 | E183: 125000000 | G183: 0.0168 | I183: 5833.333 | K183: 75000000 | M183: 0.001 | O183: 208.3333333
C184: 2017-03-26 | E184: 125000000 | G184: 0.0168 | I184: 5833.333 | K184: 75000000 | M184: 0.001 | O184: 208.3333333
C185: 2017-03-27 | E185: 125000000 | G185: 0.0189 | I185: 6562.5 | K185: 75000000 | M185: 0.001 | O185: 208.3333333
C186: 2017-03-28 | E186: 125000000 | G186: 0.0189 | I186: 6562.5 | K186: 75000000 | M186: 0.001 | O186: 208.3333333
C187: 2017-03-29 | E187: 125000000 | G187: 0.0189 | I187: 6562.5 | K187: 75000000 | M187: 0.001 | O187: 208.3333333
C188: 2017-03-30 | E188: 125000000 | G188: 0.0189 | I188: 6562.5 | K188: 75000000 | M188: 0.001 | O188: 208.3333333
C189: 2017-03-31 | E189: 125000000 | G189: 0.0189 | I189: 6562.5 | K189: 75000000 | M189: 0.001 | O189: 208.3333333
C190: 2017-04-01 | E190: 125000000 | G190: =IF(E190>0,G189,0) -> 0.0189 | I190: =ROUND(E190*G190/360,3) -> 6562.5 | K190: =IF(E190=0,0,$E$4-E190) -> 75000000 | M190: 0.001 | O190: =K190*M190/360 -> 208.3333333
C191: 2017-04-02 | E191: 125000000 | G191: 0.0189 | I191: 6562.5 | K191: 75000000 | M191: 0.001 | O191: 208.3333333
C192: 2017-04-03 | E192: 125000000 | G192: 0.0189 | I192: 6562.5 | K192: 75000000 | M192: 0.001 | O192: 208.3333333
C193: 2017-04-04 | E193: 125000000 | G193: 0.0189 | I193: 6562.5 | K193: 75000000 | M193: 0.001 | O193: 208.3333333
C194: 2017-04-05 | E194: 125000000 | G194: 0.0189 | I194: 6562.5 | K194: 75000000 | M194: 0.001 | O194: 208.3333333
C195: 2017-04-06 | E195: 125000000 | G195: 0.0189 | I195: 6562.5 | K195: 75000000 | M195: 0.001 | O195: 208.3333333
C196: 2017-04-07 | E196: 125000000 | G196: 0.0189 | I196: 6562.5 | K196: 75000000 | M196: 0.001 | O196: 208.3333333
C197: 2017-04-08 | E197: 125000000 | G197: 0.0189 | I197: 6562.5 | K197: 75000000 | M197: 0.001 | O197: 208.3333333
C198: 2017-04-09 | E198: 125000000 | G198: 0.0189 | I198: 6562.5 | K198: 75000000 | M198: 0.001 | O198: 208.3333333
C199: 2017-04-10 | E199: 125000000 | G199: 0.0189 | I199: 6562.5 | K199: 75000000 | M199: 0.001 | O199: 208.3333333
C200: 2017-04-11 | E200: 125000000 | G200: 0.0189 | I200: 6562.5 | K200: 75000000 | M200: 0.001 | O200: 208.3333333
C201: 2017-04-12 | E201: 125000000 | G201: 0.0189 | I201: 6562.5 | K201: 75000000 | M201: 0.001 | O201: 208.3333333
... 202 more rows

Sheet 2250 LTDebt Premium
A1: Atmos Energy Corporation | W1: Atmos Energy Corporation
A2: Consolidated Long-Term Debt - Unamortized Premium Acct 2250 | W2: Unamortized Debt Premium - Acct 2250
A3: Calculation of 13 mth average balance | F3: 2250 | G3: 2250 | H3: 2250 | I3: 2250 | J3: 2250 | K3: 2250 | L3: 2250 | M3: 2250 | N3: 2250 | O3: 2250 | P3: 2250 | Q3: 2250 | R3: 2250 | W3: Analysis of monthly acct activity and balances
A4: ='LTD rate'!A3 -> June 30, 2017 | F4: Balance | G4: Balance | H4: Balance | I4: Balance | J4: Balance | K4: Balance | L4: Balance | M4: Balance | N4: Balance | O4: Balance | P4: Balance | Q4: Balance | R4: Balance | S4: 13 mth Avg | W4: June 30, 2016 - June 30, 2017 | AA4: Debt Premium | AB4: Debt Premium | AD4: Debt Premium | AE4: Debt Premium | AG4: Debt Premium | AH4: Debt Premium | AJ4: Debt Premium | AK4: Debt Premium | AM4: Debt Premium | AN4: Debt Premium | AP4: Debt Premium | AQ4: Debt Premium | AS4: Debt Premium | AT4: Debt Premium | AV4: Debt Premium | AW4: Debt Premium | AY4: Debt Premium | AZ4: Debt Premium | BB4: Debt Premium | BC4: Debt Premium | BE4: Debt Premium | BF4: Debt Premium | BH4: Debt Premium | BI4: Debt Premium | BK4: Debt Premium | BL4: Debt Premium
D5: Full Premium | E5: 4290 | F5: Unamortized | G5: Unamortized | H5: Unamortized | I5: Unamortized | J5: Unamortized | K5: Unamortized | L5: Unamortized | M5: Unamortized | N5: Unamortized | O5: Unamortized | P5: Unamortized | Q5: Unamortized | R5: Unamortized | S5: Unamortized | AA5: 2250 | AB5: 2250 | AC5: 2250 | AD5: 2250 | AE5: 2250 | AF5: 2250 | AG5: 2250 | AH5: 2250 | AI5: 2250 | AJ5: 2250 | AK5: 2250 | AL5: 2250 | AM5: 2250 | AN5: 2250 | AP5: 2250 | AQ5: 2250 | AR5: 2250 | AS5: 2250 | AT5: 2250 | AU5: 2250 | AV5: 2250 | AW5: 2250 | AX5: 2250 | AY5: 2250 | AZ5: 2250 | BA5: 2250 | BB5: 2250 | BC5: 2250 | BD5: 2250 | BE5: 2250 | BF5: 2250 | BG5: 2250 | BH5: 2250 | BI5: 2250 | BJ5: 2250 | BK5: 2250 | BL5: 2250
A6: Atmos Energy Corp., Consolidated: | C6: Year | D6: before | E6: monthly | F6: Premium | G6: Premium | H6: Premium | I6: Premium | J6: Premium | K6: Premium | L6: Premium | M6: Premium | N6: Premium | O6: Premium | P6: Premium | Q6: Premium | R6: Premium | S6: Premium | W6: Year | X6: sub | Y6: Orig | Z6: 4290 | AA6: Activity | AB6: Balance | AD6: Activity | AE6: Balance | AG6: Activity | AH6: Balance | AJ6: Activity | AK6: Balance | AM6: Activity | AN6: Balance | AP6: Activity | AQ6: Balance | AS6: Activity | AT6: Balance | AV6: Activity | AW6: Balance | AY6: Activity | AZ6: Balance | BB6: Activity | BC6: Balance | BE6: Activity | BF6: Balance | BH6: Activity | BI6: Balance | BK6: Activity | BL6: Balance
A7: Line | B7: Debt Series | C7: Issued | D7: Amort | E7: Amort. | F7: 2016-06-30 | G7: 2016-07-31 | H7: 2016-08-31 | I7: 2016-09-30 | J7: 2016-10-31 | K7: 2016-11-30 | L7: 2016-12-31 | M7: 2017-01-31 | N7: 2017-02-28 | O7: 2017-03-31 | P7: 2017-04-30 | Q7: 2017-05-31 | R7: =BK7 -> 2017-06-30 | S7: =BL7 -> 2017-06-30 | W7: Issued | X7: acct | Y7: Debt Premium | Z7: mthly exp | AA7: 2016-06-30 | AB7: =AA7 -> 2016-06-30 | AD7: 2016-07-31 | AE7: =AD7 -> 2016-07-31 | AG7: 2016-08-31 | AH7: =AG7 -> 2016-08-31 | AJ7: 2016-09-30 | AK7: =AJ7 -> 2016-09-30 | AM7: 2016-10-31 | AN7: =AM7 -> 2016-10-31 | AP7: 2016-11-30 | AQ7: =AP7 -> 2016-11-30 | AS7: 2016-12-31 | AT7: =AS7 -> 2016-12-31 | AV7: 2017-01-31 | AW7: =AV7 -> 2017-01-31 | AY7: 2017-02-28 | AZ7: =AY7 -> 2017-02-28 | BB7: 2017-03-31 | BC7: =BB7 -> 2017-03-31 | BE7: 2017-04-30 | BF7: =BE7 -> 2017-04-30 | BH7: 2017-05-31 | BI7: =BH7 -> 2017-05-31 | BK7: 2017-06-30 | BL7: =BK7 -> 2017-06-30
A11: 1 | B11: $250M 4.1250% senior notes, due 2044 | C11: 2017 | D11: -9767500 | E11: -29778.96341 | F11: 0 | G11: 0 | H11: 0 | I11: 0 | J11: 0 | K11: 0 | L11: 0 | M11: 0 | N11: 0 | O11: 0 | P11: 0 | Q11: 0 | R11: -9752426.7 | S11: =AVERAGE(F11:R11) -> -750186.6692 | W11: 2017 | X11: 13536 | Y11: -9767500 | Z11: -29778.96341 | AA11: 0 | AB11: 0 | AD11: 0 | AE11: =AB11+AD11 -> 0 | AG11: 0 | AH11: =AE11+AG11 -> 0 | AJ11: 0 | AK11: =AH11+AJ11 -> 0 | AM11: 0 | AN11: =AK11+AM11 -> 0 | AP11: 0 | AQ11: =AN11+AP11 -> 0 | AS11: 0 | AT11: =AQ11+AS11 -> 0 | AV11: 0 | AW11: =AT11+AV11 -> 0 | AY11: 0 | AZ11: =AW11+AY11 -> 0 | BB11: 0 | BC11: =AZ11+BB11 -> 0 | BE11: 0 | BF11: =BC11+BE11 -> 0 | BH11: 0 | BI11: =BF11+BH11 -> 0 | BK11: 15073.3 | BL11: -9752426.7
A12: 2 | B12: Total Utility Long-Term Debt Unamortized Premium | D12: =SUM(D10:D11) -> -9767500 | E12: -29778.96341 | F12: 0 | G12: 0 | H12: 0 | I12: 0 | J12: 0 | K12: 0 | L12: 0 | M12: 0 | N12: 0 | O12: 0 | P12: 0 | Q12: 0 | R12: -9752426.7 | S12: -750186.6692 | Y12: =SUM(Y9:Y11) -> -9767500 | Z12: -29778.96341 | AA12: 0 | AB12: 0 | AC12: 0 | AD12: 0 | AE12: 0 | AF12: 0 | AG12: 0 | AH12: 0 | AI12: 0 | AJ12: 0 | AK12: 0 | AL12: 0 | AM12: 0 | AN12: 0 | AO12: 0 | AP12: 0 | AQ12: 0 | AR12: 0 | AS12: 0 | AT12: 0 | AU12: 0 | AV12: 0 | AW12: 0 | AX12: 0 | AY12: 0 | AZ12: 0 | BA12: 0 | BB12: 0 | BC12: 0 | BD12: 0 | BE12: 0 | BF12: 0 | BG12: 0 | BH12: 0 | BI12: 0 | BJ12: 0 | BK12: 15073.3 | BL12: -9752426.7
AB13: check | AE13: check | AH13: check | AK13: check | AN13: check | AQ13: check | AT13: check | AW13: check | AZ13: check | BC13: check | BF13: check | BI13: check | BL13: check
Z14: G/L Bal | AB14: 0 | AE14: =AB14+AD12 -> 0 | AH14: =AE14+AG12 -> 0 | AK14: =AH14+AJ12 -> 0 | AN14: =AK14+AM12 -> 0 | AQ14: =AN14+AP12 -> 0 | AT14: =AQ14+AS12 -> 0 | AW14: =AT14+AV12 -> 0 | AZ14: =AW14+AY12 -> 0 | BC14: =AZ14+BB12 -> 0 | BF14: =BC14+BE12 -> 0 | BI14: =BF14+BH12 -> 0 | BL14: -9752426.7
AB16: =AB12-AB14 -> 0 | AE16: =AE12-AE14 -> 0 | AH16: =AH12-AH14 -> 0 | AK16: =AK12-AK14 -> 0 | AN16: =AN12-AN14 -> 0 | AQ16: =AQ12-AQ14 -> 0 | AT16: =AT12-AT14 -> 0 | AW16: =AW12-AW14 -> 0 | AZ16: =AZ12-AZ14 -> 0 | BC16: =BC12-BC14 -> 0 | BF16: =BF12-BF14 -> 0 | BI16: =BI12-BI14 -> 0 | BL16: =BL12-BL14 -> 0

Sheet 2260 LTDebt Discount
A1: Atmos Energy Corporation | W1: Atmos Energy Corporation
A2: Consolidated Long-Term Debt - Unamortized Discount Acct 2260 | W2: Unamortized Debt Dsct - Acct 2260
A3: Calculation of 13 mth average balance | F3: 2260 | G3: 2260 | H3: 2260 | I3: 2260 | J3: 2260 | K3: 2260 | L3: 2260 | M3: 2260 | N3: 2260 | O3: 2260 | P3: 2260 | Q3: 2260 | R3: 2260 | W3: Analysis of monthly acct activity and balances
A4: ='LTD rate'!A3 -> June 30, 2017 | F4: Balance | G4: Balance | H4: Balance | I4: Balance | J4: Balance | K4: Balance | L4: Balance | M4: Balance | N4: Balance | O4: Balance | P4: Balance | Q4: Balance | R4: Balance | S4: 13 mth Avg | W4: June 30, 2016 - June 30, 2017 | AA4: Debt Dsct | AB4: Debt Dsct | AD4: Debt Dsct | AE4: Debt Dsct | AG4: Debt Dsct | AH4: Debt Dsct | AJ4: Debt Dsct | AK4: Debt Dsct | AM4: Debt Dsct | AN4: Debt Dsct | AP4: Debt Dsct | AQ4: Debt Dsct | AS4: Debt Dsct | AT4: Debt Dsct | AV4: Debt Dsct | AW4: Debt Dsct | AY4: Debt Dsct | AZ4: Debt Dsct | BB4: Debt Dsct | BC4: Debt Dsct | BE4: Debt Dsct | BF4: Debt Dsct | BH4: Debt Dsct | BI4: Debt Dsct | BK4: Debt Dsct | BL4: Debt Dsct
D5: Full Dsct | E5: 4280 | F5: Unamortized | G5: Unamortized | H5: Unamortized | I5: Unamortized | J5: Unamortized | K5: Unamortized | L5: Unamortized | M5: Unamortized | N5: Unamortized | O5: Unamortized | P5: Unamortized | Q5: Unamortized | R5: Unamortized | S5: Unamortized | AA5: 2260 | AB5: 2260 | AD5: 2260 | AE5: 2260 | AG5: 2260 | AH5: 2260 | AJ5: 2260 | AK5: 2260 | AM5: 2260 | AN5: 2260 | AP5: 2260 | AQ5: 2260 | AS5: 2260 | AT5: 2260 | AV5: 2260 | AW5: 2260 | AY5: 2260 | AZ5: 2260 | BB5: 2260 | BC5: 2260 | BE5: 2260 | BF5: 2260 | BH5: 2260 | BI5: 2260 | BK5: 2260 | BL5: 2260
A6: Atmos Energy Corp., Consolidated: | C6: Year | D6: before | E6: monthly | F6: Discount | G6: Discount | H6: Discount | I6: Discount | J6: Discount | K6: Discount | L6: Discount | M6: Discount | N6: Discount | O6: Discount | P6: Discount | Q6: Discount | R6: Discount | S6: Discount | W6: Year | X6: sub | Y6: Orig | Z6: 4280 | AA6: Activity | AB6: Balance | AD6: Activity | AE6: Balance | AG6: Activity | AH6: Balance | AJ6: Activity | AK6: Balance | AM6: Activity | AN6: Balance | AP6: Activity | AQ6: Balance | AS6: Activity | AT6: Balance | AV6: Activity | AW6: Balance | AY6: Activity | AZ6: Balance | BB6: Activity | BC6: Balance | BE6: Activity | BF6: Balance | BH6: Activity | BI6: Balance | BK6: Activity | BL6: Balance
A7: Line | B7: Debt Series | C7: Issued | D7: Amort | E7: Amort. | F7: 2016-06-30 | G7: 2016-07-31 | H7: 2016-08-31 | I7: 2016-09-30 | J7: 2016-10-31 | K7: 2016-11-30 | L7: 2016-12-31 | M7: 2017-01-31 | N7: 2017-02-28 | O7: 2017-03-31 | P7: 2017-04-30 | Q7: 2017-05-31 | R7: =BK7 -> 2017-06-30 | S7: =BL7 -> 2017-06-30 | W7: Issued | X7: acct | Y7: Debt dsct | Z7: mthly exp | AA7: 2016-06-30 | AB7: =AA7 -> 2016-06-30 | AD7: 2016-07-31 | AE7: =AD7 -> 2016-07-31 | AG7: 2016-08-31 | AH7: =AG7 -> 2016-08-31 | AJ7: 2016-09-30 | AK7: =AJ7 -> 2016-09-30 | AM7: 2016-10-31 | AN7: =AM7 -> 2016-10-31 | AP7: 2016-11-30 | AQ7: =AP7 -> 2016-11-30 | AS7: 2016-12-31 | AT7: =AS7 -> 2016-12-31 | AV7: 2017-01-31 | AW7: =AV7 -> 2017-01-31 | AY7: 2017-02-28 | AZ7: =AY7 -> 2017-02-28 | BB7: 2017-03-31 | BC7: =BB7 -> 2017-03-31 | BE7: 2017-04-30 | BF7: =BE7 -> 2017-04-30 | BH7: 2017-05-31 | BI7: =BH7 -> 2017-05-31 | BK7: 2017-06-30 | BL7: =BK7 -> 2017-06-30
A11: 1 | B11: 6.75% Debentures Unsecured due July 2028 | C11: 1998 | D11: 1327500 | E11: =(1327500/360) -> 3687.5 | F11: 531000 | G11: 527312.5 | H11: 523625 | I11: 519937.5 | J11: 516250 | K11: 512562.5 | L11: 508875 | M11: 505187.5 | N11: 501500 | O11: 497812.5 | P11: 494125 | Q11: 490437.5 | R11: =Q11+BK11 -> 486750 | S11: =AVERAGE(F11:R11) -> 508875 | W11: 1998 | X11: 13521 | Y11: =1327500 -> 1327500 | Z11: =(+Y11/360) -> 3687.5 | AA11: -3687.5 | AB11: 531000 | AD11: -3687.5 | AE11: =AB11+AD11 -> 527312.5 | AG11: -3687.5 | AH11: =AE11+AG11 -> 523625 | AJ11: -3687.5 | AK11: =AH11+AJ11 -> 519937.5 | AM11: -3687.5 | AN11: =AK11+AM11 -> 516250 | AP11: -3687.5 | AQ11: =AN11+AP11 -> 512562.5 | AS11: -3687.5 | AT11: =AQ11+AS11 -> 508875 | AV11: -3687.5 | AW11: =AT11+AV11 -> 505187.5 | AY11: -3687.5 | AZ11: =AW11+AY11 -> 501500 | BB11: -3687.5 | BC11: =AZ11+BB11 -> 497812.5 | BE11: -3687.5 | BF11: =BC11+BE11 -> 494125 | BH11: -3687.5 | BI11: =BF11+BH11 -> 490437.5 | BK11: -3687.5 | BL11: =BI11+BK11 -> 486750
A12: 2 | B12: 5.125% Senior Notes due Jan 2013 | C12: 2003 | D12: 212500 | E12: 0 | F12: 0 | G12: 0 | H12: 0 | I12: 0 | J12: 0 | K12: 0 | L12: 0 | M12: 0 | N12: 0 | O12: 0 | P12: 0 | Q12: 0 | R12: =Q12+BK12 -> 0 | S12: =AVERAGE(F12:R12) -> 0 | W12: 2003 | X12: 13513/26 | Y12: =212500 -> 212500 | Z12: 0 | AA12: 0 | AB12: 0 | AD12: 0 | AE12: =AB12+AD12 -> 0 | AG12: 0 | AH12: =AE12+AG12 -> 0 | AJ12: 0 | AK12: =AH12+AJ12 -> 0 | AM12: 0 | AN12: =AK12+AM12 -> 0 | AP12: 0 | AQ12: =AN12+AP12 -> 0 | AS12: 0 | AT12: =AQ12+AS12 -> 0 | AV12: 0 | AW12: =AT12+AV12 -> 0 | AY12: 0 | AZ12: =AW12+AY12 -> 0 | BB12: 0 | BC12: =AZ12+BB12 -> 0 | BE12: 0 | BF12: =BC12+BE12 -> 0 | BH12: 0 | BI12: =BF12+BH12 -> 0 | BK12: 0 | BL12: =BI12+BK12 -> 0
A13: 3 | B13: 4.95% Sr Note due 10/15/2014 | C13: 2004 | D13: 35000 | E13: 0 | F13: -1.195987753e-12 | G13: -1.195987753e-12 | H13: -1.195987753e-12 | I13: -1.195987753e-12 | J13: -1.195987753e-12 | K13: -1.195987753e-12 | L13: -1.195987753e-12 | M13: -1.195987753e-12 | N13: -1.195987753e-12 | O13: -1.195987753e-12 | P13: -1.195987753e-12 | Q13: -1.195987753e-12 | R13: -1.195987753e-12 | S13: =AVERAGE(F13:R13) -> -1.195987753e-12 | W13: 2004 | X13: 13529 | Y13: 35000 | Z13: 0 | AA13: 0 | AB13: -1.195987753e-12 | AD13: 0 | AE13: =AB13+AD13 -> -1.195987753e-12 | AG13: 0 | AH13: =AE13+AG13 -> -1.195987753e-12 | AJ13: 0 | AK13: =AH13+AJ13 -> -1.195987753e-12 | AM13: 0 | AN13: =AK13+AM13 -> -1.195987753e-12 | AP13: 0 | AQ13: =AN13+AP13 -> -1.195987753e-12 | AS13: 0 | AT13: =AQ13+AS13 -> -1.195987753e-12 | AV13: 0 | AW13: =AT13+AV13 -> -1.195987753e-12 | AY13: 0 | AZ13: =AW13+AY13 -> -1.195987753e-12 | BB13: 0 | BC13: =AZ13+BB13 -> -1.195987753e-12 | BE13: 0 | BF13: =BC13+BE13 -> -1.195987753e-12 | BH13: 0 | BI13: =BF13+BH13 -> -1.195987753e-12 | BK13: 0 | BL13: =BI13+BK13 -> -1.195987753e-12
A14: 4 | B14: 5.95% Sr Note due 10/15/2034 | C14: 2004 | D14: 1216000 | E14: =(1216000/360) -> 3377.777778 | F14: 739733.25 | G14: 736355.47 | H14: 732977.69 | I14: 729599.91 | J14: 726222.13 | K14: 722844.35 | L14: 719466.57 | M14: 716088.79 | N14: 712711.01 | O14: 709333.23 | P14: 705955.45 | Q14: 702577.67 | R14: 699199.89 | S14: =AVERAGE(F14:R14) -> 719466.57 | W14: 2004 | X14: 13530 | Y14: 1216000 | Z14: =+Y14/360 -> 3377.777778 | AA14: -3377.78 | AB14: 739733.25 | AD14: -3377.78 | AE14: =AB14+AD14 -> 736355.47 | AG14: -3377.78 | AH14: =AE14+AG14 -> 732977.69 | AJ14: -3377.78 | AK14: =AH14+AJ14 -> 729599.91 | AM14: -3377.78 | AN14: =AK14+AM14 -> 726222.13 | AP14: -3377.78 | AQ14: =AN14+AP14 -> 722844.35 | AS14: -3377.78 | AT14: =AQ14+AS14 -> 719466.57 | AV14: -3377.78 | AW14: =AT14+AV14 -> 716088.79 | AY14: -3377.78 | AZ14: =AW14+AY14 -> 712711.01 | BB14: -3377.78 | BC14: =AZ14+BB14 -> 709333.23 | BE14: -3377.78 | BF14: =BC14+BE14 -> 705955.45 | BH14: -3377.78 | BI14: =BF14+BH14 -> 702577.67 | BK14: -3377.78 | BL14: 699199.89
A15: 5 | B15: 6.35% Sr Note due 6/15/2017 | C15: 2007 | D15: 677500 | E15: =677500/120 -> 5645.833333 | F15: 67750.13 | G15: 62104.3 | H15: 56458.47 | I15: 50812.64 | J15: 45166.81 | K15: 39520.98 | L15: 33875.15 | M15: 28229.32 | N15: 22583.49 | O15: 16937.66 | P15: 11291.83 | Q15: 5646 | R15: 1.928128768e-10 | S15: =AVERAGE(F15:R15) -> 33875.13692 | W15: 2007 | X15: 13531 | Y15: 677500 | Z15: 5645.83 | AA15: -5645.83 | AB15: 67750.13 | AD15: -5645.83 | AE15: 62104.3 | AG15: -5645.83 | AH15: 56458.47 | AJ15: -5645.83 | AK15: 50812.64 | AM15: -5645.83 | AN15: 45166.81 | AP15: -5645.83 | AQ15: 39520.98 | AS15: -5645.83 | AT15: 33875.15 | AV15: -5645.83 | AW15: 28229.32 | AY15: -5645.83 | AZ15: 22583.49 | BB15: -5645.83 | BC15: 16937.66 | BE15: -5645.83 | BF15: 11291.83 | BH15: -5645.83 | BI15: 5646 | BK15: -5646 | BL15: 1.928128768e-10
A16: 6 | B16: Sr Note 5.50% Due 06/15/2041 | C16: 2011 | D16: 1288000 | E16: 3578 | F16: 1069755.47 | G16: 1066177.69 | H16: 1062599.91 | I16: 1059022.13 | J16: 1055444.35 | K16: 1051866.57 | L16: 1048288.79 | M16: 1044711.01 | N16: 1041133.23 | O16: 1037555.45 | P16: 1033977.67 | Q16: 1030399.89 | R16: 1026822.11 | S16: 1048288.79 | W16: 2011 | X16: 13534 | Y16: 1288000 | Z16: 3578 | AA16: -3577.78 | AB16: 1069755.47 | AD16: -3577.78 | AE16: 1066177.69 | AG16: -3577.78 | AH16: 1062599.91 | AJ16: -3577.78 | AK16: 1059022.13 | AM16: -3577.78 | AN16: 1055444.35 | AP16: -3577.78 | AQ16: 1051866.57 | AS16: -3577.78 | AT16: 1048288.79 | AV16: -3577.78 | AW16: 1044711.01 | AY16: -3577.78 | AZ16: 1041133.23 | BB16: -3577.78 | BC16: 1037555.45 | BE16: -3577.78 | BF16: 1033977.67 | BH16: -3577.78 | BI16: 1030399.89 | BK16: -3577.78 | BL16: 1026822.11
A17: 7 | B17: 8.50% Sr Note due 3/15/2019 | C17: 2009 | D17: 841500 | E17: 7012.5 | F17: 231412.5 | G17: 224400 | H17: 217387.5 | I17: 210375 | J17: 203362.5 | K17: 196350 | L17: 189337.5 | M17: 182325 | N17: 175312.5 | O17: 168300 | P17: 161287.5 | Q17: 154275 | R17: 147262.5 | S17: 189337.5 | W17: 2009 | X17: 13532 | Y17: 841500 | Z17: 7012.5 | AA17: -7012.5 | AB17: 231412.5 | AD17: -7012.5 | AE17: 224400 | AG17: -7012.5 | AH17: 217387.5 | AJ17: -7012.5 | AK17: 210375 | AM17: -7012.5 | AN17: 203362.5 | AP17: -7012.5 | AQ17: 196350 | AS17: -7012.5 | AT17: 189337.5 | AV17: -7012.5 | AW17: 182325 | AY17: -7012.5 | AZ17: 175312.5 | BB17: -7012.5 | BC17: 168300 | BE17: -7012.5 | BF17: 161287.5 | BH17: -7012.5 | BI17: 154275 | BK17: -7012.5 | BL17: 147262.5
A18: 8 | B18: 4.15% Sr Note due 1/15/2043 | C18: 2013 | D18: 940000 | E18: =+D18/360 -> 2611.111111 | F18: 830333.38 | G18: 827722.27 | H18: 825111.16 | I18: 822500.05 | J18: 819888.94 | K18: 817277.83 | L18: 814666.72 | M18: 812055.61 | N18: 809444.5 | O18: 806833.39 | P18: 804222.28 | Q18: 801611.17 | R18: 799000.06 | S18: 814666.72 | W18: 2013 | X18: 13535 | Y18: 940000 | Z18: =+Y18/360 -> 2611.111111 | AA18: -2611.11 | AB18: 830333.38 | AD18: -2611.11 | AE18: 827722.27 | AG18: -2611.11 | AH18: 825111.16 | AJ18: -2611.11 | AK18: 822500.05 | AM18: -2611.11 | AN18: 819888.94 | AP18: -2611.11 | AQ18: 817277.83 | AS18: -2611.11 | AT18: 814666.72 | AV18: -2611.11 | AW18: 812055.61 | AY18: -2611.11 | AZ18: 809444.5 | BB18: -2611.11 | BC18: 806833.39 | BE18: -2611.11 | BF18: 804222.28 | BH18: -2611.11 | BI18: 801611.17 | BK18: -2611.11 | BL18: 799000.06
A19: 9 | B19: 4.125% Sr Note due 10/15/2044 | C19: 2014 | D19: 940000 | E19: =+D19/360 -> 2611.111111 | F19: 885166.69 | G19: 882555.58 | H19: 879944.47 | I19: 877333.36 | J19: 874722.25 | K19: 872111.14 | L19: 869500.03 | M19: 866888.92 | N19: 864277.81 | O19: 861666.7 | P19: 859055.59 | Q19: 856444.48 | R19: 853833.37 | S19: =AVERAGE(F19:R19) -> 869500.03 | W19: 2014 | X19: 13536 | Y19: 940000 | Z19: 2611 | AA19: -2611.11 | AB19: 885166.69 | AD19: -2611.11 | AE19: 882555.58 | AG19: -2611.11 | AH19: 879944.47 | AJ19: -2611.11 | AK19: 877333.36 | AM19: -2611.11 | AN19: 874722.25 | AP19: -2611.11 | AQ19: 872111.14 | AS19: -2611.11 | AT19: 869500.03 | AV19: -2611.11 | AW19: 866888.92 | AY19: -2611.11 | AZ19: 864277.81 | BB19: -2611.11 | BC19: 861666.7 | BE19: -2611.11 | BF19: 859055.59 | BH19: -2611.11 | BI19: 856444.48 | BK19: -2611.11 | BL19: 853833.37
A20: 10 | B20: 3.000% Sr Note due 6/15/27 | C20: 2017 | D20: 1375000 | E20: 5729.17 | F20: 0 | G20: 0 | H20: 0 | I20: 0 | J20: 0 | K20: 0 | L20: 0 | M20: 0 | N20: 0 | O20: 0 | P20: 0 | Q20: 0 | R20: =BL20 -> 1369270.83 | S20: =AVERAGE(F20:R20) -> 105328.5254 | W20: 2017 | X20: 13537 | Y20: 1375000 | Z20: 5729.17 | AA20: 0 | AB20: 0 | AC20: 0 | AD20: 0 | AE20: 0 | AF20: 0 | AG20: 0 | AH20: 0 | AI20: 0 | AJ20: 0 | AK20: 0 | AL20: 0 | AM20: 0 | AN20: 0 | AO20: 0 | AP20: 0 | AQ20: 0 | AR20: 0 | AS20: 0 | AT20: 0 | AU20: 0 | AV20: 0 | AW20: 0 | AX20: 0 | AY20: 0 | AZ20: 0 | BA20: 0 | BB20: 0 | BC20: 0 | BD20: 0 | BE20: 0 | BF20: 0 | BG20: 0 | BH20: 0 | BI20: 0 | BK20: -5729.17 | BL20: 1369270.83
A21: 11 | B21: Total Utility Long-Term Debt Unamortized Discount | D21: =SUM(D10:D20) -> 8853000 | E21: 34253.00333 | F21: 4355151.42 | G21: 4326627.81 | H21: 4298104.2 | I21: 4269580.59 | J21: 4241056.98 | K21: 4212533.37 | L21: 4184009.76 | M21: 4155486.15 | N21: 4126962.54 | O21: 4098438.93 | P21: 4069915.32 | Q21: 4041391.71 | R21: 5382138.76 | S21: 4289338.272 | Y21: =SUM(Y9:Y20) -> 8853000 | Z21: =SUM(Z9:Z20) -> 34252.88889 | AA21: =SUM(AA9:AA20) -> -28523.61 | AB21: =SUM(AB9:AB20) -> 4355151.42 | AC21: =SUM(AC9:AC19) -> 0 | AD21: =SUM(AD9:AD20) -> -28523.61 | AE21: =SUM(AE9:AE20) -> 4326627.81 | AF21: 0 | AG21: -28523.61 | AH21: 4298104.2 | AI21: 0 | AJ21: -28523.61 | AK21: 4269580.59 | AL21: 0 | AM21: -28523.61 | AN21: 4241056.98 | AO21: 0 | AP21: -28523.61 | AQ21: 4212533.37 | AR21: 0 | AS21: -28523.61 | AT21: 4184009.76 | AU21: 0 | AV21: -28523.61 | AW21: 4155486.15 | AX21: 0 | AY21: -28523.61 | AZ21: 4126962.54 | BA21: 0 | BB21: -28523.61 | BC21: 4098438.93 | BD21: 0 | BE21: -28523.61 | BF21: 4069915.32 | BG21: 0 | BH21: -28523.61 | BI21: 4041391.71 | BJ21: 0 | BK21: =SUM(BK9:BK20) -> -34252.95 | BL21: =SUM(BL9:BL20) -> 5382138.76
AB22: check | AE22: check | AH22: check | AK22: check | AN22: check | AQ22: check | AT22: check | AW22: check | AZ22: check | BC22: check | BF22: check | BI22: check | BL22: check
Z23: G/L Bal | AB23: 4355151.42 | AE23: =AB23+AD21 -> 4326627.81 | AH23: =AE23+AG21 -> 4298104.2 | AK23: =AH23+AJ21 -> 4269580.59 | AN23: =AK23+AM21 -> 4241056.98 | AQ23: =AN23+AP21 -> 4212533.37 | AT23: =AQ23+AS21 -> 4184009.76 | AW23: =AT23+AV21 -> 4155486.15 | AZ23: =AW23+AY21 -> 4126962.54 | BC23: =AZ23+BB21 -> 4098438.93 | BF23: =BC23+BE21 -> 4069915.32 | BI23: =BF23+BH21 -> 4041391.71 | BL23: 5382138.76
AB25: =AB21-AB23 -> 0 | AE25: =AE21-AE23 -> 0 | AH25: =AH21-AH23 -> 0 | AK25: =AK21-AK23 -> 0 | AN25: =AN21-AN23 -> 0 | AQ25: =AQ21-AQ23 -> 0 | AT25: =AT21-AT23 -> 0 | AW25: =AW21-AW23 -> 0 | AZ25: =AZ21-AZ23 -> 0 | BC25: =BC21-BC23 -> 0 | BF25: =BF21-BF23 -> 0 | BI25: =BI21-BI23 -> 0 | BL25: =BL21-BL23 -> 0

Sheet Acct 2241 Unamort Debt Exp
A1: Atmos Energy Corporation
A2: Monthly Capital Structure Report
A3: Current Period: JUN-17
A5: Currency: USD
A6: Account=2241 (Unamortized debt expense)
B8: 2016-11-15 | C8: 2016-12-15 | D8: 2016-01-16 | E8: 2016-02-16 | F8: 2016-03-16 | G8: 2016-04-16 | H8: 2016-05-16 | I8: 2016-06-16 | J8: 2016-07-16 | K8: 2016-08-16 | L8: 2016-09-16 | M8: 2016-10-16 | N8: 2016-11-16 | O8: 2017-12-16 | P8: 2017-01-17 | Q8: 2017-02-17 | R8: 2017-03-17 | S8: 2017-04-17 | T8: 2017-05-17 | U8: 2017-06-17
A9: Sub Account | B9: Actual | C9: Actual | D9: Actual | E9: Actual | F9: Actual | G9: Actual | H9: Actual | I9: Actual | J9: Actual | K9: Actual | L9: Actual | M9: Actual | N9: Actual | O9: Actual | P9: Actual | Q9: Actual | R9: Actual | S9: Actual | T9: Actual | U9: Actual
A10: =------------------------------------------------------- | B10: _______ | C10: _______ | D10: _______ | E10: _______ | F10: _______ | G10: _______ | H10: _______ | I10: _______ | J10: _______ | K10: _______ | L10: _______ | M10: _______ | N10: _______ | O10: _______ | P10: _______ | Q10: _______ | R10: _______ | S10: _______ | T10: _______ | U10: _______
A11: Balances
A12: Trial Balance
A13: 13501 Med Terms Ser A-1 | B13: 0 | C13: 0 | D13: 0 | E13: 0 | F13: 0 | G13: 0 | H13: 0 | I13: 0 | J13: 0 | K13: 0 | L13: 71612.56 | M13: 70964.48 | N13: 70316.4 | O13: 69668.32 | P13: 69020.24 | Q13: 68372.16 | R13: 67724.08 | S13: 67076 | T13: 66427.92 | U13: 65779.84
A14: 13521 150MM 6.75% due Jul-28 | B14: 0 | C14: 0 | D14: 0 | E14: 0 | F14: 0 | G14: 0 | H14: 0 | I14: 0 | J14: 0 | K14: 0 | L14: 658977.45 | M14: 654336.77 | N14: 649696.09 | O14: 645055.41 | P14: 640414.73 | Q14: 635774.05 | R14: 631133.37 | S14: 626492.69 | T14: 621852.01 | U14: 617211.33
A15: 13530 200MM 5.95% due Oct-34 | B15: 0 | C15: 0 | D15: 0 | E15: 0 | F15: 0 | G15: 0 | H15: 0 | I15: 0 | J15: 0 | K15: 0 | L15: 1359690.79 | M15: 1353424.94 | N15: 1347159.09 | O15: 1340893.24 | P15: 1334627.39 | Q15: 1328361.54 | R15: 1322095.69 | S15: 1315829.84 | T15: 1309563.99 | U15: 1303298.14
A16: 13531 250MM 6.35% due Jun-17 | B16: 0 | C16: 0 | D16: 0 | E16: 0 | F16: 0 | G16: 0 | H16: 0 | I16: 0 | J16: 0 | K16: 0 | L16: 164343.13 | M16: 146082.77 | N16: 127822.41 | O16: 109562.05 | P16: 91301.69 | Q16: 73041.33 | R16: 54780.97 | S16: 36520.61 | T16: 18260.25 | U16: 0
A17: 13532 450MM 8.5% due Mar-19 | B17: 0 | C17: 0 | D17: 0 | E17: 0 | F17: 0 | G17: 0 | H17: 0 | I17: 0 | J17: 0 | K17: 0 | L17: 926064.38 | M17: 895195.57 | N17: 864326.76 | O17: 833457.95 | P17: 802589.14 | Q17: 771720.33 | R17: 740851.52 | S17: 709982.71 | T17: 679113.9 | U17: 648245.09
A18: 13534 400MM 5.5% due Jun-41 | B18: 0 | C18: 0 | D18: 0 | E18: 0 | F18: 0 | G18: 0 | H18: 0 | I18: 0 | J18: 0 | K18: 0 | L18: 3550181.22 | M18: 3538187.37 | N18: 3526193.52 | O18: 3514199.67 | P18: 3502205.82 | Q18: 3490211.97 | R18: 3478218.12 | S18: 3466224.27 | T18: 3454230.42 | U18: 3442236.57
A19: 13535 500MM 4.15% due JAN-43 | B19: 0 | C19: 0 | D19: 0 | E19: 0 | F19: 0 | G19: 0 | H19: 0 | I19: 0 | J19: 0 | K19: 0 | L19: 4703230.2 | M19: 4688322.97 | N19: 4673415.74 | O19: 4658508.51 | P19: 4643601.28 | Q19: 4628694.05 | R19: 4613786.82 | S19: 4598879.59 | T19: 4583972.36 | U19: 4569065.13
A20: 13536 500MM 4.125% due Oct-44 | B20: 0 | C20: 0 | D20: 0 | E20: 0 | F20: 0 | G20: 0 | H20: 0 | I20: 0 | J20: 0 | K20: 0 | L20: 5161745.89 | M20: 5146406.38 | N20: 5131066.87 | O20: 5115727.36 | P20: 5100387.85 | Q20: 5085048.34 | R20: 5069708.83 | S20: 5054369.32 | T20: 5039029.81 | U20: 7684770.85
A21: 13537 Jun-17 debt issuance costs | B21: 0 | C21: 0 | D21: 0 | E21: 0 | F21: 0 | G21: 0 | H21: 0 | I21: 0 | J21: 0 | K21: 0 | L21: 41580 | M21: 41580 | N21: 41580 | O21: 41580 | P21: 41580 | Q21: 41580 | R21: 41580 | S21: 41580 | T21: 41580 | U21: 4070376.95
A22: 13538 200MM BBT 3 YR Term Loan | B22: 0 | C22: 0 | D22: 0 | E22: 0 | F22: 0 | G22: 0 | H22: 0 | I22: 0 | J22: 0 | K22: 0 | L22: 314358.33 | M22: 305552.77 | N22: 296747.21 | O22: 287941.65 | P22: 279136.09 | Q22: 270330.53 | R22: 261524.97 | S22: 252719.41 | T22: 243913.85 | U22: 235108.29
A23: TOTAL | B23: 0 | C23: 0 | D23: 0 | E23: 0 | F23: 0 | G23: 0 | H23: 0 | I23: 0 | J23: 0 | K23: 0 | L23: =SUM(L13:L22) -> 16951783.95 | M23: =SUM(M13:M22) -> 16840054.02 | N23: 16728324.09 | O23: 16616594.16 | P23: 16504864.23 | Q23: 16393134.3 | R23: 16281404.37 | S23: 16169674.44 | T23: 16057944.51 | U23: 22636092.19
B27: 2016-11-15 | C27: 2016-12-15 | D27: 2016-01-16 | E27: 2016-02-16 | F27: 2016-03-16 | G27: 2016-04-16 | H27: 2016-05-16 | I27: 2016-06-16 | J27: 2016-07-16 | K27: 2016-08-16 | L27: 2016-09-16 | M27: 2016-10-16 | N27: 2016-11-16 | O27: 2017-12-16 | P27: 2017-01-17 | Q27: 2017-02-17 | R27: 2017-03-17 | S27: 2017-04-17 | T27: 2017-05-17 | U27: 2017-06-17
A28: Sub Account | B28: Actual | C28: Actual | D28: Actual | E28: Actual | F28: Actual | G28: Actual | H28: Actual | I28: Actual | J28: Actual | K28: Actual | L28: Actual | M28: Actual | N28: Actual | O28: Actual | P28: Actual | Q28: Actual | R28: Actual | S28: Actual | T28: Actual | U28: Actual
A29: =------------------------------------------------------- | B29: _______ | C29: _______ | D29: _______ | E29: _______ | F29: _______ | G29: _______ | H29: _______ | I29: _______ | J29: _______ | K29: _______ | L29: _______ | M29: _______ | N29: _______ | O29: _______ | P29: _______ | Q29: _______ | R29: _______ | S29: _______ | T29: _______ | U29: _______
A30: Activity
A31: Trial Balance
A32: 13501 Med Terms Ser A-1 | B32: 0 | C32: 0 | D32: 0 | E32: 0 | F32: 0 | G32: 0 | H32: 0 | I32: 0 | J32: 0 | K32: 0 | L32: 0 | M32: -648.08 | N32: -648.08 | O32: -648.08 | P32: -648.08 | Q32: -648.08 | R32: =+R13-Q13 -> -648.08 | S32: -648.08 | T32: -648.08 | U32: =U13-T13 -> -648.08
A33: 13521 150MM 6.75% due Jul-28 | B33: 0 | C33: 0 | D33: 0 | E33: 0 | F33: 0 | G33: 0 | H33: 0 | I33: 0 | J33: 0 | K33: 0 | L33: 0 | M33: -4640.68 | N33: -4640.68 | O33: -4640.68 | P33: -4640.68 | Q33: -4640.68 | R33: =+R14-Q14 -> -4640.68 | S33: -4640.68 | T33: -4640.68 | U33: =U14-T14 -> -4640.68
A34: 13530 200MM 5.95% due Oct-34 | B34: 0 | C34: 0 | D34: 0 | E34: 0 | F34: 0 | G34: 0 | H34: 0 | I34: 0 | J34: 0 | K34: 0 | L34: 0 | M34: -6265.85 | N34: -6265.85 | O34: -6265.85 | P34: -6265.85 | Q34: -6265.85 | R34: -6265.85 | S34: -6265.85 | T34: -6265.85 | U34: -6265.85
A35: 13531 250MM 6.35% due Jun-17 | B35: 0 | C35: 0 | D35: 0 | E35: 0 | F35: 0 | G35: 0 | H35: 0 | I35: 0 | J35: 0 | K35: 0 | L35: 0 | M35: -18260.36 | N35: -18260.36 | O35: -18260.36 | P35: -18260.36 | Q35: -18260.36 | R35: -18260.36 | S35: -18260.36 | T35: -18260.36 | U35: -18260.25
A36: 13532 450MM 8.5% due Mar-19 | B36: 0 | C36: 0 | D36: 0 | E36: 0 | F36: 0 | G36: 0 | H36: 0 | I36: 0 | J36: 0 | K36: 0 | L36: 0 | M36: -30868.81 | N36: -30868.81 | O36: -30868.81 | P36: -30868.81 | Q36: -30868.81 | R36: -30868.81 | S36: -30868.81 | T36: -30868.81 | U36: -30868.81
A37: 13534 400MM 5.5% due Jun-41 | B37: 0 | C37: 0 | D37: 0 | E37: 0 | F37: 0 | G37: 0 | H37: 0 | I37: 0 | J37: 0 | K37: 0 | L37: 0 | M37: -11993.85 | N37: -11993.85 | O37: -11993.85 | P37: -11993.85 | Q37: -11993.85 | R37: -11993.85 | S37: -11993.85 | T37: -11993.85 | U37: -11993.85
A38: 13535 500MM 4.15% due JAN-43 | B38: 0 | C38: 0 | D38: 0 | E38: 0 | F38: 0 | G38: 0 | H38: 0 | I38: 0 | J38: 0 | K38: 0 | L38: 0 | M38: -14907.23 | N38: -14907.23 | O38: -14907.23 | P38: -14907.23 | Q38: -14907.23 | R38: -14907.23 | S38: -14907.23 | T38: -14907.23 | U38: -14907.23 | V38: Amort Only June
A39: 13536 500MM 4.125% due Oct-44 | B39: 0 | C39: 0 | D39: 0 | E39: 0 | F39: 0 | G39: 0 | H39: 0 | I39: 0 | J39: 0 | K39: 0 | L39: 0 | M39: -15339.51 | N39: -15339.51 | O39: -15339.51 | P39: -15339.51 | Q39: -15339.51 | R39: -15339.51 | S39: -15339.51 | T39: -15339.51 | U39: 2645741.04 | V39: -19402.24
A40: 13537 Jun-17 debt issuance costs | B40: 0 | C40: 0 | D40: 0 | E40: 0 | F40: 0 | G40: 0 | H40: 0 | I40: 0 | J40: 0 | K40: 0 | L40: 0 | M40: 0 | N40: 0 | O40: 0 | P40: 0 | Q40: 0 | R40: 0 | S40: 0 | T40: 0 | U40: 4028796.95 | V40: -17030.87
A41: 13538 200MM BBT 3 YR Term Loan | B41: 0 | C41: 0 | D41: 0 | E41: 0 | F41: 0 | G41: 0 | H41: 0 | I41: 0 | J41: 0 | K41: 0 | L41: -2641.67 | M41: -8805.56 | N41: -8805.56 | O41: -8805.56 | P41: -8805.56 | Q41: -8805.56 | R41: -8805.56 | S41: -8805.56 | T41: -8805.56 | U41: -8805.56
A42: TOTAL | B42: 0 | C42: 0 | D42: 0 | E42: 0 | F42: 0 | G42: 0 | H42: 0 | I42: 0 | J42: 0 | K42: 0 | L42: -2641.67 | M42: -111729.93 | N42: -111729.93 | O42: -111729.93 | P42: -111729.93 | Q42: -111729.93 | R42: -111729.93 | S42: -111729.93 | T42: -111729.93 | U42: 6578147.68

Sheet Acct 1650.13201 Prepayments
A1: Atmos Energy Corporation
A2: Monthly Capital Structure Report
A3: Current Period: JUN-17
A5: Currency: USD
A6: Account=1650 (Prepayments), Sub Account=13201 (Prepaid admin fee BBT 200mm)
B8: 2016-11-15 | C8: 2016-12-15 | D8: 2016-01-16 | E8: 2016-02-16 | F8: 2016-03-16 | G8: 2016-04-16 | H8: 2016-05-16 | I8: 2016-06-16 | J8: 2016-07-16 | K8: 2016-08-16 | L8: 2016-09-16 | M8: 2016-10-16 | N8: 2016-11-16 | O8: 2017-12-16 | P8: 2017-01-17 | Q8: 2017-02-17 | R8: 2017-03-17 | S8: 2017-04-17 | T8: 2017-05-17 | U8: 2017-06-17
A9: Sub Account | B9: Actual | C9: Actual | D9: Actual | E9: Actual | F9: Actual | G9: Actual | H9: Actual | I9: Actual | J9: Actual | K9: Actual | L9: Actual | M9: Actual | N9: Actual | O9: Actual | P9: Actual | Q9: Actual | R9: Actual | S9: Actual | T9: Actual | U9: Actual
A10: =------------------------------------------------------- | B10: _______ | C10: _______ | D10: _______ | E10: _______ | F10: _______ | G10: _______ | H10: _______ | I10: _______ | J10: _______ | K10: _______ | L10: _______ | M10: _______ | N10: _______ | O10: _______ | P10: _______ | Q10: _______ | R10: _______ | S10: _______ | T10: _______ | U10: _______
A11: Balance
A12: Trial Balance
A13: 13201 Prepaid admin fee BBT 200mm | B13: 0 | C13: 0 | D13: 0 | E13: 0 | F13: 0 | G13: 0 | H13: 0 | I13: 0 | J13: 0 | K13: 0 | L13: 0 | M13: 8916.67 | N13: 8083.34 | O13: 7250.01 | P13: 6416.68 | Q13: 5583.35 | R13: 4750.02 | S13: 3916.69 | T13: 3083.36 | U13: 2250.03
A14: Total | B14: 0 | C14: 0 | D14: 0 | E14: 0 | F14: 0 | G14: 0 | H14: 0 | I14: 0 | J14: 0 | K14: 0 | L14: 0 | M14: 8916.67 | N14: 8083.34 | O14: 7250.01 | P14: 6416.68 | Q14: 5583.35 | R14: 4750.02 | S14: 3916.69 | T14: 3083.36 | U14: 2250.03
B17: 2016-11-15 | C17: 2016-12-15 | D17: 2016-01-16 | E17: 2016-02-16 | F17: 2016-03-16 | G17: 2016-04-16 | H17: 2016-05-16 | I17: 2016-06-16 | J17: 2016-07-16 | K17: 2016-08-16 | L17: 2016-09-16 | M17: 2016-10-16 | N17: 2016-11-16 | O17: 2017-12-16 | P17: 2017-01-17 | Q17: 2017-02-17 | R17: 2017-03-17 | S17: 2017-04-17 | T17: 2017-05-17 | U17: 2017-06-17
A18: Sub Account | B18: Actual | C18: Actual | D18: Actual | E18: Actual | F18: Actual | G18: Actual | H18: Actual | I18: Actual | J18: Actual | K18: Actual | L18: Actual | M18: Actual | N18: Actual | O18: Actual | P18: Actual | Q18: Actual | R18: Actual | S18: Actual | T18: Actual | U18: Actual
A19: =------------------------------------------------------- | B19: _______ | C19: _______ | D19: _______ | E19: _______ | F19: _______ | G19: _______ | H19: _______ | I19: _______ | J19: _______ | K19: _______ | L19: _______ | M19: _______ | N19: _______ | O19: _______ | P19: _______ | Q19: _______ | R19: _______ | S19: _______ | T19: _______ | U19: _______
A20: Activity
A21: Trial Balance
A22: 13201 Prepaid admin fee BBT 200mm | B22: 0 | C22: 0 | D22: 0 | E22: 0 | F22: 0 | G22: 0 | H22: 0 | I22: 0 | J22: 0 | K22: 0 | L22: 0 | M22: =-10000+8916.67 -> -1083.33 | N22: -833.33 | O22: -833.33 | P22: -833.33 | Q22: -833.33 | R22: -833.33 | S22: -833.33 | T22: -833.33 | U22: -833.33
A23: Total | B23: 0 | C23: 0 | D23: 0 | E23: 0 | F23: 0 | G23: 0 | H23: 0 | I23: 0 | J23: 0 | K23: 0 | L23: 0 | M23: =-10000+8916.67 -> -1083.33 | N23: -833.33 | O23: -833.33 | P23: -833.33 | Q23: -833.33 | R23: -833.33 | S23: -833.33 | T23: -833.33 | U23: -833.33
K26: Note to File:
L27: Original Amt | M27: 10000 | N27: Booked in Sept originally to expense in error
L28: Sept16 Amort | M28: -250 | N28: Sept $10k Reversed and corrected in Oct16 business
L29: Oct16 Amort | M29: -833.33 | N29: Annualization will be based on this amount.
L30: Bal Oct16 | M30: =SUM(M27:M29) -> 8916.67

Sheet 1810 Unamort Debt exp
A1: Atmos Energy Corporation
A2: Total Consolidated Unamortized Debt Expense - Acct 1810
A3: September 30, 2015 - September 30, 2016
H5: 1810 | J5: 1810 | K5: 1810 | M5: 1810 | N5: 1810 | P5: 1810 | Q5: 1810 | S5: 1810 | T5: 1810 | V5: 1810 | W5: 1810 | Y5: 1810 | Z5: 1810 | AB5: 1810 | AC5: 1810 | AE5: 1810 | AF5: 1810 | AH5: 1810 | AI5: 1810 | AK5: 1810 | AL5: 1810 | AN5: 1810 | AO5: 1810 | AQ5: 1810 | AR5: 1810 | AT5: 1810 | AU5: 1810
A6: Atmos Energy Corp., Consolidated: | C6: Year | D6: sub | E6: Orig | F6: 4280 | H6: G/L Balance | J6: Amort/Othr Activity | K6: G/L Balance | M6: Amort/Othr Activity | N6: G/L Balance | P6: Amort/Othr Activity | Q6: G/L Balance | S6: Amort/Othr Activity | T6: G/L Balance | V6: Amort/Othr Activity | W6: G/L Balance | Y6: Amort/Othr Activity | Z6: G/L Balance | AB6: Amort/Othr Activity | AC6: G/L Balance | AE6: Amort/Othr Activity | AF6: G/L Balance | AH6: Amort/Othr Activity | AI6: G/L Balance | AK6: Amort/Othr Activity | AL6: G/L Balance | AN6: Amort/Othr Activity | AO6: G/L Balance | AQ6: Amort/Othr Activity | AR6: G/L Balance | AT6: Amort/Othr Activity | AU6: G/L Balance
A7: Line | B7: Debt Series | C7: Issued | D7: acct | E7: Debt exp | F7: mthly exp | H7: 2015-08-31 | J7: 2015-09-30 | K7: =+J7 -> 2015-09-30 | M7: 2015-10-31 | N7: =+M7 -> 2015-10-31 | P7: 2015-11-30 | Q7: =+P7 -> 2015-11-30 | S7: 2015-12-31 | T7: =+S7 -> 2015-12-31 | V7: 2016-01-31 | W7: =+V7 -> 2016-01-31 | Y7: 2016-02-29 | Z7: =+Y7 -> 2016-02-29 | AB7: 2016-03-31 | AC7: =+AB7 -> 2016-03-31 | AE7: 2016-04-30 | AF7: =+AE7 -> 2016-04-30 | AH7: 2016-05-31 | AI7: =+AH7 -> 2016-05-31 | AK7: 2016-06-30 | AL7: =+AK7 -> 2016-06-30 | AN7: 2016-07-31 | AO7: =+AN7 -> 2016-07-31 | AQ7: 2016-08-31 | AR7: =+AQ7 -> 2016-08-31 | AT7: 2016-09-30 | AU7: =+AT7 -> 2016-09-30
B8: (a) | C8: (b)
A9: 1 | B9: 6.75% Debentures Unsecured due July 2028 | C9: 1998 | D9: 13521 | E9: 1670646.19 | F9: 4640.68 | H9: 719306.29 | J9: =K9-H9 -> -4640.68 | K9: 714665.61 | M9: =N9-K9 -> -4640.68 | N9: 710024.93 | P9: =Q9-N9 -> -4640.68 | Q9: 705384.25 | S9: =T9-Q9 -> -4640.68 | T9: 700743.57 | V9: =W9-T9 -> -4640.68 | W9: 696102.89 | Y9: =Z9-W9 -> -4640.68 | Z9: 691462.21 | AB9: =AC9-Z9 -> -4640.68 | AC9: 686821.53 | AE9: =AF9-AC9 -> -4640.68 | AF9: 682180.85 | AH9: =AI9-AF9 -> -4640.68 | AI9: 677540.17 | AK9: =AL9-AI9 -> -4640.68 | AL9: 672899.49 | AN9: =AO9-AL9 -> -4640.68 | AO9: 668258.81 | AQ9: =AR9-AO9 -> -4640.68 | AR9: 663618.13 | AT9: =AU9-AR9 -> -663618.13 | AU9: 0 | AV9: Bal Moved to 2241 in Sept-16
A10: 2 | B10: 5.125% Senior Notes due Jan 2013 | C10: 2003 | D10: 13513/26 | E10: 782758.51 | H10: 0 | J10: =K10-H10 -> 0 | K10: 0 | M10: =N10-K10 -> 0 | N10: 0 | P10: =Q10-N10 -> 0 | Q10: 0 | S10: =T10-Q10 -> 0 | T10: 0 | V10: =W10-T10 -> 0 | W10: 0 | Y10: =Z10-W10 -> 0 | Z10: 0 | AB10: =AC10-Z10 -> 0 | AC10: 0 | AE10: =AF10-AC10 -> 0 | AF10: 0 | AH10: =AI10-AF10 -> 0 | AI10: 0 | AK10: =AL10-AI10 -> 0 | AL10: 0 | AN10: =AO10-AL10 -> 0 | AO10: 0 | AQ10: =AR10-AO10 -> 0 | AR10: 0 | AT10: =AU10-AR10 -> 0 | AU10: 0 | AV10: Bal Moved to 2241 in Sept-16
A11: 3 | B11: 6.67% MTN A1 due Dec 2025 | C11: 1995 | D11: 13501 | E11: 233308 | F11: 648.08 | H11: 80036.5 | J11: -649.18 | K11: 79387.32 | M11: -645.88 | N11: 78741.44 | P11: -648.08 | Q11: 78093.36 | S11: =T11-Q11 -> -648.08 | T11: 77445.28 | V11: =W11-T11 -> -648.08 | W11: 76797.2 | Y11: =Z11-W11 -> -648.08 | Z11: 76149.12 | AB11: =AC11-Z11 -> -648.08 | AC11: 75501.04 | AE11: =AF11-AC11 -> -648.08 | AF11: 74852.96 | AH11: =AI11-AF11 -> -648.08 | AI11: 74204.88 | AK11: =AL11-AI11 -> -648.08 | AL11: 73556.8 | AN11: =AO11-AL11 -> -648.08 | AO11: 72908.72 | AQ11: =AR11-AO11 -> -648.08 | AR11: 72260.64 | AT11: =AU11-AR11 -> -72260.64 | AU11: 0 | AV11: Bal Moved to 2241 in Sept-16
A12: 4 | B12: 4.95% Sr Note due 10/15/2014 | C12: 2004 | D12: 13529 | E12: 4496697.19 | H12: 0 | J12: 0 | K12: 0 | M12: 0 | N12: 0 | P12: 0 | Q12: 0 | S12: =T12-Q12 -> 0 | T12: 0 | V12: =W12-T12 -> 0 | W12: 0 | Y12: =Z12-W12 -> 0 | Z12: 0 | AB12: =AC12-Z12 -> 0 | AC12: 0 | AE12: =AF12-AC12 -> 0 | AF12: 0 | AH12: =AI12-AF12 -> 0 | AI12: 0 | AK12: =AL12-AI12 -> 0 | AL12: 0 | AN12: =AO12-AL12 -> 0 | AO12: 0 | AQ12: =AR12-AO12 -> 0 | AR12: 0 | AT12: 0 | AU12: 0 | AV12: Bal Moved to 2241 in Sept-16
A13: 5 | B13: 5.95% Sr Note due 10/15/2034 | C13: 2004 | D13: 13530 | E13: 2255707.29 | F13: 6265.85 | H13: 1441146.84 | J13: -6265.85 | K13: 1434880.99 | M13: -6265.85 | N13: 1428615.14 | P13: -6265.85 | Q13: 1422349.29 | S13: -6265.85 | T13: 1416083.44 | V13: -6265.85 | W13: 1409817.59 | Y13: -6265.85 | Z13: 1403551.74 | AB13: -6265.85 | AC13: 1397285.89 | AE13: -6265.85 | AF13: 1391020.04 | AH13: -6265.85 | AI13: 1384754.19 | AK13: -6265.85 | AL13: 1378488.34 | AN13: -6265.85 | AO13: 1372222.49 | AQ13: -6265.85 | AR13: 1365956.64 | AT13: =AU13-AR13 -> -1365956.64 | AU13: 0 | AV13: Bal Moved to 2241 in Sept-16
A14: 6 | B14: 6.35% Sr Note due 6/15/2017 | C14: 2007 | D14: 13531 | E14: 2191242.94 | F14: 18260.36 | H14: 401727.81 | J14: -18260.36 | K14: 383467.45 | M14: -18260.36 | N14: 365207.09 | P14: -18260.36 | Q14: 346946.73 | S14: -18260.36 | T14: 328686.37 | V14: -18260.36 | W14: 310426.01 | Y14: -18260.36 | Z14: 292165.65 | AB14: -18260.36 | AC14: 273905.29 | AE14: -18260.36 | AF14: 255644.93 | AH14: -18260.36 | AI14: 237384.57 | AK14: -18260.36 | AL14: 219124.21 | AN14: -18260.36 | AO14: 200863.85 | AQ14: -18260.36 | AR14: 182603.49 | AT14: -182603.49 | AU14: 0 | AV14: Bal Moved to 2241 in Sept-16
A15: 7 | B15: Sr Note 5.50% Due 06/15/2041 | C15: 2011 | D15: 13534 | E15: 4317787.73 | F15: 11993.85 | H15: 3706101.27 | J15: -11993.85 | K15: 3694107.42 | M15: -11993.85 | N15: 3682113.57 | P15: -11993.85 | Q15: 3670119.72 | S15: -11993.85 | T15: 3658125.87 | V15: -11993.85 | W15: 3646132.02 | Y15: -11993.85 | Z15: 3634138.17 | AB15: -11993.85 | AC15: 3622144.32 | AE15: -11993.85 | AF15: 3610150.47 | AH15: -11993.85 | AI15: 3598156.62 | AK15: -11993.85 | AL15: 3586162.77 | AN15: -11993.85 | AO15: 3574168.92 | AQ15: -11993.85 | AR15: 3562175.07 | AT15: -3562175.07 | AU15: 0 | AV15: Bal Moved to 2241 in Sept-16
A16: 8 | B16: 8.50% Sr Note due 3/15/2019 | C16: 2009 | D16: 13532 | E16: 3704257.34 | F16: 30868.81 | H16: 1327358.91 | J16: -30868.81 | K16: 1296490.1 | M16: -30868.81 | N16: 1265621.29 | P16: -30868.81 | Q16: 1234752.48 | S16: -30868.81 | T16: 1203883.67 | V16: -30868.81 | W16: 1173014.86 | Y16: -30868.81 | Z16: 1142146.05 | AB16: -30868.81 | AC16: 1111277.24 | AE16: -30868.81 | AF16: 1080408.43 | AH16: -30868.81 | AI16: 1049539.62 | AK16: -30868.81 | AL16: 1018670.81 | AN16: -30868.81 | AO16: 987802 | AQ16: -30868.81 | AR16: 956933.19 | AT16: -956933.19 | AU16: 0 | AV16: Bal Moved to 2241 in Sept-16
A17: 9 | B17: 4.15% Sr Note due 1/15/2043 | C17: 2013 | D17: 13535 | E17: 5366185 | F17: 14907.23 | H17: 4897024.19 | J17: -14907.23 | K17: 4882116.96 | M17: -14907.23 | N17: 4867209.73 | P17: -14907.23 | Q17: 4852302.5 | S17: -14907.23 | T17: 4837395.27 | V17: -14907.23 | W17: 4822488.04 | Y17: -14907.23 | Z17: 4807580.81 | AB17: -14907.23 | AC17: 4792673.58 | AE17: -14907.23 | AF17: 4777766.35 | AH17: -14907.23 | AI17: 4762859.12 | AK17: -14907.23 | AL17: 4747951.89 | AN17: -14907.23 | AO17: 4733044.66 | AQ17: -14907.23 | AR17: 4718137.43 | AT17: -4718137.43 | AU17: 0 | AV17: Bal Moved to 2241 in Sept-16
A18: 10 | B18: 4.125 Sr Note due 10/15/2044 | C18: 2014 | D18: 13536 | E18: 5522224.38 | F18: 15339.51217 | H18: 5361159.52 | J18: -15339.51 | K18: 5345820.01 | M18: -15339.51 | N18: 5330480.5 | P18: -15339.51 | Q18: 5315140.99 | S18: -15339.51 | T18: 5299801.48 | V18: -15339.51 | W18: 5284461.97 | Y18: -15339.51 | Z18: 5269122.46 | AB18: -15339.51 | AC18: 5253782.95 | AE18: -15339.51 | AF18: 5238443.44 | AH18: -15339.51 | AI18: 5223103.93 | AK18: -15339.51 | AL18: 5207764.42 | AN18: -15339.51 | AO18: 5192424.91 | AQ18: -15339.51 | AR18: 5177085.4 | AT18: -5177085.4 | AU18: 0 | AV18: Bal Moved to 2241 in Sept-16
A19: 11 | B19: Jun-17 debt issuance costs | C19: 2017 | D19: 13537 | H19: 41580 | J19: 0 | K19: 41580 | M19: 0 | N19: 41580 | P19: 0 | Q19: 41580 | S19: 0 | T19: 41580 | V19: 0 | W19: 41580 | Y19: 0 | Z19: 41580 | AB19: 0 | AC19: 41580 | AE19: 0 | AF19: 41580 | AH19: 0 | AI19: 41580 | AK19: 0 | AL19: 41580 | AN19: 0 | AO19: 41580 | AQ19: 0 | AR19: 41580 | AT19: -41580 | AU19: 0 | AV19: Bal Moved to 2241 in Sept-16
A20: 12
A21: 13 | B21: Total | F21: =SUM(F9:F19) -> 102924.3722 | H21: =SUM(H9:H20) -> 17975441.33 | J21: =SUM(J9:J20) -> -102925.47 | K21: =SUM(K9:K20) -> 17872515.86 | M21: =SUM(M9:M20) -> -102922.17 | N21: =SUM(N9:N20) -> 17769593.69 | P21: =SUM(P9:P20) -> -102924.37 | Q21: =SUM(Q9:Q20) -> 17666669.32 | S21: =SUM(S9:S20) -> -102924.37 | T21: =SUM(T9:T20) -> 17563744.95 | V21: =SUM(V9:V20) -> -102924.37 | W21: =SUM(W9:W20) -> 17460820.58 | Y21: =SUM(Y9:Y20) -> -102924.37 | Z21: =SUM(Z9:Z20) -> 17357896.21 | AB21: =SUM(AB9:AB20) -> -102924.37 | AC21: =SUM(AC9:AC20) -> 17254971.84 | AE21: =SUM(AE9:AE20) -> -102924.37 | AF21: =SUM(AF9:AF20) -> 17152047.47 | AH21: =SUM(AH9:AH20) -> -102924.37 | AI21: =SUM(AI9:AI20) -> 17049123.1 | AK21: =SUM(AK9:AK20) -> -102924.37 | AL21: =SUM(AL9:AL20) -> 16946198.73 | AN21: =SUM(AN9:AN20) -> -102924.37 | AO21: =SUM(AO9:AO20) -> 16843274.36 | AQ21: =SUM(AQ9:AQ20) -> -102924.37 | AR21: =SUM(AR9:AR20) -> 16740349.99 | AT21: =SUM(AT9:AT20) -> -16740349.99 | AU21: =SUM(AU9:AU20) -> 0
A22: 14 | H22: check | K22: check | N22: check | Q22: check | T22: check | W22: check | Z22: check | AC22: check | AF22: check | AI22: check | AL22: check | AO22: check | AR22: check | AU22: check
A23: 15 | B23: G/L Balance | H23: 17975441.33 | K23: 17872515.86 | N23: 17769593.69 | Q23: 17666669.32 | T23: 17563744.95 | W23: 17460820.58 | Z23: 17357896.21 | AC23: 17254971.84 | AF23: 17152047.47 | AI23: 17049123.1 | AL23: 16946198.73 | AO23: 16843274.36 | AR23: 16740349.99 | AU23: 0
A24: 16 | B24: reconciling item | H24: 0 | K24: =K21-K23 -> 0 | N24: =N21-N23 -> 0 | Q24: =Q21-Q23 -> 0 | T24: =T21-T23 -> 0 | W24: =W21-W23 -> 0 | Z24: =Z21-Z23 -> 0 | AC24: =AC21-AC23 -> 0 | AF24: =AF21-AF23 -> 0 | AI24: =AI21-AI23 -> 0 | AL24: =AL21-AL23 -> 0 | AO24: =AO21-AO23 -> 0 | AR24: =AR21-AR23 -> 0 | AU24: =AU21-AU23 -> 0

Sheet 20102
A1: Amortization Schedule
A2: GL# 010.0000.2150.20102.002000 | F2: 5 years | G2: 5 years | H2: 20 years
F3: Amort | G3: Amort | H3: Amort | I3: Total to Amort
B4: (Gain) Loss | C4: Years | D4: Annual Amort | F4: Nov 2004-Oct 2009 | G4: Nov 2009-Oct 2014 | H4: Nov 2014-Oct 2034 | I4: Nov 2004-Oct 2034
A5: SunTrust | B5: -63003 | C5: 30 | D5: =B5/C5 -> -2100.1 | F5: =+$D5*5 -> -10500.5 | G5: =+$D5*5 -> -10500.5 | H5: =+$D5*20 -> -42002 | I5: =SUM(F5:H5) -> -63003
A6: JP Morgan | B6: -148409 | C6: 30 | D6: =B6/C6 -> -4946.966667 | F6: =+$D6*5 -> -24734.83333 | G6: =+$D6*5 -> -24734.83333 | H6: =+$D6*20 -> -98939.33333 | I6: =SUM(F6:H6) -> -148409
A7: Merrill Lynch | B7: 0 | C7: 5 | D7: =B7/C7 -> 0 | F7: =+$D7*5 -> 0 | G7: 0 | H7: 0 | I7: =SUM(F7:H7) -> 0
A8: Merrill Lynch | B8: 32377932 | C8: 10 | D8: =B8/C8 -> 3237793.2 | F8: =+$D8*5 -> 16188966 | G8: =+$D8*5 -> 16188966 | H8: 0 | I8: =SUM(F8:H8) -> 32377932
A10: Total | B10: =SUM(B5:B8) -> 32166520 | D10: =SUM(D5:D8) -> 3230746.133 | F10: =SUM(F5:F9) -> 16153730.67 | G10: =SUM(G5:G9) -> 16153730.67 | H10: =SUM(H5:H9) -> -140941.3333 | I10: =SUM(F10:H10) -> 32166520
D12: # months to Amort | F12: =5*12 -> 60 | G12: =5*12 -> 60 | H12: =20*12 -> 240
F14: DR (CR) | G14: DR (CR) | H14: DR (CR)
C15: LT Int Exp | D15: Monthly Amort | F15: =+F10/F12 -> 269228.8444 | G15: =+G10/G12 -> 269228.8444 | H15: =+H10/H12 -> -587.2555556
C16: 2830.28206 | D16: Def State Tax | E16: 0.023 | F16: =-F$15*$E16 -> -6192.263422 | G16: -6192.263422 | H16: 13.50687778
C17: 2830.28201 | D17: Def Fed Tax | E17: 0.342 | F17: -92076.2648 | G17: -92076.2648 | H17: 200.8414
A20: T-Lock Settlement | G20: Net OCI | H20: Def State Tax | I20: Def Fed Tax
H21: =E16 -> 0.023 | I21: =E17 -> 0.342 | J21: =H21+I21 -> 0.365
C22: 2150.20102 | D22: 2150.20102 | E22: 2150.20102 | F22: 2150.20102 | G22: 2150.20102 | H22: 2830.28206 | I22: 2830.28201 | K22: Balance to Amortize | L22: Balance to Amortize
C23: Amort | D23: T-Lock Settlement | E23: Def Tax Adj | F23: Def Taxes | G23: Net of Tax | H23: Adjustment | I23: Adjustment | K23: =B5+B6 -> -211412 | L23: =B8 -> 32377932
C24: DR (CR) | D24: DR (CR) | E24: DR (CR) | F24: DR (CR) | H24: DR (CR) | I24: DR (CR) | K24: 30 YR | L24: 10 YR | M24: Bal 30 YR | N24: Bal 10 Yr
A25: Balance at Oct 31, 2004 | B25: 2004-10-04 | D25: =B10 -> 32166520 | F25: =-D25*$J$21 -> -11740779.8 | G25: =SUM(D25:F25) -> 20425740.2 | H25: 0 | I25: 0
B26: 2004-11-04 | C26: =-$F$15 -> -269228.8444 | D26: =+D25+C26 -> 31897291.16 | E26: =-C26*$J$21 -> 98268.52822 | F26: =+F25+E26 -> -11642511.27 | G26: =+G25+C26+E26 -> 20254779.88 | H26: =+$H$21*$C26 -> -6192.263422 | I26: =+$I$21*$C26 -> -92076.2648 | K26: =SUM(D5:D6)/12 -> -587.2555556 | L26: =D8/12 -> 269816.1 | M26: =K23-K26 -> -210824.7444 | N26: =L23-L26 -> 32108115.9
B27: 2004-12-04 | C27: -269228.8444 | D27: 31628062.31 | E27: =-C27*$J$21 -> 98268.52822 | F27: -11544242.74 | G27: 20083819.57 | H27: =+$H$21*$C27 -> -6192.263422 | I27: =+$I$21*$C27 -> -92076.2648 | K27: =K26 -> -587.2555556 | L27: =L26 -> 269816.1 | M27: =M26-K27 -> -210237.4889 | N27: =N26-L27 -> 31838299.8
B28: 2005-01-04 | C28: -269228.8444 | D28: 31358833.47 | E28: 98268.52822 | F28: -11445974.22 | G28: 19912859.25 | H28: -6192.263422 | I28: -92076.2648 | K28: =K27 -> -587.2555556 | L28: =L27 -> 269816.1 | M28: =M27-K28 -> -209650.2333 | N28: =N27-L28 -> 31568483.7
B29: 2005-02-04 | C29: -269228.8444 | D29: 31089604.62 | E29: 98268.52822 | F29: -11347705.69 | G29: 19741898.94 | H29: -6192.263422 | I29: -92076.2648 | K29: -587.2555556 | L29: 269816.1 | M29: -209062.9778 | N29: 31298667.6
B30: 2005-03-04 | C30: -269228.8444 | D30: 30820375.78 | E30: 98268.52822 | F30: -11249437.16 | G30: 19570938.62 | H30: -6192.263422 | I30: -92076.2648 | K30: -587.2555556 | L30: 269816.1 | M30: -208475.7222 | N30: 31028851.5
B31: 2005-04-04 | C31: =-$F$15 -> -269228.8444 | D31: 30551146.93 | E31: 98268.52822 | F31: -11151168.63 | G31: 19399978.3 | H31: -6192.263422 | I31: -92076.2648 | K31: -587.2555556 | L31: 269816.1 | M31: -207888.4667 | N31: 30759035.4
B32: 2005-05-04 | C32: -269228.8444 | D32: 30281918.09 | E32: 98268.52822 | F32: -11052900.1 | G32: 19229017.99 | H32: -6192.263422 | I32: -92076.2648 | K32: -587.2555556 | L32: 269816.1 | M32: -207301.2111 | N32: 30489219.3
B33: 2005-06-04 | C33: -269228.8444 | D33: 30012689.24 | E33: 98268.52822 | F33: -10954631.57 | G33: 19058057.67 | H33: -6192.263422 | I33: -92076.2648 | K33: -587.2555556 | L33: 269816.1 | M33: -206713.9556 | N33: 30219403.2
B34: 2005-07-04 | C34: -269228.8444 | D34: 29743460.4 | E34: 98268.52822 | F34: -10856363.05 | G34: 18887097.35 | H34: -6192.263422 | I34: -92076.2648 | K34: -587.2555556 | L34: 269816.1 | M34: -206126.7 | N34: 29949587.1
B35: 2005-08-04 | C35: -269228.8444 | D35: 29474231.56 | E35: 98268.52822 | F35: -10758094.52 | G35: 18716137.04 | H35: -6192.263422 | I35: -92076.2648 | K35: -587.2555556 | L35: 269816.1 | M35: -205539.4444 | N35: 29679771
B36: 2005-09-04 | C36: -269228.8444 | D36: 29205002.71 | E36: 98268.52822 | F36: -10659825.99 | G36: 18545176.72 | H36: -6192.263422 | I36: -92076.2648 | K36: -587.2555556 | L36: 269816.1 | M36: -204952.1889 | N36: 29409954.9
B37: 2005-10-04 | C37: -269228.8444 | D37: 28935773.87 | E37: 98268.52822 | F37: -10561557.46 | G37: 18374216.41 | H37: -6192.263422 | I37: -92076.2648 | K37: -587.2555556 | L37: 269816.1 | M37: -204364.9333 | N37: 29140138.8
B38: 2005-11-04 | C38: -269228.8444 | D38: 28666545.02 | E38: 98268.52822 | F38: -10463288.93 | G38: 18203256.09 | H38: -6192.263422 | I38: -92076.2648 | K38: -587.2555556 | L38: 269816.1 | M38: -203777.6778 | N38: 28870322.7
B39: 2005-12-04 | C39: -269228.8444 | D39: 28397316.18 | E39: 98268.52822 | F39: -10365020.4 | G39: 18032295.77 | H39: -6192.263422 | I39: -92076.2648 | K39: -587.2555556 | L39: 269816.1 | M39: -203190.4222 | N39: 28600506.6
B40: 2006-01-04 | C40: -269228.8444 | D40: 28128087.33 | E40: 98268.52822 | F40: -10266751.88 | G40: 17861335.46 | H40: -6192.263422 | I40: -92076.2648 | K40: -587.2555556 | L40: 269816.1 | M40: -202603.1667 | N40: 28330690.5
B41: 2006-02-04 | C41: -269228.8444 | D41: 27858858.49 | E41: 98268.52822 | F41: -10168483.35 | G41: 17690375.14 | H41: -6192.263422 | I41: -92076.2648 | K41: -587.2555556 | L41: 269816.1 | M41: -202015.9111 | N41: 28060874.4
B42: 2006-03-04 | C42: -269228.8444 | D42: 27589629.64 | E42: 98268.52822 | F42: -10070214.82 | G42: 17519414.82 | H42: -6192.263422 | I42: -92076.2648 | K42: -587.2555556 | L42: 269816.1 | M42: -201428.6556 | N42: 27791058.3
B43: 2006-04-04 | C43: -269228.8444 | D43: 27320400.8 | E43: 98268.52822 | F43: -9971946.292 | G43: 17348454.51 | H43: -6192.263422 | I43: -92076.2648 | K43: -587.2555556 | L43: 269816.1 | M43: -200841.4 | N43: 27521242.2
B44: 2006-05-04 | C44: -269228.8444 | D44: 27051171.96 | E44: 98268.52822 | F44: -9873677.764 | G44: 17177494.19 | H44: -6192.263422 | I44: -92076.2648 | K44: -587.2555556 | L44: 269816.1 | M44: -200254.1444 | N44: 27251426.1
B45: 2006-06-04 | C45: -269228.8444 | D45: 26781943.11 | E45: 98268.52822 | F45: -9775409.236 | G45: 17006533.88 | H45: -6192.263422 | I45: -92076.2648 | K45: -587.2555556 | L45: 269816.1 | M45: -199666.8889 | N45: 26981610
B46: 2006-07-04 | C46: -269228.8444 | D46: 26512714.27 | E46: 98268.52822 | F46: -9677140.707 | G46: 16835573.56 | H46: -6192.263422 | I46: -92076.2648 | K46: -587.2555556 | L46: 269816.1 | M46: -199079.6333 | N46: 26711793.9
B47: 2006-08-04 | C47: -269228.8444 | D47: 26243485.42 | E47: 98268.52822 | F47: -9578872.179 | G47: 16664613.24 | H47: -6192.263422 | I47: -92076.2648 | K47: -587.2555556 | L47: 269816.1 | M47: -198492.3778 | N47: 26441977.8
B48: 2006-09-04 | C48: -269228.8444 | D48: 25974256.58 | E48: 98268.52822 | F48: -9480603.651 | G48: 16493652.93 | H48: -6192.263422 | I48: -92076.2648 | K48: -587.2555556 | L48: 269816.1 | M48: -197905.1222 | N48: 26172161.7
B49: 2006-10-04 | C49: -269228.8444 | D49: 25705027.73 | E49: 98268.52822 | F49: -9382335.123 | G49: 16322692.61 | H49: -6192.263422 | I49: -92076.2648 | K49: -587.2555556 | L49: 269816.1 | M49: -197317.8667 | N49: 25902345.6
B50: 2006-11-04 | C50: -269228.8444 | D50: 25435798.89 | E50: 98268.52822 | F50: -9284066.594 | G50: 16151732.29 | H50: -6192.263422 | I50: -92076.2648 | K50: -587.2555556 | L50: 269816.1 | M50: -196730.6111 | N50: 25632529.5
B51: 2006-12-04 | C51: -269228.8444 | D51: 25166570.04 | E51: 98268.52822 | F51: -9185798.066 | G51: 15980771.98 | H51: -6192.263422 | I51: -92076.2648 | K51: -587.2555556 | L51: 269816.1 | M51: -196143.3556 | N51: 25362713.4
B52: 2007-01-04 | C52: -269228.8444 | D52: 24897341.2 | E52: 98268.52822 | F52: -9087529.538 | G52: 15809811.66 | H52: -6192.263422 | I52: -92076.2648 | K52: -587.2555556 | L52: 269816.1 | M52: -195556.1 | N52: 25092897.3
B53: 2007-02-04 | C53: -269228.8444 | D53: 24628112.36 | E53: 98268.52822 | F53: -8989261.01 | G53: 15638851.35 | H53: -6192.263422 | I53: -92076.2648 | K53: -587.2555556 | L53: 269816.1 | M53: -194968.8444 | N53: 24823081.2
B54: 2007-03-04 | C54: -269228.8444 | D54: 24358883.51 | E54: 98268.52822 | F54: -8890992.482 | G54: 15467891.03 | H54: -6192.263422 | I54: -92076.2648 | K54: -587.2555556 | L54: 269816.1 | M54: -194381.5889 | N54: 24553265.1
B55: 2007-04-04 | C55: -269228.8444 | D55: 24089654.67 | E55: 98268.52822 | F55: -8792723.953 | G55: 15296930.71 | H55: -6192.263422 | I55: -92076.2648 | K55: -587.2555556 | L55: 269816.1 | M55: -193794.3333 | N55: 24283449
B56: 2007-05-04 | C56: -269228.8444 | D56: 23820425.82 | E56: 98268.52822 | F56: -8694455.425 | G56: 15125970.4 | H56: -6192.263422 | I56: -92076.2648 | K56: -587.2555556 | L56: 269816.1 | M56: -193207.0778 | N56: 24013632.9
B57: 2007-06-04 | C57: -269228.8444 | D57: 23551196.98 | E57: 98268.52822 | F57: -8596186.897 | G57: 14955010.08 | H57: -6192.263422 | I57: -92076.2648 | K57: -587.2555556 | L57: 269816.1 | M57: -192619.8222 | N57: 23743816.8
B58: 2007-07-04 | C58: -269228.8444 | D58: 23281968.13 | E58: 98268.52822 | F58: -8497918.369 | G58: 14784049.76 | H58: -6192.263422 | I58: -92076.2648 | K58: -587.2555556 | L58: 269816.1 | M58: -192032.5667 | N58: 23474000.7
B59: 2007-08-04 | C59: -269228.8444 | D59: 23012739.29 | E59: 98268.52822 | F59: -8399649.84 | G59: 14613089.45 | H59: -6192.263422 | I59: -92076.2648 | K59: -587.2555556 | L59: 269816.1 | M59: -191445.3111 | N59: 23204184.6
B60: 2007-09-04 | C60: -269228.8444 | D60: 22743510.44 | E60: 98268.52822 | F60: -8301381.312 | G60: 14442129.13 | H60: -6192.263422 | I60: -92076.2648 | K60: -587.2555556 | L60: 269816.1 | M60: -190858.0556 | N60: 22934368.5
B61: 2007-10-04 | C61: -269228.8444 | D61: 22474281.6 | E61: 98268.52822 | F61: -8203112.784 | G61: 14271168.82 | H61: -6192.263422 | I61: -92076.2648 | K61: -587.2555556 | L61: 269816.1 | M61: -190270.8 | N61: 22664552.4
B62: 2007-11-04 | C62: -269228.8444 | D62: 22205052.76 | E62: 98268.52822 | F62: -8104844.256 | G62: 14100208.5 | H62: -6192.263422 | I62: -92076.2648 | K62: -587.2555556 | L62: 269816.1 | M62: -189683.5444 | N62: 22394736.3
B63: 2007-12-04 | C63: -269228.8444 | D63: 21935823.91 | E63: 98268.52822 | F63: -8006575.728 | G63: 13929248.18 | H63: -6192.263422 | I63: -92076.2648 | K63: -587.2555556 | L63: 269816.1 | M63: -189096.2889 | N63: 22124920.2
B64: 2008-01-04 | C64: -269228.8444 | D64: 21666595.07 | E64: 98268.52822 | F64: -7908307.199 | G64: 13758287.87 | H64: -6192.263422 | I64: -92076.2648 | K64: -587.2555556 | L64: 269816.1 | M64: -188509.0333 | N64: 21855104.1
B65: 2008-02-04 | C65: -269228.8444 | D65: 21397366.22 | E65: 98268.52822 | F65: -7810038.671 | G65: 13587327.55 | H65: -6192.263422 | I65: -92076.2648 | K65: -587.2555556 | L65: 269816.1 | M65: -187921.7778 | N65: 21585288
B66: 2008-03-04 | C66: -269228.8444 | D66: 21128137.38 | E66: 98268.52822 | F66: -7711770.143 | G66: 13416367.23 | H66: -6192.263422 | I66: -92076.2648 | K66: -587.2555556 | L66: 269816.1 | M66: -187334.5222 | N66: 21315471.9
B67: 2008-04-04 | C67: -269228.8444 | D67: 20858908.53 | E67: 98268.52822 | F67: -7613501.615 | G67: 13245406.92 | H67: -6192.263422 | I67: -92076.2648 | K67: -587.2555556 | L67: 269816.1 | M67: -186747.2667 | N67: 21045655.8
B68: 2008-05-04 | C68: -269228.8444 | D68: 20589679.69 | E68: 98268.52822 | F68: -7515233.086 | G68: 13074446.6 | H68: -6192.263422 | I68: -92076.2648 | K68: -587.2555556 | L68: 269816.1 | M68: -186160.0111 | N68: 20775839.7
B69: 2008-06-04 | C69: -269228.8444 | D69: 20320450.84 | E69: 98268.52822 | F69: -7416964.558 | G69: 12903486.29 | H69: -6192.263422 | I69: -92076.2648 | K69: -587.2555556 | L69: 269816.1 | M69: -185572.7556 | N69: 20506023.6
B70: 2008-07-04 | C70: -269228.8444 | D70: 20051222 | E70: 98268.52822 | F70: -7318696.03 | G70: 12732525.97 | H70: -6192.263422 | I70: -92076.2648 | K70: -587.2555556 | L70: 269816.1 | M70: -184985.5 | N70: 20236207.5
B71: 2008-08-04 | C71: -269228.8444 | D71: 19781993.16 | E71: 98268.52822 | F71: -7220427.502 | G71: 12561565.65 | H71: -6192.263422 | I71: -92076.2648 | K71: -587.2555556 | L71: 269816.1 | M71: -184398.2444 | N71: 19966391.4
B72: 2008-09-04 | C72: -269228.8444 | D72: 19512764.31 | E72: 98268.52822 | F72: -7122158.974 | G72: 12390605.34 | H72: -6192.263422 | I72: -92076.2648 | K72: -587.2555556 | L72: 269816.1 | M72: -183810.9889 | N72: 19696575.3
B73: 2008-10-04 | C73: -269228.8444 | D73: 19243535.47 | E73: 98268.52822 | F73: -7023890.445 | G73: 12219645.02 | H73: -6192.263422 | I73: -92076.2648 | K73: -587.2555556 | L73: 269816.1 | M73: -183223.7333 | N73: 19426759.2
B74: 2008-11-04 | C74: -269228.8444 | D74: 18974306.62 | E74: 98268.52822 | F74: -6925621.917 | G74: 12048684.71 | H74: -6192.263422 | I74: -92076.2648 | K74: -587.2555556 | L74: 269816.1 | M74: -182636.4778 | N74: 19156943.1
B75: 2008-12-04 | C75: -269228.8444 | D75: 18705077.78 | E75: 98268.52822 | F75: -6827353.389 | G75: 11877724.39 | H75: -6192.263422 | I75: -92076.2648 | K75: -587.2555556 | L75: 269816.1 | M75: -182049.2222 | N75: 18887127
B76: 2009-01-04 | C76: -269228.8444 | D76: 18435848.93 | E76: 98268.52822 | F76: -6729084.861 | G76: 11706764.07 | H76: -6192.263422 | I76: -92076.2648 | K76: -587.2555556 | L76: 269816.1 | M76: -181461.9667 | N76: 18617310.9
B77: 2009-02-04 | C77: -269228.8444 | D77: 18166620.09 | E77: 98268.52822 | F77: -6630816.332 | G77: 11535803.76 | H77: -6192.263422 | I77: -92076.2648 | K77: -587.2555556 | L77: 269816.1 | M77: -180874.7111 | N77: 18347494.8
B78: 2009-03-04 | C78: -269228.8444 | D78: 17897391.24 | E78: 98268.52822 | F78: -6532547.804 | G78: 11364843.44 | H78: -6192.263422 | I78: -92076.2648 | K78: -587.2555556 | L78: 269816.1 | M78: -180287.4556 | N78: 18077678.7
B79: 2009-04-04 | C79: -269228.8444 | D79: 17628162.4 | E79: 98268.52822 | F79: -6434279.276 | G79: 11193883.12 | H79: -6192.263422 | I79: -92076.2648 | K79: -587.2555556 | L79: 269816.1 | M79: -179700.2 | N79: 17807862.6
B80: 2009-05-04 | C80: -269228.8444 | D80: 17358933.56 | E80: 98268.52822 | F80: -6336010.748 | G80: 11022922.81 | H80: -6192.263422 | I80: -92076.2648 | K80: -587.2555556 | L80: 269816.1 | M80: -179112.9444 | N80: 17538046.5
B81: 2009-06-04 | C81: -269228.8444 | D81: 17089704.71 | E81: 98268.52822 | F81: -6237742.22 | G81: 10851962.49 | H81: -6192.263422 | I81: -92076.2648 | K81: -587.2555556 | L81: 269816.1 | M81: -178525.6889 | N81: 17268230.4
B82: 2009-07-04 | C82: -269228.8444 | D82: 16820475.87 | E82: 98268.52822 | F82: -6139473.691 | G82: 10681002.18 | H82: -6192.263422 | I82: -92076.2648 | K82: -587.2555556 | L82: 269816.1 | M82: -177938.4333 | N82: 16998414.3
B83: 2009-08-04 | C83: -269228.8444 | D83: 16551247.02 | E83: 98268.52822 | F83: -6041205.163 | G83: 10510041.86 | H83: -6192.263422 | I83: -92076.2648 | K83: -587.2555556 | L83: 269816.1 | M83: -177351.1778 | N83: 16728598.2
B84: 2009-09-04 | C84: -269228.8444 | D84: 16282018.18 | E84: 98268.52822 | F84: -5942936.635 | G84: 10339081.54 | H84: -6192.263422 | I84: -92076.2648 | K84: -587.2555556 | L84: 269816.1 | M84: -176763.9222 | N84: 16458782.1
B85: 2009-10-04 | C85: -269228.8444 | D85: 16012789.33 | E85: 98268.52822 | F85: -5844668.107 | G85: 10168121.23 | H85: -6192.263422 | I85: -92076.2648 | K85: -587.2555556 | L85: 269816.1 | M85: -176176.6667 | N85: 16188966
B86: 2009-11-04 | C86: =-$G$15 -> -269228.8444 | D86: 15743560.49 | E86: 98268.52822 | F86: -5746399.578 | G86: 9997160.91 | H86: -6192.263422 | I86: -92076.2648 | K86: -587.2555556 | L86: 269816.1 | M86: -175589.4111 | N86: 15919149.9
B87: 2009-12-04 | C87: -269228.8444 | D87: 15474331.64 | E87: 98268.52822 | F87: -5648131.05 | G87: 9826200.594 | H87: -6192.263422 | I87: -92076.2648 | K87: -587.2555556 | L87: 269816.1 | M87: -175002.1556 | N87: 15649333.8
B88: 2010-01-04 | C88: -269228.8444 | D88: 15205102.8 | E88: 98268.52822 | F88: -5549862.522 | G88: 9655240.278 | H88: -6192.263422 | I88: -92076.2648 | K88: -587.2555556 | L88: 269816.1 | M88: -174414.9 | N88: 15379517.7
B89: 2010-02-04 | C89: -269228.8444 | D89: 14935873.96 | E89: 98268.52822 | F89: -5451593.994 | G89: 9484279.962 | H89: -6192.263422 | I89: -92076.2648 | K89: -587.2555556 | L89: 269816.1 | M89: -173827.6444 | N89: 15109701.6
B90: 2010-03-04 | C90: -269228.8444 | D90: =+D89+C90 -> 14666645.11 | E90: 98268.52822 | F90: =+F89+E90 -> -5353325.466 | G90: =+G89+C90+E90 -> 9313319.646 | H90: -6192.263422 | I90: -92076.2648 | K90: -587.2555556 | L90: 269816.1 | M90: -173240.3889 | N90: 14839885.5
B91: 2010-04-04 | C91: -269228.8444 | D91: 14397416.27 | E91: =-C91*$J$21 -> 98268.52822 | F91: -5255056.937 | G91: 9142359.329 | H91: =+$H$21*$C91 -> -6192.263422 | I91: =+$I$21*$C91 -> -92076.2648 | K91: -587.2555556 | L91: 269816.1 | M91: -172653.1333 | N91: 14570069.4
B92: 2010-05-04 | C92: -269228.8444 | D92: 14128187.42 | E92: 98268.52822 | F92: -5156788.409 | G92: 8971399.013 | H92: -6192.263422 | I92: -92076.2648 | K92: =K91 -> -587.2555556 | L92: =L91 -> 269816.1 | M92: =M91-K92 -> -172065.8778 | N92: =N91-L92 -> 14300253.3
B93: 2010-06-04 | C93: -269228.8444 | D93: 13858958.58 | E93: 98268.52822 | F93: -5058519.881 | G93: 8800438.697 | H93: -6192.263422 | I93: -92076.2648 | K93: -587.2555556 | L93: 269816.1 | M93: -171478.6222 | N93: 14030437.2
B94: 2010-07-04 | C94: -269228.8444 | D94: 13589729.73 | E94: 98268.52822 | F94: -4960251.353 | G94: 8629478.381 | H94: -6192.263422 | I94: -92076.2648 | K94: -587.2555556 | L94: 269816.1 | M94: -170891.3667 | N94: 13760621.1
B95: 2010-08-04 | C95: -269228.8444 | D95: 13320500.89 | E95: 98268.52822 | F95: -4861982.824 | G95: 8458518.064 | H95: -6192.263422 | I95: -92076.2648 | K95: -587.2555556 | L95: 269816.1 | M95: -170304.1111 | N95: 13490805
B96: 2010-09-04 | C96: -269228.8444 | D96: 13051272.04 | E96: 98268.52822 | F96: -4763714.296 | G96: 8287557.748 | H96: -6192.263422 | I96: -92076.2648 | K96: -587.2555556 | L96: 269816.1 | M96: -169716.8556 | N96: 13220988.9
B97: 2010-10-04 | C97: -269228.8444 | D97: 12782043.2 | E97: 98268.52822 | F97: -4665445.768 | G97: 8116597.432 | H97: -6192.263422 | I97: -92076.2648 | K97: -587.2555556 | L97: 269816.1 | M97: -169129.6 | N97: 12951172.8
B98: 2010-11-04 | C98: -269228.8444 | D98: 12512814.36 | E98: 98268.52822 | F98: -4567177.24 | G98: 7945637.116 | H98: -6192.263422 | I98: -92076.2648 | K98: -587.2555556 | L98: 269816.1 | M98: -168542.3444 | N98: 12681356.7
B99: 2010-12-04 | C99: -269228.8444 | D99: 12243585.51 | E99: 98268.52822 | F99: -4468908.712 | G99: 7774676.8 | H99: -6192.263422 | I99: -92076.2648 | K99: -587.2555556 | L99: 269816.1 | M99: -167955.0889 | N99: 12411540.6
B100: 2011-01-04 | C100: -269228.8444 | D100: 11974356.67 | E100: 98268.52822 | F100: -4370640.183 | G100: 7603716.483 | H100: -6192.263422 | I100: -92076.2648 | K100: -587.2555556 | L100: 269816.1 | M100: -167367.8333 | N100: 12141724.5
B101: 2011-02-04 | C101: -269228.8444 | D101: 11705127.82 | E101: 98268.52822 | F101: -4272371.655 | G101: 7432756.167 | H101: -6192.263422 | I101: -92076.2648 | K101: -587.2555556 | L101: 269816.1 | M101: -166780.5778 | N101: 11871908.4
B102: 2011-03-04 | C102: -269228.8444 | D102: 11435898.98 | E102: 98268.52822 | F102: -4174103.127 | G102: 7261795.851 | H102: -6192.263422 | I102: -92076.2648 | K102: -587.2555556 | L102: 269816.1 | M102: -166193.3222 | N102: 11602092.3
B103: 2011-04-04 | C103: -269228.8444 | D103: 11166670.13 | E103: 98268.52822 | F103: -4075834.599 | G103: 7090835.535 | H103: -6192.263422 | I103: -92076.2648 | K103: -587.2555556 | L103: 269816.1 | M103: -165606.0667 | N103: 11332276.2
B104: 2011-05-04 | C104: -269228.8444 | D104: 10897441.29 | E104: 98268.52822 | F104: -3977566.07 | G104: 6919875.218 | H104: -6192.263422 | I104: -92076.2648 | K104: -587.2555556 | L104: 269816.1 | M104: -165018.8111 | N104: 11062460.1
B105: 2011-06-04 | C105: -269228.8444 | D105: 10628212.44 | E105: 98268.52822 | F105: -3879297.542 | G105: 6748914.902 | H105: -6192.263422 | I105: -92076.2648 | K105: -587.2555556 | L105: 269816.1 | M105: -164431.5556 | N105: 10792644
B106: 2011-07-04 | C106: -269228.8444 | D106: 10358983.6 | E106: 98268.52822 | F106: -3781029.014 | G106: 6577954.586 | H106: -6192.263422 | I106: -92076.2648 | K106: -587.2555556 | L106: 269816.1 | M106: -163844.3 | N106: 10522827.9
B107: 2011-08-04 | C107: -269228.8444 | D107: 10089754.76 | E107: 98268.52822 | F107: -3682760.486 | G107: 6406994.27 | H107: -6192.263422 | I107: -92076.2648 | K107: -587.2555556 | L107: 269816.1 | M107: -163257.0444 | N107: 10253011.8
B108: 2011-09-04 | C108: -269228.8444 | D108: 9820525.911 | E108: 98268.52822 | F108: -3584491.958 | G108: 6236033.954 | H108: -6192.263422 | I108: -92076.2648 | K108: -587.2555556 | L108: 269816.1 | M108: -162669.7889 | N108: 9983195.7
B109: 2011-10-04 | C109: -269228.8444 | D109: 9551297.067 | E109: 98268.52822 | F109: -3486223.429 | G109: 6065073.637 | H109: -6192.263422 | I109: -92076.2648 | K109: -587.2555556 | L109: 269816.1 | M109: -162082.5333 | N109: 9713379.6
B110: 2011-11-04 | C110: -269228.8444 | D110: 9282068.222 | E110: 98268.52822 | F110: -3387954.901 | G110: 5894113.321 | H110: -6192.263422 | I110: -92076.2648 | K110: -587.2555556 | L110: 269816.1 | M110: -161495.2778 | N110: 9443563.5
B111: 2011-12-04 | C111: -269228.8444 | D111: 9012839.378 | E111: 98268.52822 | F111: -3289686.373 | G111: 5723153.005 | H111: -6192.263422 | I111: -92076.2648 | K111: -587.2555556 | L111: 269816.1 | M111: -160908.0222 | N111: 9173747.4
B112: 2012-01-04 | C112: -269228.8444 | D112: 8743610.533 | E112: 98268.52822 | F112: -3191417.845 | G112: 5552192.689 | H112: -6192.263422 | I112: -92076.2648 | K112: -587.2555556 | L112: 269816.1 | M112: -160320.7667 | N112: 8903931.3
B113: 2012-02-04 | C113: -269228.8444 | D113: 8474381.689 | E113: 98268.52822 | F113: -3093149.316 | G113: 5381232.372 | H113: -6192.263422 | I113: -92076.2648 | K113: -587.2555556 | L113: 269816.1 | M113: -159733.5111 | N113: 8634115.2
B114: 2012-03-04 | C114: -269228.8444 | D114: 8205152.844 | E114: 98268.52822 | F114: -2994880.788 | G114: 5210272.056 | H114: -6192.263422 | I114: -92076.2648 | K114: -587.2555556 | L114: 269816.1 | M114: -159146.2556 | N114: 8364299.1
B115: 2012-04-04 | C115: -269228.8444 | D115: 7935924 | E115: 98268.52822 | F115: -2896612.26 | G115: 5039311.74 | H115: -6192.263422 | I115: -92076.2648 | K115: -587.2555556 | L115: 269816.1 | M115: -158559 | N115: 8094483
B116: 2012-05-04 | C116: -269228.8444 | D116: 7666695.156 | E116: 98268.52822 | F116: -2798343.732 | G116: 4868351.424 | H116: -6192.263422 | I116: -92076.2648 | K116: -587.2555556 | L116: 269816.1 | M116: -157971.7444 | N116: 7824666.9
B117: 2012-06-04 | C117: -269228.8444 | D117: 7397466.311 | E117: 98268.52822 | F117: -2700075.204 | G117: 4697391.108 | H117: -6192.263422 | I117: -92076.2648 | K117: -587.2555556 | L117: 269816.1 | M117: -157384.4889 | N117: 7554850.8
B118: 2012-07-04 | C118: -269228.8444 | D118: 7128237.467 | E118: 98268.52822 | F118: -2601806.675 | G118: 4526430.791 | H118: -6192.263422 | I118: -92076.2648 | K118: -587.2555556 | L118: 269816.1 | M118: -156797.2333 | N118: 7285034.7
B119: 2012-08-04 | C119: -269228.8444 | D119: 6859008.622 | E119: 98268.52822 | F119: -2503538.147 | G119: 4355470.475 | H119: -6192.263422 | I119: -92076.2648 | K119: -587.2555556 | L119: 269816.1 | M119: -156209.9778 | N119: 7015218.6
B120: 2012-09-04 | C120: -269228.8444 | D120: 6589779.778 | E120: 98268.52822 | F120: -2405269.619 | G120: 4184510.159 | H120: -6192.263422 | I120: -92076.2648 | K120: -587.2555556 | L120: 269816.1 | M120: -155622.7222 | N120: 6745402.5
B121: 2012-10-04 | C121: -269228.8444 | D121: 6320550.933 | E121: 98268.52822 | F121: -2307001.091 | G121: 4013549.843 | H121: -6192.263422 | I121: -92076.2648 | K121: -587.2555556 | L121: 269816.1 | M121: -155035.4667 | N121: 6475586.4
B122: 2012-11-04 | C122: -269228.8444 | D122: 6051322.089 | E122: 98268.52822 | F122: -2208732.562 | G122: 3842589.526 | H122: -6192.263422 | I122: -92076.2648 | K122: -587.2555556 | L122: 269816.1 | M122: -154448.2111 | N122: 6205770.3
B123: 2012-12-04 | C123: -269228.8444 | D123: 5782093.244 | E123: 98268.52822 | F123: -2110464.034 | G123: 3671629.21 | H123: -6192.263422 | I123: -92076.2648 | K123: -587.2555556 | L123: 269816.1 | M123: -153860.9556 | N123: 5935954.2
B124: 2013-01-04 | C124: -269228.8444 | D124: 5512864.4 | E124: 98268.52822 | F124: -2012195.506 | G124: 3500668.894 | H124: -6192.263422 | I124: -92076.2648 | K124: -587.2555556 | L124: 269816.1 | M124: -153273.7 | N124: 5666138.1
B125: 2013-02-04 | C125: -269228.8444 | D125: 5243635.556 | E125: 98268.52822 | F125: -1913926.978 | G125: 3329708.578 | H125: -6192.263422 | I125: -92076.2648 | K125: -587.2555556 | L125: 269816.1 | M125: -152686.4444 | N125: 5396322
B126: 2013-03-04 | C126: -269228.8444 | D126: 4974406.711 | E126: 98268.52822 | F126: -1815658.45 | G126: 3158748.262 | H126: -6192.263422 | I126: -92076.2648 | K126: -587.2555556 | L126: 269816.1 | M126: -152099.1889 | N126: 5126505.9
B127: 2013-04-04 | C127: -269228.8444 | D127: 4705177.867 | E127: 98268.52822 | F127: -1717389.921 | G127: 2987787.945 | H127: -6192.263422 | I127: -92076.2648 | K127: -587.2555556 | L127: 269816.1 | M127: -151511.9333 | N127: 4856689.8
B128: 2013-05-04 | C128: -269228.8444 | D128: 4435949.022 | E128: 98268.52822 | F128: -1619121.393 | G128: 2816827.629 | H128: -6192.263422 | I128: -92076.2648 | K128: -587.2555556 | L128: 269816.1 | M128: -150924.6778 | N128: 4586873.7
B129: 2013-06-04 | C129: -269228.8444 | D129: 4166720.178 | E129: 98268.52822 | F129: -1520852.865 | G129: 2645867.313 | H129: -6192.263422 | I129: -92076.2648 | K129: -587.2555556 | L129: 269816.1 | M129: -150337.4222 | N129: 4317057.6
B130: 2013-07-04 | C130: -269228.8444 | D130: 3897491.333 | E130: 98268.52822 | F130: -1422584.337 | G130: 2474906.997 | H130: -6192.263422 | I130: -92076.2648 | K130: -587.2555556 | L130: 269816.1 | M130: -149750.1667 | N130: 4047241.5
B131: 2013-08-04 | C131: -269228.8444 | D131: 3628262.489 | E131: 98268.52822 | F131: -1324315.808 | G131: 2303946.68 | H131: -6192.263422 | I131: -92076.2648 | K131: -587.2555556 | L131: 269816.1 | M131: -149162.9111 | N131: 3777425.4
B132: 2013-09-04 | C132: -269228.8444 | D132: 3359033.644 | E132: 98268.52822 | F132: -1226047.28 | G132: 2132986.364 | H132: -6192.263422 | I132: -92076.2648 | K132: -587.2555556 | L132: 269816.1 | M132: -148575.6556 | N132: 3507609.3
B133: 2013-10-04 | C133: -269228.8444 | D133: 3089804.8 | E133: 98268.52822 | F133: -1127778.752 | G133: 1962026.048 | H133: -6192.263422 | I133: -92076.2648 | K133: -587.2555556 | L133: 269816.1 | M133: -147988.4 | N133: 3237793.2
B134: 2013-11-04 | C134: -269228.8444 | D134: 2820575.956 | E134: 98268.52822 | F134: -1029510.224 | G134: 1791065.732 | H134: -6192.263422 | I134: -92076.2648 | K134: -587.2555556 | L134: 269816.1 | M134: -147401.1444 | N134: 2967977.1
B135: 2013-12-04 | C135: -269228.8444 | D135: 2551347.111 | E135: 98268.52822 | F135: -931241.6956 | G135: 1620105.416 | H135: -6192.263422 | I135: -92076.2648 | K135: -587.2555556 | L135: 269816.1 | M135: -146813.8889 | N135: 2698161
B136: 2014-01-04 | C136: -269228.8444 | D136: 2282118.267 | E136: 98268.52822 | F136: -832973.1673 | G136: 1449145.099 | H136: -6192.263422 | I136: -92076.2648 | K136: -587.2555556 | L136: 269816.1 | M136: -146226.6333 | N136: 2428344.9
B137: 2014-02-04 | C137: -269228.8444 | D137: 2012889.422 | E137: 98268.52822 | F137: -734704.6391 | G137: 1278184.783 | H137: -6192.263422 | I137: -92076.2648 | K137: -587.2555556 | L137: 269816.1 | M137: -145639.3778 | N137: 2158528.8
B138: 2014-03-04 | C138: -269228.8444 | D138: 1743660.578 | E138: 98268.52822 | F138: -636436.1109 | G138: 1107224.467 | H138: -6192.263422 | I138: -92076.2648 | K138: -587.2555556 | L138: 269816.1 | M138: -145052.1222 | N138: 1888712.7
B139: 2014-04-04 | C139: -269228.8444 | D139: 1474431.733 | E139: 98268.52822 | F139: -538167.5827 | G139: 936264.1507 | H139: -6192.263422 | I139: -92076.2648 | K139: -587.2555556 | L139: 269816.1 | M139: -144464.8667 | N139: =N138-L139 -> 1618896.6
B140: 2014-05-04 | C140: -269228.8444 | D140: 1205202.889 | E140: 98268.52822 | F140: -439899.0544 | G140: 765303.8344 | H140: -6192.263422 | I140: -92076.2648 | K140: -587.2555556 | L140: 269816.1 | M140: -143877.6111 | N140: =N139-L140 -> 1349080.5
B141: 2014-06-04 | C141: -269228.8444 | D141: 935974.0444 | E141: 98268.52822 | F141: -341630.5262 | G141: 594343.5182 | H141: -6192.263422 | I141: -92076.2648 | K141: -587.2555556 | L141: 269816.1 | M141: -143290.3556 | N141: 1079264.4
B142: 2014-07-04 | C142: -269228.8444 | D142: 666745.2 | E142: 98268.52822 | F142: -243361.998 | G142: 423383.202 | H142: -6192.263422 | I142: -92076.2648 | K142: -587.2555556 | L142: 269816.1 | M142: -142703.1 | N142: 809448.3
B143: 2014-08-04 | C143: -269228.8444 | D143: 397516.3556 | E143: 98268.52822 | F143: -145093.4698 | G143: 252422.8858 | H143: -6192.263422 | I143: -92076.2648 | K143: -587.2555556 | L143: 269816.1 | M143: -142115.8444 | N143: 539632.2
B144: 2014-09-04 | C144: =-$G$15 -> -269228.8444 | D144: 128287.5111 | E144: 98268.52822 | F144: -46824.94156 | G144: 81462.56956 | H144: -6192.263422 | I144: -92076.2648 | K144: -587.2555556 | L144: 269816.1 | M144: -141528.5889 | N144: 269816.1
B145: 2014-10-04 | C145: =-$G$15 -> -269228.8444 | D145: -140941.3333 | E145: 98268.52822 | F145: 51443.58667 | G145: -89497.74667 | H145: -6192.263422 | I145: -92076.2648 | K145: -587.2555556 | L145: =L144 -> 269816.1 | M145: -140941.3333 | N145: -6.88014552e-08
B146: 2014-11-04 | C146: =-$H$15 -> 587.2555556 | D146: =+D145+C146 -> -140354.0778 | E146: =-C146*$J$21 -> -214.3482778 | F146: 51229.23839 | G146: -89124.83939 | H146: 13.50687778 | I146: 200.8414 | K146: -587.2555556 | M146: =M145-K146 -> -140354.0778
B147: 2014-12-04 | C147: =-$H$15 -> 587.2555556 | D147: -139766.8222 | E147: -214.3482778 | F147: 51014.89011 | G147: -88751.93211 | H147: 13.50687778 | I147: 200.8414 | K147: -587.2555556 | M147: -139766.8222
B148: 2015-01-04 | C148: 587.2555556 | D148: -139179.5667 | E148: -214.3482778 | F148: 50800.54183 | G148: -88379.02483 | H148: 13.50687778 | I148: 200.8414 | K148: -587.2555556 | M148: -139179.5667
B149: 2015-02-04 | C149: 587.2555556 | D149: -138592.3111 | E149: -214.3482778 | F149: 50586.19356 | G149: -88006.11756 | H149: 13.50687778 | I149: 200.8414 | K149: -587.2555556 | M149: -138592.3111
B150: 2015-03-04 | C150: 587.2555556 | D150: -138005.0556 | E150: -214.3482778 | F150: 50371.84528 | G150: -87633.21028 | H150: 13.50687778 | I150: 200.8414 | K150: -587.2555556 | M150: -138005.0556
B151: 2015-04-04 | C151: 587.2555556 | D151: -137417.8 | E151: -214.3482778 | F151: 50157.497 | G151: -87260.303 | H151: 13.50687778 | I151: 200.8414 | K151: -587.2555556 | M151: -137417.8
B152: 2015-05-04 | C152: 587.2555556 | D152: -136830.5444 | E152: -214.3482778 | F152: 49943.14872 | G152: -86887.39572 | H152: 13.50687778 | I152: 200.8414 | K152: -587.2555556 | M152: -136830.5444
B153: 2015-06-04 | C153: 587.2555556 | D153: -136243.2889 | E153: -214.3482778 | F153: 49728.80044 | G153: -86514.48844 | H153: 13.50687778 | I153: 200.8414 | K153: -587.2555556 | M153: -136243.2889
B154: 2015-07-04 | C154: 587.2555556 | D154: =+D153+C154 -> -135656.0333 | E154: -214.3482778 | F154: =+F153+E154 -> 49514.45217 | G154: =+G153+C154+E154 -> -86141.58117 | H154: 13.50687778 | I154: 200.8414 | K154: -587.2555556 | M154: -135656.0333
B155: 2015-08-04 | C155: 587.2555556 | D155: -135068.7778 | E155: =-C155*$J$21 -> -214.3482778 | F155: 49300.10389 | G155: -85768.67389 | H155: =+$H$21*$C155 -> 13.50687778 | I155: =+$I$21*$C155 -> 200.8414 | K155: -587.2555556 | M155: -135068.7778
B156: 2015-09-04 | C156: 587.2555556 | D156: -134481.5222 | E156: -214.3482778 | F156: 49085.75561 | G156: -85395.76661 | H156: 13.50687778 | I156: 200.8414 | K156: =K155 -> -587.2555556 | M156: =M155-K156 -> -134481.5222
B157: 2015-10-04 | C157: 587.2555556 | D157: -133894.2667 | E157: -214.3482778 | F157: 48871.40733 | G157: -85022.85933 | H157: 13.50687778 | I157: 200.8414 | K157: -587.2555556 | M157: -133894.2667
B158: 2015-11-04 | C158: 587.2555556 | D158: -133307.0111 | E158: -214.3482778 | F158: 48657.05906 | G158: -84649.95206 | H158: 13.50687778 | I158: 200.8414 | K158: -587.2555556 | M158: -133307.0111
B159: 2015-12-04 | C159: 587.2555556 | D159: -132719.7556 | E159: -214.3482778 | F159: 48442.71078 | G159: -84277.04478 | H159: 13.50687778 | I159: 200.8414 | K159: -587.2555556 | M159: -132719.7556
B160: 2016-01-04 | C160: 587.2555556 | D160: -132132.5 | E160: -214.3482778 | F160: 48228.3625 | G160: -83904.1375 | H160: 13.50687778 | I160: 200.8414 | K160: -587.2555556 | M160: -132132.5
B161: 2016-02-04 | C161: 587.2555556 | D161: -131545.2444 | E161: -214.3482778 | F161: 48014.01422 | G161: -83531.23022 | H161: 13.50687778 | I161: 200.8414 | K161: -587.2555556 | M161: -131545.2444
B162: 2016-03-04 | C162: 587.2555556 | D162: -130957.9889 | E162: -214.3482778 | F162: 47799.66594 | G162: -83158.32294 | H162: 13.50687778 | I162: 200.8414 | K162: -587.2555556 | M162: -130957.9889
B163: 2016-04-04 | C163: 587.2555556 | D163: -130370.7333 | E163: -214.3482778 | F163: 47585.31767 | G163: -82785.41567 | H163: 13.50687778 | I163: 200.8414 | K163: -587.2555556 | M163: -130370.7333
B164: 2016-05-04 | C164: 587.2555556 | D164: -129783.4778 | E164: -214.3482778 | F164: 47370.96939 | G164: -82412.50839 | H164: 13.50687778 | I164: 200.8414 | K164: -587.2555556 | M164: -129783.4778
B165: 2016-06-04 | C165: 587.2555556 | D165: -129196.2222 | E165: -214.3482778 | F165: 47156.62111 | G165: -82039.60111 | H165: 13.50687778 | I165: 200.8414 | K165: -587.2555556 | M165: -129196.2222
B166: 2016-07-04 | C166: 587.2555556 | D166: -128608.9667 | E166: -214.3482778 | F166: 46942.27283 | G166: -81666.69383 | H166: 13.50687778 | I166: 200.8414 | K166: -587.2555556 | M166: -128608.9667
B167: 2016-08-04 | C167: 587.2555556 | D167: -128021.7111 | E167: -214.3482778 | F167: 46727.92456 | G167: -81293.78656 | H167: 13.50687778 | I167: 200.8414 | K167: -587.2555556 | M167: -128021.7111
B168: 2016-09-04 | C168: 587.2555556 | D168: -127434.4556 | E168: -214.3482778 | F168: 46513.57628 | G168: -80920.87928 | H168: 13.50687778 | I168: 200.8414 | K168: -587.2555556 | M168: -127434.4556
B169: 2016-10-04 | C169: 587.2555556 | D169: -126847.2 | E169: -214.3482778 | F169: 46299.228 | G169: -80547.972 | H169: 13.50687778 | I169: 200.8414 | K169: -587.2555556 | M169: -126847.2
B170: 2016-11-04 | C170: 587.2555556 | D170: -126259.9444 | E170: -214.3482778 | F170: 46084.87972 | G170: -80175.06472 | H170: 13.50687778 | I170: 200.8414 | K170: -587.2555556 | M170: -126259.9444
B171: 2016-12-04 | C171: 587.2555556 | D171: -125672.6889 | E171: -214.3482778 | F171: 45870.53144 | G171: -79802.15744 | H171: 13.50687778 | I171: 200.8414 | K171: -587.2555556 | M171: -125672.6889
B172: 2017-01-04 | C172: 587.2555556 | D172: -125085.4333 | E172: -214.3482778 | F172: 45656.18317 | G172: -79429.25017 | H172: 13.50687778 | I172: 200.8414 | K172: -587.2555556 | M172: -125085.4333
B173: 2017-02-04 | C173: 587.2555556 | D173: -124498.1778 | E173: -214.3482778 | F173: 45441.83489 | G173: -79056.34289 | H173: 13.50687778 | I173: 200.8414 | K173: -587.2555556 | M173: -124498.1778
B174: 2017-03-04 | C174: 587.2555556 | D174: -123910.9222 | E174: -214.3482778 | F174: 45227.48661 | G174: -78683.43561 | H174: 13.50687778 | I174: 200.8414 | K174: -587.2555556 | M174: -123910.9222
B175: 2017-04-04 | C175: 587.2555556 | D175: -123323.6667 | E175: -214.3482778 | F175: 45013.13833 | G175: -78310.52833 | H175: 13.50687778 | I175: 200.8414 | K175: -587.2555556 | M175: -123323.6667
B176: 2017-05-04 | C176: 587.2555556 | D176: -122736.4111 | E176: -214.3482778 | F176: 44798.79006 | G176: -77937.62106 | H176: 13.50687778 | I176: 200.8414 | K176: -587.2555556 | M176: -122736.4111
B177: 2017-06-04 | C177: 587.2555556 | D177: -122149.1556 | E177: -214.3482778 | F177: 44584.44178 | G177: -77564.71378 | H177: 13.50687778 | I177: 200.8414 | K177: -587.2555556 | M177: -122149.1556
B178: 2017-07-04 | C178: 587.2555556 | D178: -121561.9 | E178: -214.3482778 | F178: 44370.0935 | G178: -77191.8065 | H178: 13.50687778 | I178: 200.8414 | K178: -587.2555556 | M178: -121561.9
B179: 2017-08-04 | C179: 587.2555556 | D179: -120974.6444 | E179: -214.3482778 | F179: 44155.74522 | G179: -76818.89922 | H179: 13.50687778 | I179: 200.8414 | K179: -587.2555556 | M179: -120974.6444
B180: 2017-09-04 | C180: 587.2555556 | D180: -120387.3889 | E180: -214.3482778 | F180: 43941.39694 | G180: -76445.99194 | H180: 13.50687778 | I180: 200.8414 | K180: -587.2555556 | M180: -120387.3889
B181: 2017-10-04 | C181: 587.2555556 | D181: -119800.1333 | E181: -214.3482778 | F181: 43727.04867 | G181: -76073.08467 | H181: 13.50687778 | I181: 200.8414 | K181: -587.2555556 | M181: -119800.1333
B182: 2017-11-04 | C182: 587.2555556 | D182: -119212.8778 | E182: -214.3482778 | F182: 43512.70039 | G182: -75700.17739 | H182: 13.50687778 | I182: 200.8414 | K182: -587.2555556 | M182: -119212.8778
B183: 2017-12-04 | C183: 587.2555556 | D183: -118625.6222 | E183: -214.3482778 | F183: 43298.35211 | G183: -75327.27011 | H183: 13.50687778 | I183: 200.8414 | K183: -587.2555556 | M183: -118625.6222
B184: 2018-01-04 | C184: 587.2555556 | D184: -118038.3667 | E184: -214.3482778 | F184: 43084.00383 | G184: -74954.36283 | H184: 13.50687778 | I184: 200.8414 | K184: -587.2555556 | M184: -118038.3667
B185: 2018-02-04 | C185: 587.2555556 | D185: -117451.1111 | E185: -214.3482778 | F185: 42869.65556 | G185: -74581.45556 | H185: 13.50687778 | I185: 200.8414 | K185: -587.2555556 | M185: -117451.1111
B186: 2018-03-04 | C186: 587.2555556 | D186: -116863.8556 | E186: -214.3482778 | F186: 42655.30728 | G186: -74208.54828 | H186: 13.50687778 | I186: 200.8414 | K186: -587.2555556 | M186: -116863.8556
B187: 2018-04-04 | C187: 587.2555556 | D187: -116276.6 | E187: -214.3482778 | F187: 42440.959 | G187: -73835.641 | H187: 13.50687778 | I187: 200.8414 | K187: -587.2555556 | M187: -116276.6
B188: 2018-05-04 | C188: 587.2555556 | D188: -115689.3444 | E188: -214.3482778 | F188: 42226.61072 | G188: -73462.73372 | H188: 13.50687778 | I188: 200.8414 | K188: -587.2555556 | M188: -115689.3444
B189: 2018-06-04 | C189: 587.2555556 | D189: -115102.0889 | E189: -214.3482778 | F189: 42012.26244 | G189: -73089.82644 | H189: 13.50687778 | I189: 200.8414 | K189: -587.2555556 | M189: -115102.0889
B190: 2018-07-04 | C190: 587.2555556 | D190: -114514.8333 | E190: -214.3482778 | F190: 41797.91417 | G190: -72716.91917 | H190: 13.50687778 | I190: 200.8414 | K190: -587.2555556 | M190: -114514.8333
B191: 2018-08-04 | C191: 587.2555556 | D191: -113927.5778 | E191: -214.3482778 | F191: 41583.56589 | G191: -72344.01189 | H191: 13.50687778 | I191: 200.8414 | K191: -587.2555556 | M191: -113927.5778
B192: 2018-09-04 | C192: 587.2555556 | D192: -113340.3222 | E192: -214.3482778 | F192: 41369.21761 | G192: -71971.10461 | H192: 13.50687778 | I192: 200.8414 | K192: -587.2555556 | M192: -113340.3222
B193: 2018-10-04 | C193: 587.2555556 | D193: -112753.0667 | E193: -214.3482778 | F193: 41154.86933 | G193: -71598.19733 | H193: 13.50687778 | I193: 200.8414 | K193: -587.2555556 | M193: -112753.0667
B194: 2018-11-04 | C194: 587.2555556 | D194: -112165.8111 | E194: -214.3482778 | F194: 40940.52106 | G194: -71225.29006 | H194: 13.50687778 | I194: 200.8414 | K194: -587.2555556 | M194: -112165.8111
B195: 2018-12-04 | C195: 587.2555556 | D195: -111578.5556 | E195: -214.3482778 | F195: 40726.17278 | G195: -70852.38278 | H195: 13.50687778 | I195: 200.8414 | K195: -587.2555556 | M195: -111578.5556
B196: 2019-01-04 | C196: 587.2555556 | D196: -110991.3 | E196: -214.3482778 | F196: 40511.8245 | G196: -70479.4755 | H196: 13.50687778 | I196: 200.8414 | K196: -587.2555556 | M196: -110991.3
B197: 2019-02-04 | C197: 587.2555556 | D197: -110404.0444 | E197: -214.3482778 | F197: 40297.47622 | G197: -70106.56822 | H197: 13.50687778 | I197: 200.8414 | K197: -587.2555556 | M197: -110404.0444
B198: 2019-03-04 | C198: 587.2555556 | D198: -109816.7889 | E198: -214.3482778 | F198: 40083.12794 | G198: -69733.66094 | H198: 13.50687778 | I198: 200.8414 | K198: -587.2555556 | M198: -109816.7889
B199: 2019-04-04 | C199: 587.2555556 | D199: -109229.5333 | E199: -214.3482778 | F199: 39868.77967 | G199: -69360.75367 | H199: 13.50687778 | I199: 200.8414 | K199: -587.2555556 | M199: -109229.5333
B200: 2019-05-04 | C200: 587.2555556 | D200: -108642.2778 | E200: -214.3482778 | F200: 39654.43139 | G200: -68987.84639 | H200: 13.50687778 | I200: 200.8414 | K200: -587.2555556 | M200: -108642.2778
B201: 2019-06-04 | C201: 587.2555556 | D201: -108055.0222 | E201: -214.3482778 | F201: 39440.08311 | G201: -68614.93911 | H201: 13.50687778 | I201: 200.8414 | K201: -587.2555556 | M201: -108055.0222
B202: 2019-07-04 | C202: 587.2555556 | D202: -107467.7667 | E202: -214.3482778 | F202: 39225.73483 | G202: -68242.03183 | H202: 13.50687778 | I202: 200.8414 | K202: -587.2555556 | M202: -107467.7667
B203: 2019-08-04 | C203: 587.2555556 | D203: -106880.5111 | E203: -214.3482778 | F203: 39011.38656 | G203: -67869.12456 | H203: 13.50687778 | I203: 200.8414 | K203: -587.2555556 | M203: -106880.5111
B204: 2019-09-04 | C204: 587.2555556 | D204: -106293.2556 | E204: -214.3482778 | F204: 38797.03828 | G204: -67496.21728 | H204: 13.50687778 | I204: 200.8414 | K204: -587.2555556 | M204: -106293.2556
B205: 2019-10-04 | C205: 587.2555556 | D205: -105706 | E205: -214.3482778 | F205: 38582.69 | G205: -67123.31 | H205: 13.50687778 | I205: 200.8414 | K205: -587.2555556 | M205: -105706
... 180 more rows

Sheet 20104
A1: Amortization Schedule
A2: GL# 010.0000.2150.20104.002000 | F2: 10 years
F3: Amort | I3: Total to Amort
B4: (Gain) Loss | C4: Years | D4: Annual Amort | F4: April 2009-Mar 2019 | I4: April 2009-Mar 2019
A5: SunTrust | B5: -1937702.25 | C5: 10 | D5: =B5/C5 -> -193770.225 | F5: =ROUND((+$D5*10),2) -> -1937702.25 | G5: =ROUND((+$D5*0),2) -> 0 | H5: =ROUND((+$D5*0),2) -> 0 | I5: =SUM(F5:H5) -> -1937702.25
A6: JP Morgan | B6: 0 | C6: 30 | D6: =B6/C6 -> 0 | F6: =ROUND((+$D6*5),2) -> 0 | G6: =ROUND((+$D6*5),2) -> 0 | H6: =ROUND((+$D6*20),2) -> 0 | I6: =SUM(F6:H6) -> 0
A7: Merrill Lynch | B7: 0 | C7: 5 | D7: =B7/C7 -> 0 | F7: =ROUND((+$D7*5),2) -> 0 | G7: 0 | H7: 0 | I7: =SUM(F7:H7) -> 0
A8: Merrill Lynch | B8: 1160366.57 | C8: 10 | D8: =B8/C8 -> 116036.657 | F8: =ROUND((+$D8*10),2) -> 1160366.57 | G8: =ROUND((+$D8*0),2) -> 0 | H8: 0 | I8: =SUM(F8:H8) -> 1160366.57
A10: Total | B10: =SUM(B5:B8) -> -777335.68 | D10: =SUM(D5:D8) -> -77733.568 | F10: =SUM(F5:F9) -> -777335.68 | G10: =SUM(G5:G9) -> 0 | H10: =SUM(H5:H9) -> 0 | I10: =SUM(F10:H10) -> -777335.68
D12: # months to Amort | F12: =10*12 -> 120 | G12: =5*12 -> 60 | H12: =20*12 -> 240
F14: DR (CR) | G14: DR (CR) | H14: DR (CR)
C15: LT Int Exp | D15: Monthly Amort | F15: =+F10/F12 -> -6477.797333 | G15: =+G10/G12 -> 0 | H15: =+H10/H12 -> 0
C16: 2830.28206 | D16: Def State Tax | E16: 0.023 | F16: =-F$15*$E16 -> 148.9893387 | G16: 0 | H16: 0
C17: 2830.28201 | D17: Def Fed Tax | E17: 0.342 | F17: 2215.406688 | G17: 0 | H17: 0
A20: T-Lock Settlement | G20: Net OCI | H20: Def State Tax | I20: Def Fed Tax
H21: =E16 -> 0.023 | I21: =E17 -> 0.342 | J21: =H21+I21 -> 0.365
C22: 2150.20104 | D22: 2150.20104 | E22: 2150.20104 | F22: 2150.20104 | G22: 2150.20104 | H22: 2830.28206 | I22: 2830.28201
C23: Amort | D23: T-Lock Settlement | E23: Def Tax Adj | F23: Def Taxes | G23: Net of Tax | H23: Adjustment | I23: Adjustment
C24: DR (CR) | D24: DR (CR) | E24: DR (CR) | F24: DR (CR) | H24: DR (CR) | I24: DR (CR)
A25: Balance at March 31, 2009 | B25: 2009-03-01 | D25: =B10 -> -777335.68 | F25: =-D25*$J$21 -> 283727.5232 | G25: =SUM(D25:F25) -> -493608.1568 | H25: 0 | I25: 0
B26: 2009-04-01 | C26: =-$F$15 -> 6477.797333 | D26: =+D25+C26 -> -770857.8827 | E26: =-C26*$J$21 -> -2364.396027 | F26: =+F25+E26 -> 281363.1272 | G26: =+G25+C26+E26 -> -489494.7555 | H26: =+$H$21*$C26 -> 148.9893387 | I26: =+$I$21*$C26 -> 2215.406688
B27: 2009-05-01 | C27: 6477.797333 | D27: -764380.0853 | E27: =-C27*$J$21 -> -2364.396027 | F27: 278998.7311 | G27: -485381.3542 | H27: =+$H$21*$C27 -> 148.9893387 | I27: =+$I$21*$C27 -> 2215.406688
B28: 2009-06-01 | C28: 6477.797333 | D28: -757902.288 | E28: -2364.396027 | F28: 276634.3351 | G28: -481267.9529 | H28: 148.9893387 | I28: 2215.406688
B29: 2009-07-01 | C29: 6477.797333 | D29: -751424.4907 | E29: -2364.396027 | F29: 274269.9391 | G29: -477154.5516 | H29: 148.9893387 | I29: 2215.406688
B30: 2009-08-01 | C30: 6477.797333 | D30: -744946.6933 | E30: -2364.396027 | F30: 271905.5431 | G30: -473041.1503 | H30: 148.9893387 | I30: 2215.406688
B31: 2009-09-01 | C31: 6477.797333 | D31: -738468.896 | E31: -2364.396027 | F31: 269541.147 | G31: -468927.749 | H31: 148.9893387 | I31: 2215.406688
B32: 2009-10-01 | C32: 6477.797333 | D32: -731991.0987 | E32: -2364.396027 | F32: 267176.751 | G32: -464814.3477 | H32: 148.9893387 | I32: 2215.406688
B33: 2009-11-01 | C33: 6477.797333 | D33: -725513.3013 | E33: -2364.396027 | F33: 264812.355 | G33: -460700.9463 | H33: 148.9893387 | I33: 2215.406688
B34: 2009-12-01 | C34: 6477.797333 | D34: -719035.504 | E34: -2364.396027 | F34: 262447.959 | G34: -456587.545 | H34: 148.9893387 | I34: 2215.406688
B35: 2010-01-01 | C35: 6477.797333 | D35: -712557.7067 | E35: -2364.396027 | F35: 260083.5629 | G35: -452474.1437 | H35: 148.9893387 | I35: 2215.406688
B36: 2010-02-01 | C36: 6477.797333 | D36: -706079.9093 | E36: -2364.396027 | F36: 257719.1669 | G36: -448360.7424 | H36: 148.9893387 | I36: 2215.406688
B37: 2010-03-01 | C37: 6477.797333 | D37: -699602.112 | E37: -2364.396027 | F37: 255354.7709 | G37: -444247.3411 | H37: 148.9893387 | I37: 2215.406688
B38: 2010-04-01 | C38: 6477.797333 | D38: -693124.3147 | E38: -2364.396027 | F38: 252990.3749 | G38: -440133.9398 | H38: 148.9893387 | I38: 2215.406688
B39: 2010-05-01 | C39: 6477.797333 | D39: -686646.5173 | E39: -2364.396027 | F39: 250625.9788 | G39: -436020.5385 | H39: 148.9893387 | I39: 2215.406688
B40: 2010-06-01 | C40: 6477.797333 | D40: -680168.72 | E40: -2364.396027 | F40: 248261.5828 | G40: -431907.1372 | H40: 148.9893387 | I40: 2215.406688
B41: 2010-07-01 | C41: 6477.797333 | D41: -673690.9227 | E41: -2364.396027 | F41: 245897.1868 | G41: -427793.7359 | H41: 148.9893387 | I41: 2215.406688
B42: 2010-08-01 | C42: 6477.797333 | D42: -667213.1253 | E42: -2364.396027 | F42: 243532.7907 | G42: -423680.3346 | H42: 148.9893387 | I42: 2215.406688
B43: 2010-09-01 | C43: 6477.797333 | D43: -660735.328 | E43: -2364.396027 | F43: 241168.3947 | G43: -419566.9333 | H43: 148.9893387 | I43: 2215.406688
B44: 2010-10-01 | C44: 6477.797333 | D44: -654257.5307 | E44: -2364.396027 | F44: 238803.9987 | G44: -415453.532 | H44: 148.9893387 | I44: 2215.406688
B45: 2010-11-01 | C45: 6477.797333 | D45: -647779.7333 | E45: -2364.396027 | F45: 236439.6027 | G45: -411340.1307 | H45: 148.9893387 | I45: 2215.406688
B46: 2010-12-01 | C46: 6477.797333 | D46: -641301.936 | E46: -2364.396027 | F46: 234075.2066 | G46: -407226.7294 | H46: 148.9893387 | I46: 2215.406688
B47: 2011-01-01 | C47: 6477.797333 | D47: -634824.1387 | E47: -2364.396027 | F47: 231710.8106 | G47: -403113.3281 | H47: 148.9893387 | I47: 2215.406688
B48: 2011-02-01 | C48: 6477.797333 | D48: -628346.3413 | E48: -2364.396027 | F48: 229346.4146 | G48: -398999.9267 | H48: 148.9893387 | I48: 2215.406688
B49: 2011-03-01 | C49: 6477.797333 | D49: -621868.544 | E49: -2364.396027 | F49: 226982.0186 | G49: -394886.5254 | H49: 148.9893387 | I49: 2215.406688
B50: 2011-04-01 | C50: 6477.797333 | D50: -615390.7467 | E50: -2364.396027 | F50: 224617.6225 | G50: -390773.1241 | H50: 148.9893387 | I50: 2215.406688
B51: 2011-05-01 | C51: 6477.797333 | D51: -608912.9493 | E51: -2364.396027 | F51: 222253.2265 | G51: -386659.7228 | H51: 148.9893387 | I51: 2215.406688
B52: 2011-06-01 | C52: 6477.797333 | D52: -602435.152 | E52: -2364.396027 | F52: 219888.8305 | G52: -382546.3215 | H52: 148.9893387 | I52: 2215.406688
B53: 2011-07-01 | C53: 6477.797333 | D53: -595957.3547 | E53: -2364.396027 | F53: 217524.4345 | G53: -378432.9202 | H53: 148.9893387 | I53: 2215.406688
B54: 2011-08-01 | C54: 6477.797333 | D54: -589479.5573 | E54: -2364.396027 | F54: 215160.0384 | G54: -374319.5189 | H54: 148.9893387 | I54: 2215.406688
B55: 2011-09-01 | C55: 6477.797333 | D55: -583001.76 | E55: -2364.396027 | F55: 212795.6424 | G55: -370206.1176 | H55: 148.9893387 | I55: 2215.406688
B56: 2011-10-01 | C56: 6477.797333 | D56: -576523.9627 | E56: -2364.396027 | F56: 210431.2464 | G56: -366092.7163 | H56: 148.9893387 | I56: 2215.406688
B57: 2011-11-01 | C57: 6477.797333 | D57: -570046.1653 | E57: -2364.396027 | F57: 208066.8503 | G57: -361979.315 | H57: 148.9893387 | I57: 2215.406688
B58: 2011-12-01 | C58: 6477.797333 | D58: -563568.368 | E58: -2364.396027 | F58: 205702.4543 | G58: -357865.9137 | H58: 148.9893387 | I58: 2215.406688
B59: 2012-01-01 | C59: 6477.797333 | D59: -557090.5707 | E59: -2364.396027 | F59: 203338.0583 | G59: -353752.5124 | H59: 148.9893387 | I59: 2215.406688
B60: 2012-02-01 | C60: 6477.797333 | D60: -550612.7733 | E60: -2364.396027 | F60: 200973.6623 | G60: -349639.1111 | H60: 148.9893387 | I60: 2215.406688
B61: 2012-03-01 | C61: 6477.797333 | D61: -544134.976 | E61: -2364.396027 | F61: 198609.2662 | G61: -345525.7098 | H61: 148.9893387 | I61: 2215.406688
B62: 2012-04-01 | C62: 6477.797333 | D62: -537657.1787 | E62: -2364.396027 | F62: 196244.8702 | G62: -341412.3085 | H62: 148.9893387 | I62: 2215.406688
B63: 2012-05-01 | C63: 6477.797333 | D63: -531179.3813 | E63: -2364.396027 | F63: 193880.4742 | G63: -337298.9071 | H63: 148.9893387 | I63: 2215.406688
B64: 2012-06-01 | C64: 6477.797333 | D64: -524701.584 | E64: -2364.396027 | F64: 191516.0782 | G64: -333185.5058 | H64: 148.9893387 | I64: 2215.406688
B65: 2012-07-01 | C65: 6477.797333 | D65: -518223.7867 | E65: -2364.396027 | F65: 189151.6821 | G65: -329072.1045 | H65: 148.9893387 | I65: 2215.406688
B66: 2012-08-01 | C66: 6477.797333 | D66: -511745.9893 | E66: -2364.396027 | F66: 186787.2861 | G66: -324958.7032 | H66: 148.9893387 | I66: 2215.406688
B67: 2012-09-01 | C67: 6477.797333 | D67: -505268.192 | E67: -2364.396027 | F67: 184422.8901 | G67: -320845.3019 | H67: 148.9893387 | I67: 2215.406688
B68: 2012-10-01 | C68: 6477.797333 | D68: -498790.3947 | E68: -2364.396027 | F68: 182058.4941 | G68: -316731.9006 | H68: 148.9893387 | I68: 2215.406688
B69: 2012-11-01 | C69: 6477.797333 | D69: -492312.5973 | E69: -2364.396027 | F69: 179694.098 | G69: -312618.4993 | H69: 148.9893387 | I69: 2215.406688
B70: 2012-12-01 | C70: 6477.797333 | D70: -485834.8 | E70: -2364.396027 | F70: 177329.702 | G70: -308505.098 | H70: 148.9893387 | I70: 2215.406688
B71: 2013-01-01 | C71: 6477.797333 | D71: -479357.0027 | E71: -2364.396027 | F71: 174965.306 | G71: -304391.6967 | H71: 148.9893387 | I71: 2215.406688
B72: 2013-02-01 | C72: 6477.797333 | D72: -472879.2053 | E72: -2364.396027 | F72: 172600.9099 | G72: -300278.2954 | H72: 148.9893387 | I72: 2215.406688
B73: 2013-03-01 | C73: 6477.797333 | D73: -466401.408 | E73: -2364.396027 | F73: 170236.5139 | G73: -296164.8941 | H73: 148.9893387 | I73: 2215.406688
B74: 2013-04-01 | C74: 6477.797333 | D74: -459923.6107 | E74: -2364.396027 | F74: 167872.1179 | G74: -292051.4928 | H74: 148.9893387 | I74: 2215.406688
B75: 2013-05-01 | C75: 6477.797333 | D75: -453445.8133 | E75: -2364.396027 | F75: 165507.7219 | G75: -287938.0915 | H75: 148.9893387 | I75: 2215.406688
B76: 2013-06-01 | C76: 6477.797333 | D76: -446968.016 | E76: -2364.396027 | F76: 163143.3258 | G76: -283824.6902 | H76: 148.9893387 | I76: 2215.406688
B77: 2013-07-01 | C77: 6477.797333 | D77: -440490.2187 | E77: -2364.396027 | F77: 160778.9298 | G77: -279711.2889 | H77: 148.9893387 | I77: 2215.406688
B78: 2013-08-01 | C78: 6477.797333 | D78: -434012.4213 | E78: -2364.396027 | F78: 158414.5338 | G78: -275597.8875 | H78: 148.9893387 | I78: 2215.406688
B79: 2013-09-01 | C79: 6477.797333 | D79: -427534.624 | E79: -2364.396027 | F79: 156050.1378 | G79: -271484.4862 | H79: 148.9893387 | I79: 2215.406688
B80: 2013-10-01 | C80: 6477.797333 | D80: -421056.8267 | E80: -2364.396027 | F80: 153685.7417 | G80: -267371.0849 | H80: 148.9893387 | I80: 2215.406688
B81: 2013-11-01 | C81: 6477.797333 | D81: -414579.0293 | E81: -2364.396027 | F81: 151321.3457 | G81: -263257.6836 | H81: 148.9893387 | I81: 2215.406688
B82: 2013-12-01 | C82: 6477.797333 | D82: -408101.232 | E82: -2364.396027 | F82: 148956.9497 | G82: -259144.2823 | H82: 148.9893387 | I82: 2215.406688
B83: 2014-01-01 | C83: 6477.797333 | D83: -401623.4347 | E83: -2364.396027 | F83: 146592.5537 | G83: -255030.881 | H83: 148.9893387 | I83: 2215.406688
B84: 2014-02-01 | C84: 6477.797333 | D84: -395145.6373 | E84: -2364.396027 | F84: 144228.1576 | G84: -250917.4797 | H84: 148.9893387 | I84: 2215.406688
B85: 2014-03-01 | C85: 6477.797333 | D85: -388667.84 | E85: -2364.396027 | F85: 141863.7616 | G85: -246804.0784 | H85: 148.9893387 | I85: 2215.406688
B86: 2014-04-01 | C86: 6477.797333 | D86: -382190.0427 | E86: -2364.396027 | F86: 139499.3656 | G86: -242690.6771 | H86: 148.9893387 | I86: 2215.406688
B87: 2014-05-01 | C87: 6477.797333 | D87: -375712.2453 | E87: -2364.396027 | F87: 137134.9695 | G87: -238577.2758 | H87: 148.9893387 | I87: 2215.406688
B88: 2014-06-01 | C88: 6477.797333 | D88: -369234.448 | E88: -2364.396027 | F88: 134770.5735 | G88: -234463.8745 | H88: 148.9893387 | I88: 2215.406688
B89: 2014-07-01 | C89: 6477.797333 | D89: -362756.6507 | E89: -2364.396027 | F89: 132406.1775 | G89: -230350.4732 | H89: 148.9893387 | I89: 2215.406688
B90: 2014-08-01 | C90: =-$F$15 -> 6477.797333 | D90: =+D89+C90 -> -356278.8533 | E90: -2364.396027 | F90: =+F89+E90 -> 130041.7815 | G90: =+G89+C90+E90 -> -226237.0719 | H90: 148.9893387 | I90: 2215.406688
B91: 2014-09-01 | C91: 6477.797333 | D91: -349801.056 | E91: =-C91*$J$21 -> -2364.396027 | F91: 127677.3854 | G91: -222123.6706 | H91: =+$H$21*$C91 -> 148.9893387 | I91: =+$I$21*$C91 -> 2215.406688
B92: 2014-10-01 | C92: 6477.797333 | D92: -343323.2587 | E92: -2364.396027 | F92: 125312.9894 | G92: -218010.2693 | H92: 148.9893387 | I92: 2215.406688
B93: 2014-11-01 | C93: 6477.797333 | D93: -336845.4613 | E93: -2364.396027 | F93: 122948.5934 | G93: -213896.8679 | H93: 148.9893387 | I93: 2215.406688
B94: 2014-12-01 | C94: 6477.797333 | D94: -330367.664 | E94: -2364.396027 | F94: 120584.1974 | G94: -209783.4666 | H94: 148.9893387 | I94: 2215.406688
B95: 2015-01-01 | C95: 6477.797333 | D95: -323889.8667 | E95: -2364.396027 | F95: 118219.8013 | G95: -205670.0653 | H95: 148.9893387 | I95: 2215.406688
B96: 2015-02-01 | C96: 6477.797333 | D96: -317412.0693 | E96: -2364.396027 | F96: 115855.4053 | G96: -201556.664 | H96: 148.9893387 | I96: 2215.406688
B97: 2015-03-01 | C97: 6477.797333 | D97: -310934.272 | E97: -2364.396027 | F97: 113491.0093 | G97: -197443.2627 | H97: 148.9893387 | I97: 2215.406688
B98: 2015-04-01 | C98: 6477.797333 | D98: -304456.4747 | E98: -2364.396027 | F98: 111126.6133 | G98: -193329.8614 | H98: 148.9893387 | I98: 2215.406688
B99: 2015-05-01 | C99: 6477.797333 | D99: -297978.6773 | E99: -2364.396027 | F99: 108762.2172 | G99: -189216.4601 | H99: 148.9893387 | I99: 2215.406688
B100: 2015-06-01 | C100: 6477.797333 | D100: -291500.88 | E100: -2364.396027 | F100: 106397.8212 | G100: -185103.0588 | H100: 148.9893387 | I100: 2215.406688
B101: 2015-07-01 | C101: 6477.797333 | D101: -285023.0827 | E101: -2364.396027 | F101: 104033.4252 | G101: -180989.6575 | H101: 148.9893387 | I101: 2215.406688
B102: 2015-08-01 | C102: 6477.797333 | D102: -278545.2853 | E102: -2364.396027 | F102: 101669.0291 | G102: -176876.2562 | H102: 148.9893387 | I102: 2215.406688
B103: 2015-09-01 | C103: 6477.797333 | D103: -272067.488 | E103: -2364.396027 | F103: 99304.63312 | G103: -172762.8549 | H103: 148.9893387 | I103: 2215.406688
B104: 2015-10-01 | C104: 6477.797333 | D104: -265589.6907 | E104: -2364.396027 | F104: 96940.23709 | G104: -168649.4536 | H104: 148.9893387 | I104: 2215.406688
B105: 2015-11-01 | C105: 6477.797333 | D105: -259111.8933 | E105: -2364.396027 | F105: 94575.84107 | G105: -164536.0523 | H105: 148.9893387 | I105: 2215.406688
B106: 2015-12-01 | C106: 6477.797333 | D106: -252634.096 | E106: -2364.396027 | F106: 92211.44504 | G106: -160422.651 | H106: 148.9893387 | I106: 2215.406688
B107: 2016-01-01 | C107: 6477.797333 | D107: -246156.2987 | E107: -2364.396027 | F107: 89847.04901 | G107: -156309.2497 | H107: 148.9893387 | I107: 2215.406688
B108: 2016-02-01 | C108: 6477.797333 | D108: -239678.5013 | E108: -2364.396027 | F108: 87482.65299 | G108: -152195.8483 | H108: 148.9893387 | I108: 2215.406688
B109: 2016-03-01 | C109: 6477.797333 | D109: -233200.704 | E109: -2364.396027 | F109: 85118.25696 | G109: -148082.447 | H109: 148.9893387 | I109: 2215.406688
B110: 2016-04-01 | C110: 6477.797333 | D110: -226722.9067 | E110: -2364.396027 | F110: 82753.86093 | G110: -143969.0457 | H110: 148.9893387 | I110: 2215.406688
B111: 2016-05-01 | C111: 6477.797333 | D111: -220245.1093 | E111: -2364.396027 | F111: 80389.46491 | G111: -139855.6444 | H111: 148.9893387 | I111: 2215.406688
B112: 2016-06-01 | C112: 6477.797333 | D112: -213767.312 | E112: -2364.396027 | F112: 78025.06888 | G112: -135742.2431 | H112: 148.9893387 | I112: 2215.406688
B113: 2016-07-01 | C113: 6477.797333 | D113: -207289.5147 | E113: -2364.396027 | F113: 75660.67285 | G113: -131628.8418 | H113: 148.9893387 | I113: 2215.406688
B114: 2016-08-01 | C114: 6477.797333 | D114: -200811.7173 | E114: -2364.396027 | F114: 73296.27683 | G114: -127515.4405 | H114: 148.9893387 | I114: 2215.406688
B115: 2016-09-01 | C115: 6477.797333 | D115: -194333.92 | E115: -2364.396027 | F115: 70931.8808 | G115: -123402.0392 | H115: 148.9893387 | I115: 2215.406688
B116: 2016-10-01 | C116: 6477.797333 | D116: -187856.1227 | E116: -2364.396027 | F116: 68567.48477 | G116: -119288.6379 | H116: 148.9893387 | I116: 2215.406688
B117: 2016-11-01 | C117: 6477.797333 | D117: -181378.3253 | E117: -2364.396027 | F117: 66203.08875 | G117: -115175.2366 | H117: 148.9893387 | I117: 2215.406688
B118: 2016-12-01 | C118: 6477.797333 | D118: -174900.528 | E118: -2364.396027 | F118: 63838.69272 | G118: -111061.8353 | H118: 148.9893387 | I118: 2215.406688
B119: 2017-01-01 | C119: 6477.797333 | D119: -168422.7307 | E119: -2364.396027 | F119: 61474.29669 | G119: -106948.434 | H119: 148.9893387 | I119: 2215.406688
B120: 2017-02-01 | C120: 6477.797333 | D120: -161944.9333 | E120: -2364.396027 | F120: 59109.90067 | G120: -102835.0327 | H120: 148.9893387 | I120: 2215.406688
B121: 2017-03-01 | C121: 6477.797333 | D121: -155467.136 | E121: -2364.396027 | F121: 56745.50464 | G121: -98721.63136 | H121: 148.9893387 | I121: 2215.406688
B122: 2017-04-01 | C122: 6477.797333 | D122: -148989.3387 | E122: -2364.396027 | F122: 54381.10861 | G122: -94608.23005 | H122: 148.9893387 | I122: 2215.406688
B123: 2017-05-01 | C123: 6477.797333 | D123: -142511.5413 | E123: -2364.396027 | F123: 52016.71259 | G123: -90494.82875 | H123: 148.9893387 | I123: 2215.406688
B124: 2017-06-01 | C124: 6477.797333 | D124: -136033.744 | E124: -2364.396027 | F124: 49652.31656 | G124: -86381.42744 | H124: 148.9893387 | I124: 2215.406688
B125: 2017-07-01 | C125: 6477.797333 | D125: -129555.9467 | E125: -2364.396027 | F125: 47287.92053 | G125: -82268.02613 | H125: 148.9893387 | I125: 2215.406688
B126: 2017-08-01 | C126: 6477.797333 | D126: -123078.1493 | E126: -2364.396027 | F126: 44923.52451 | G126: -78154.62483 | H126: 148.9893387 | I126: 2215.406688
B127: 2017-09-01 | C127: 6477.797333 | D127: -116600.352 | E127: -2364.396027 | F127: 42559.12848 | G127: -74041.22352 | H127: 148.9893387 | I127: 2215.406688
B128: 2017-10-01 | C128: 6477.797333 | D128: -110122.5547 | E128: -2364.396027 | F128: 40194.73245 | G128: -69927.82221 | H128: 148.9893387 | I128: 2215.406688
B129: 2017-11-01 | C129: 6477.797333 | D129: -103644.7573 | E129: -2364.396027 | F129: 37830.33643 | G129: -65814.42091 | H129: 148.9893387 | I129: 2215.406688
B130: 2017-12-01 | C130: 6477.797333 | D130: -97166.96 | E130: -2364.396027 | F130: 35465.9404 | G130: -61701.0196 | H130: 148.9893387 | I130: 2215.406688
B131: 2018-01-01 | C131: 6477.797333 | D131: -90689.16267 | E131: -2364.396027 | F131: 33101.54437 | G131: -57587.61829 | H131: 148.9893387 | I131: 2215.406688
B132: 2018-02-01 | C132: 6477.797333 | D132: -84211.36533 | E132: -2364.396027 | F132: 30737.14835 | G132: -53474.21699 | H132: 148.9893387 | I132: 2215.406688
B133: 2018-03-01 | C133: 6477.797333 | D133: -77733.568 | E133: -2364.396027 | F133: 28372.75232 | G133: -49360.81568 | H133: 148.9893387 | I133: 2215.406688
B134: 2018-04-01 | C134: 6477.797333 | D134: -71255.77067 | E134: -2364.396027 | F134: 26008.35629 | G134: -45247.41437 | H134: 148.9893387 | I134: 2215.406688
B135: 2018-05-01 | C135: 6477.797333 | D135: -64777.97333 | E135: -2364.396027 | F135: 23643.96027 | G135: -41134.01307 | H135: 148.9893387 | I135: 2215.406688
B136: 2018-06-01 | C136: 6477.797333 | D136: -58300.176 | E136: -2364.396027 | F136: 21279.56424 | G136: -37020.61176 | H136: 148.9893387 | I136: 2215.406688
B137: 2018-07-01 | C137: 6477.797333 | D137: -51822.37867 | E137: -2364.396027 | F137: 18915.16821 | G137: -32907.21045 | H137: 148.9893387 | I137: 2215.406688
B138: 2018-08-01 | C138: 6477.797333 | D138: -45344.58133 | E138: -2364.396027 | F138: 16550.77219 | G138: -28793.80915 | H138: 148.9893387 | I138: 2215.406688
B139: 2018-09-01 | C139: 6477.797333 | D139: -38866.784 | E139: -2364.396027 | F139: 14186.37616 | G139: -24680.40784 | H139: 148.9893387 | I139: 2215.406688
B140: 2018-10-01 | C140: 6477.797333 | D140: -32388.98667 | E140: -2364.396027 | F140: 11821.98013 | G140: -20567.00653 | H140: 148.9893387 | I140: 2215.406688
B141: 2018-11-01 | C141: 6477.797333 | D141: -25911.18933 | E141: -2364.396027 | F141: 9457.584107 | G141: -16453.60523 | H141: 148.9893387 | I141: 2215.406688
B142: 2018-12-01 | C142: 6477.797333 | D142: -19433.392 | E142: -2364.396027 | F142: 7093.18808 | G142: -12340.20392 | H142: 148.9893387 | I142: 2215.406688
B143: 2019-01-01 | C143: 6477.797333 | D143: -12955.59467 | E143: =-C143*$J$21 -> -2364.396027 | F143: 4728.792053 | G143: -8226.802613 | H143: 148.9893387 | I143: 2215.406688
B144: 2019-02-01 | C144: 6477.797333 | D144: -6477.797333 | E144: -2364.396027 | F144: 2364.396027 | G144: -4113.401307 | H144: 148.9893387 | I144: 2215.406688
B145: 2019-03-01 | C145: 6477.797333 | D145: =+D144+C145 -> -1.082298695e-09 | E145: -2364.396027 | F145: 4.174580681e-10 | G145: 5.593392416e-11 | H145: 148.9893387 | I145: 2215.406688

Sheet 20105
A1: Amortization Schedule
A2: GL# 010.0000.2150.20105.002000 | F2: 10 years | G2: 10 years | H2: 10 years
F3: Amort | G3: Amort | H3: Amort | I3: Total to Amort
B4: (Gain) Loss | C4: Years | D4: Annual Amort | F4: June 2011-May 2021 | G4: June 2021-May 2031 | H4: June 2031-May 2041 | I4: June 2011-May 2041
A5: Morgan Stanley | B5: -6701857 | C5: 30 | D5: =B5/C5 -> -223395.2333 | F5: =+$D5*10 -> -2233952.333 | G5: -2233952.333 | H5: -2233952.333 | I5: =SUM(F5:H5) -> -6701857
A6: Wells Fargo | B6: -6799114 | C6: 30 | D6: =B6/C6 -> -226637.1333 | F6: -2266371.333 | G6: -2266371.333 | H6: -2266371.333 | I6: =SUM(F6:H6) -> -6799114
A7: BNP Paribas | B7: -6578076 | C7: 30 | D7: =B7/C7 -> -219269.2 | F7: -2192692 | G7: -2192692 | H7: -2192692 | I7: =SUM(F7:H7) -> -6578076
A8: Merrill Lynch | B8: 0 | C8: 30 | D8: =B8/C8 -> 0 | F8: =+$D8*10 -> 0 | G8: =+$D8*0 -> 0 | H8: 0 | I8: =SUM(F8:H8) -> 0
A10: Total | B10: =SUM(B5:B8) -> -20079047 | D10: =SUM(D5:D8) -> -669301.5667 | F10: =SUM(F5:F9) -> -6693015.667 | G10: =SUM(G5:G9) -> -6693015.667 | H10: =SUM(H5:H9) -> -6693015.667 | I10: =SUM(F10:H10) -> -20079047
D12: # months to Amort | F12: =10*12 -> 120 | G12: =10*12 -> 120 | H12: =10*12 -> 120
F14: DR (CR) | G14: DR (CR) | H14: DR (CR)
C15: LT Int Exp | D15: Monthly Amort | F15: =+F10/F12 -> -55775.13056 | G15: =+G10/G12 -> -55775.13056 | H15: =+H10/H12 -> -55775.13056
C16: 2830.xxxxx | D16: Def State Tax | E16: 0.023 | F16: =-F$15*$E16 -> 1282.828003 | G16: 1282.828003 | H16: 1282.828003
C17: 2830.xxxxx | D17: Def Fed Tax | E17: 0.342 | F17: 19075.09465 | G17: 19075.09465 | H17: 19075.09465
A20: T-Lock Settlement | G20: Net OCI | H20: Def State Tax | I20: Def Fed Tax
H21: =E16 -> 0.023 | I21: =E17 -> 0.342 | J21: =H21+I21 -> 0.365
C22: 2150.20105 | D22: 2150.20105 | E22: 2150.20105 | F22: 2150.20105 | G22: 2150.20105 | H22: 2830.28206 | I22: 2830.28201
C23: Amort | D23: T-Lock Settlement | E23: Def Tax Adj | F23: Def Taxes | G23: Net of Tax | H23: Adjustment | I23: Adjustment
C24: DR (CR) | D24: DR (CR) | E24: DR (CR) | F24: DR (CR) | H24: DR (CR) | I24: DR (CR)
A25: Balance at June 30, 2011 | B25: 2011-06-01 | D25: =B10 -> -20079047 | F25: =-D25*$J$21 -> 7328852.155 | G25: =SUM(D25:F25) -> -12750194.84 | H25: 0 | I25: 0
B26: 2011-06-01 | C26: =-$F$15 -> 55775.13056 | D26: =+D25+C26 -> -20023271.87 | E26: =-C26*$J$21 -> -20357.92265 | F26: =+F25+E26 -> 7308494.232 | G26: =+G25+C26+E26 -> -12714777.64 | H26: =+$H$21*$C26 -> 1282.828003 | I26: =+$I$21*$C26 -> 19075.09465
B27: 2011-07-01 | C27: 55775.13056 | D27: -19967496.74 | E27: =-C27*$J$21 -> -20357.92265 | F27: 7288136.31 | G27: -12679360.43 | H27: =+$H$21*$C27 -> 1282.828003 | I27: =+$I$21*$C27 -> 19075.09465
B28: 2011-08-01 | C28: 55775.13056 | D28: -19911721.61 | E28: -20357.92265 | F28: 7267778.387 | G28: -12643943.22 | H28: 1282.828003 | I28: 19075.09465
B29: 2011-09-01 | C29: 55775.13056 | D29: -19855946.48 | E29: -20357.92265 | F29: 7247420.464 | G29: -12608526.01 | H29: 1282.828003 | I29: 19075.09465
B30: 2011-10-01 | C30: 55775.13056 | D30: -19800171.35 | E30: -20357.92265 | F30: 7227062.542 | G30: -12573108.81 | H30: 1282.828003 | I30: 19075.09465
B31: 2011-11-01 | C31: 55775.13056 | D31: -19744396.22 | E31: -20357.92265 | F31: 7206704.619 | G31: -12537691.6 | H31: 1282.828003 | I31: 19075.09465
B32: 2011-12-01 | C32: 55775.13056 | D32: -19688621.09 | E32: -20357.92265 | F32: 7186346.696 | G32: -12502274.39 | H32: 1282.828003 | I32: 19075.09465
B33: 2012-01-01 | C33: 55775.13056 | D33: -19632845.96 | E33: -20357.92265 | F33: 7165988.774 | G33: -12466857.18 | H33: 1282.828003 | I33: 19075.09465
B34: 2012-02-01 | C34: 55775.13056 | D34: -19577070.83 | E34: -20357.92265 | F34: 7145630.851 | G34: -12431439.97 | H34: 1282.828003 | I34: 19075.09465
B35: 2012-03-01 | C35: 55775.13056 | D35: -19521295.69 | E35: -20357.92265 | F35: 7125272.928 | G35: -12396022.77 | H35: 1282.828003 | I35: 19075.09465
B36: 2012-04-01 | C36: 55775.13056 | D36: -19465520.56 | E36: -20357.92265 | F36: 7104915.006 | G36: -12360605.56 | H36: 1282.828003 | I36: 19075.09465
B37: 2012-05-01 | C37: 55775.13056 | D37: -19409745.43 | E37: -20357.92265 | F37: 7084557.083 | G37: -12325188.35 | H37: 1282.828003 | I37: 19075.09465
B38: 2012-06-01 | C38: 55775.13056 | D38: -19353970.3 | E38: -20357.92265 | F38: 7064199.161 | G38: -12289771.14 | H38: 1282.828003 | I38: 19075.09465
B39: 2012-07-01 | C39: 55775.13056 | D39: -19298195.17 | E39: -20357.92265 | F39: 7043841.238 | G39: -12254353.93 | H39: 1282.828003 | I39: 19075.09465
B40: 2012-08-01 | C40: 55775.13056 | D40: -19242420.04 | E40: -20357.92265 | F40: 7023483.315 | G40: -12218936.73 | H40: 1282.828003 | I40: 19075.09465
B41: 2012-09-01 | C41: 55775.13056 | D41: -19186644.91 | E41: -20357.92265 | F41: 7003125.393 | G41: -12183519.52 | H41: 1282.828003 | I41: 19075.09465
B42: 2012-10-01 | C42: 55775.13056 | D42: -19130869.78 | E42: -20357.92265 | F42: 6982767.47 | G42: -12148102.31 | H42: 1282.828003 | I42: 19075.09465
B43: 2012-11-01 | C43: 55775.13056 | D43: -19075094.65 | E43: -20357.92265 | F43: 6962409.547 | G43: -12112685.1 | H43: 1282.828003 | I43: 19075.09465
B44: 2012-12-01 | C44: 55775.13056 | D44: -19019319.52 | E44: -20357.92265 | F44: 6942051.625 | G44: -12077267.89 | H44: 1282.828003 | I44: 19075.09465
B45: 2013-01-01 | C45: 55775.13056 | D45: -18963544.39 | E45: -20357.92265 | F45: 6921693.702 | G45: -12041850.69 | H45: 1282.828003 | I45: 19075.09465
B46: 2013-02-01 | C46: 55775.13056 | D46: -18907769.26 | E46: -20357.92265 | F46: 6901335.779 | G46: -12006433.48 | H46: 1282.828003 | I46: 19075.09465
B47: 2013-03-01 | C47: 55775.13056 | D47: -18851994.13 | E47: -20357.92265 | F47: 6880977.857 | G47: -11971016.27 | H47: 1282.828003 | I47: 19075.09465
B48: 2013-04-01 | C48: 55775.13056 | D48: -18796219 | E48: -20357.92265 | F48: 6860619.934 | G48: -11935599.06 | H48: 1282.828003 | I48: 19075.09465
B49: 2013-05-01 | C49: 55775.13056 | D49: -18740443.87 | E49: -20357.92265 | F49: 6840262.011 | G49: -11900181.86 | H49: 1282.828003 | I49: 19075.09465
B50: 2013-06-01 | C50: 55775.13056 | D50: -18684668.74 | E50: -20357.92265 | F50: 6819904.089 | G50: -11864764.65 | H50: 1282.828003 | I50: 19075.09465
B51: 2013-07-01 | C51: 55775.13056 | D51: -18628893.61 | E51: -20357.92265 | F51: 6799546.166 | G51: -11829347.44 | H51: 1282.828003 | I51: 19075.09465
B52: 2013-08-01 | C52: 55775.13056 | D52: -18573118.48 | E52: -20357.92265 | F52: 6779188.243 | G52: -11793930.23 | H52: 1282.828003 | I52: 19075.09465
B53: 2013-09-01 | C53: 55775.13056 | D53: -18517343.34 | E53: -20357.92265 | F53: 6758830.321 | G53: -11758513.02 | H53: 1282.828003 | I53: 19075.09465
B54: 2013-10-01 | C54: 55775.13056 | D54: -18461568.21 | E54: -20357.92265 | F54: 6738472.398 | G54: -11723095.82 | H54: 1282.828003 | I54: 19075.09465
B55: 2013-11-01 | C55: 55775.13056 | D55: -18405793.08 | E55: -20357.92265 | F55: 6718114.475 | G55: -11687678.61 | H55: 1282.828003 | I55: 19075.09465
B56: 2013-12-01 | C56: 55775.13056 | D56: -18350017.95 | E56: -20357.92265 | F56: 6697756.553 | G56: -11652261.4 | H56: 1282.828003 | I56: 19075.09465
B57: 2014-01-01 | C57: 55775.13056 | D57: -18294242.82 | E57: -20357.92265 | F57: 6677398.63 | G57: -11616844.19 | H57: 1282.828003 | I57: 19075.09465
B58: 2014-02-01 | C58: 55775.13056 | D58: -18238467.69 | E58: -20357.92265 | F58: 6657040.707 | G58: -11581426.98 | H58: 1282.828003 | I58: 19075.09465
B59: 2014-03-01 | C59: 55775.13056 | D59: -18182692.56 | E59: -20357.92265 | F59: 6636682.785 | G59: -11546009.78 | H59: 1282.828003 | I59: 19075.09465
B60: 2014-04-01 | C60: 55775.13056 | D60: -18126917.43 | E60: -20357.92265 | F60: 6616324.862 | G60: -11510592.57 | H60: 1282.828003 | I60: 19075.09465
B61: 2014-05-01 | C61: 55775.13056 | D61: -18071142.3 | E61: -20357.92265 | F61: 6595966.939 | G61: -11475175.36 | H61: 1282.828003 | I61: 19075.09465
B62: 2014-06-01 | C62: 55775.13056 | D62: -18015367.17 | E62: -20357.92265 | F62: 6575609.017 | G62: -11439758.15 | H62: 1282.828003 | I62: 19075.09465
B63: 2014-07-01 | C63: 55775.13056 | D63: -17959592.04 | E63: -20357.92265 | F63: 6555251.094 | G63: -11404340.94 | H63: 1282.828003 | I63: 19075.09465
B64: 2014-08-01 | C64: 55775.13056 | D64: -17903816.91 | E64: -20357.92265 | F64: 6534893.172 | G64: -11368923.74 | H64: 1282.828003 | I64: 19075.09465
B65: 2014-09-01 | C65: 55775.13056 | D65: -17848041.78 | E65: -20357.92265 | F65: 6514535.249 | G65: -11333506.53 | H65: 1282.828003 | I65: 19075.09465
B66: 2014-10-01 | C66: 55775.13056 | D66: -17792266.65 | E66: -20357.92265 | F66: 6494177.326 | G66: -11298089.32 | H66: 1282.828003 | I66: 19075.09465
B67: 2014-11-01 | C67: 55775.13056 | D67: -17736491.52 | E67: -20357.92265 | F67: 6473819.404 | G67: -11262672.11 | H67: 1282.828003 | I67: 19075.09465
B68: 2014-12-01 | C68: 55775.13056 | D68: -17680716.39 | E68: -20357.92265 | F68: 6453461.481 | G68: -11227254.91 | H68: 1282.828003 | I68: 19075.09465
B69: 2015-01-01 | C69: 55775.13056 | D69: -17624941.26 | E69: -20357.92265 | F69: 6433103.558 | G69: -11191837.7 | H69: 1282.828003 | I69: 19075.09465
B70: 2015-02-01 | C70: 55775.13056 | D70: -17569166.13 | E70: -20357.92265 | F70: 6412745.636 | G70: -11156420.49 | H70: 1282.828003 | I70: 19075.09465
B71: 2015-03-01 | C71: 55775.13056 | D71: -17513390.99 | E71: -20357.92265 | F71: 6392387.713 | G71: -11121003.28 | H71: 1282.828003 | I71: 19075.09465
B72: 2015-04-01 | C72: 55775.13056 | D72: -17457615.86 | E72: -20357.92265 | F72: 6372029.79 | G72: -11085586.07 | H72: 1282.828003 | I72: 19075.09465
B73: 2015-05-01 | C73: 55775.13056 | D73: -17401840.73 | E73: -20357.92265 | F73: 6351671.868 | G73: -11050168.87 | H73: 1282.828003 | I73: 19075.09465
B74: 2015-06-01 | C74: 55775.13056 | D74: -17346065.6 | E74: -20357.92265 | F74: 6331313.945 | G74: -11014751.66 | H74: 1282.828003 | I74: 19075.09465
B75: 2015-07-01 | C75: 55775.13056 | D75: -17290290.47 | E75: -20357.92265 | F75: 6310956.022 | G75: -10979334.45 | H75: 1282.828003 | I75: 19075.09465
B76: 2015-08-01 | C76: 55775.13056 | D76: -17234515.34 | E76: -20357.92265 | F76: 6290598.1 | G76: -10943917.24 | H76: 1282.828003 | I76: 19075.09465
B77: 2015-09-01 | C77: 55775.13056 | D77: -17178740.21 | E77: -20357.92265 | F77: 6270240.177 | G77: -10908500.03 | H77: 1282.828003 | I77: 19075.09465
B78: 2015-10-01 | C78: 55775.13056 | D78: -17122965.08 | E78: -20357.92265 | F78: 6249882.254 | G78: -10873082.83 | H78: 1282.828003 | I78: 19075.09465
B79: 2015-11-01 | C79: 55775.13056 | D79: -17067189.95 | E79: -20357.92265 | F79: 6229524.332 | G79: -10837665.62 | H79: 1282.828003 | I79: 19075.09465
B80: 2015-12-01 | C80: 55775.13056 | D80: -17011414.82 | E80: -20357.92265 | F80: 6209166.409 | G80: -10802248.41 | H80: 1282.828003 | I80: 19075.09465
B81: 2016-01-01 | C81: 55775.13056 | D81: -16955639.69 | E81: -20357.92265 | F81: 6188808.486 | G81: -10766831.2 | H81: 1282.828003 | I81: 19075.09465
B82: 2016-02-01 | C82: 55775.13056 | D82: -16899864.56 | E82: -20357.92265 | F82: 6168450.564 | G82: -10731413.99 | H82: 1282.828003 | I82: 19075.09465
B83: 2016-03-01 | C83: 55775.13056 | D83: -16844089.43 | E83: -20357.92265 | F83: 6148092.641 | G83: -10695996.79 | H83: 1282.828003 | I83: 19075.09465
B84: 2016-04-01 | C84: 55775.13056 | D84: -16788314.3 | E84: -20357.92265 | F84: 6127734.718 | G84: -10660579.58 | H84: 1282.828003 | I84: 19075.09465
B85: 2016-05-01 | C85: 55775.13056 | D85: -16732539.17 | E85: -20357.92265 | F85: 6107376.796 | G85: -10625162.37 | H85: 1282.828003 | I85: 19075.09465
B86: 2016-06-01 | C86: 55775.13056 | D86: -16676764.04 | E86: -20357.92265 | F86: 6087018.873 | G86: -10589745.16 | H86: 1282.828003 | I86: 19075.09465
B87: 2016-07-01 | C87: 55775.13056 | D87: -16620988.91 | E87: -20357.92265 | F87: 6066660.951 | G87: -10554327.96 | H87: 1282.828003 | I87: 19075.09465
B88: 2016-08-01 | C88: 55775.13056 | D88: -16565213.78 | E88: -20357.92265 | F88: 6046303.028 | G88: -10518910.75 | H88: 1282.828003 | I88: 19075.09465
B89: 2016-09-01 | C89: 55775.13056 | D89: -16509438.64 | E89: -20357.92265 | F89: 6025945.105 | G89: -10483493.54 | H89: 1282.828003 | I89: 19075.09465
B90: 2016-10-01 | C90: =-$F$15 -> 55775.13056 | D90: =+D89+C90 -> -16453663.51 | E90: -20357.92265 | F90: =+F89+E90 -> 6005587.183 | G90: =+G89+C90+E90 -> -10448076.33 | H90: 1282.828003 | I90: 19075.09465
B91: 2016-11-01 | C91: 55775.13056 | D91: -16397888.38 | E91: =-C91*$J$21 -> -20357.92265 | F91: 5985229.26 | G91: -10412659.12 | H91: =+$H$21*$C91 -> 1282.828003 | I91: =+$I$21*$C91 -> 19075.09465
B92: 2016-12-01 | C92: 55775.13056 | D92: -16342113.25 | E92: -20357.92265 | F92: 5964871.337 | G92: -10377241.92 | H92: 1282.828003 | I92: 19075.09465
B93: 2017-01-01 | C93: 55775.13056 | D93: -16286338.12 | E93: -20357.92265 | F93: 5944513.415 | G93: -10341824.71 | H93: 1282.828003 | I93: 19075.09465
B94: 2017-02-01 | C94: 55775.13056 | D94: -16230562.99 | E94: -20357.92265 | F94: 5924155.492 | G94: -10306407.5 | H94: 1282.828003 | I94: 19075.09465
B95: 2017-03-01 | C95: 55775.13056 | D95: -16174787.86 | E95: -20357.92265 | F95: 5903797.569 | G95: -10270990.29 | H95: 1282.828003 | I95: 19075.09465
B96: 2017-04-01 | C96: 55775.13056 | D96: -16119012.73 | E96: -20357.92265 | F96: 5883439.647 | G96: -10235573.08 | H96: 1282.828003 | I96: 19075.09465
B97: 2017-05-01 | C97: 55775.13056 | D97: -16063237.6 | E97: -20357.92265 | F97: 5863081.724 | G97: -10200155.88 | H97: 1282.828003 | I97: 19075.09465
B98: 2017-06-01 | C98: 55775.13056 | D98: -16007462.47 | E98: -20357.92265 | F98: 5842723.801 | G98: -10164738.67 | H98: 1282.828003 | I98: 19075.09465
B99: 2017-07-01 | C99: 55775.13056 | D99: -15951687.34 | E99: -20357.92265 | F99: 5822365.879 | G99: -10129321.46 | H99: 1282.828003 | I99: 19075.09465
B100: 2017-08-01 | C100: 55775.13056 | D100: -15895912.21 | E100: -20357.92265 | F100: 5802007.956 | G100: -10093904.25 | H100: 1282.828003 | I100: 19075.09465
B101: 2017-09-01 | C101: 55775.13056 | D101: -15840137.08 | E101: -20357.92265 | F101: 5781650.033 | G101: -10058487.04 | H101: 1282.828003 | I101: 19075.09465
B102: 2017-10-01 | C102: 55775.13056 | D102: -15784361.95 | E102: -20357.92265 | F102: 5761292.111 | G102: -10023069.84 | H102: 1282.828003 | I102: 19075.09465
B103: 2017-11-01 | C103: 55775.13056 | D103: -15728586.82 | E103: -20357.92265 | F103: 5740934.188 | G103: -9987652.629 | H103: 1282.828003 | I103: 19075.09465
B104: 2017-12-01 | C104: 55775.13056 | D104: -15672811.69 | E104: -20357.92265 | F104: 5720576.265 | G104: -9952235.421 | H104: 1282.828003 | I104: 19075.09465
B105: 2018-01-01 | C105: 55775.13056 | D105: -15617036.56 | E105: -20357.92265 | F105: 5700218.343 | G105: -9916818.213 | H105: 1282.828003 | I105: 19075.09465
B106: 2018-02-01 | C106: 55775.13056 | D106: -15561261.43 | E106: -20357.92265 | F106: 5679860.42 | G106: -9881401.005 | H106: 1282.828003 | I106: 19075.09465
B107: 2018-03-01 | C107: 55775.13056 | D107: -15505486.29 | E107: -20357.92265 | F107: 5659502.497 | G107: -9845983.797 | H107: 1282.828003 | I107: 19075.09465
B108: 2018-04-01 | C108: 55775.13056 | D108: -15449711.16 | E108: -20357.92265 | F108: 5639144.575 | G108: -9810566.589 | H108: 1282.828003 | I108: 19075.09465
B109: 2018-05-01 | C109: 55775.13056 | D109: -15393936.03 | E109: -20357.92265 | F109: 5618786.652 | G109: -9775149.381 | H109: 1282.828003 | I109: 19075.09465
B110: 2018-06-01 | C110: 55775.13056 | D110: -15338160.9 | E110: -20357.92265 | F110: 5598428.73 | G110: -9739732.173 | H110: 1282.828003 | I110: 19075.09465
B111: 2018-07-01 | C111: 55775.13056 | D111: -15282385.77 | E111: -20357.92265 | F111: 5578070.807 | G111: -9704314.965 | H111: 1282.828003 | I111: 19075.09465
B112: 2018-08-01 | C112: 55775.13056 | D112: -15226610.64 | E112: -20357.92265 | F112: 5557712.884 | G112: -9668897.757 | H112: 1282.828003 | I112: 19075.09465
B113: 2018-09-01 | C113: 55775.13056 | D113: -15170835.51 | E113: -20357.92265 | F113: 5537354.962 | G113: -9633480.55 | H113: 1282.828003 | I113: 19075.09465
B114: 2018-10-01 | C114: 55775.13056 | D114: -15115060.38 | E114: -20357.92265 | F114: 5516997.039 | G114: -9598063.342 | H114: 1282.828003 | I114: 19075.09465
B115: 2018-11-01 | C115: 55775.13056 | D115: -15059285.25 | E115: -20357.92265 | F115: 5496639.116 | G115: -9562646.134 | H115: 1282.828003 | I115: 19075.09465
B116: 2018-12-01 | C116: 55775.13056 | D116: -15003510.12 | E116: -20357.92265 | F116: 5476281.194 | G116: -9527228.926 | H116: 1282.828003 | I116: 19075.09465
B117: 2019-01-01 | C117: 55775.13056 | D117: -14947734.99 | E117: -20357.92265 | F117: 5455923.271 | G117: -9491811.718 | H117: 1282.828003 | I117: 19075.09465
B118: 2019-02-01 | C118: 55775.13056 | D118: -14891959.86 | E118: -20357.92265 | F118: 5435565.348 | G118: -9456394.51 | H118: 1282.828003 | I118: 19075.09465
B119: 2019-03-01 | C119: 55775.13056 | D119: -14836184.73 | E119: -20357.92265 | F119: 5415207.426 | G119: -9420977.302 | H119: 1282.828003 | I119: 19075.09465
B120: 2019-04-01 | C120: 55775.13056 | D120: -14780409.6 | E120: -20357.92265 | F120: 5394849.503 | G120: -9385560.094 | H120: 1282.828003 | I120: 19075.09465
B121: 2019-05-01 | C121: 55775.13056 | D121: -14724634.47 | E121: -20357.92265 | F121: 5374491.58 | G121: -9350142.886 | H121: 1282.828003 | I121: 19075.09465
B122: 2019-06-01 | C122: 55775.13056 | D122: -14668859.34 | E122: -20357.92265 | F122: 5354133.658 | G122: -9314725.678 | H122: 1282.828003 | I122: 19075.09465
B123: 2019-07-01 | C123: 55775.13056 | D123: -14613084.21 | E123: -20357.92265 | F123: 5333775.735 | G123: -9279308.471 | H123: 1282.828003 | I123: 19075.09465
B124: 2019-08-01 | C124: 55775.13056 | D124: -14557309.08 | E124: -20357.92265 | F124: 5313417.812 | G124: -9243891.263 | H124: 1282.828003 | I124: 19075.09465
B125: 2019-09-01 | C125: 55775.13056 | D125: -14501533.94 | E125: -20357.92265 | F125: 5293059.89 | G125: -9208474.055 | H125: 1282.828003 | I125: 19075.09465
B126: 2019-10-01 | C126: 55775.13056 | D126: -14445758.81 | E126: -20357.92265 | F126: 5272701.967 | G126: -9173056.847 | H126: 1282.828003 | I126: 19075.09465
B127: 2019-11-01 | C127: 55775.13056 | D127: -14389983.68 | E127: -20357.92265 | F127: 5252344.044 | G127: -9137639.639 | H127: 1282.828003 | I127: 19075.09465
B128: 2019-12-01 | C128: 55775.13056 | D128: -14334208.55 | E128: -20357.92265 | F128: 5231986.122 | G128: -9102222.431 | H128: 1282.828003 | I128: 19075.09465
B129: 2020-01-01 | C129: 55775.13056 | D129: -14278433.42 | E129: -20357.92265 | F129: 5211628.199 | G129: -9066805.223 | H129: 1282.828003 | I129: 19075.09465
B130: 2020-02-01 | C130: 55775.13056 | D130: -14222658.29 | E130: -20357.92265 | F130: 5191270.276 | G130: -9031388.015 | H130: 1282.828003 | I130: 19075.09465
B131: 2020-03-01 | C131: 55775.13056 | D131: -14166883.16 | E131: -20357.92265 | F131: 5170912.354 | G131: -8995970.807 | H131: 1282.828003 | I131: 19075.09465
B132: 2020-04-01 | C132: 55775.13056 | D132: -14111108.03 | E132: -20357.92265 | F132: 5150554.431 | G132: -8960553.599 | H132: 1282.828003 | I132: 19075.09465
B133: 2020-05-01 | C133: 55775.13056 | D133: -14055332.9 | E133: -20357.92265 | F133: 5130196.508 | G133: -8925136.391 | H133: 1282.828003 | I133: 19075.09465
B134: 2020-06-01 | C134: 55775.13056 | D134: -13999557.77 | E134: -20357.92265 | F134: 5109838.586 | G134: -8889719.184 | H134: 1282.828003 | I134: 19075.09465
B135: 2020-07-01 | C135: 55775.13056 | D135: -13943782.64 | E135: -20357.92265 | F135: 5089480.663 | G135: -8854301.976 | H135: 1282.828003 | I135: 19075.09465
B136: 2020-08-01 | C136: 55775.13056 | D136: -13888007.51 | E136: -20357.92265 | F136: 5069122.741 | G136: -8818884.768 | H136: 1282.828003 | I136: 19075.09465
B137: 2020-09-01 | C137: 55775.13056 | D137: -13832232.38 | E137: -20357.92265 | F137: 5048764.818 | G137: -8783467.56 | H137: 1282.828003 | I137: 19075.09465
B138: 2020-10-01 | C138: 55775.13056 | D138: -13776457.25 | E138: -20357.92265 | F138: 5028406.895 | G138: -8748050.352 | H138: 1282.828003 | I138: 19075.09465
B139: 2020-11-01 | C139: 55775.13056 | D139: -13720682.12 | E139: -20357.92265 | F139: 5008048.973 | G139: -8712633.144 | H139: 1282.828003 | I139: 19075.09465
B140: 2020-12-01 | C140: 55775.13056 | D140: -13664906.99 | E140: -20357.92265 | F140: 4987691.05 | G140: -8677215.936 | H140: 1282.828003 | I140: 19075.09465
B141: 2021-01-01 | C141: 55775.13056 | D141: -13609131.86 | E141: -20357.92265 | F141: 4967333.127 | G141: -8641798.728 | H141: 1282.828003 | I141: 19075.09465
B142: 2021-02-01 | C142: 55775.13056 | D142: -13553356.73 | E142: -20357.92265 | F142: 4946975.205 | G142: -8606381.52 | H142: 1282.828003 | I142: 19075.09465
B143: 2021-03-01 | C143: 55775.13056 | D143: -13497581.59 | E143: -20357.92265 | F143: 4926617.282 | G143: -8570964.312 | H143: 1282.828003 | I143: 19075.09465
B144: 2021-04-01 | C144: 55775.13056 | D144: -13441806.46 | E144: -20357.92265 | F144: 4906259.359 | G144: -8535547.105 | H144: 1282.828003 | I144: 19075.09465
B145: 2021-05-01 | C145: 55775.13056 | D145: -13386031.33 | E145: -20357.92265 | F145: 4885901.437 | G145: -8500129.897 | H145: 1282.828003 | I145: 19075.09465
B146: 2021-06-01 | C146: 55775.13056 | D146: -13330256.2 | E146: -20357.92265 | F146: 4865543.514 | G146: -8464712.689 | H146: 1282.828003 | I146: 19075.09465
B147: 2021-07-01 | C147: 55775.13056 | D147: -13274481.07 | E147: -20357.92265 | F147: 4845185.591 | G147: -8429295.481 | H147: 1282.828003 | I147: 19075.09465
B148: 2021-08-01 | C148: 55775.13056 | D148: -13218705.94 | E148: -20357.92265 | F148: 4824827.669 | G148: -8393878.273 | H148: 1282.828003 | I148: 19075.09465
B149: 2021-09-01 | C149: 55775.13056 | D149: -13162930.81 | E149: -20357.92265 | F149: 4804469.746 | G149: -8358461.065 | H149: 1282.828003 | I149: 19075.09465
B150: 2021-10-01 | C150: 55775.13056 | D150: -13107155.68 | E150: -20357.92265 | F150: 4784111.823 | G150: -8323043.857 | H150: 1282.828003 | I150: 19075.09465
B151: 2021-11-01 | C151: 55775.13056 | D151: -13051380.55 | E151: -20357.92265 | F151: 4763753.901 | G151: -8287626.649 | H151: 1282.828003 | I151: 19075.09465
B152: 2021-12-01 | C152: 55775.13056 | D152: -12995605.42 | E152: -20357.92265 | F152: 4743395.978 | G152: -8252209.441 | H152: 1282.828003 | I152: 19075.09465
B153: 2022-01-01 | C153: 55775.13056 | D153: -12939830.29 | E153: -20357.92265 | F153: 4723038.055 | G153: -8216792.233 | H153: 1282.828003 | I153: 19075.09465
B154: 2022-02-01 | C154: =-$F$15 -> 55775.13056 | D154: =+D153+C154 -> -12884055.16 | E154: -20357.92265 | F154: =+F153+E154 -> 4702680.133 | G154: =+G153+C154+E154 -> -8181375.026 | H154: 1282.828003 | I154: 19075.09465
B155: 2022-03-01 | C155: 55775.13056 | D155: -12828280.03 | E155: =-C155*$J$21 -> -20357.92265 | F155: 4682322.21 | G155: -8145957.818 | H155: =+$H$21*$C155 -> 1282.828003 | I155: =+$I$21*$C155 -> 19075.09465
B156: 2022-04-01 | C156: 55775.13056 | D156: -12772504.9 | E156: -20357.92265 | F156: 4661964.287 | G156: -8110540.61 | H156: 1282.828003 | I156: 19075.09465
B157: 2022-05-01 | C157: 55775.13056 | D157: -12716729.77 | E157: -20357.92265 | F157: 4641606.365 | G157: -8075123.402 | H157: 1282.828003 | I157: 19075.09465
B158: 2022-06-01 | C158: 55775.13056 | D158: -12660954.64 | E158: -20357.92265 | F158: 4621248.442 | G158: -8039706.194 | H158: 1282.828003 | I158: 19075.09465
B159: 2022-07-01 | C159: 55775.13056 | D159: -12605179.51 | E159: -20357.92265 | F159: 4600890.52 | G159: -8004288.986 | H159: 1282.828003 | I159: 19075.09465
B160: 2022-08-01 | C160: 55775.13056 | D160: -12549404.38 | E160: -20357.92265 | F160: 4580532.597 | G160: -7968871.778 | H160: 1282.828003 | I160: 19075.09465
B161: 2022-09-01 | C161: 55775.13056 | D161: -12493629.24 | E161: -20357.92265 | F161: 4560174.674 | G161: -7933454.57 | H161: 1282.828003 | I161: 19075.09465
B162: 2022-10-01 | C162: 55775.13056 | D162: -12437854.11 | E162: -20357.92265 | F162: 4539816.752 | G162: -7898037.362 | H162: 1282.828003 | I162: 19075.09465
B163: 2022-11-01 | C163: 55775.13056 | D163: -12382078.98 | E163: -20357.92265 | F163: 4519458.829 | G163: -7862620.154 | H163: 1282.828003 | I163: 19075.09465
B164: 2022-12-01 | C164: 55775.13056 | D164: -12326303.85 | E164: -20357.92265 | F164: 4499100.906 | G164: -7827202.947 | H164: 1282.828003 | I164: 19075.09465
B165: 2023-01-01 | C165: 55775.13056 | D165: -12270528.72 | E165: -20357.92265 | F165: 4478742.984 | G165: -7791785.739 | H165: 1282.828003 | I165: 19075.09465
B166: 2023-02-01 | C166: 55775.13056 | D166: -12214753.59 | E166: -20357.92265 | F166: 4458385.061 | G166: -7756368.531 | H166: 1282.828003 | I166: 19075.09465
B167: 2023-03-01 | C167: 55775.13056 | D167: -12158978.46 | E167: -20357.92265 | F167: 4438027.138 | G167: -7720951.323 | H167: 1282.828003 | I167: 19075.09465
B168: 2023-04-01 | C168: 55775.13056 | D168: -12103203.33 | E168: -20357.92265 | F168: 4417669.216 | G168: -7685534.115 | H168: 1282.828003 | I168: 19075.09465
B169: 2023-05-01 | C169: 55775.13056 | D169: -12047428.2 | E169: -20357.92265 | F169: 4397311.293 | G169: -7650116.907 | H169: 1282.828003 | I169: 19075.09465
B170: 2023-06-01 | C170: 55775.13056 | D170: -11991653.07 | E170: -20357.92265 | F170: 4376953.37 | G170: -7614699.699 | H170: 1282.828003 | I170: 19075.09465
B171: 2023-07-01 | C171: 55775.13056 | D171: -11935877.94 | E171: -20357.92265 | F171: 4356595.448 | G171: -7579282.491 | H171: 1282.828003 | I171: 19075.09465
B172: 2023-08-01 | C172: 55775.13056 | D172: -11880102.81 | E172: -20357.92265 | F172: 4336237.525 | G172: -7543865.283 | H172: 1282.828003 | I172: 19075.09465
B173: 2023-09-01 | C173: 55775.13056 | D173: -11824327.68 | E173: -20357.92265 | F173: 4315879.602 | G173: -7508448.075 | H173: 1282.828003 | I173: 19075.09465
B174: 2023-10-01 | C174: 55775.13056 | D174: -11768552.55 | E174: -20357.92265 | F174: 4295521.68 | G174: -7473030.867 | H174: 1282.828003 | I174: 19075.09465
B175: 2023-11-01 | C175: 55775.13056 | D175: -11712777.42 | E175: -20357.92265 | F175: 4275163.757 | G175: -7437613.66 | H175: 1282.828003 | I175: 19075.09465
B176: 2023-12-01 | C176: 55775.13056 | D176: -11657002.29 | E176: -20357.92265 | F176: 4254805.834 | G176: -7402196.452 | H176: 1282.828003 | I176: 19075.09465
B177: 2024-01-01 | C177: 55775.13056 | D177: -11601227.16 | E177: -20357.92265 | F177: 4234447.912 | G177: -7366779.244 | H177: 1282.828003 | I177: 19075.09465
B178: 2024-02-01 | C178: 55775.13056 | D178: -11545452.03 | E178: -20357.92265 | F178: 4214089.989 | G178: -7331362.036 | H178: 1282.828003 | I178: 19075.09465
B179: 2024-03-01 | C179: 55775.13056 | D179: -11489676.89 | E179: -20357.92265 | F179: 4193732.066 | G179: -7295944.828 | H179: 1282.828003 | I179: 19075.09465
B180: 2024-04-01 | C180: 55775.13056 | D180: -11433901.76 | E180: -20357.92265 | F180: 4173374.144 | G180: -7260527.62 | H180: 1282.828003 | I180: 19075.09465
B181: 2024-05-01 | C181: 55775.13056 | D181: -11378126.63 | E181: -20357.92265 | F181: 4153016.221 | G181: -7225110.412 | H181: 1282.828003 | I181: 19075.09465
B182: 2024-06-01 | C182: 55775.13056 | D182: -11322351.5 | E182: -20357.92265 | F182: 4132658.299 | G182: -7189693.204 | H182: 1282.828003 | I182: 19075.09465
B183: 2024-07-01 | C183: 55775.13056 | D183: -11266576.37 | E183: -20357.92265 | F183: 4112300.376 | G183: -7154275.996 | H183: 1282.828003 | I183: 19075.09465
B184: 2024-08-01 | C184: 55775.13056 | D184: -11210801.24 | E184: -20357.92265 | F184: 4091942.453 | G184: -7118858.788 | H184: 1282.828003 | I184: 19075.09465
B185: 2024-09-01 | C185: 55775.13056 | D185: -11155026.11 | E185: -20357.92265 | F185: 4071584.531 | G185: -7083441.581 | H185: 1282.828003 | I185: 19075.09465
B186: 2024-10-01 | C186: 55775.13056 | D186: -11099250.98 | E186: -20357.92265 | F186: 4051226.608 | G186: -7048024.373 | H186: 1282.828003 | I186: 19075.09465
B187: 2024-11-01 | C187: 55775.13056 | D187: -11043475.85 | E187: -20357.92265 | F187: 4030868.685 | G187: -7012607.165 | H187: 1282.828003 | I187: 19075.09465
B188: 2024-12-01 | C188: 55775.13056 | D188: -10987700.72 | E188: -20357.92265 | F188: 4010510.763 | G188: -6977189.957 | H188: 1282.828003 | I188: 19075.09465
B189: 2025-01-01 | C189: 55775.13056 | D189: -10931925.59 | E189: -20357.92265 | F189: 3990152.84 | G189: -6941772.749 | H189: 1282.828003 | I189: 19075.09465
B190: 2025-02-01 | C190: 55775.13056 | D190: -10876150.46 | E190: -20357.92265 | F190: 3969794.917 | G190: -6906355.541 | H190: 1282.828003 | I190: 19075.09465
B191: 2025-03-01 | C191: 55775.13056 | D191: -10820375.33 | E191: -20357.92265 | F191: 3949436.995 | G191: -6870938.333 | H191: 1282.828003 | I191: 19075.09465
B192: 2025-04-01 | C192: 55775.13056 | D192: -10764600.2 | E192: -20357.92265 | F192: 3929079.072 | G192: -6835521.125 | H192: 1282.828003 | I192: 19075.09465
B193: 2025-05-01 | C193: 55775.13056 | D193: -10708825.07 | E193: -20357.92265 | F193: 3908721.149 | G193: -6800103.917 | H193: 1282.828003 | I193: 19075.09465
B194: 2025-06-01 | C194: 55775.13056 | D194: -10653049.94 | E194: -20357.92265 | F194: 3888363.227 | G194: -6764686.709 | H194: 1282.828003 | I194: 19075.09465
B195: 2025-07-01 | C195: 55775.13056 | D195: -10597274.81 | E195: -20357.92265 | F195: 3868005.304 | G195: -6729269.502 | H195: 1282.828003 | I195: 19075.09465
B196: 2025-08-01 | C196: 55775.13056 | D196: -10541499.68 | E196: -20357.92265 | F196: 3847647.381 | G196: -6693852.294 | H196: 1282.828003 | I196: 19075.09465
B197: 2025-09-01 | C197: 55775.13056 | D197: -10485724.54 | E197: -20357.92265 | F197: 3827289.459 | G197: -6658435.086 | H197: 1282.828003 | I197: 19075.09465
B198: 2025-10-01 | C198: 55775.13056 | D198: -10429949.41 | E198: -20357.92265 | F198: 3806931.536 | G198: -6623017.878 | H198: 1282.828003 | I198: 19075.09465
B199: 2025-11-01 | C199: 55775.13056 | D199: -10374174.28 | E199: -20357.92265 | F199: 3786573.613 | G199: -6587600.67 | H199: 1282.828003 | I199: 19075.09465
B200: 2025-12-01 | C200: 55775.13056 | D200: -10318399.15 | E200: -20357.92265 | F200: 3766215.691 | G200: -6552183.462 | H200: 1282.828003 | I200: 19075.09465
B201: 2026-01-01 | C201: 55775.13056 | D201: -10262624.02 | E201: -20357.92265 | F201: 3745857.768 | G201: -6516766.254 | H201: 1282.828003 | I201: 19075.09465
B202: 2026-02-01 | C202: 55775.13056 | D202: -10206848.89 | E202: -20357.92265 | F202: 3725499.845 | G202: -6481349.046 | H202: 1282.828003 | I202: 19075.09465
B203: 2026-03-01 | C203: 55775.13056 | D203: -10151073.76 | E203: -20357.92265 | F203: 3705141.923 | G203: -6445931.838 | H203: 1282.828003 | I203: 19075.09465
B204: 2026-04-01 | C204: 55775.13056 | D204: -10095298.63 | E204: -20357.92265 | F204: 3684784 | G204: -6410514.63 | H204: 1282.828003 | I204: 19075.09465
B205: 2026-05-01 | C205: 55775.13056 | D205: -10039523.5 | E205: -20357.92265 | F205: 3664426.077 | G205: -6375097.423 | H205: 1282.828003 | I205: 19075.09465
... 180 more rows

Sheet 20107
A1: Amortization Schedule
A2: GL# 010.0000.2150.20107.002000 | F2: 10 years | G2: 10 years | H2: 10 years
B4: (Gain) Loss | C4: Years | D4: Annual Amort | F4: Jan 2013-Dec-2023 | G4: Jan 2023-Dec-2033 | H4: Jan 2033-Dec-2043 | I4: Jan 2013-Dec-2043
A5: Deutsche Bank AG | B5: 17703796.05 | C5: 30 | D5: =B5/C5 -> 590126.535 | F5: =D5*10 -> 5901265.35 | G5: =D5*10 -> 5901265.35 | H5: =D5*10 -> 5901265.35 | I5: =SUM(F5:H5) -> 17703796.05
A6: Goldman Sachs | B6: 24403396 | C6: 30 | D6: =B6/C6 -> 813446.5333 | F6: =D6*10 -> 8134465.333 | G6: =D6*10 -> 8134465.333 | H6: =D6*10 -> 8134465.333 | I6: =SUM(F6:H6) -> 24403396
A7: Bank of Tokyo - Mitsubishi UFJ | B7: 24518512 | C7: 30 | D7: =B7/C7 -> 817283.7333 | F7: =D7*10 -> 8172837.333 | G7: =D7*10 -> 8172837.333 | H7: =D7*10 -> 8172837.333 | I7: =SUM(F7:H7) -> 24518512
A9: Total | B9: =SUM(B5:B7) -> 66625704.05 | D9: =SUM(D5:D7) -> 2220856.802 | F9: =SUM(F5:F8) -> 22208568.02 | G9: =SUM(G5:G8) -> 22208568.02 | H9: =SUM(H5:H8) -> 22208568.02 | I9: =SUM(F9:H9) -> 66625704.05
D11: # months to Amort | F11: =10*12 -> 120 | G11: =10*12 -> 120 | H11: =10*12 -> 120 | I11: =SUM(F11:H11) -> 360
F13: DR (CR) | G13: DR (CR) | H13: DR (CR)
C14: LT Int Exp | D14: Monthly Amort | F14: =F9/F11 -> 185071.4001 | G14: =G9/G11 -> 185071.4001 | H14: =H9/H11 -> 185071.4001
C15: 2830.xxxxx | D15: Def State Tax | E15: 0.023 | F15: =F14*E15 -> 4256.642203 | G15: =G14*E15 -> 4256.642203 | H15: =H14*E15 -> 4256.642203 | I15: =H15*360 -> 1532391.193
C16: 2830.xxxxx | D16: Def Fed Tax | E16: 0.342 | F16: =F14*E16 -> 63294.41885 | G16: =G14*E16 -> 63294.41885 | H16: =H14*E16 -> 63294.41885 | I16: =H16*360 -> 22785990.79
A19: T-Lock Settlement | G19: Net OCI | H19: Def State Tax | I19: Def Fed Tax
H20: =E15 -> 0.023 | I20: =E16 -> 0.342 | J20: =H20+I20 -> 0.365
C21: 2150.20107 | D21: 2150.20107 | E21: 2150.20107 | F21: 2150.20107 | G21: 2150.20107 | H21: 2830.28206 | I21: 2830.28201
C22: Amort | D22: T-Lock Settlement | E22: Def Tax Adj | F22: Def Taxes | G22: Net of Tax | H22: Adjustment | I22: Adjustment
C23: DR (CR) | D23: DR (CR) | E23: DR (CR) | F23: DR (CR) | H23: DR (CR) | I23: DR (CR)
A24: Balance at June 30, 2011 | B24: 2013-01-01 | D24: =B9 -> 66625704.05 | F24: -24318381.98 | G24: 42307322.07 | H24: 0 | I24: 0
B25: 2013-02-01 | C25: =-$F$14 -> -185071.4001 | D25: =D24+C25 -> 66440632.65 | E25: -67551.06 | F25: =F24-E25 -> -24250830.92 | G25: =D25+F25 -> 42189801.73 | H25: 4256.64 | I25: 63294.42
B26: 2013-03-01 | C26: =-$F$14 -> -185071.4001 | D26: =D25+C26 -> 66255561.25 | E26: -67551.06 | F26: =F25-E26 -> -24183279.86 | G26: =D26+F26 -> 42072281.39 | H26: 4256.64 | I26: 63294.42
B27: 2013-04-01 | C27: -185071.4001 | D27: 66070489.85 | E27: -67551.06 | F27: =F26-E27 -> -24115728.8 | G27: 41954761.05 | H27: 4256.64 | I27: 63294.42
B28: 2013-05-01 | C28: -185071.4001 | D28: 65885418.45 | E28: -67551.06 | F28: -24048177.74 | G28: 41837240.71 | H28: 4256.64 | I28: 63294.42
B29: 2013-06-01 | C29: -185071.4001 | D29: 65700347.05 | E29: -67551.06 | F29: -23980626.68 | G29: 41719720.37 | H29: 4256.64 | I29: 63294.42
B30: 2013-07-01 | C30: -185071.4001 | D30: 65515275.65 | E30: -67551.06 | F30: -23913075.62 | G30: 41602200.03 | H30: 4256.64 | I30: 63294.42
B31: 2013-08-01 | C31: -185071.4001 | D31: 65330204.25 | E31: -67551.06 | F31: -23845524.56 | G31: 41484679.69 | H31: 4256.64 | I31: 63294.42
B32: 2013-09-01 | C32: -185071.4001 | D32: 65145132.85 | E32: -67551.06 | F32: -23777973.5 | G32: 41367159.35 | H32: 4256.64 | I32: 63294.42
B33: 2013-10-01 | C33: -185071.4001 | D33: 64960061.45 | E33: -67551.06 | F33: -23710422.44 | G33: 41249639.01 | H33: 4256.64 | I33: 63294.42
B34: 2013-11-01 | C34: -185071.4001 | D34: 64774990.05 | E34: -67551.06 | F34: -23642871.38 | G34: 41132118.67 | H34: 4256.64 | I34: 63294.42
B35: 2013-12-01 | C35: -185071.4001 | D35: 64589918.65 | E35: -67551.06 | F35: -23575320.32 | G35: 41014598.33 | H35: 4256.64 | I35: 63294.42
B36: 2014-01-01 | C36: -185071.4001 | D36: 64404847.25 | E36: -67551.06 | F36: -23507769.26 | G36: 40897077.99 | H36: 4256.64 | I36: 63294.42
B37: 2014-02-01 | C37: -185071.4001 | D37: 64219775.85 | E37: -67551.06 | F37: -23440218.2 | G37: 40779557.65 | H37: 4256.64 | I37: 63294.42
B38: 2014-03-01 | C38: -185071.4001 | D38: 64034704.45 | E38: -67551.06 | F38: -23372667.14 | G38: 40662037.31 | H38: 4256.64 | I38: 63294.42
B39: 2014-04-01 | C39: -185071.4001 | D39: 63849633.05 | E39: -67551.06 | F39: -23305116.08 | G39: 40544516.97 | H39: 4256.64 | I39: 63294.42
B40: 2014-05-01 | C40: -185071.4001 | D40: 63664561.65 | E40: -67551.06 | F40: -23237565.02 | G40: 40426996.63 | H40: 4256.64 | I40: 63294.42
B41: 2014-06-01 | C41: -185071.4001 | D41: 63479490.25 | E41: -67551.06 | F41: -23170013.96 | G41: 40309476.29 | H41: 4256.64 | I41: 63294.42
B42: 2014-07-01 | C42: -185071.4001 | D42: 63294418.85 | E42: -67551.06 | F42: -23102462.9 | G42: 40191955.95 | H42: 4256.64 | I42: 63294.42
B43: 2014-08-01 | C43: -185071.4001 | D43: 63109347.45 | E43: -67551.06 | F43: -23034911.84 | G43: 40074435.61 | H43: 4256.64 | I43: 63294.42
B44: 2014-09-01 | C44: -185071.4001 | D44: 62924276.05 | E44: -67551.06 | F44: -22967360.78 | G44: 39956915.27 | H44: 4256.64 | I44: 63294.42
B45: 2014-10-01 | C45: -185071.4001 | D45: 62739204.65 | E45: -67551.06 | F45: -22899809.72 | G45: 39839394.93 | H45: 4256.64 | I45: 63294.42
B46: 2014-11-01 | C46: -185071.4001 | D46: 62554133.25 | E46: -67551.06 | F46: -22832258.66 | G46: 39721874.59 | H46: 4256.64 | I46: 63294.42
B47: 2014-12-01 | C47: -185071.4001 | D47: 62369061.85 | E47: -67551.06 | F47: -22764707.6 | G47: 39604354.25 | H47: 4256.64 | I47: 63294.42
B48: 2015-01-01 | C48: -185071.4001 | D48: 62183990.45 | E48: -67551.06 | F48: -22697156.54 | G48: 39486833.91 | H48: 4256.64 | I48: 63294.42
B49: 2015-02-01 | C49: -185071.4001 | D49: 61998919.05 | E49: -67551.06 | F49: -22629605.48 | G49: 39369313.57 | H49: 4256.64 | I49: 63294.42
B50: 2015-03-01 | C50: -185071.4001 | D50: 61813847.65 | E50: -67551.06 | F50: -22562054.42 | G50: 39251793.23 | H50: 4256.64 | I50: 63294.42
B51: 2015-04-01 | C51: -185071.4001 | D51: 61628776.25 | E51: -67551.06 | F51: -22494503.36 | G51: 39134272.89 | H51: 4256.64 | I51: 63294.42
B52: 2015-05-01 | C52: -185071.4001 | D52: 61443704.85 | E52: -67551.06 | F52: -22426952.3 | G52: 39016752.55 | H52: 4256.64 | I52: 63294.42
B53: 2015-06-01 | C53: -185071.4001 | D53: 61258633.45 | E53: -67551.06 | F53: -22359401.24 | G53: 38899232.21 | H53: 4256.64 | I53: 63294.42
B54: 2015-07-01 | C54: -185071.4001 | D54: 61073562.05 | E54: -67551.06 | F54: -22291850.18 | G54: 38781711.87 | H54: 4256.64 | I54: 63294.42
B55: 2015-08-01 | C55: -185071.4001 | D55: 60888490.65 | E55: -67551.06 | F55: -22224299.12 | G55: 38664191.53 | H55: 4256.64 | I55: 63294.42
B56: 2015-09-01 | C56: -185071.4001 | D56: 60703419.25 | E56: -67551.06 | F56: -22156748.06 | G56: 38546671.19 | H56: 4256.64 | I56: 63294.42
B57: 2015-10-01 | C57: -185071.4001 | D57: 60518347.85 | E57: -67551.06 | F57: -22089197 | G57: 38429150.85 | H57: 4256.64 | I57: 63294.42
B58: 2015-11-01 | C58: -185071.4001 | D58: 60333276.45 | E58: -67551.06 | F58: -22021645.94 | G58: 38311630.51 | H58: 4256.64 | I58: 63294.42
B59: 2015-12-01 | C59: -185071.4001 | D59: 60148205.05 | E59: -67551.06 | F59: -21954094.88 | G59: 38194110.17 | H59: 4256.64 | I59: 63294.42
B60: 2016-01-01 | C60: -185071.4001 | D60: 59963133.64 | E60: -67551.06 | F60: -21886543.82 | G60: 38076589.82 | H60: 4256.64 | I60: 63294.42
B61: 2016-02-01 | C61: -185071.4001 | D61: 59778062.24 | E61: -67551.06 | F61: -21818992.76 | G61: 37959069.48 | H61: 4256.64 | I61: 63294.42
B62: 2016-03-01 | C62: -185071.4001 | D62: 59592990.84 | E62: -67551.06 | F62: -21751441.7 | G62: 37841549.14 | H62: 4256.64 | I62: 63294.42
B63: 2016-04-01 | C63: -185071.4001 | D63: 59407919.44 | E63: -67551.06 | F63: -21683890.64 | G63: 37724028.8 | H63: 4256.64 | I63: 63294.42
B64: 2016-05-01 | C64: -185071.4001 | D64: 59222848.04 | E64: -67551.06 | F64: -21616339.58 | G64: 37606508.46 | H64: 4256.64 | I64: 63294.42
B65: 2016-06-01 | C65: -185071.4001 | D65: 59037776.64 | E65: -67551.06 | F65: -21548788.52 | G65: 37488988.12 | H65: 4256.64 | I65: 63294.42
B66: 2016-07-01 | C66: -185071.4001 | D66: 58852705.24 | E66: -67551.06 | F66: -21481237.46 | G66: 37371467.78 | H66: 4256.64 | I66: 63294.42
B67: 2016-08-01 | C67: -185071.4001 | D67: 58667633.84 | E67: -67551.06 | F67: -21413686.4 | G67: 37253947.44 | H67: 4256.64 | I67: 63294.42
B68: 2016-09-01 | C68: -185071.4001 | D68: 58482562.44 | E68: -67551.06 | F68: -21346135.34 | G68: 37136427.1 | H68: 4256.64 | I68: 63294.42
B69: 2016-10-01 | C69: -185071.4001 | D69: 58297491.04 | E69: -67551.06 | F69: -21278584.28 | G69: 37018906.76 | H69: 4256.64 | I69: 63294.42
B70: 2016-11-01 | C70: -185071.4001 | D70: 58112419.64 | E70: -67551.06 | F70: -21211033.22 | G70: 36901386.42 | H70: 4256.64 | I70: 63294.42
B71: 2016-12-01 | C71: -185071.4001 | D71: 57927348.24 | E71: -67551.06 | F71: -21143482.16 | G71: 36783866.08 | H71: 4256.64 | I71: 63294.42
B72: 2017-01-01 | C72: -185071.4001 | D72: 57742276.84 | E72: -67551.06 | F72: -21075931.1 | G72: 36666345.74 | H72: 4256.64 | I72: 63294.42
B73: 2017-02-01 | C73: -185071.4001 | D73: 57557205.44 | E73: -67551.06 | F73: -21008380.04 | G73: 36548825.4 | H73: 4256.64 | I73: 63294.42
B74: 2017-03-01 | C74: -185071.4001 | D74: 57372134.04 | E74: -67551.06 | F74: -20940828.98 | G74: 36431305.06 | H74: 4256.64 | I74: 63294.42
B75: 2017-04-01 | C75: -185071.4001 | D75: 57187062.64 | E75: -67551.06 | F75: -20873277.92 | G75: 36313784.72 | H75: 4256.64 | I75: 63294.42
B76: 2017-05-01 | C76: -185071.4001 | D76: 57001991.24 | E76: -67551.06 | F76: -20805726.86 | G76: 36196264.38 | H76: 4256.64 | I76: 63294.42
B77: 2017-06-01 | C77: -185071.4001 | D77: 56816919.84 | E77: -67551.06 | F77: -20738175.8 | G77: 36078744.04 | H77: 4256.64 | I77: 63294.42
B78: 2017-07-01 | C78: -185071.4001 | D78: 56631848.44 | E78: -67551.06 | F78: -20670624.74 | G78: 35961223.7 | H78: 4256.64 | I78: 63294.42
B79: 2017-08-01 | C79: -185071.4001 | D79: 56446777.04 | E79: -67551.06 | F79: -20603073.68 | G79: 35843703.36 | H79: 4256.64 | I79: 63294.42
B80: 2017-09-01 | C80: -185071.4001 | D80: 56261705.64 | E80: -67551.06 | F80: -20535522.62 | G80: 35726183.02 | H80: 4256.64 | I80: 63294.42
B81: 2017-10-01 | C81: -185071.4001 | D81: 56076634.24 | E81: -67551.06 | F81: -20467971.56 | G81: 35608662.68 | H81: 4256.64 | I81: 63294.42
B82: 2017-11-01 | C82: -185071.4001 | D82: 55891562.84 | E82: -67551.06 | F82: -20400420.5 | G82: 35491142.34 | H82: 4256.64 | I82: 63294.42
B83: 2017-12-01 | C83: -185071.4001 | D83: 55706491.44 | E83: -67551.06 | F83: -20332869.44 | G83: 35373622 | H83: 4256.64 | I83: 63294.42
B84: 2018-01-01 | C84: -185071.4001 | D84: 55521420.04 | E84: -67551.06 | F84: -20265318.38 | G84: 35256101.66 | H84: 4256.64 | I84: 63294.42
B85: 2018-02-01 | C85: -185071.4001 | D85: 55336348.64 | E85: -67551.06 | F85: -20197767.32 | G85: 35138581.32 | H85: 4256.64 | I85: 63294.42
B86: 2018-03-01 | C86: -185071.4001 | D86: 55151277.24 | E86: -67551.06 | F86: -20130216.26 | G86: 35021060.98 | H86: 4256.64 | I86: 63294.42
B87: 2018-04-01 | C87: -185071.4001 | D87: 54966205.84 | E87: -67551.06 | F87: -20062665.2 | G87: 34903540.64 | H87: 4256.64 | I87: 63294.42
B88: 2018-05-01 | C88: -185071.4001 | D88: 54781134.44 | E88: -67551.06 | F88: -19995114.14 | G88: 34786020.3 | H88: 4256.64 | I88: 63294.42
B89: 2018-06-01 | C89: -185071.4001 | D89: 54596063.04 | E89: -67551.06 | F89: -19927563.08 | G89: 34668499.96 | H89: 4256.64 | I89: 63294.42
B90: 2018-07-01 | C90: =-$F$14 -> -185071.4001 | D90: =D89+C90 -> 54410991.64 | E90: -67551.06 | F90: =F89-E90 -> -19860012.02 | G90: =D90+F90 -> 34550979.62 | H90: 4256.64 | I90: 63294.42
B91: 2018-08-01 | C91: -185071.4001 | D91: 54225920.24 | E91: -67551.06 | F91: -19792460.96 | G91: 34433459.28 | H91: 4256.64 | I91: 63294.42
B92: 2018-09-01 | C92: -185071.4001 | D92: 54040848.84 | E92: -67551.06 | F92: -19724909.9 | G92: 34315938.94 | H92: 4256.64 | I92: 63294.42
B93: 2018-10-01 | C93: -185071.4001 | D93: 53855777.44 | E93: -67551.06 | F93: -19657358.84 | G93: 34198418.6 | H93: 4256.64 | I93: 63294.42
B94: 2018-11-01 | C94: -185071.4001 | D94: 53670706.04 | E94: -67551.06 | F94: -19589807.78 | G94: 34080898.26 | H94: 4256.64 | I94: 63294.42
B95: 2018-12-01 | C95: -185071.4001 | D95: 53485634.64 | E95: -67551.06 | F95: -19522256.72 | G95: 33963377.92 | H95: 4256.64 | I95: 63294.42
B96: 2019-01-01 | C96: -185071.4001 | D96: 53300563.24 | E96: -67551.06 | F96: -19454705.66 | G96: 33845857.58 | H96: 4256.64 | I96: 63294.42
B97: 2019-02-01 | C97: -185071.4001 | D97: 53115491.84 | E97: -67551.06 | F97: -19387154.6 | G97: 33728337.24 | H97: 4256.64 | I97: 63294.42
B98: 2019-03-01 | C98: -185071.4001 | D98: 52930420.44 | E98: -67551.06 | F98: -19319603.54 | G98: 33610816.9 | H98: 4256.64 | I98: 63294.42
B99: 2019-04-01 | C99: -185071.4001 | D99: 52745349.04 | E99: -67551.06 | F99: -19252052.48 | G99: 33493296.56 | H99: 4256.64 | I99: 63294.42
B100: 2019-05-01 | C100: -185071.4001 | D100: 52560277.64 | E100: -67551.06 | F100: -19184501.42 | G100: 33375776.22 | H100: 4256.64 | I100: 63294.42
B101: 2019-06-01 | C101: -185071.4001 | D101: 52375206.24 | E101: -67551.06 | F101: -19116950.36 | G101: 33258255.88 | H101: 4256.64 | I101: 63294.42
B102: 2019-07-01 | C102: -185071.4001 | D102: 52190134.84 | E102: -67551.06 | F102: -19049399.3 | G102: 33140735.54 | H102: 4256.64 | I102: 63294.42
B103: 2019-08-01 | C103: -185071.4001 | D103: 52005063.44 | E103: -67551.06 | F103: -18981848.24 | G103: 33023215.2 | H103: 4256.64 | I103: 63294.42
B104: 2019-09-01 | C104: -185071.4001 | D104: 51819992.04 | E104: -67551.06 | F104: -18914297.18 | G104: 32905694.86 | H104: 4256.64 | I104: 63294.42
B105: 2019-10-01 | C105: -185071.4001 | D105: 51634920.64 | E105: -67551.06 | F105: -18846746.12 | G105: 32788174.52 | H105: 4256.64 | I105: 63294.42
B106: 2019-11-01 | C106: -185071.4001 | D106: 51449849.24 | E106: -67551.06 | F106: -18779195.06 | G106: 32670654.18 | H106: 4256.64 | I106: 63294.42
B107: 2019-12-01 | C107: -185071.4001 | D107: 51264777.84 | E107: -67551.06 | F107: -18711644 | G107: 32553133.84 | H107: 4256.64 | I107: 63294.42
B108: 2020-01-01 | C108: -185071.4001 | D108: 51079706.44 | E108: -67551.06 | F108: -18644092.94 | G108: 32435613.5 | H108: 4256.64 | I108: 63294.42
B109: 2020-02-01 | C109: -185071.4001 | D109: 50894635.04 | E109: -67551.06 | F109: -18576541.88 | G109: 32318093.16 | H109: 4256.64 | I109: 63294.42
B110: 2020-03-01 | C110: -185071.4001 | D110: 50709563.64 | E110: -67551.06 | F110: -18508990.82 | G110: 32200572.82 | H110: 4256.64 | I110: 63294.42
B111: 2020-04-01 | C111: -185071.4001 | D111: 50524492.24 | E111: -67551.06 | F111: -18441439.76 | G111: 32083052.48 | H111: 4256.64 | I111: 63294.42
B112: 2020-05-01 | C112: -185071.4001 | D112: 50339420.84 | E112: -67551.06 | F112: -18373888.7 | G112: 31965532.14 | H112: 4256.64 | I112: 63294.42
B113: 2020-06-01 | C113: -185071.4001 | D113: 50154349.44 | E113: -67551.06 | F113: -18306337.64 | G113: 31848011.8 | H113: 4256.64 | I113: 63294.42
B114: 2020-07-01 | C114: -185071.4001 | D114: 49969278.04 | E114: -67551.06 | F114: -18238786.58 | G114: 31730491.46 | H114: 4256.64 | I114: 63294.42
B115: 2020-08-01 | C115: -185071.4001 | D115: 49784206.64 | E115: -67551.06 | F115: -18171235.52 | G115: 31612971.12 | H115: 4256.64 | I115: 63294.42
B116: 2020-09-01 | C116: -185071.4001 | D116: 49599135.24 | E116: -67551.06 | F116: -18103684.46 | G116: 31495450.78 | H116: 4256.64 | I116: 63294.42
B117: 2020-10-01 | C117: -185071.4001 | D117: 49414063.84 | E117: -67551.06 | F117: -18036133.4 | G117: 31377930.44 | H117: 4256.64 | I117: 63294.42
B118: 2020-11-01 | C118: -185071.4001 | D118: 49228992.44 | E118: -67551.06 | F118: -17968582.34 | G118: 31260410.1 | H118: 4256.64 | I118: 63294.42
B119: 2020-12-01 | C119: -185071.4001 | D119: 49043921.04 | E119: -67551.06 | F119: -17901031.28 | G119: 31142889.76 | H119: 4256.64 | I119: 63294.42
B120: 2021-01-01 | C120: -185071.4001 | D120: 48858849.64 | E120: -67551.06 | F120: -17833480.22 | G120: 31025369.42 | H120: 4256.64 | I120: 63294.42
B121: 2021-02-01 | C121: -185071.4001 | D121: 48673778.24 | E121: -67551.06 | F121: -17765929.16 | G121: 30907849.08 | H121: 4256.64 | I121: 63294.42
B122: 2021-03-01 | C122: -185071.4001 | D122: 48488706.84 | E122: -67551.06 | F122: -17698378.1 | G122: 30790328.74 | H122: 4256.64 | I122: 63294.42
B123: 2021-04-01 | C123: -185071.4001 | D123: 48303635.44 | E123: -67551.06 | F123: -17630827.04 | G123: 30672808.4 | H123: 4256.64 | I123: 63294.42
B124: 2021-05-01 | C124: -185071.4001 | D124: 48118564.04 | E124: -67551.06 | F124: -17563275.98 | G124: 30555288.06 | H124: 4256.64 | I124: 63294.42
B125: 2021-06-01 | C125: -185071.4001 | D125: 47933492.64 | E125: -67551.06 | F125: -17495724.92 | G125: 30437767.72 | H125: 4256.64 | I125: 63294.42
B126: 2021-07-01 | C126: -185071.4001 | D126: 47748421.24 | E126: -67551.06 | F126: -17428173.86 | G126: 30320247.38 | H126: 4256.64 | I126: 63294.42
B127: 2021-08-01 | C127: -185071.4001 | D127: 47563349.84 | E127: -67551.06 | F127: -17360622.8 | G127: 30202727.04 | H127: 4256.64 | I127: 63294.42
B128: 2021-09-01 | C128: -185071.4001 | D128: 47378278.44 | E128: -67551.06 | F128: -17293071.74 | G128: 30085206.7 | H128: 4256.64 | I128: 63294.42
B129: 2021-10-01 | C129: -185071.4001 | D129: 47193207.04 | E129: -67551.06 | F129: -17225520.68 | G129: 29967686.36 | H129: 4256.64 | I129: 63294.42
B130: 2021-11-01 | C130: -185071.4001 | D130: 47008135.64 | E130: -67551.06 | F130: -17157969.62 | G130: 29850166.02 | H130: 4256.64 | I130: 63294.42
B131: 2021-12-01 | C131: -185071.4001 | D131: 46823064.24 | E131: -67551.06 | F131: -17090418.56 | G131: 29732645.68 | H131: 4256.64 | I131: 63294.42
B132: 2022-01-01 | C132: -185071.4001 | D132: 46637992.83 | E132: -67551.06 | F132: -17022867.5 | G132: 29615125.33 | H132: 4256.64 | I132: 63294.42
B133: 2022-02-01 | C133: -185071.4001 | D133: 46452921.43 | E133: -67551.06 | F133: -16955316.44 | G133: 29497604.99 | H133: 4256.64 | I133: 63294.42
B134: 2022-03-01 | C134: -185071.4001 | D134: 46267850.03 | E134: -67551.06 | F134: -16887765.38 | G134: 29380084.65 | H134: 4256.64 | I134: 63294.42
B135: 2022-04-01 | C135: -185071.4001 | D135: 46082778.63 | E135: -67551.06 | F135: -16820214.32 | G135: 29262564.31 | H135: 4256.64 | I135: 63294.42
B136: 2022-05-01 | C136: -185071.4001 | D136: 45897707.23 | E136: -67551.06 | F136: -16752663.26 | G136: 29145043.97 | H136: 4256.64 | I136: 63294.42
B137: 2022-06-01 | C137: -185071.4001 | D137: 45712635.83 | E137: -67551.06 | F137: -16685112.2 | G137: 29027523.63 | H137: 4256.64 | I137: 63294.42
B138: 2022-07-01 | C138: -185071.4001 | D138: 45527564.43 | E138: -67551.06 | F138: -16617561.14 | G138: 28910003.29 | H138: 4256.64 | I138: 63294.42
B139: 2022-08-01 | C139: -185071.4001 | D139: 45342493.03 | E139: -67551.06 | F139: -16550010.08 | G139: 28792482.95 | H139: 4256.64 | I139: 63294.42
B140: 2022-09-01 | C140: -185071.4001 | D140: 45157421.63 | E140: -67551.06 | F140: -16482459.02 | G140: 28674962.61 | H140: 4256.64 | I140: 63294.42
B141: 2022-10-01 | C141: -185071.4001 | D141: 44972350.23 | E141: -67551.06 | F141: -16414907.96 | G141: 28557442.27 | H141: 4256.64 | I141: 63294.42
B142: 2022-11-01 | C142: -185071.4001 | D142: 44787278.83 | E142: -67551.06 | F142: -16347356.9 | G142: 28439921.93 | H142: 4256.64 | I142: 63294.42
B143: 2022-12-01 | C143: -185071.4001 | D143: 44602207.43 | E143: -67551.06 | F143: -16279805.84 | G143: 28322401.59 | H143: 4256.64 | I143: 63294.42
B144: 2023-01-01 | C144: -185071.4001 | D144: 44417136.03 | E144: -67551.06 | F144: -16212254.78 | G144: 28204881.25 | H144: 4256.64 | I144: 63294.42
B145: 2023-02-01 | C145: -185071.4001 | D145: 44232064.63 | E145: -67551.06 | F145: -16144703.72 | G145: 28087360.91 | H145: 4256.64 | I145: 63294.42
B146: 2023-03-01 | C146: -185071.4001 | D146: 44046993.23 | E146: -67551.06 | F146: -16077152.66 | G146: 27969840.57 | H146: 4256.64 | I146: 63294.42
B147: 2023-04-01 | C147: -185071.4001 | D147: 43861921.83 | E147: -67551.06 | F147: -16009601.6 | G147: 27852320.23 | H147: 4256.64 | I147: 63294.42
B148: 2023-05-01 | C148: -185071.4001 | D148: 43676850.43 | E148: -67551.06 | F148: -15942050.54 | G148: 27734799.89 | H148: 4256.64 | I148: 63294.42
B149: 2023-06-01 | C149: -185071.4001 | D149: 43491779.03 | E149: -67551.06 | F149: -15874499.48 | G149: 27617279.55 | H149: 4256.64 | I149: 63294.42
B150: 2023-07-01 | C150: -185071.4001 | D150: 43306707.63 | E150: -67551.06 | F150: -15806948.42 | G150: 27499759.21 | H150: 4256.64 | I150: 63294.42
B151: 2023-08-01 | C151: -185071.4001 | D151: 43121636.23 | E151: -67551.06 | F151: -15739397.36 | G151: 27382238.87 | H151: 4256.64 | I151: 63294.42
B152: 2023-09-01 | C152: -185071.4001 | D152: 42936564.83 | E152: -67551.06 | F152: -15671846.3 | G152: 27264718.53 | H152: 4256.64 | I152: 63294.42
B153: 2023-10-01 | C153: -185071.4001 | D153: 42751493.43 | E153: -67551.06 | F153: -15604295.24 | G153: 27147198.19 | H153: 4256.64 | I153: 63294.42
B154: 2023-11-01 | C154: =-$F$14 -> -185071.4001 | D154: =D153+C154 -> 42566422.03 | E154: -67551.06 | F154: =F153-E154 -> -15536744.18 | G154: =D154+F154 -> 27029677.85 | H154: 4256.64 | I154: 63294.42
B155: 2023-12-01 | C155: -185071.4001 | D155: 42381350.63 | E155: -67551.06 | F155: -15469193.12 | G155: 26912157.51 | H155: 4256.64 | I155: 63294.42
B156: 2024-01-01 | C156: -185071.4001 | D156: 42196279.23 | E156: -67551.06 | F156: -15401642.06 | G156: 26794637.17 | H156: 4256.64 | I156: 63294.42
B157: 2024-02-01 | C157: -185071.4001 | D157: 42011207.83 | E157: -67551.06 | F157: -15334091 | G157: 26677116.83 | H157: 4256.64 | I157: 63294.42
B158: 2024-03-01 | C158: -185071.4001 | D158: 41826136.43 | E158: -67551.06 | F158: -15266539.94 | G158: 26559596.49 | H158: 4256.64 | I158: 63294.42
B159: 2024-04-01 | C159: -185071.4001 | D159: 41641065.03 | E159: -67551.06 | F159: -15198988.88 | G159: 26442076.15 | H159: 4256.64 | I159: 63294.42
B160: 2024-05-01 | C160: -185071.4001 | D160: 41455993.63 | E160: -67551.06 | F160: -15131437.82 | G160: 26324555.81 | H160: 4256.64 | I160: 63294.42
B161: 2024-06-01 | C161: -185071.4001 | D161: 41270922.23 | E161: -67551.06 | F161: -15063886.76 | G161: 26207035.47 | H161: 4256.64 | I161: 63294.42
B162: 2024-07-01 | C162: -185071.4001 | D162: 41085850.83 | E162: -67551.06 | F162: -14996335.7 | G162: 26089515.13 | H162: 4256.64 | I162: 63294.42
B163: 2024-08-01 | C163: -185071.4001 | D163: 40900779.43 | E163: -67551.06 | F163: -14928784.64 | G163: 25971994.79 | H163: 4256.64 | I163: 63294.42
B164: 2024-09-01 | C164: -185071.4001 | D164: 40715708.03 | E164: -67551.06 | F164: -14861233.58 | G164: 25854474.45 | H164: 4256.64 | I164: 63294.42
B165: 2024-10-01 | C165: -185071.4001 | D165: 40530636.63 | E165: -67551.06 | F165: -14793682.52 | G165: 25736954.11 | H165: 4256.64 | I165: 63294.42
B166: 2024-11-01 | C166: -185071.4001 | D166: 40345565.23 | E166: -67551.06 | F166: -14726131.46 | G166: 25619433.77 | H166: 4256.64 | I166: 63294.42
B167: 2024-12-01 | C167: -185071.4001 | D167: 40160493.83 | E167: -67551.06 | F167: -14658580.4 | G167: 25501913.43 | H167: 4256.64 | I167: 63294.42
B168: 2025-01-01 | C168: -185071.4001 | D168: 39975422.43 | E168: -67551.06 | F168: -14591029.34 | G168: 25384393.09 | H168: 4256.64 | I168: 63294.42
B169: 2025-02-01 | C169: -185071.4001 | D169: 39790351.03 | E169: -67551.06 | F169: -14523478.28 | G169: 25266872.75 | H169: 4256.64 | I169: 63294.42
B170: 2025-03-01 | C170: -185071.4001 | D170: 39605279.63 | E170: -67551.06 | F170: -14455927.22 | G170: 25149352.41 | H170: 4256.64 | I170: 63294.42
B171: 2025-04-01 | C171: -185071.4001 | D171: 39420208.23 | E171: -67551.06 | F171: -14388376.16 | G171: 25031832.07 | H171: 4256.64 | I171: 63294.42
B172: 2025-05-01 | C172: -185071.4001 | D172: 39235136.83 | E172: -67551.06 | F172: -14320825.1 | G172: 24914311.73 | H172: 4256.64 | I172: 63294.42
B173: 2025-06-01 | C173: -185071.4001 | D173: 39050065.43 | E173: -67551.06 | F173: -14253274.04 | G173: 24796791.39 | H173: 4256.64 | I173: 63294.42
B174: 2025-07-01 | C174: -185071.4001 | D174: 38864994.03 | E174: -67551.06 | F174: -14185722.98 | G174: 24679271.05 | H174: 4256.64 | I174: 63294.42
B175: 2025-08-01 | C175: -185071.4001 | D175: 38679922.63 | E175: -67551.06 | F175: -14118171.92 | G175: 24561750.71 | H175: 4256.64 | I175: 63294.42
B176: 2025-09-01 | C176: -185071.4001 | D176: 38494851.23 | E176: -67551.06 | F176: -14050620.86 | G176: 24444230.37 | H176: 4256.64 | I176: 63294.42
B177: 2025-10-01 | C177: -185071.4001 | D177: 38309779.83 | E177: -67551.06 | F177: -13983069.8 | G177: 24326710.03 | H177: 4256.64 | I177: 63294.42
B178: 2025-11-01 | C178: -185071.4001 | D178: 38124708.43 | E178: -67551.06 | F178: -13915518.74 | G178: 24209189.69 | H178: 4256.64 | I178: 63294.42
B179: 2025-12-01 | C179: -185071.4001 | D179: 37939637.03 | E179: -67551.06 | F179: -13847967.68 | G179: 24091669.35 | H179: 4256.64 | I179: 63294.42
B180: 2026-01-01 | C180: -185071.4001 | D180: 37754565.63 | E180: -67551.06 | F180: -13780416.62 | G180: 23974149.01 | H180: 4256.64 | I180: 63294.42
B181: 2026-02-01 | C181: -185071.4001 | D181: 37569494.23 | E181: -67551.06 | F181: -13712865.56 | G181: 23856628.67 | H181: 4256.64 | I181: 63294.42
B182: 2026-03-01 | C182: -185071.4001 | D182: 37384422.83 | E182: -67551.06 | F182: -13645314.5 | G182: 23739108.33 | H182: 4256.64 | I182: 63294.42
B183: 2026-04-01 | C183: -185071.4001 | D183: 37199351.43 | E183: -67551.06 | F183: -13577763.44 | G183: 23621587.99 | H183: 4256.64 | I183: 63294.42
B184: 2026-05-01 | C184: -185071.4001 | D184: 37014280.03 | E184: -67551.06 | F184: -13510212.38 | G184: 23504067.65 | H184: 4256.64 | I184: 63294.42
B185: 2026-06-01 | C185: -185071.4001 | D185: 36829208.63 | E185: -67551.06 | F185: -13442661.32 | G185: 23386547.31 | H185: 4256.64 | I185: 63294.42
B186: 2026-07-01 | C186: -185071.4001 | D186: 36644137.23 | E186: -67551.06 | F186: -13375110.26 | G186: 23269026.97 | H186: 4256.64 | I186: 63294.42
B187: 2026-08-01 | C187: -185071.4001 | D187: 36459065.83 | E187: -67551.06 | F187: -13307559.2 | G187: 23151506.63 | H187: 4256.64 | I187: 63294.42
B188: 2026-09-01 | C188: -185071.4001 | D188: 36273994.43 | E188: -67551.06 | F188: -13240008.14 | G188: 23033986.29 | H188: 4256.64 | I188: 63294.42
B189: 2026-10-01 | C189: -185071.4001 | D189: 36088923.03 | E189: -67551.06 | F189: -13172457.08 | G189: 22916465.95 | H189: 4256.64 | I189: 63294.42
B190: 2026-11-01 | C190: -185071.4001 | D190: 35903851.63 | E190: -67551.06 | F190: -13104906.02 | G190: 22798945.61 | H190: 4256.64 | I190: 63294.42
B191: 2026-12-01 | C191: -185071.4001 | D191: 35718780.23 | E191: -67551.06 | F191: -13037354.96 | G191: 22681425.27 | H191: 4256.64 | I191: 63294.42
B192: 2027-01-01 | C192: -185071.4001 | D192: 35533708.83 | E192: -67551.06 | F192: -12969803.9 | G192: 22563904.93 | H192: 4256.64 | I192: 63294.42
B193: 2027-02-01 | C193: -185071.4001 | D193: 35348637.43 | E193: -67551.06 | F193: -12902252.84 | G193: 22446384.59 | H193: 4256.64 | I193: 63294.42
B194: 2027-03-01 | C194: -185071.4001 | D194: 35163566.03 | E194: -67551.06 | F194: -12834701.78 | G194: 22328864.25 | H194: 4256.64 | I194: 63294.42
B195: 2027-04-01 | C195: -185071.4001 | D195: 34978494.63 | E195: -67551.06 | F195: -12767150.72 | G195: 22211343.91 | H195: 4256.64 | I195: 63294.42
B196: 2027-05-01 | C196: -185071.4001 | D196: 34793423.23 | E196: -67551.06 | F196: -12699599.66 | G196: 22093823.57 | H196: 4256.64 | I196: 63294.42
B197: 2027-06-01 | C197: -185071.4001 | D197: 34608351.83 | E197: -67551.06 | F197: -12632048.6 | G197: 21976303.23 | H197: 4256.64 | I197: 63294.42
B198: 2027-07-01 | C198: -185071.4001 | D198: 34423280.43 | E198: -67551.06 | F198: -12564497.54 | G198: 21858782.89 | H198: 4256.64 | I198: 63294.42
B199: 2027-08-01 | C199: -185071.4001 | D199: 34238209.03 | E199: -67551.06 | F199: -12496946.48 | G199: 21741262.55 | H199: 4256.64 | I199: 63294.42
B200: 2027-09-01 | C200: -185071.4001 | D200: 34053137.63 | E200: -67551.06 | F200: -12429395.42 | G200: 21623742.21 | H200: 4256.64 | I200: 63294.42
B201: 2027-10-01 | C201: -185071.4001 | D201: 33868066.23 | E201: -67551.06 | F201: -12361844.36 | G201: 21506221.87 | H201: 4256.64 | I201: 63294.42
B202: 2027-11-01 | C202: -185071.4001 | D202: 33682994.83 | E202: -67551.06 | F202: -12294293.3 | G202: 21388701.53 | H202: 4256.64 | I202: 63294.42
B203: 2027-12-01 | C203: -185071.4001 | D203: 33497923.43 | E203: -67551.06 | F203: -12226742.24 | G203: 21271181.19 | H203: 4256.64 | I203: 63294.42
B204: 2028-01-01 | C204: -185071.4001 | D204: 33312852.02 | E204: -67551.06 | F204: -12159191.18 | G204: 21153660.84 | H204: 4256.64 | I204: 63294.42
B205: 2028-02-01 | C205: -185071.4001 | D205: 33127780.62 | E205: -67551.06 | F205: -12091640.12 | G205: 21036140.5 | H205: 4256.64 | I205: 63294.42
B206: 2028-03-01 | C206: -185071.4001 | D206: 32942709.22 | E206: -67551.06 | F206: -12024089.06 | G206: 20918620.16 | H206: 4256.64 | I206: 63294.42
... 178 more rows

Sheet 20108
A1: Amortization Schedule
A2: GL# 010.0000.2150.20108.002000
B4: (Gain) Loss | C4: Years | D4: Annual Amort
A5: RBS | B5: -3940950 | C5: 30 | D5: =B5/C5 -> -131365
A6: Goldman Sachs | B6: -3085120 | C6: 30 | D6: =B6/C6 -> -102837.3333
A7: Morgan Stanley | B7: -3210000 | C7: 30 | D7: =B7/C7 -> -107000
A8: JPMorgan | B8: -3128280 | C8: 30 | D8: =B8/C8 -> -104276
A10: Total | B10: =SUM(B5:B8) -> -13364350 | D10: =SUM(D5:D8) -> -445478.3333
F14: DR (CR)
C15: LT Int Exp | D15: Monthly Amort | F15: =B10/360 -> -37123.19444
C16: 2830.xxxxx | D16: Def State Tax | E16: 0.023 | F16: =-F15*E16 -> 853.8334722
C17: 2830.xxxxx | D17: Def Fed Tax | E17: 0.342 | F17: =-F15*E17 -> 12696.1325
E18: =SUM(E16:E17) -> 0.365
A20: T-Lock Settlement | G20: Net OCI | H20: Def State Tax | I20: Def Fed Tax
H21: =E16 -> 0.023 | I21: =E17 -> 0.342 | J21: =H21+I21 -> 0.365
C22: 2150.20108 | D22: 2150.20108 | E22: 2150.20108 | F22: 2150.20108 | G22: 2150.20108 | H22: 2830.28206 | I22: 2830.28201
C23: Amort | D23: T-Lock Settlement | E23: Def Tax Adj | F23: Def Taxes | G23: Net of Tax | H23: Adjustment | I23: Adjustment
C24: DR (CR) | D24: DR (CR) | E24: DR (CR) | F24: DR (CR) | H24: DR (CR) | I24: DR (CR)
B25: 2014-10-01 | D25: =B10 -> -13364350 | F25: =-D25*E18 -> 4877987.75 | G25: =SUM(D25:F25) -> -8486362.25 | H25: 0 | I25: 0
B26: 2014-11-01 | C26: =-$F$15 -> 37123.19444 | D26: =D25+C26 -> -13327226.81 | E26: =$F$15*$E$18 -> -13549.96597 | F26: =F25+E26 -> 4864437.784 | G26: =G25+C26+E26 -> -8462789.022 | H26: =$F$16 -> 853.8334722 | I26: =$F$17 -> 12696.1325
B27: 2014-12-01 | C27: =-$F$15 -> 37123.19444 | D27: =D26+C27 -> -13290103.61 | E27: =$F$15*$E$18 -> -13549.96597 | F27: =F26+E27 -> 4850887.818 | G27: =G26+C27+E27 -> -8439215.793 | H27: =$F$16 -> 853.8334722 | I27: =$F$17 -> 12696.1325
B28: 2015-01-01 | C28: 37123.19444 | D28: -13252980.42 | E28: -13549.96597 | F28: =F27+E28 -> 4837337.852 | G28: -8415642.565 | H28: 853.8334722 | I28: 12696.1325
B29: 2015-02-01 | C29: 37123.19444 | D29: -13215857.22 | E29: -13549.96597 | F29: 4823787.886 | G29: -8392069.336 | H29: 853.8334722 | I29: 12696.1325
B30: 2015-03-01 | C30: 37123.19444 | D30: -13178734.03 | E30: -13549.96597 | F30: 4810237.92 | G30: -8368496.108 | H30: 853.8334722 | I30: 12696.1325
B31: 2015-04-01 | C31: 37123.19444 | D31: -13141610.83 | E31: -13549.96597 | F31: 4796687.954 | G31: -8344922.879 | H31: 853.8334722 | I31: 12696.1325
B32: 2015-05-01 | C32: 37123.19444 | D32: -13104487.64 | E32: -13549.96597 | F32: 4783137.988 | G32: -8321349.651 | H32: 853.8334722 | I32: 12696.1325
B33: 2015-06-01 | C33: 37123.19444 | D33: -13067364.44 | E33: -13549.96597 | F33: 4769588.022 | G33: -8297776.422 | H33: 853.8334722 | I33: 12696.1325
B34: 2015-07-01 | C34: 37123.19444 | D34: -13030241.25 | E34: -13549.96597 | F34: 4756038.056 | G34: -8274203.194 | H34: 853.8334722 | I34: 12696.1325
B35: 2015-08-01 | C35: 37123.19444 | D35: -12993118.06 | E35: -13549.96597 | F35: 4742488.09 | G35: -8250629.965 | H35: 853.8334722 | I35: 12696.1325
B36: 2015-09-01 | C36: 37123.19444 | D36: -12955994.86 | E36: -13549.96597 | F36: 4728938.124 | G36: -8227056.737 | H36: 853.8334722 | I36: 12696.1325
B37: 2015-10-01 | C37: 37123.19444 | D37: -12918871.67 | E37: -13549.96597 | F37: 4715388.158 | G37: -8203483.508 | H37: 853.8334722 | I37: 12696.1325
B38: 2015-11-01 | C38: 37123.19444 | D38: -12881748.47 | E38: -13549.96597 | F38: 4701838.192 | G38: -8179910.28 | H38: 853.8334722 | I38: 12696.1325
B39: 2015-12-01 | C39: 37123.19444 | D39: -12844625.28 | E39: -13549.96597 | F39: 4688288.226 | G39: -8156337.051 | H39: 853.8334722 | I39: 12696.1325
B40: 2016-01-01 | C40: 37123.19444 | D40: -12807502.08 | E40: -13549.96597 | F40: 4674738.26 | G40: -8132763.823 | H40: 853.8334722 | I40: 12696.1325
B41: 2016-02-01 | C41: 37123.19444 | D41: -12770378.89 | E41: -13549.96597 | F41: 4661188.294 | G41: -8109190.594 | H41: 853.8334722 | I41: 12696.1325
B42: 2016-03-01 | C42: 37123.19444 | D42: -12733255.69 | E42: -13549.96597 | F42: 4647638.328 | G42: -8085617.366 | H42: 853.8334722 | I42: 12696.1325
B43: 2016-04-01 | C43: 37123.19444 | D43: -12696132.5 | E43: -13549.96597 | F43: 4634088.362 | G43: -8062044.138 | H43: 853.8334722 | I43: 12696.1325
B44: 2016-05-01 | C44: 37123.19444 | D44: -12659009.31 | E44: -13549.96597 | F44: 4620538.397 | G44: -8038470.909 | H44: 853.8334722 | I44: 12696.1325
B45: 2016-06-01 | C45: 37123.19444 | D45: -12621886.11 | E45: -13549.96597 | F45: 4606988.431 | G45: -8014897.681 | H45: 853.8334722 | I45: 12696.1325
B46: 2016-07-01 | C46: 37123.19444 | D46: -12584762.92 | E46: -13549.96597 | F46: 4593438.465 | G46: -7991324.452 | H46: 853.8334722 | I46: 12696.1325
B47: 2016-08-01 | C47: 37123.19444 | D47: -12547639.72 | E47: -13549.96597 | F47: 4579888.499 | G47: -7967751.224 | H47: 853.8334722 | I47: 12696.1325
B48: 2016-09-01 | C48: 37123.19444 | D48: -12510516.53 | E48: -13549.96597 | F48: 4566338.533 | G48: -7944177.995 | H48: 853.8334722 | I48: 12696.1325
B49: 2016-10-01 | C49: 37123.19444 | D49: -12473393.33 | E49: -13549.96597 | F49: 4552788.567 | G49: -7920604.767 | H49: 853.8334722 | I49: 12696.1325
B50: 2016-11-01 | C50: 37123.19444 | D50: -12436270.14 | E50: -13549.96597 | F50: 4539238.601 | G50: -7897031.538 | H50: 853.8334722 | I50: 12696.1325
B51: 2016-12-01 | C51: 37123.19444 | D51: -12399146.94 | E51: -13549.96597 | F51: 4525688.635 | G51: -7873458.31 | H51: 853.8334722 | I51: 12696.1325
B52: 2017-01-01 | C52: 37123.19444 | D52: -12362023.75 | E52: -13549.96597 | F52: 4512138.669 | G52: -7849885.081 | H52: 853.8334722 | I52: 12696.1325
B53: 2017-02-01 | C53: 37123.19444 | D53: -12324900.56 | E53: -13549.96597 | F53: 4498588.703 | G53: -7826311.853 | H53: 853.8334722 | I53: 12696.1325
B54: 2017-03-01 | C54: 37123.19444 | D54: -12287777.36 | E54: -13549.96597 | F54: 4485038.737 | G54: -7802738.624 | H54: 853.8334722 | I54: 12696.1325
B55: 2017-04-01 | C55: 37123.19444 | D55: -12250654.17 | E55: -13549.96597 | F55: 4471488.771 | G55: -7779165.396 | H55: 853.8334722 | I55: 12696.1325
B56: 2017-05-01 | C56: 37123.19444 | D56: -12213530.97 | E56: -13549.96597 | F56: 4457938.805 | G56: -7755592.167 | H56: 853.8334722 | I56: 12696.1325
B57: 2017-06-01 | C57: 37123.19444 | D57: -12176407.78 | E57: -13549.96597 | F57: 4444388.839 | G57: -7732018.939 | H57: 853.8334722 | I57: 12696.1325
B58: 2017-07-01 | C58: 37123.19444 | D58: -12139284.58 | E58: -13549.96597 | F58: 4430838.873 | G58: -7708445.71 | H58: 853.8334722 | I58: 12696.1325
B59: 2017-08-01 | C59: 37123.19444 | D59: -12102161.39 | E59: -13549.96597 | F59: 4417288.907 | G59: -7684872.482 | H59: 853.8334722 | I59: 12696.1325
B60: 2017-09-01 | C60: 37123.19444 | D60: -12065038.19 | E60: -13549.96597 | F60: 4403738.941 | G60: -7661299.253 | H60: 853.8334722 | I60: 12696.1325
B61: 2017-10-01 | C61: 37123.19444 | D61: -12027915 | E61: -13549.96597 | F61: 4390188.975 | G61: -7637726.025 | H61: 853.8334722 | I61: 12696.1325
B62: 2017-11-01 | C62: 37123.19444 | D62: -11990791.81 | E62: -13549.96597 | F62: 4376639.009 | G62: -7614152.797 | H62: 853.8334722 | I62: 12696.1325
B63: 2017-12-01 | C63: 37123.19444 | D63: -11953668.61 | E63: -13549.96597 | F63: 4363089.043 | G63: -7590579.568 | H63: 853.8334722 | I63: 12696.1325
B64: 2018-01-01 | C64: 37123.19444 | D64: -11916545.42 | E64: -13549.96597 | F64: 4349539.077 | G64: -7567006.34 | H64: 853.8334722 | I64: 12696.1325
B65: 2018-02-01 | C65: 37123.19444 | D65: -11879422.22 | E65: -13549.96597 | F65: 4335989.111 | G65: -7543433.111 | H65: 853.8334722 | I65: 12696.1325
B66: 2018-03-01 | C66: 37123.19444 | D66: -11842299.03 | E66: -13549.96597 | F66: 4322439.145 | G66: -7519859.883 | H66: 853.8334722 | I66: 12696.1325
B67: 2018-04-01 | C67: 37123.19444 | D67: -11805175.83 | E67: -13549.96597 | F67: 4308889.179 | G67: -7496286.654 | H67: 853.8334722 | I67: 12696.1325
B68: 2018-05-01 | C68: 37123.19444 | D68: -11768052.64 | E68: -13549.96597 | F68: 4295339.213 | G68: -7472713.426 | H68: 853.8334722 | I68: 12696.1325
B69: 2018-06-01 | C69: 37123.19444 | D69: -11730929.44 | E69: -13549.96597 | F69: 4281789.247 | G69: -7449140.197 | H69: 853.8334722 | I69: 12696.1325
B70: 2018-07-01 | C70: 37123.19444 | D70: -11693806.25 | E70: -13549.96597 | F70: 4268239.281 | G70: -7425566.969 | H70: 853.8334722 | I70: 12696.1325
B71: 2018-08-01 | C71: 37123.19444 | D71: -11656683.06 | E71: -13549.96597 | F71: 4254689.315 | G71: -7401993.74 | H71: 853.8334722 | I71: 12696.1325
B72: 2018-09-01 | C72: 37123.19444 | D72: -11619559.86 | E72: -13549.96597 | F72: 4241139.349 | G72: -7378420.512 | H72: 853.8334722 | I72: 12696.1325
B73: 2018-10-01 | C73: 37123.19444 | D73: -11582436.67 | E73: -13549.96597 | F73: 4227589.383 | G73: -7354847.283 | H73: 853.8334722 | I73: 12696.1325
B74: 2018-11-01 | C74: 37123.19444 | D74: -11545313.47 | E74: -13549.96597 | F74: 4214039.417 | G74: -7331274.055 | H74: 853.8334722 | I74: 12696.1325
B75: 2018-12-01 | C75: 37123.19444 | D75: -11508190.28 | E75: -13549.96597 | F75: 4200489.451 | G75: -7307700.826 | H75: 853.8334722 | I75: 12696.1325
B76: 2019-01-01 | C76: 37123.19444 | D76: -11471067.08 | E76: -13549.96597 | F76: 4186939.485 | G76: -7284127.598 | H76: 853.8334722 | I76: 12696.1325
B77: 2019-02-01 | C77: 37123.19444 | D77: -11433943.89 | E77: -13549.96597 | F77: 4173389.519 | G77: -7260554.369 | H77: 853.8334722 | I77: 12696.1325
B78: 2019-03-01 | C78: 37123.19444 | D78: -11396820.69 | E78: -13549.96597 | F78: 4159839.553 | G78: -7236981.141 | H78: 853.8334722 | I78: 12696.1325
B79: 2019-04-01 | C79: 37123.19444 | D79: -11359697.5 | E79: -13549.96597 | F79: 4146289.587 | G79: -7213407.913 | H79: 853.8334722 | I79: 12696.1325
B80: 2019-05-01 | C80: 37123.19444 | D80: -11322574.31 | E80: -13549.96597 | F80: 4132739.622 | G80: -7189834.684 | H80: 853.8334722 | I80: 12696.1325
B81: 2019-06-01 | C81: 37123.19444 | D81: -11285451.11 | E81: -13549.96597 | F81: 4119189.656 | G81: -7166261.456 | H81: 853.8334722 | I81: 12696.1325
B82: 2019-07-01 | C82: 37123.19444 | D82: -11248327.92 | E82: -13549.96597 | F82: 4105639.69 | G82: -7142688.227 | H82: 853.8334722 | I82: 12696.1325
B83: 2019-08-01 | C83: 37123.19444 | D83: -11211204.72 | E83: -13549.96597 | F83: 4092089.724 | G83: -7119114.999 | H83: 853.8334722 | I83: 12696.1325
B84: 2019-09-01 | C84: 37123.19444 | D84: -11174081.53 | E84: -13549.96597 | F84: 4078539.758 | G84: -7095541.77 | H84: 853.8334722 | I84: 12696.1325
B85: 2019-10-01 | C85: 37123.19444 | D85: -11136958.33 | E85: -13549.96597 | F85: 4064989.792 | G85: -7071968.542 | H85: 853.8334722 | I85: 12696.1325
B86: 2019-11-01 | C86: 37123.19444 | D86: -11099835.14 | E86: -13549.96597 | F86: 4051439.826 | G86: -7048395.313 | H86: 853.8334722 | I86: 12696.1325
B87: 2019-12-01 | C87: 37123.19444 | D87: -11062711.94 | E87: -13549.96597 | F87: 4037889.86 | G87: -7024822.085 | H87: 853.8334722 | I87: 12696.1325
B88: 2020-01-01 | C88: 37123.19444 | D88: -11025588.75 | E88: -13549.96597 | F88: 4024339.894 | G88: -7001248.856 | H88: 853.8334722 | I88: 12696.1325
B89: 2020-02-01 | C89: 37123.19444 | D89: -10988465.56 | E89: -13549.96597 | F89: 4010789.928 | G89: -6977675.628 | H89: 853.8334722 | I89: 12696.1325
B90: 2020-03-01 | C90: 37123.19444 | D90: -10951342.36 | E90: -13549.96597 | F90: 3997239.962 | G90: -6954102.399 | H90: 853.8334722 | I90: 12696.1325
B91: 2020-04-01 | C91: =-$F$15 -> 37123.19444 | D91: =D90+C91 -> -10914219.17 | E91: =$F$15*$E$18 -> -13549.96597 | F91: 3983689.996 | G91: =G90+C91+E91 -> -6930529.171 | H91: =$F$16 -> 853.8334722 | I91: =$F$17 -> 12696.1325
B92: 2020-05-01 | C92: 37123.19444 | D92: -10877095.97 | E92: -13549.96597 | F92: =F91+E92 -> 3970140.03 | G92: -6906955.942 | H92: 853.8334722 | I92: 12696.1325
B93: 2020-06-01 | C93: 37123.19444 | D93: -10839972.78 | E93: -13549.96597 | F93: 3956590.064 | G93: -6883382.714 | H93: 853.8334722 | I93: 12696.1325
B94: 2020-07-01 | C94: 37123.19444 | D94: -10802849.58 | E94: -13549.96597 | F94: 3943040.098 | G94: -6859809.485 | H94: 853.8334722 | I94: 12696.1325
B95: 2020-08-01 | C95: 37123.19444 | D95: -10765726.39 | E95: -13549.96597 | F95: 3929490.132 | G95: -6836236.257 | H95: 853.8334722 | I95: 12696.1325
B96: 2020-09-01 | C96: 37123.19444 | D96: -10728603.19 | E96: -13549.96597 | F96: 3915940.166 | G96: -6812663.028 | H96: 853.8334722 | I96: 12696.1325
B97: 2020-10-01 | C97: 37123.19444 | D97: -10691480 | E97: -13549.96597 | F97: 3902390.2 | G97: -6789089.8 | H97: 853.8334722 | I97: 12696.1325
B98: 2020-11-01 | C98: 37123.19444 | D98: -10654356.81 | E98: -13549.96597 | F98: 3888840.234 | G98: -6765516.572 | H98: 853.8334722 | I98: 12696.1325
B99: 2020-12-01 | C99: 37123.19444 | D99: -10617233.61 | E99: -13549.96597 | F99: 3875290.268 | G99: -6741943.343 | H99: 853.8334722 | I99: 12696.1325
B100: 2021-01-01 | C100: 37123.19444 | D100: -10580110.42 | E100: -13549.96597 | F100: 3861740.302 | G100: -6718370.115 | H100: 853.8334722 | I100: 12696.1325
B101: 2021-02-01 | C101: 37123.19444 | D101: -10542987.22 | E101: -13549.96597 | F101: 3848190.336 | G101: -6694796.886 | H101: 853.8334722 | I101: 12696.1325
B102: 2021-03-01 | C102: 37123.19444 | D102: -10505864.03 | E102: -13549.96597 | F102: 3834640.37 | G102: -6671223.658 | H102: 853.8334722 | I102: 12696.1325
B103: 2021-04-01 | C103: 37123.19444 | D103: -10468740.83 | E103: -13549.96597 | F103: 3821090.404 | G103: -6647650.429 | H103: 853.8334722 | I103: 12696.1325
B104: 2021-05-01 | C104: 37123.19444 | D104: -10431617.64 | E104: -13549.96597 | F104: 3807540.438 | G104: -6624077.201 | H104: 853.8334722 | I104: 12696.1325
B105: 2021-06-01 | C105: 37123.19444 | D105: -10394494.44 | E105: -13549.96597 | F105: 3793990.472 | G105: -6600503.972 | H105: 853.8334722 | I105: 12696.1325
B106: 2021-07-01 | C106: 37123.19444 | D106: -10357371.25 | E106: -13549.96597 | F106: 3780440.506 | G106: -6576930.744 | H106: 853.8334722 | I106: 12696.1325
B107: 2021-08-01 | C107: 37123.19444 | D107: -10320248.06 | E107: -13549.96597 | F107: 3766890.54 | G107: -6553357.515 | H107: 853.8334722 | I107: 12696.1325
B108: 2021-09-01 | C108: 37123.19444 | D108: -10283124.86 | E108: -13549.96597 | F108: 3753340.574 | G108: -6529784.287 | H108: 853.8334722 | I108: 12696.1325
B109: 2021-10-01 | C109: 37123.19444 | D109: -10246001.67 | E109: -13549.96597 | F109: 3739790.608 | G109: -6506211.058 | H109: 853.8334722 | I109: 12696.1325
B110: 2021-11-01 | C110: 37123.19444 | D110: -10208878.47 | E110: -13549.96597 | F110: 3726240.642 | G110: -6482637.83 | H110: 853.8334722 | I110: 12696.1325
B111: 2021-12-01 | C111: 37123.19444 | D111: -10171755.28 | E111: -13549.96597 | F111: 3712690.676 | G111: -6459064.601 | H111: 853.8334722 | I111: 12696.1325
B112: 2022-01-01 | C112: 37123.19444 | D112: -10134632.08 | E112: -13549.96597 | F112: 3699140.71 | G112: -6435491.373 | H112: 853.8334722 | I112: 12696.1325
B113: 2022-02-01 | C113: 37123.19444 | D113: -10097508.89 | E113: -13549.96597 | F113: 3685590.744 | G113: -6411918.144 | H113: 853.8334722 | I113: 12696.1325
B114: 2022-03-01 | C114: 37123.19444 | D114: -10060385.69 | E114: -13549.96597 | F114: 3672040.778 | G114: -6388344.916 | H114: 853.8334722 | I114: 12696.1325
B115: 2022-04-01 | C115: 37123.19444 | D115: -10023262.5 | E115: -13549.96597 | F115: 3658490.812 | G115: -6364771.688 | H115: 853.8334722 | I115: 12696.1325
B116: 2022-05-01 | C116: 37123.19444 | D116: -9986139.306 | E116: -13549.96597 | F116: 3644940.847 | G116: -6341198.459 | H116: 853.8334722 | I116: 12696.1325
B117: 2022-06-01 | C117: 37123.19444 | D117: -9949016.111 | E117: -13549.96597 | F117: 3631390.881 | G117: -6317625.231 | H117: 853.8334722 | I117: 12696.1325
B118: 2022-07-01 | C118: 37123.19444 | D118: -9911892.917 | E118: -13549.96597 | F118: 3617840.915 | G118: -6294052.002 | H118: 853.8334722 | I118: 12696.1325
B119: 2022-08-01 | C119: 37123.19444 | D119: -9874769.722 | E119: -13549.96597 | F119: 3604290.949 | G119: -6270478.774 | H119: 853.8334722 | I119: 12696.1325
B120: 2022-09-01 | C120: 37123.19444 | D120: -9837646.528 | E120: -13549.96597 | F120: 3590740.983 | G120: -6246905.545 | H120: 853.8334722 | I120: 12696.1325
B121: 2022-10-01 | C121: 37123.19444 | D121: -9800523.333 | E121: -13549.96597 | F121: 3577191.017 | G121: -6223332.317 | H121: 853.8334722 | I121: 12696.1325
B122: 2022-11-01 | C122: 37123.19444 | D122: -9763400.139 | E122: -13549.96597 | F122: 3563641.051 | G122: -6199759.088 | H122: 853.8334722 | I122: 12696.1325
B123: 2022-12-01 | C123: 37123.19444 | D123: -9726276.944 | E123: -13549.96597 | F123: 3550091.085 | G123: -6176185.86 | H123: 853.8334722 | I123: 12696.1325
B124: 2023-01-01 | C124: 37123.19444 | D124: -9689153.75 | E124: -13549.96597 | F124: 3536541.119 | G124: -6152612.631 | H124: 853.8334722 | I124: 12696.1325
B125: 2023-02-01 | C125: 37123.19444 | D125: -9652030.556 | E125: -13549.96597 | F125: 3522991.153 | G125: -6129039.403 | H125: 853.8334722 | I125: 12696.1325
B126: 2023-03-01 | C126: 37123.19444 | D126: -9614907.361 | E126: -13549.96597 | F126: 3509441.187 | G126: -6105466.174 | H126: 853.8334722 | I126: 12696.1325
B127: 2023-04-01 | C127: 37123.19444 | D127: -9577784.167 | E127: -13549.96597 | F127: 3495891.221 | G127: -6081892.946 | H127: 853.8334722 | I127: 12696.1325
B128: 2023-05-01 | C128: 37123.19444 | D128: -9540660.972 | E128: -13549.96597 | F128: 3482341.255 | G128: -6058319.717 | H128: 853.8334722 | I128: 12696.1325
B129: 2023-06-01 | C129: 37123.19444 | D129: -9503537.778 | E129: -13549.96597 | F129: 3468791.289 | G129: -6034746.489 | H129: 853.8334722 | I129: 12696.1325
B130: 2023-07-01 | C130: 37123.19444 | D130: -9466414.583 | E130: -13549.96597 | F130: 3455241.323 | G130: -6011173.26 | H130: 853.8334722 | I130: 12696.1325
B131: 2023-08-01 | C131: 37123.19444 | D131: -9429291.389 | E131: -13549.96597 | F131: 3441691.357 | G131: -5987600.032 | H131: 853.8334722 | I131: 12696.1325
B132: 2023-09-01 | C132: 37123.19444 | D132: -9392168.194 | E132: -13549.96597 | F132: 3428141.391 | G132: -5964026.803 | H132: 853.8334722 | I132: 12696.1325
B133: 2023-10-01 | C133: 37123.19444 | D133: -9355045 | E133: -13549.96597 | F133: 3414591.425 | G133: -5940453.575 | H133: 853.8334722 | I133: 12696.1325
B134: 2023-11-01 | C134: 37123.19444 | D134: -9317921.806 | E134: -13549.96597 | F134: 3401041.459 | G134: -5916880.347 | H134: 853.8334722 | I134: 12696.1325
B135: 2023-12-01 | C135: 37123.19444 | D135: -9280798.611 | E135: -13549.96597 | F135: 3387491.493 | G135: -5893307.118 | H135: 853.8334722 | I135: 12696.1325
B136: 2024-01-01 | C136: 37123.19444 | D136: -9243675.417 | E136: -13549.96597 | F136: 3373941.527 | G136: -5869733.89 | H136: 853.8334722 | I136: 12696.1325
B137: 2024-02-01 | C137: 37123.19444 | D137: -9206552.222 | E137: -13549.96597 | F137: 3360391.561 | G137: -5846160.661 | H137: 853.8334722 | I137: 12696.1325
B138: 2024-03-01 | C138: 37123.19444 | D138: -9169429.028 | E138: -13549.96597 | F138: 3346841.595 | G138: -5822587.433 | H138: 853.8334722 | I138: 12696.1325
B139: 2024-04-01 | C139: 37123.19444 | D139: -9132305.833 | E139: -13549.96597 | F139: 3333291.629 | G139: -5799014.204 | H139: 853.8334722 | I139: 12696.1325
B140: 2024-05-01 | C140: 37123.19444 | D140: -9095182.639 | E140: -13549.96597 | F140: 3319741.663 | G140: -5775440.976 | H140: 853.8334722 | I140: 12696.1325
B141: 2024-06-01 | C141: 37123.19444 | D141: -9058059.444 | E141: -13549.96597 | F141: 3306191.697 | G141: -5751867.747 | H141: 853.8334722 | I141: 12696.1325
B142: 2024-07-01 | C142: 37123.19444 | D142: -9020936.25 | E142: -13549.96597 | F142: 3292641.731 | G142: -5728294.519 | H142: 853.8334722 | I142: 12696.1325
B143: 2024-08-01 | C143: 37123.19444 | D143: -8983813.056 | E143: -13549.96597 | F143: 3279091.765 | G143: -5704721.29 | H143: 853.8334722 | I143: 12696.1325
B144: 2024-09-01 | C144: 37123.19444 | D144: -8946689.861 | E144: -13549.96597 | F144: 3265541.799 | G144: -5681148.062 | H144: 853.8334722 | I144: 12696.1325
B145: 2024-10-01 | C145: 37123.19444 | D145: -8909566.667 | E145: -13549.96597 | F145: 3251991.833 | G145: -5657574.833 | H145: 853.8334722 | I145: 12696.1325
B146: 2024-11-01 | C146: 37123.19444 | D146: -8872443.472 | E146: -13549.96597 | F146: 3238441.867 | G146: -5634001.605 | H146: 853.8334722 | I146: 12696.1325
B147: 2024-12-01 | C147: 37123.19444 | D147: -8835320.278 | E147: -13549.96597 | F147: 3224891.901 | G147: -5610428.376 | H147: 853.8334722 | I147: 12696.1325
B148: 2025-01-01 | C148: 37123.19444 | D148: -8798197.083 | E148: -13549.96597 | F148: 3211341.935 | G148: -5586855.148 | H148: 853.8334722 | I148: 12696.1325
B149: 2025-02-01 | C149: 37123.19444 | D149: -8761073.889 | E149: -13549.96597 | F149: 3197791.969 | G149: -5563281.919 | H149: 853.8334722 | I149: 12696.1325
B150: 2025-03-01 | C150: 37123.19444 | D150: -8723950.694 | E150: -13549.96597 | F150: 3184242.003 | G150: -5539708.691 | H150: 853.8334722 | I150: 12696.1325
B151: 2025-04-01 | C151: 37123.19444 | D151: -8686827.5 | E151: -13549.96597 | F151: 3170692.037 | G151: -5516135.463 | H151: 853.8334722 | I151: 12696.1325
B152: 2025-05-01 | C152: 37123.19444 | D152: -8649704.306 | E152: -13549.96597 | F152: 3157142.072 | G152: -5492562.234 | H152: 853.8334722 | I152: 12696.1325
B153: 2025-06-01 | C153: 37123.19444 | D153: -8612581.111 | E153: -13549.96597 | F153: 3143592.106 | G153: -5468989.006 | H153: 853.8334722 | I153: 12696.1325
B154: 2025-07-01 | C154: 37123.19444 | D154: -8575457.917 | E154: -13549.96597 | F154: 3130042.14 | G154: -5445415.777 | H154: 853.8334722 | I154: 12696.1325
B155: 2025-08-01 | C155: =-$F$15 -> 37123.19444 | D155: =D154+C155 -> -8538334.722 | E155: =$F$15*$E$18 -> -13549.96597 | F155: 3116492.174 | G155: =G154+C155+E155 -> -5421842.549 | H155: =$F$16 -> 853.8334722 | I155: =$F$17 -> 12696.1325
B156: 2025-09-01 | C156: 37123.19444 | D156: -8501211.528 | E156: -13549.96597 | F156: =F155+E156 -> 3102942.208 | G156: -5398269.32 | H156: 853.8334722 | I156: 12696.1325
B157: 2025-10-01 | C157: 37123.19444 | D157: -8464088.333 | E157: -13549.96597 | F157: 3089392.242 | G157: -5374696.092 | H157: 853.8334722 | I157: 12696.1325
B158: 2025-11-01 | C158: 37123.19444 | D158: -8426965.139 | E158: -13549.96597 | F158: 3075842.276 | G158: -5351122.863 | H158: 853.8334722 | I158: 12696.1325
B159: 2025-12-01 | C159: 37123.19444 | D159: -8389841.944 | E159: -13549.96597 | F159: 3062292.31 | G159: -5327549.635 | H159: 853.8334722 | I159: 12696.1325
B160: 2026-01-01 | C160: 37123.19444 | D160: -8352718.75 | E160: -13549.96597 | F160: 3048742.344 | G160: -5303976.406 | H160: 853.8334722 | I160: 12696.1325
B161: 2026-02-01 | C161: 37123.19444 | D161: -8315595.556 | E161: -13549.96597 | F161: 3035192.378 | G161: -5280403.178 | H161: 853.8334722 | I161: 12696.1325
B162: 2026-03-01 | C162: 37123.19444 | D162: -8278472.361 | E162: -13549.96597 | F162: 3021642.412 | G162: -5256829.949 | H162: 853.8334722 | I162: 12696.1325
B163: 2026-04-01 | C163: 37123.19444 | D163: -8241349.167 | E163: -13549.96597 | F163: 3008092.446 | G163: -5233256.721 | H163: 853.8334722 | I163: 12696.1325
B164: 2026-05-01 | C164: 37123.19444 | D164: -8204225.972 | E164: -13549.96597 | F164: 2994542.48 | G164: -5209683.492 | H164: 853.8334722 | I164: 12696.1325
B165: 2026-06-01 | C165: 37123.19444 | D165: -8167102.778 | E165: -13549.96597 | F165: 2980992.514 | G165: -5186110.264 | H165: 853.8334722 | I165: 12696.1325
B166: 2026-07-01 | C166: 37123.19444 | D166: -8129979.583 | E166: -13549.96597 | F166: 2967442.548 | G166: -5162537.035 | H166: 853.8334722 | I166: 12696.1325
B167: 2026-08-01 | C167: 37123.19444 | D167: -8092856.389 | E167: -13549.96597 | F167: 2953892.582 | G167: -5138963.807 | H167: 853.8334722 | I167: 12696.1325
B168: 2026-09-01 | C168: 37123.19444 | D168: -8055733.194 | E168: -13549.96597 | F168: 2940342.616 | G168: -5115390.578 | H168: 853.8334722 | I168: 12696.1325
B169: 2026-10-01 | C169: 37123.19444 | D169: -8018610 | E169: -13549.96597 | F169: 2926792.65 | G169: -5091817.35 | H169: 853.8334722 | I169: 12696.1325
B170: 2026-11-01 | C170: 37123.19444 | D170: -7981486.806 | E170: -13549.96597 | F170: 2913242.684 | G170: -5068244.122 | H170: 853.8334722 | I170: 12696.1325
B171: 2026-12-01 | C171: 37123.19444 | D171: -7944363.611 | E171: -13549.96597 | F171: 2899692.718 | G171: -5044670.893 | H171: 853.8334722 | I171: 12696.1325
B172: 2027-01-01 | C172: 37123.19444 | D172: -7907240.417 | E172: -13549.96597 | F172: 2886142.752 | G172: -5021097.665 | H172: 853.8334722 | I172: 12696.1325
B173: 2027-02-01 | C173: 37123.19444 | D173: -7870117.222 | E173: -13549.96597 | F173: 2872592.786 | G173: -4997524.436 | H173: 853.8334722 | I173: 12696.1325
B174: 2027-03-01 | C174: 37123.19444 | D174: -7832994.028 | E174: -13549.96597 | F174: 2859042.82 | G174: -4973951.208 | H174: 853.8334722 | I174: 12696.1325
B175: 2027-04-01 | C175: 37123.19444 | D175: -7795870.833 | E175: -13549.96597 | F175: 2845492.854 | G175: -4950377.979 | H175: 853.8334722 | I175: 12696.1325
B176: 2027-05-01 | C176: 37123.19444 | D176: -7758747.639 | E176: -13549.96597 | F176: 2831942.888 | G176: -4926804.751 | H176: 853.8334722 | I176: 12696.1325
B177: 2027-06-01 | C177: 37123.19444 | D177: -7721624.444 | E177: -13549.96597 | F177: 2818392.922 | G177: -4903231.522 | H177: 853.8334722 | I177: 12696.1325
B178: 2027-07-01 | C178: 37123.19444 | D178: -7684501.25 | E178: -13549.96597 | F178: 2804842.956 | G178: -4879658.294 | H178: 853.8334722 | I178: 12696.1325
B179: 2027-08-01 | C179: 37123.19444 | D179: -7647378.056 | E179: -13549.96597 | F179: 2791292.99 | G179: -4856085.065 | H179: 853.8334722 | I179: 12696.1325
B180: 2027-09-01 | C180: 37123.19444 | D180: -7610254.861 | E180: -13549.96597 | F180: 2777743.024 | G180: -4832511.837 | H180: 853.8334722 | I180: 12696.1325
B181: 2027-10-01 | C181: 37123.19444 | D181: -7573131.667 | E181: -13549.96597 | F181: 2764193.058 | G181: -4808938.608 | H181: 853.8334722 | I181: 12696.1325
B182: 2027-11-01 | C182: 37123.19444 | D182: -7536008.472 | E182: -13549.96597 | F182: 2750643.092 | G182: -4785365.38 | H182: 853.8334722 | I182: 12696.1325
B183: 2027-12-01 | C183: 37123.19444 | D183: -7498885.278 | E183: -13549.96597 | F183: 2737093.126 | G183: -4761792.151 | H183: 853.8334722 | I183: 12696.1325
B184: 2028-01-01 | C184: 37123.19444 | D184: -7461762.083 | E184: -13549.96597 | F184: 2723543.16 | G184: -4738218.923 | H184: 853.8334722 | I184: 12696.1325
B185: 2028-02-01 | C185: 37123.19444 | D185: -7424638.889 | E185: -13549.96597 | F185: 2709993.194 | G185: -4714645.694 | H185: 853.8334722 | I185: 12696.1325
B186: 2028-03-01 | C186: 37123.19444 | D186: -7387515.694 | E186: -13549.96597 | F186: 2696443.228 | G186: -4691072.466 | H186: 853.8334722 | I186: 12696.1325
B187: 2028-04-01 | C187: 37123.19444 | D187: -7350392.5 | E187: -13549.96597 | F187: 2682893.262 | G187: -4667499.238 | H187: 853.8334722 | I187: 12696.1325
B188: 2028-05-01 | C188: 37123.19444 | D188: -7313269.306 | E188: -13549.96597 | F188: 2669343.297 | G188: -4643926.009 | H188: 853.8334722 | I188: 12696.1325
B189: 2028-06-01 | C189: 37123.19444 | D189: -7276146.111 | E189: -13549.96597 | F189: 2655793.331 | G189: -4620352.781 | H189: 853.8334722 | I189: 12696.1325
B190: 2028-07-01 | C190: 37123.19444 | D190: -7239022.917 | E190: -13549.96597 | F190: 2642243.365 | G190: -4596779.552 | H190: 853.8334722 | I190: 12696.1325
B191: 2028-08-01 | C191: 37123.19444 | D191: -7201899.722 | E191: -13549.96597 | F191: 2628693.399 | G191: -4573206.324 | H191: 853.8334722 | I191: 12696.1325
B192: 2028-09-01 | C192: 37123.19444 | D192: -7164776.528 | E192: -13549.96597 | F192: 2615143.433 | G192: -4549633.095 | H192: 853.8334722 | I192: 12696.1325
B193: 2028-10-01 | C193: 37123.19444 | D193: -7127653.333 | E193: -13549.96597 | F193: 2601593.467 | G193: -4526059.867 | H193: 853.8334722 | I193: 12696.1325
B194: 2028-11-01 | C194: 37123.19444 | D194: -7090530.139 | E194: -13549.96597 | F194: 2588043.501 | G194: -4502486.638 | H194: 853.8334722 | I194: 12696.1325
B195: 2028-12-01 | C195: 37123.19444 | D195: -7053406.944 | E195: -13549.96597 | F195: 2574493.535 | G195: -4478913.41 | H195: 853.8334722 | I195: 12696.1325
B196: 2029-01-01 | C196: 37123.19444 | D196: -7016283.75 | E196: -13549.96597 | F196: 2560943.569 | G196: -4455340.181 | H196: 853.8334722 | I196: 12696.1325
B197: 2029-02-01 | C197: 37123.19444 | D197: -6979160.556 | E197: -13549.96597 | F197: 2547393.603 | G197: -4431766.953 | H197: 853.8334722 | I197: 12696.1325
B198: 2029-03-01 | C198: 37123.19444 | D198: -6942037.361 | E198: -13549.96597 | F198: 2533843.637 | G198: -4408193.724 | H198: 853.8334722 | I198: 12696.1325
B199: 2029-04-01 | C199: 37123.19444 | D199: -6904914.167 | E199: -13549.96597 | F199: 2520293.671 | G199: -4384620.496 | H199: 853.8334722 | I199: 12696.1325
B200: 2029-05-01 | C200: 37123.19444 | D200: -6867790.972 | E200: -13549.96597 | F200: 2506743.705 | G200: -4361047.267 | H200: 853.8334722 | I200: 12696.1325
B201: 2029-06-01 | C201: 37123.19444 | D201: -6830667.778 | E201: -13549.96597 | F201: 2493193.739 | G201: -4337474.039 | H201: 853.8334722 | I201: 12696.1325
B202: 2029-07-01 | C202: 37123.19444 | D202: -6793544.583 | E202: -13549.96597 | F202: 2479643.773 | G202: -4313900.81 | H202: 853.8334722 | I202: 12696.1325
B203: 2029-08-01 | C203: 37123.19444 | D203: -6756421.389 | E203: -13549.96597 | F203: 2466093.807 | G203: -4290327.582 | H203: 853.8334722 | I203: 12696.1325
B204: 2029-09-01 | C204: 37123.19444 | D204: -6719298.194 | E204: -13549.96597 | F204: 2452543.841 | G204: -4266754.353 | H204: 853.8334722 | I204: 12696.1325
B205: 2029-10-01 | C205: 37123.19444 | D205: -6682175 | E205: -13549.96597 | F205: 2438993.875 | G205: -4243181.125 | H205: 853.8334722 | I205: 12696.1325
B206: 2029-11-01 | C206: 37123.19444 | D206: -6645051.806 | E206: -13549.96597 | F206: 2425443.909 | G206: -4219607.897 | H206: 853.8334722 | I206: 12696.1325
... 179 more rows

Sheet 20109
A1: Amortization Schedule
A2: GL# 010.0000.2150.20109.002000
A3: 06/15/17-10/15/44
B4: (Gain) Loss | C4: Years | D4: Annual Amort
A5: UBS | B5: 18305434 | C5: 27 | D5: =B5/C5 -> 677979.037 | G5: 328 | H5: months
A6: Credit Agricole | B6: 18690073 | C6: 27 | D6: =B6/C6 -> 692224.9259
A10: Total | B10: =SUM(B5:B8) -> 36995507 | D10: =SUM(D5:D8) -> 1370203.963
F14: DR (CR)
C15: LT Int Exp | D15: Monthly Amort | F15: =B10/328 -> 112791.1799
C16: 2830.xxxxx | D16: Def State Tax | E16: 0.023 | F16: =-F15*E16 -> -2594.197137 | G16: =F16*G5 -> -850896.661
C17: 2830.xxxxx | D17: Def Fed Tax | E17: 0.342 | F17: =-F15*E17 -> -38574.58352 | G17: =F17*G5 -> -12652463.39
E18: =SUM(E16:E17) -> 0.365
A20: T-Lock Settlement | G20: Net OCI | H20: Def State Tax | I20: Def Fed Tax
H21: =E16 -> 0.023 | I21: =E17 -> 0.342 | J21: =H21+I21 -> 0.365
C22: 2150.20109 | D22: 2150.20109 | E22: 2150.20109 | F22: 2150.20109 | G22: 2150.20109 | H22: 2830.28206 | I22: 2830.28201
C23: Amort | D23: T-Lock Settlement | E23: Def Tax Adj | F23: Def Taxes | G23: Net of Tax | H23: Adjustment | I23: Adjustment
C24: DR (CR) | D24: DR (CR) | E24: DR (CR) | F24: DR (CR) | H24: DR (CR) | I24: DR (CR)
A25: loss in june, amort starts july | B25: 2017-06-15 | D25: =B10 -> 36995507 | F25: =-D25*E18 -> -13503360.06 | G25: =SUM(D25:F25) -> 23492146.95 | H25: 0 | I25: 0
B26: 2017-07-15 | C26: =-$F$15 -> -112791.1799 | D26: =D25+C26 -> 36882715.82 | E26: =$F$15*$E$18 -> 41168.78066 | F26: =F25+E26 -> -13462191.27 | G26: =G25+C26+E26 -> 23420524.55 | H26: =$F$16 -> -2594.197137 | I26: =$F$17 -> -38574.58352
B27: 2017-08-15 | C27: =-$F$15 -> -112791.1799 | D27: =D26+C27 -> 36769924.64 | E27: =$F$15*$E$18 -> 41168.78066 | F27: =F26+E27 -> -13421022.49 | G27: =G26+C27+E27 -> 23348902.15 | H27: =$F$16 -> -2594.197137 | I27: =$F$17 -> -38574.58352
B28: 2017-09-15 | C28: -112791.1799 | D28: 36657133.46 | E28: 41168.78066 | F28: =F27+E28 -> -13379853.71 | G28: 23277279.75 | H28: -2594.197137 | I28: -38574.58352
B29: 2017-10-15 | C29: -112791.1799 | D29: 36544342.28 | E29: 41168.78066 | F29: -13338684.93 | G29: 23205657.35 | H29: -2594.197137 | I29: -38574.58352
B30: 2017-11-15 | C30: -112791.1799 | D30: 36431551.1 | E30: 41168.78066 | F30: -13297516.15 | G30: 23134034.95 | H30: -2594.197137 | I30: -38574.58352
B31: 2017-12-15 | C31: -112791.1799 | D31: 36318759.92 | E31: 41168.78066 | F31: -13256347.37 | G31: 23062412.55 | H31: -2594.197137 | I31: -38574.58352
B32: 2018-01-15 | C32: -112791.1799 | D32: 36205968.74 | E32: 41168.78066 | F32: -13215178.59 | G32: 22990790.15 | H32: -2594.197137 | I32: -38574.58352
B33: 2018-02-15 | C33: -112791.1799 | D33: 36093177.56 | E33: 41168.78066 | F33: -13174009.81 | G33: 22919167.75 | H33: -2594.197137 | I33: -38574.58352
B34: 2018-03-15 | C34: -112791.1799 | D34: 35980386.38 | E34: 41168.78066 | F34: -13132841.03 | G34: 22847545.35 | H34: -2594.197137 | I34: -38574.58352
B35: 2018-04-15 | C35: -112791.1799 | D35: 35867595.2 | E35: 41168.78066 | F35: -13091672.25 | G35: 22775922.95 | H35: -2594.197137 | I35: -38574.58352
B36: 2018-05-15 | C36: -112791.1799 | D36: 35754804.02 | E36: 41168.78066 | F36: -13050503.47 | G36: 22704300.55 | H36: -2594.197137 | I36: -38574.58352
B37: 2018-06-15 | C37: -112791.1799 | D37: 35642012.84 | E37: 41168.78066 | F37: -13009334.69 | G37: 22632678.15 | H37: -2594.197137 | I37: -38574.58352
B38: 2018-07-15 | C38: -112791.1799 | D38: 35529221.66 | E38: 41168.78066 | F38: -12968165.91 | G38: 22561055.76 | H38: -2594.197137 | I38: -38574.58352
B39: 2018-08-15 | C39: -112791.1799 | D39: 35416430.48 | E39: 41168.78066 | F39: -12926997.13 | G39: 22489433.36 | H39: -2594.197137 | I39: -38574.58352
B40: 2018-09-15 | C40: -112791.1799 | D40: 35303639.3 | E40: 41168.78066 | F40: -12885828.35 | G40: 22417810.96 | H40: -2594.197137 | I40: -38574.58352
B41: 2018-10-15 | C41: -112791.1799 | D41: 35190848.12 | E41: 41168.78066 | F41: -12844659.56 | G41: 22346188.56 | H41: -2594.197137 | I41: -38574.58352
B42: 2018-11-15 | C42: -112791.1799 | D42: 35078056.94 | E42: 41168.78066 | F42: -12803490.78 | G42: 22274566.16 | H42: -2594.197137 | I42: -38574.58352
B43: 2018-12-15 | C43: -112791.1799 | D43: 34965265.76 | E43: 41168.78066 | F43: -12762322 | G43: 22202943.76 | H43: -2594.197137 | I43: -38574.58352
B44: 2019-01-15 | C44: -112791.1799 | D44: 34852474.58 | E44: 41168.78066 | F44: -12721153.22 | G44: 22131321.36 | H44: -2594.197137 | I44: -38574.58352
B45: 2019-02-15 | C45: -112791.1799 | D45: 34739683.4 | E45: 41168.78066 | F45: -12679984.44 | G45: 22059698.96 | H45: -2594.197137 | I45: -38574.58352
B46: 2019-03-15 | C46: -112791.1799 | D46: 34626892.22 | E46: 41168.78066 | F46: -12638815.66 | G46: 21988076.56 | H46: -2594.197137 | I46: -38574.58352
B47: 2019-04-15 | C47: -112791.1799 | D47: 34514101.04 | E47: 41168.78066 | F47: -12597646.88 | G47: 21916454.16 | H47: -2594.197137 | I47: -38574.58352
B48: 2019-05-15 | C48: -112791.1799 | D48: 34401309.86 | E48: 41168.78066 | F48: -12556478.1 | G48: 21844831.76 | H48: -2594.197137 | I48: -38574.58352
B49: 2019-06-15 | C49: -112791.1799 | D49: 34288518.68 | E49: 41168.78066 | F49: -12515309.32 | G49: 21773209.36 | H49: -2594.197137 | I49: -38574.58352
B50: 2019-07-15 | C50: -112791.1799 | D50: 34175727.5 | E50: 41168.78066 | F50: -12474140.54 | G50: 21701586.96 | H50: -2594.197137 | I50: -38574.58352
B51: 2019-08-15 | C51: -112791.1799 | D51: 34062936.32 | E51: 41168.78066 | F51: -12432971.76 | G51: 21629964.57 | H51: -2594.197137 | I51: -38574.58352
B52: 2019-09-15 | C52: -112791.1799 | D52: 33950145.14 | E52: 41168.78066 | F52: -12391802.98 | G52: 21558342.17 | H52: -2594.197137 | I52: -38574.58352
B53: 2019-10-15 | C53: -112791.1799 | D53: 33837353.96 | E53: 41168.78066 | F53: -12350634.2 | G53: 21486719.77 | H53: -2594.197137 | I53: -38574.58352
B54: 2019-11-15 | C54: -112791.1799 | D54: 33724562.78 | E54: 41168.78066 | F54: -12309465.42 | G54: 21415097.37 | H54: -2594.197137 | I54: -38574.58352
B55: 2019-12-15 | C55: -112791.1799 | D55: 33611771.6 | E55: 41168.78066 | F55: -12268296.64 | G55: 21343474.97 | H55: -2594.197137 | I55: -38574.58352
B56: 2020-01-15 | C56: -112791.1799 | D56: 33498980.42 | E56: 41168.78066 | F56: -12227127.85 | G56: 21271852.57 | H56: -2594.197137 | I56: -38574.58352
B57: 2020-02-15 | C57: -112791.1799 | D57: 33386189.24 | E57: 41168.78066 | F57: -12185959.07 | G57: 21200230.17 | H57: -2594.197137 | I57: -38574.58352
B58: 2020-03-15 | C58: -112791.1799 | D58: 33273398.06 | E58: 41168.78066 | F58: -12144790.29 | G58: 21128607.77 | H58: -2594.197137 | I58: -38574.58352
B59: 2020-04-15 | C59: -112791.1799 | D59: 33160606.88 | E59: 41168.78066 | F59: -12103621.51 | G59: 21056985.37 | H59: -2594.197137 | I59: -38574.58352
B60: 2020-05-15 | C60: -112791.1799 | D60: 33047815.7 | E60: 41168.78066 | F60: -12062452.73 | G60: 20985362.97 | H60: -2594.197137 | I60: -38574.58352
B61: 2020-06-15 | C61: -112791.1799 | D61: 32935024.52 | E61: 41168.78066 | F61: -12021283.95 | G61: 20913740.57 | H61: -2594.197137 | I61: -38574.58352
B62: 2020-07-15 | C62: -112791.1799 | D62: 32822233.34 | E62: 41168.78066 | F62: -11980115.17 | G62: 20842118.17 | H62: -2594.197137 | I62: -38574.58352
B63: 2020-08-15 | C63: -112791.1799 | D63: 32709442.16 | E63: 41168.78066 | F63: -11938946.39 | G63: 20770495.77 | H63: -2594.197137 | I63: -38574.58352
B64: 2020-09-15 | C64: -112791.1799 | D64: 32596650.98 | E64: 41168.78066 | F64: -11897777.61 | G64: 20698873.38 | H64: -2594.197137 | I64: -38574.58352
B65: 2020-10-15 | C65: -112791.1799 | D65: 32483859.8 | E65: 41168.78066 | F65: -11856608.83 | G65: 20627250.98 | H65: -2594.197137 | I65: -38574.58352
B66: 2020-11-15 | C66: -112791.1799 | D66: 32371068.63 | E66: 41168.78066 | F66: -11815440.05 | G66: 20555628.58 | H66: -2594.197137 | I66: -38574.58352
B67: 2020-12-15 | C67: -112791.1799 | D67: 32258277.45 | E67: 41168.78066 | F67: -11774271.27 | G67: 20484006.18 | H67: -2594.197137 | I67: -38574.58352
B68: 2021-01-15 | C68: -112791.1799 | D68: 32145486.27 | E68: 41168.78066 | F68: -11733102.49 | G68: 20412383.78 | H68: -2594.197137 | I68: -38574.58352
B69: 2021-02-15 | C69: -112791.1799 | D69: 32032695.09 | E69: 41168.78066 | F69: -11691933.71 | G69: 20340761.38 | H69: -2594.197137 | I69: -38574.58352
B70: 2021-03-15 | C70: -112791.1799 | D70: 31919903.91 | E70: 41168.78066 | F70: -11650764.93 | G70: 20269138.98 | H70: -2594.197137 | I70: -38574.58352
B71: 2021-04-15 | C71: -112791.1799 | D71: 31807112.73 | E71: 41168.78066 | F71: -11609596.14 | G71: 20197516.58 | H71: -2594.197137 | I71: -38574.58352
B72: 2021-05-15 | C72: -112791.1799 | D72: 31694321.55 | E72: 41168.78066 | F72: -11568427.36 | G72: 20125894.18 | H72: -2594.197137 | I72: -38574.58352
B73: 2021-06-15 | C73: -112791.1799 | D73: 31581530.37 | E73: 41168.78066 | F73: -11527258.58 | G73: 20054271.78 | H73: -2594.197137 | I73: -38574.58352
B74: 2021-07-15 | C74: -112791.1799 | D74: 31468739.19 | E74: 41168.78066 | F74: -11486089.8 | G74: 19982649.38 | H74: -2594.197137 | I74: -38574.58352
B75: 2021-08-15 | C75: -112791.1799 | D75: 31355948.01 | E75: 41168.78066 | F75: -11444921.02 | G75: 19911026.98 | H75: -2594.197137 | I75: -38574.58352
B76: 2021-09-15 | C76: -112791.1799 | D76: 31243156.83 | E76: 41168.78066 | F76: -11403752.24 | G76: 19839404.58 | H76: -2594.197137 | I76: -38574.58352
B77: 2021-10-15 | C77: -112791.1799 | D77: 31130365.65 | E77: 41168.78066 | F77: -11362583.46 | G77: 19767782.19 | H77: -2594.197137 | I77: -38574.58352
B78: 2021-11-15 | C78: -112791.1799 | D78: 31017574.47 | E78: 41168.78066 | F78: -11321414.68 | G78: 19696159.79 | H78: -2594.197137 | I78: -38574.58352
B79: 2021-12-15 | C79: -112791.1799 | D79: 30904783.29 | E79: 41168.78066 | F79: -11280245.9 | G79: 19624537.39 | H79: -2594.197137 | I79: -38574.58352
B80: 2022-01-15 | C80: -112791.1799 | D80: 30791992.11 | E80: 41168.78066 | F80: -11239077.12 | G80: 19552914.99 | H80: -2594.197137 | I80: -38574.58352
B81: 2022-02-15 | C81: -112791.1799 | D81: 30679200.93 | E81: 41168.78066 | F81: -11197908.34 | G81: 19481292.59 | H81: -2594.197137 | I81: -38574.58352
B82: 2022-03-15 | C82: -112791.1799 | D82: 30566409.75 | E82: 41168.78066 | F82: -11156739.56 | G82: 19409670.19 | H82: -2594.197137 | I82: -38574.58352
B83: 2022-04-15 | C83: -112791.1799 | D83: 30453618.57 | E83: 41168.78066 | F83: -11115570.78 | G83: 19338047.79 | H83: -2594.197137 | I83: -38574.58352
B84: 2022-05-15 | C84: -112791.1799 | D84: 30340827.39 | E84: 41168.78066 | F84: -11074402 | G84: 19266425.39 | H84: -2594.197137 | I84: -38574.58352
B85: 2022-06-15 | C85: -112791.1799 | D85: 30228036.21 | E85: 41168.78066 | F85: -11033233.22 | G85: 19194802.99 | H85: -2594.197137 | I85: -38574.58352
B86: 2022-07-15 | C86: -112791.1799 | D86: 30115245.03 | E86: 41168.78066 | F86: -10992064.44 | G86: 19123180.59 | H86: -2594.197137 | I86: -38574.58352
B87: 2022-08-15 | C87: -112791.1799 | D87: 30002453.85 | E87: 41168.78066 | F87: -10950895.65 | G87: 19051558.19 | H87: -2594.197137 | I87: -38574.58352
B88: 2022-09-15 | C88: -112791.1799 | D88: 29889662.67 | E88: 41168.78066 | F88: -10909726.87 | G88: 18979935.79 | H88: -2594.197137 | I88: -38574.58352
B89: 2022-10-15 | C89: -112791.1799 | D89: 29776871.49 | E89: 41168.78066 | F89: -10868558.09 | G89: 18908313.39 | H89: -2594.197137 | I89: -38574.58352
B90: 2022-11-15 | C90: -112791.1799 | D90: 29664080.31 | E90: 41168.78066 | F90: -10827389.31 | G90: 18836691 | H90: -2594.197137 | I90: -38574.58352
B91: 2022-12-15 | C91: =-$F$15 -> -112791.1799 | D91: =D90+C91 -> 29551289.13 | E91: =$F$15*$E$18 -> 41168.78066 | F91: -10786220.53 | G91: =G90+C91+E91 -> 18765068.6 | H91: =$F$16 -> -2594.197137 | I91: =$F$17 -> -38574.58352
B92: 2023-01-15 | C92: -112791.1799 | D92: 29438497.95 | E92: 41168.78066 | F92: =F91+E92 -> -10745051.75 | G92: 18693446.2 | H92: -2594.197137 | I92: -38574.58352
B93: 2023-02-15 | C93: -112791.1799 | D93: 29325706.77 | E93: 41168.78066 | F93: -10703882.97 | G93: 18621823.8 | H93: -2594.197137 | I93: -38574.58352
B94: 2023-03-15 | C94: -112791.1799 | D94: 29212915.59 | E94: 41168.78066 | F94: -10662714.19 | G94: 18550201.4 | H94: -2594.197137 | I94: -38574.58352
B95: 2023-04-15 | C95: -112791.1799 | D95: 29100124.41 | E95: 41168.78066 | F95: -10621545.41 | G95: 18478579 | H95: -2594.197137 | I95: -38574.58352
B96: 2023-05-15 | C96: -112791.1799 | D96: 28987333.23 | E96: 41168.78066 | F96: -10580376.63 | G96: 18406956.6 | H96: -2594.197137 | I96: -38574.58352
B97: 2023-06-15 | C97: -112791.1799 | D97: 28874542.05 | E97: 41168.78066 | F97: -10539207.85 | G97: 18335334.2 | H97: -2594.197137 | I97: -38574.58352
B98: 2023-07-15 | C98: -112791.1799 | D98: 28761750.87 | E98: 41168.78066 | F98: -10498039.07 | G98: 18263711.8 | H98: -2594.197137 | I98: -38574.58352
B99: 2023-08-15 | C99: -112791.1799 | D99: 28648959.69 | E99: 41168.78066 | F99: -10456870.29 | G99: 18192089.4 | H99: -2594.197137 | I99: -38574.58352
B100: 2023-09-15 | C100: -112791.1799 | D100: 28536168.51 | E100: 41168.78066 | F100: -10415701.51 | G100: 18120467 | H100: -2594.197137 | I100: -38574.58352
B101: 2023-10-15 | C101: -112791.1799 | D101: 28423377.33 | E101: 41168.78066 | F101: -10374532.73 | G101: 18048844.6 | H101: -2594.197137 | I101: -38574.58352
B102: 2023-11-15 | C102: -112791.1799 | D102: 28310586.15 | E102: 41168.78066 | F102: -10333363.94 | G102: 17977222.2 | H102: -2594.197137 | I102: -38574.58352
B103: 2023-12-15 | C103: -112791.1799 | D103: 28197794.97 | E103: 41168.78066 | F103: -10292195.16 | G103: 17905599.81 | H103: -2594.197137 | I103: -38574.58352
B104: 2024-01-15 | C104: -112791.1799 | D104: 28085003.79 | E104: 41168.78066 | F104: -10251026.38 | G104: 17833977.41 | H104: -2594.197137 | I104: -38574.58352
B105: 2024-02-15 | C105: -112791.1799 | D105: 27972212.61 | E105: 41168.78066 | F105: -10209857.6 | G105: 17762355.01 | H105: -2594.197137 | I105: -38574.58352
B106: 2024-03-15 | C106: -112791.1799 | D106: 27859421.43 | E106: 41168.78066 | F106: -10168688.82 | G106: 17690732.61 | H106: -2594.197137 | I106: -38574.58352
B107: 2024-04-15 | C107: -112791.1799 | D107: 27746630.25 | E107: 41168.78066 | F107: -10127520.04 | G107: 17619110.21 | H107: -2594.197137 | I107: -38574.58352
B108: 2024-05-15 | C108: -112791.1799 | D108: 27633839.07 | E108: 41168.78066 | F108: -10086351.26 | G108: 17547487.81 | H108: -2594.197137 | I108: -38574.58352
B109: 2024-06-15 | C109: -112791.1799 | D109: 27521047.89 | E109: 41168.78066 | F109: -10045182.48 | G109: 17475865.41 | H109: -2594.197137 | I109: -38574.58352
B110: 2024-07-15 | C110: -112791.1799 | D110: 27408256.71 | E110: 41168.78066 | F110: -10004013.7 | G110: 17404243.01 | H110: -2594.197137 | I110: -38574.58352
B111: 2024-08-15 | C111: -112791.1799 | D111: 27295465.53 | E111: 41168.78066 | F111: -9962844.919 | G111: 17332620.61 | H111: -2594.197137 | I111: -38574.58352
B112: 2024-09-15 | C112: -112791.1799 | D112: 27182674.35 | E112: 41168.78066 | F112: -9921676.138 | G112: 17260998.21 | H112: -2594.197137 | I112: -38574.58352
B113: 2024-10-15 | C113: -112791.1799 | D113: 27069883.17 | E113: 41168.78066 | F113: -9880507.357 | G113: 17189375.81 | H113: -2594.197137 | I113: -38574.58352
B114: 2024-11-15 | C114: -112791.1799 | D114: 26957091.99 | E114: 41168.78066 | F114: -9839338.577 | G114: 17117753.41 | H114: -2594.197137 | I114: -38574.58352
B115: 2024-12-15 | C115: -112791.1799 | D115: 26844300.81 | E115: 41168.78066 | F115: -9798169.796 | G115: 17046131.01 | H115: -2594.197137 | I115: -38574.58352
B116: 2025-01-15 | C116: -112791.1799 | D116: 26731509.63 | E116: 41168.78066 | F116: -9757001.015 | G116: 16974508.62 | H116: -2594.197137 | I116: -38574.58352
B117: 2025-02-15 | C117: -112791.1799 | D117: 26618718.45 | E117: 41168.78066 | F117: -9715832.235 | G117: 16902886.22 | H117: -2594.197137 | I117: -38574.58352
B118: 2025-03-15 | C118: -112791.1799 | D118: 26505927.27 | E118: 41168.78066 | F118: -9674663.454 | G118: 16831263.82 | H118: -2594.197137 | I118: -38574.58352
B119: 2025-04-15 | C119: -112791.1799 | D119: 26393136.09 | E119: 41168.78066 | F119: -9633494.673 | G119: 16759641.42 | H119: -2594.197137 | I119: -38574.58352
B120: 2025-05-15 | C120: -112791.1799 | D120: 26280344.91 | E120: 41168.78066 | F120: -9592325.893 | G120: 16688019.02 | H120: -2594.197137 | I120: -38574.58352
B121: 2025-06-15 | C121: -112791.1799 | D121: 26167553.73 | E121: 41168.78066 | F121: -9551157.112 | G121: 16616396.62 | H121: -2594.197137 | I121: -38574.58352
B122: 2025-07-15 | C122: -112791.1799 | D122: 26054762.55 | E122: 41168.78066 | F122: -9509988.331 | G122: 16544774.22 | H122: -2594.197137 | I122: -38574.58352
B123: 2025-08-15 | C123: -112791.1799 | D123: 25941971.37 | E123: 41168.78066 | F123: -9468819.551 | G123: 16473151.82 | H123: -2594.197137 | I123: -38574.58352
B124: 2025-09-15 | C124: -112791.1799 | D124: 25829180.19 | E124: 41168.78066 | F124: -9427650.77 | G124: 16401529.42 | H124: -2594.197137 | I124: -38574.58352
B125: 2025-10-15 | C125: -112791.1799 | D125: 25716389.01 | E125: 41168.78066 | F125: -9386481.989 | G125: 16329907.02 | H125: -2594.197137 | I125: -38574.58352
B126: 2025-11-15 | C126: -112791.1799 | D126: 25603597.83 | E126: 41168.78066 | F126: -9345313.209 | G126: 16258284.62 | H126: -2594.197137 | I126: -38574.58352
B127: 2025-12-15 | C127: -112791.1799 | D127: 25490806.65 | E127: 41168.78066 | F127: -9304144.428 | G127: 16186662.22 | H127: -2594.197137 | I127: -38574.58352
B128: 2026-01-15 | C128: -112791.1799 | D128: 25378015.47 | E128: 41168.78066 | F128: -9262975.647 | G128: 16115039.83 | H128: -2594.197137 | I128: -38574.58352
B129: 2026-02-15 | C129: -112791.1799 | D129: 25265224.29 | E129: 41168.78066 | F129: -9221806.867 | G129: 16043417.43 | H129: -2594.197137 | I129: -38574.58352
B130: 2026-03-15 | C130: -112791.1799 | D130: 25152433.11 | E130: 41168.78066 | F130: -9180638.086 | G130: 15971795.03 | H130: -2594.197137 | I130: -38574.58352
B131: 2026-04-15 | C131: -112791.1799 | D131: 25039641.93 | E131: 41168.78066 | F131: -9139469.306 | G131: 15900172.63 | H131: -2594.197137 | I131: -38574.58352
B132: 2026-05-15 | C132: -112791.1799 | D132: 24926850.75 | E132: 41168.78066 | F132: -9098300.525 | G132: 15828550.23 | H132: -2594.197137 | I132: -38574.58352
B133: 2026-06-15 | C133: -112791.1799 | D133: 24814059.57 | E133: 41168.78066 | F133: -9057131.744 | G133: 15756927.83 | H133: -2594.197137 | I133: -38574.58352
B134: 2026-07-15 | C134: -112791.1799 | D134: 24701268.39 | E134: 41168.78066 | F134: -9015962.964 | G134: 15685305.43 | H134: -2594.197137 | I134: -38574.58352
B135: 2026-08-15 | C135: -112791.1799 | D135: 24588477.21 | E135: 41168.78066 | F135: -8974794.183 | G135: 15613683.03 | H135: -2594.197137 | I135: -38574.58352
B136: 2026-09-15 | C136: -112791.1799 | D136: 24475686.03 | E136: 41168.78066 | F136: -8933625.402 | G136: 15542060.63 | H136: -2594.197137 | I136: -38574.58352
B137: 2026-10-15 | C137: -112791.1799 | D137: 24362894.85 | E137: 41168.78066 | F137: -8892456.622 | G137: 15470438.23 | H137: -2594.197137 | I137: -38574.58352
B138: 2026-11-15 | C138: -112791.1799 | D138: 24250103.67 | E138: 41168.78066 | F138: -8851287.841 | G138: 15398815.83 | H138: -2594.197137 | I138: -38574.58352
B139: 2026-12-15 | C139: -112791.1799 | D139: 24137312.49 | E139: 41168.78066 | F139: -8810119.06 | G139: 15327193.43 | H139: -2594.197137 | I139: -38574.58352
B140: 2027-01-15 | C140: -112791.1799 | D140: 24024521.31 | E140: 41168.78066 | F140: -8768950.28 | G140: 15255571.03 | H140: -2594.197137 | I140: -38574.58352
B141: 2027-02-15 | C141: -112791.1799 | D141: 23911730.13 | E141: 41168.78066 | F141: -8727781.499 | G141: 15183948.64 | H141: -2594.197137 | I141: -38574.58352
B142: 2027-03-15 | C142: -112791.1799 | D142: 23798938.95 | E142: 41168.78066 | F142: -8686612.718 | G142: 15112326.24 | H142: -2594.197137 | I142: -38574.58352
B143: 2027-04-15 | C143: -112791.1799 | D143: 23686147.77 | E143: 41168.78066 | F143: -8645443.938 | G143: 15040703.84 | H143: -2594.197137 | I143: -38574.58352
B144: 2027-05-15 | C144: -112791.1799 | D144: 23573356.59 | E144: 41168.78066 | F144: -8604275.157 | G144: 14969081.44 | H144: -2594.197137 | I144: -38574.58352
B145: 2027-06-15 | C145: -112791.1799 | D145: 23460565.41 | E145: 41168.78066 | F145: -8563106.376 | G145: 14897459.04 | H145: -2594.197137 | I145: -38574.58352
B146: 2027-07-15 | C146: -112791.1799 | D146: 23347774.23 | E146: 41168.78066 | F146: -8521937.596 | G146: 14825836.64 | H146: -2594.197137 | I146: -38574.58352
B147: 2027-08-15 | C147: -112791.1799 | D147: 23234983.05 | E147: 41168.78066 | F147: -8480768.815 | G147: 14754214.24 | H147: -2594.197137 | I147: -38574.58352
B148: 2027-09-15 | C148: -112791.1799 | D148: 23122191.88 | E148: 41168.78066 | F148: -8439600.034 | G148: 14682591.84 | H148: -2594.197137 | I148: -38574.58352
B149: 2027-10-15 | C149: -112791.1799 | D149: 23009400.7 | E149: 41168.78066 | F149: -8398431.254 | G149: 14610969.44 | H149: -2594.197137 | I149: -38574.58352
B150: 2027-11-15 | C150: -112791.1799 | D150: 22896609.52 | E150: 41168.78066 | F150: -8357262.473 | G150: 14539347.04 | H150: -2594.197137 | I150: -38574.58352
B151: 2027-12-15 | C151: -112791.1799 | D151: 22783818.34 | E151: 41168.78066 | F151: -8316093.692 | G151: 14467724.64 | H151: -2594.197137 | I151: -38574.58352
B152: 2028-01-15 | C152: -112791.1799 | D152: 22671027.16 | E152: 41168.78066 | F152: -8274924.912 | G152: 14396102.24 | H152: -2594.197137 | I152: -38574.58352
B153: 2028-02-15 | C153: -112791.1799 | D153: 22558235.98 | E153: 41168.78066 | F153: -8233756.131 | G153: 14324479.84 | H153: -2594.197137 | I153: -38574.58352
B154: 2028-03-15 | C154: -112791.1799 | D154: 22445444.8 | E154: 41168.78066 | F154: -8192587.35 | G154: 14252857.45 | H154: -2594.197137 | I154: -38574.58352
B155: 2028-04-15 | C155: =-$F$15 -> -112791.1799 | D155: =D154+C155 -> 22332653.62 | E155: =$F$15*$E$18 -> 41168.78066 | F155: -8151418.57 | G155: =G154+C155+E155 -> 14181235.05 | H155: =$F$16 -> -2594.197137 | I155: =$F$17 -> -38574.58352
B156: 2028-05-15 | C156: -112791.1799 | D156: 22219862.44 | E156: 41168.78066 | F156: =F155+E156 -> -8110249.789 | G156: 14109612.65 | H156: -2594.197137 | I156: -38574.58352
B157: 2028-06-15 | C157: -112791.1799 | D157: 22107071.26 | E157: 41168.78066 | F157: -8069081.008 | G157: 14037990.25 | H157: -2594.197137 | I157: -38574.58352
B158: 2028-07-15 | C158: -112791.1799 | D158: 21994280.08 | E158: 41168.78066 | F158: -8027912.228 | G158: 13966367.85 | H158: -2594.197137 | I158: -38574.58352
B159: 2028-08-15 | C159: -112791.1799 | D159: 21881488.9 | E159: 41168.78066 | F159: -7986743.447 | G159: 13894745.45 | H159: -2594.197137 | I159: -38574.58352
B160: 2028-09-15 | C160: -112791.1799 | D160: 21768697.72 | E160: 41168.78066 | F160: -7945574.667 | G160: 13823123.05 | H160: -2594.197137 | I160: -38574.58352
B161: 2028-10-15 | C161: -112791.1799 | D161: 21655906.54 | E161: 41168.78066 | F161: -7904405.886 | G161: 13751500.65 | H161: -2594.197137 | I161: -38574.58352
B162: 2028-11-15 | C162: -112791.1799 | D162: 21543115.36 | E162: 41168.78066 | F162: -7863237.105 | G162: 13679878.25 | H162: -2594.197137 | I162: -38574.58352
B163: 2028-12-15 | C163: -112791.1799 | D163: 21430324.18 | E163: 41168.78066 | F163: -7822068.325 | G163: 13608255.85 | H163: -2594.197137 | I163: -38574.58352
B164: 2029-01-15 | C164: -112791.1799 | D164: 21317533 | E164: 41168.78066 | F164: -7780899.544 | G164: 13536633.45 | H164: -2594.197137 | I164: -38574.58352
B165: 2029-02-15 | C165: -112791.1799 | D165: 21204741.82 | E165: 41168.78066 | F165: -7739730.763 | G165: 13465011.05 | H165: -2594.197137 | I165: -38574.58352
B166: 2029-03-15 | C166: -112791.1799 | D166: 21091950.64 | E166: 41168.78066 | F166: -7698561.983 | G166: 13393388.65 | H166: -2594.197137 | I166: -38574.58352
B167: 2029-04-15 | C167: -112791.1799 | D167: 20979159.46 | E167: 41168.78066 | F167: -7657393.202 | G167: 13321766.26 | H167: -2594.197137 | I167: -38574.58352
B168: 2029-05-15 | C168: -112791.1799 | D168: 20866368.28 | E168: 41168.78066 | F168: -7616224.421 | G168: 13250143.86 | H168: -2594.197137 | I168: -38574.58352
B169: 2029-06-15 | C169: -112791.1799 | D169: 20753577.1 | E169: 41168.78066 | F169: -7575055.641 | G169: 13178521.46 | H169: -2594.197137 | I169: -38574.58352
B170: 2029-07-15 | C170: -112791.1799 | D170: 20640785.92 | E170: 41168.78066 | F170: -7533886.86 | G170: 13106899.06 | H170: -2594.197137 | I170: -38574.58352
B171: 2029-08-15 | C171: -112791.1799 | D171: 20527994.74 | E171: 41168.78066 | F171: -7492718.079 | G171: 13035276.66 | H171: -2594.197137 | I171: -38574.58352
B172: 2029-09-15 | C172: -112791.1799 | D172: 20415203.56 | E172: 41168.78066 | F172: -7451549.299 | G172: 12963654.26 | H172: -2594.197137 | I172: -38574.58352
B173: 2029-10-15 | C173: -112791.1799 | D173: 20302412.38 | E173: 41168.78066 | F173: -7410380.518 | G173: 12892031.86 | H173: -2594.197137 | I173: -38574.58352
B174: 2029-11-15 | C174: -112791.1799 | D174: 20189621.2 | E174: 41168.78066 | F174: -7369211.737 | G174: 12820409.46 | H174: -2594.197137 | I174: -38574.58352
B175: 2029-12-15 | C175: -112791.1799 | D175: 20076830.02 | E175: 41168.78066 | F175: -7328042.957 | G175: 12748787.06 | H175: -2594.197137 | I175: -38574.58352
B176: 2030-01-15 | C176: -112791.1799 | D176: 19964038.84 | E176: 41168.78066 | F176: -7286874.176 | G176: 12677164.66 | H176: -2594.197137 | I176: -38574.58352
B177: 2030-02-15 | C177: -112791.1799 | D177: 19851247.66 | E177: 41168.78066 | F177: -7245705.395 | G177: 12605542.26 | H177: -2594.197137 | I177: -38574.58352
B178: 2030-03-15 | C178: -112791.1799 | D178: 19738456.48 | E178: 41168.78066 | F178: -7204536.615 | G178: 12533919.86 | H178: -2594.197137 | I178: -38574.58352
B179: 2030-04-15 | C179: -112791.1799 | D179: 19625665.3 | E179: 41168.78066 | F179: -7163367.834 | G179: 12462297.46 | H179: -2594.197137 | I179: -38574.58352
B180: 2030-05-15 | C180: -112791.1799 | D180: 19512874.12 | E180: 41168.78066 | F180: -7122199.053 | G180: 12390675.07 | H180: -2594.197137 | I180: -38574.58352
B181: 2030-06-15 | C181: -112791.1799 | D181: 19400082.94 | E181: 41168.78066 | F181: -7081030.273 | G181: 12319052.67 | H181: -2594.197137 | I181: -38574.58352
B182: 2030-07-15 | C182: -112791.1799 | D182: 19287291.76 | E182: 41168.78066 | F182: -7039861.492 | G182: 12247430.27 | H182: -2594.197137 | I182: -38574.58352
B183: 2030-08-15 | C183: -112791.1799 | D183: 19174500.58 | E183: 41168.78066 | F183: -6998692.711 | G183: 12175807.87 | H183: -2594.197137 | I183: -38574.58352
B184: 2030-09-15 | C184: -112791.1799 | D184: 19061709.4 | E184: 41168.78066 | F184: -6957523.931 | G184: 12104185.47 | H184: -2594.197137 | I184: -38574.58352
B185: 2030-10-15 | C185: -112791.1799 | D185: 18948918.22 | E185: 41168.78066 | F185: -6916355.15 | G185: 12032563.07 | H185: -2594.197137 | I185: -38574.58352
B186: 2030-11-15 | C186: -112791.1799 | D186: 18836127.04 | E186: 41168.78066 | F186: -6875186.369 | G186: 11960940.67 | H186: -2594.197137 | I186: -38574.58352
B187: 2030-12-15 | C187: -112791.1799 | D187: 18723335.86 | E187: 41168.78066 | F187: -6834017.589 | G187: 11889318.27 | H187: -2594.197137 | I187: -38574.58352
B188: 2031-01-15 | C188: -112791.1799 | D188: 18610544.68 | E188: 41168.78066 | F188: -6792848.808 | G188: 11817695.87 | H188: -2594.197137 | I188: -38574.58352
B189: 2031-02-15 | C189: -112791.1799 | D189: 18497753.5 | E189: 41168.78066 | F189: -6751680.027 | G189: 11746073.47 | H189: -2594.197137 | I189: -38574.58352
B190: 2031-03-15 | C190: -112791.1799 | D190: 18384962.32 | E190: 41168.78066 | F190: -6710511.247 | G190: 11674451.07 | H190: -2594.197137 | I190: -38574.58352
B191: 2031-04-15 | C191: -112791.1799 | D191: 18272171.14 | E191: 41168.78066 | F191: -6669342.466 | G191: 11602828.67 | H191: -2594.197137 | I191: -38574.58352
B192: 2031-05-15 | C192: -112791.1799 | D192: 18159379.96 | E192: 41168.78066 | F192: -6628173.686 | G192: 11531206.27 | H192: -2594.197137 | I192: -38574.58352
B193: 2031-06-15 | C193: -112791.1799 | D193: 18046588.78 | E193: 41168.78066 | F193: -6587004.905 | G193: 11459583.88 | H193: -2594.197137 | I193: -38574.58352
B194: 2031-07-15 | C194: -112791.1799 | D194: 17933797.6 | E194: 41168.78066 | F194: -6545836.124 | G194: 11387961.48 | H194: -2594.197137 | I194: -38574.58352
B195: 2031-08-15 | C195: -112791.1799 | D195: 17821006.42 | E195: 41168.78066 | F195: -6504667.344 | G195: 11316339.08 | H195: -2594.197137 | I195: -38574.58352
B196: 2031-09-15 | C196: -112791.1799 | D196: 17708215.24 | E196: 41168.78066 | F196: -6463498.563 | G196: 11244716.68 | H196: -2594.197137 | I196: -38574.58352
B197: 2031-10-15 | C197: -112791.1799 | D197: 17595424.06 | E197: 41168.78066 | F197: -6422329.782 | G197: 11173094.28 | H197: -2594.197137 | I197: -38574.58352
B198: 2031-11-15 | C198: -112791.1799 | D198: 17482632.88 | E198: 41168.78066 | F198: -6381161.002 | G198: 11101471.88 | H198: -2594.197137 | I198: -38574.58352
B199: 2031-12-15 | C199: -112791.1799 | D199: 17369841.7 | E199: 41168.78066 | F199: -6339992.221 | G199: 11029849.48 | H199: -2594.197137 | I199: -38574.58352
B200: 2032-01-15 | C200: -112791.1799 | D200: 17257050.52 | E200: 41168.78066 | F200: -6298823.44 | G200: 10958227.08 | H200: -2594.197137 | I200: -38574.58352
B201: 2032-02-15 | C201: -112791.1799 | D201: 17144259.34 | E201: 41168.78066 | F201: -6257654.66 | G201: 10886604.68 | H201: -2594.197137 | I201: -38574.58352
B202: 2032-03-15 | C202: -112791.1799 | D202: 17031468.16 | E202: 41168.78066 | F202: -6216485.879 | G202: 10814982.28 | H202: -2594.197137 | I202: -38574.58352
B203: 2032-04-15 | C203: -112791.1799 | D203: 16918676.98 | E203: 41168.78066 | F203: -6175317.098 | G203: 10743359.88 | H203: -2594.197137 | I203: -38574.58352
B204: 2032-05-15 | C204: -112791.1799 | D204: 16805885.8 | E204: 41168.78066 | F204: -6134148.318 | G204: 10671737.48 | H204: -2594.197137 | I204: -38574.58352
B205: 2032-06-15 | C205: -112791.1799 | D205: 16693094.62 | E205: 41168.78066 | F205: -6092979.537 | G205: 10600115.08 | H205: -2594.197137 | I205: -38574.58352
B206: 2032-07-15 | C206: -112791.1799 | D206: 16580303.44 | E206: 41168.78066 | F206: -6051810.756 | G206: 10528492.69 | H206: -2594.197137 | I206: -38574.58352
B207: 2032-08-15 | C207: -112791.1799 | D207: 16467512.26 | E207: 41168.78066 | F207: -6010641.976 | G207: 10456870.29 | H207: -2594.197137 | I207: -38574.58352
... 146 more rows

Sheet 1890 Unamort Loss on Reacq Debt
A1: Activity by Month
A3: Account=1890 (Unamortized Loss on Reacquired Debt)
B5: JUN-16 | C5: JUL-16 | D5: AUG-16 | E5: SEP-16 | F5: OCT-16 | G5: NOV-16 | H5: DEC-16 | I5: JAN-17 | J5: FEB-17 | K5: MAR-17 | L5: APR-17 | M5: MAY-17 | N5: JUN-17
B6: Actual | C6: Actual | D6: Actual | E6: Actual | F6: Actual | G6: Actual | H6: Actual | I6: Actual | J6: Actual | K6: Actual | L6: Actual | M6: Actual | N6: Actual
A8: Trial Balance
A9: 13531 250MM 6.35% due Jun-17 | B9: -1680.62 | C9: -1680.62 | D9: -1680.62 | E9: -1680.62 | F9: -1680.62 | G9: -1680.62 | H9: -1680.62 | I9: -1680.62 | J9: -1680.62 | K9: -1680.62 | L9: -1680.62 | M9: -1680.62 | N9: -1680.53
A10: 13533 4.00 percent Senior notes due 2009-400M | B10: -58882.81 | C10: -58882.81 | D10: -58882.81 | E10: -58882.81 | F10: -58882.81 | G10: -58882.81 | H10: -58882.81 | I10: -58882.81 | J10: -58882.81 | K10: -58882.81 | L10: -58882.81 | M10: -58882.81 | N10: -58882.81
A11: 19100 Retirement of MVG Debt | B11: -13988.35 | C11: -13988.35 | D11: -13988.35 | E11: -13988.35 | F11: -13988.35 | G11: -13988.35 | H11: -13988.35 | I11: -13988.35 | J11: -13988.35 | K11: -13988.35 | L11: -13988.35 | M11: -13988.35 | N11: -13988.35
A12: 19105 Retirement Premium on NP Series Q | B12: -28131.73 | C12: -28131.73 | D12: -28131.73 | E12: -28131.73 | F12: -28131.73 | G12: -28131.73 | H12: -28131.73 | I12: -28131.73 | J12: -28131.73 | K12: -28131.73 | L12: -28131.73 | M12: -28131.73 | N12: -28131.73
A13: 19107 Retirement Premium on NP Series T | B13: -30228.87 | C13: -30228.87 | D13: -30228.87 | E13: -30228.87 | F13: -30228.87 | G13: -30228.87 | H13: -30228.87 | I13: -30228.87 | J13: -30228.87 | K13: -30228.87 | L13: -30228.87 | M13: -30228.87 | N13: -30228.87
A14: 19108 Retirement Premium on NP Series U | B14: -30726.59 | C14: -30726.59 | D14: -30726.59 | E14: -30726.59 | F14: -30726.59 | G14: -30726.59 | H14: -30726.59 | I14: -30726.59 | J14: -30726.59 | K14: -30726.59 | L14: -30726.59 | M14: -30726.59 | N14: -30726.59
A15: 19110 Retirement Premium on FMB Series P | B15: -2819.73 | C15: -2819.73 | D15: -2819.73 | E15: -2819.73 | F15: -2819.73 | G15: -2819.73 | H15: -2819.73 | I15: -2819.73 | J15: -2819.73 | K15: -2819.73 | L15: -2819.73 | M15: -2819.73 | N15: -2819.73
A16: 19113 Retirement Premium on NP Series J | B16: -46699.79 | C16: -46699.79 | D16: -46699.79 | E16: -46699.79 | F16: -46699.79 | G16: -46699.79 | H16: -46699.79 | I16: -46699.79 | J16: -46699.79 | K16: -46699.79 | L16: -46699.79 | M16: -46699.79 | N16: -46699.79
A17: TOTAL | B17: =SUM(B9:B16) -> -213158.49 | C17: -213158.49 | D17: -213158.49 | E17: -213158.49 | F17: -213158.49 | G17: -213158.49 | H17: -213158.49 | I17: -213158.49 | J17: -213158.49 | K17: -213158.49 | L17: -213158.49 | M17: -213158.49 | N17: =SUM(N9:N16) -> -213158.4
A21: Balance by Month
A23: Account=1890 (Unamortized Loss on Reacquired Debt)
B25: JUN-16 | C25: JUL-16 | D25: AUG-16 | E25: SEP-16 | F25: OCT-16 | G25: NOV-16 | H25: DEC-16 | I25: JAN-17 | J25: FEB-17 | K25: MAR-17 | L25: APR-17 | M25: MAY-17 | N25: JUN-17
B26: Actual | C26: Actual | D26: Actual | E26: Actual | F26: Actual | G26: Actual | H26: Actual | I26: Actual | J26: Actual | K26: Actual | L26: Actual | M26: Actual | N26: Actual
A28: Trial Balance
A29: 13531 250MM 6.35% due Jun-17 | B29: 20167.35 | C29: 18486.73 | D29: 16806.11 | E29: 15125.49 | F29: 13444.87 | G29: 11764.25 | H29: 10083.63 | I29: 8403.01 | J29: 6722.39 | K29: 5041.77 | L29: 3361.15 | M29: 1680.53 | N29: 0
A30: 13533 4.00 percent Senior notes due 2009-400M | B30: 1943132.46 | C30: 1884249.65 | D30: 1825366.84 | E30: 1766484.03 | F30: 1707601.22 | G30: 1648718.41 | H30: 1589835.6 | I30: 1530952.79 | J30: 1472069.98 | K30: 1413187.17 | L30: 1354304.36 | M30: 1295421.55 | N30: 1236538.74
A31: 19100 Retirement of MVG Debt | B31: 4455287.73 | C31: 4441299.38 | D31: 4427311.03 | E31: 4413322.68 | F31: 4399334.33 | G31: 4385345.98 | H31: 4371357.63 | I31: 4357369.28 | J31: 4343380.93 | K31: 4329392.58 | L31: 4315404.23 | M31: 4301415.88 | N31: 4287427.53
A32: 19105 Retirement Premium on NP Series Q | B32: 1294059.3 | C32: 1265927.57 | D32: 1237795.84 | E32: 1209664.11 | F32: 1181532.38 | G32: 1153400.65 | H32: 1125268.92 | I32: 1097137.19 | J32: 1069005.46 | K32: 1040873.73 | L32: 1012742 | M32: 984610.27 | N32: 956478.54
A33: 19107 Retirement Premium on NP Series T | B33: 1783503.23 | C33: 1753274.36 | D33: 1723045.49 | E33: 1692816.62 | F33: 1662587.75 | G33: 1632358.88 | H33: 1602130.01 | I33: 1571901.14 | J33: 1541672.27 | K33: 1511443.4 | L33: 1481214.53 | M33: 1450985.66 | N33: 1420756.79
A34: 19108 Retirement Premium on NP Series U | B34: 2150861.7 | C34: 2120135.11 | D34: 2089408.52 | E34: 2058681.93 | F34: 2027955.34 | G34: 1997228.75 | H34: 1966502.16 | I34: 1935775.57 | J34: 1905048.98 | K34: 1874322.39 | L34: 1843595.8 | M34: 1812869.21 | N34: 1782142.62
A35: 19110 Retirement Premium on FMB Series P | B35: 45115.69 | C35: 42295.96 | D35: 39476.23 | E35: 36656.5 | F35: 33836.77 | G35: 31017.04 | H35: 28197.31 | I35: 25377.58 | J35: 22557.85 | K35: 19738.12 | L35: 16918.39 | M35: 14098.66 | N35: 11278.93
A36: 19113 Retirement Premium on NP Series J | B36: 2708587.72 | C36: 2661887.93 | D36: 2615188.14 | E36: 2568488.35 | F36: 2521788.56 | G36: 2475088.77 | H36: 2428388.98 | I36: 2381689.19 | J36: 2334989.4 | K36: 2288289.61 | L36: 2241589.82 | M36: 2194890.03 | N36: 2148190.24
A37: TOTAL | B37: =SUM(B29:B36) -> 14400715.18 | C37: 14187556.69 | D37: 13974398.2 | E37: 13761239.71 | F37: 13548081.22 | G37: 13334922.73 | H37: =SUM(H29:H36) -> 13121764.24 | I37: =SUM(I29:I36) -> 12908605.75 | J37: =SUM(J29:J36) -> 12695447.26 | K37: =SUM(K29:K36) -> 12482288.77 | L37: =SUM(L29:L36) -> 12269130.28 | M37: =SUM(M29:M36) -> 12055971.79 | N37: =SUM(N29:N36) -> 11842813.39

Sheet Mar19 Unsettled Swaps
B3: PRODUCTION SPREADSHEET version 7/19/15
B4: Balance Type | I4: Actual
B5: Category | G5: * List - Text | I5: Amortization
B6: Source | G6: * List - Text | I6: Spreadsheet
B7: Currency | G7: * List - Text | I7: USD
B8: Accounting Date | G8: * List - Date | I8: 2017-06-30
B9: Group ID | G9: Number
B10: Batch Name | G10: Text | I10: agd-20170707-10
B11: Batch Description | G11: Text | I11: MTM int rate swaps
B12: Journal Name | G12: Text | I12: 010-109
B13: Journal Description | G13: Text
B14: Reverse Journal | G14: List - Text | I14: No
B15: Reversal Period/Date | G15: List - Text
B17: Upl | C17: Co | D17: CC | E17: Acct | F17: Sub | G17: SA | H17: FG | I17: Debit | J17: Credit | K17: Line Description
C18: * List - Text | I18: * Number | J18: * Number | K18: Text
C21: 10 | D21: 0 | E21: 1860 | F21: 27347 | G21: 2000 | H21: 0 | K21: March 2019 Swaps gain
C22: 10 | D22: 0 | E22: 2830 | F22: 28206 | G22: 2000 | H22: 0 | K22: March 2019 Swaps gain
C23: 10 | D23: 0 | E23: 2830 | F23: 28201 | G23: 2000 | H23: 0 | K23: March 2019 Swaps gain
C24: 10 | D24: 0 | E24: 2150 | F24: 20111 | G24: 2000 | H24: 0 | K24: March 2019 Swaps gain
C26: 10 | D26: 0 | E26: 2530 | F26: 27347 | G26: 2000 | H26: 0 | J26: 108860008.9 | K26: March 2019 Swaps loss
C27: 10 | D27: 0 | E27: 2830 | F27: 28206 | G27: 2000 | H27: 0 | I27: 2503780.2 | K27: March 2019 Swaps loss
C28: 10 | D28: 0 | E28: 2830 | F28: 28201 | G28: 2000 | H28: 0 | I28: 37230123.04 | K28: March 2019 Swaps loss
C29: 10 | D29: 0 | E29: 2150 | F29: 20111 | G29: 2000 | H29: 0 | I29: 69126105.64 | K29: March 2019 Swaps loss
B44: Totals: | I44: 108860008.9 | J44: 108860008.9

Sheet Utility STD
B1: =CELL("FILENAME") -> W:\Discovery\Kentucky\2017-00349 (2017 Kentucky Rate Case)\Staff Attachments\Staff_1-71 - Model Workpapers in Excel\Relied Upons\[Capital Structure 6-30-17_Consolidated Final.xlsm]Oct16_$200MM TL
E2: FROM: Treasury
E3: SUBJ: WEIGHTED AVERAGE COST OF SHORT TERM DEBT | I3: ATMOS ENERGY CORPORATION - SHORT TERM DEBT DETAIL | X3: ATMOS ENERGY CORPORATION - SHORT TERM DEBT DETAIL | AU3: ATMOS ENERGY CORPORATION - SHORT TERM DEBT DETAIL
B4: UTILITY SHORT TERM DEBT | E4: DATE: | G4: =DATE(2017,6,1) -> 2017-06-01 | I4: AMARILLO NATIONAL BANK | M4: 25000000 | N4: LINE OF CREDIT | Q4: Effective 04/01/17 | X4: Credit Agricole | Z4: 1500000000 | AD4: Five Year revolver | AH4: Effective 10/05/16 to 09/25/21 | AU4: COMMERCIAL PAPER PROGRAM | AZ4: 1500000000
C5: Short Term | D5: Interest | E5: Commitment | F5: Utility bank | G5: Eff. Rate of | K5: Principal | M5: Interest | O5: Interest | Q5: Unused | S5: Commitment | U5: Commitment | Z5: Principal | AB5: Interest | AD5: Interest | AF5: Unused | AH5: Commitment | AJ5: Commitment | AK5: Utilization | AL5: Utilization | AM5: Utility bank | AN5: Utility bank | AW5: Interest | AY5: Interest | BA5: Interest | BC5: Interest | BD5: TOTAL | BE5: Interest
B6: Date | C6: Debt | D6: Expense | E6: Fees | F6: administration | G6: STD (1) | I6: Date | K6: Outstanding | M6: Rate | O6: (2) | Q6: Portion of | S6: Fee Rate | U6: Fee | X6: Date | Z6: Outstanding | AB6: Rate | AF6: Portion of | AH6: Fee Rate | AJ6: Fee | AK6: Fee Rate | AL6: Fee | AM6: administration | AN6: administration | AU6: Date | AV6: Goldman Sachs | AW6: (2) | AX6: MUFG | AY6: (2) | AZ6: Mizuho | BA6: (2) | BB6: Wells Fargo | BC6: (2) | BD6: COMMERCIAL | BE6: (2)
C7: Outstanding | M7: (1) | Q7: Line | U7: (3) | AB7: (1) | AF7: Line | AJ7: (2) | AL7: (3) | BD7: PAPER | BE7: U.S. Bank
B8: =DATE(2017,6,1) -> 2017-06-01 | C8: =K8+Z8+BD8 -> 630218000 | D8: =O8+AD8+BE8 -> 19754.151 | E8: =U8+AJ8 -> 4252.276667 | F8: =AM8 -> 3243.372667 | G8: =IF((D8+E8+F8)>0,IF(C8>0,(D8+E8+F8)/C8*365," N.A."),0) -> 0.01578212162 | H8: =C8-500000000 -> 130218000 | I8: =B8 -> 2017-06-01 | K8: 0 | M8: =[7]Rates!D4 -> 0.025 | O8: =ROUND(K8*M8/360,2) -> 0 | Q8: =$M$4-K8 -> 25000000 | S8: 0.00125 | U8: =ROUNDDOWN(+Q8*S8/365,2) -> 85.61 | X8: =B8 -> 2017-06-01 | Z8: 0 | AB8: =[7]Rates!C4+0 -> 0.04 | AD8: =ROUND(Z8*AB8/365,3) -> 0 | AF8: =$Z$4-Z8 -> 1500000000 | AH8: 0.001 | AJ8: =AF8*AH8/360 -> 4166.666667 | AK8: 0 | AL8: =IF(Z8<($Z$4*0.5),0,(Z8*AK8)/360) -> 0 | AM8: =$AO$12 -> 3243.372667 | AN8: Expense | AO8: 97301.18 | AU8: =B8 -> 2017-06-01 | AV8: 49000000 | AW8: 1492.777 | AX8: 60000000 | AY8: 1713.888 | AZ8: 187568000 | BA8: 5731.902 | BB8: 333650000 | BC8: 10815.584 | BD8: =+AV8+AZ8+BB8+AX8 -> 630218000 | BE8: =+AW8+BA8+BC8+AY8 -> 19754.151
B9: =B8+1 -> 2017-06-02 | C9: =K9+Z9+BD9 -> 630218000 | D9: 19754.151 | E9: =U9+AJ9 -> 4252.276667 | F9: =AM9 -> 3243.372667 | G9: =IF((D9+E9+F9)>0,IF(C9>0,(D9+E9+F9)/C9*365," N.A."),0) -> 0.01578212162 | H9: =C9-500000000 -> 130218000 | I9: =B9 -> 2017-06-02 | K9: 0 | M9: =[7]Rates!D5 -> 0.025 | O9: =ROUND(K9*M9/360,2) -> 0 | Q9: 25000000 | S9: 0.00125 | U9: =ROUNDDOWN(+Q9*S9/365,2) -> 85.61 | X9: =B9 -> 2017-06-02 | Z9: 0 | AB9: =[7]Rates!C5+0 -> 0.04 | AD9: =ROUND(Z9*AB9/365,3) -> 0 | AF9: 1500000000 | AH9: 0.001 | AJ9: =AF9*AH9/360 -> 4166.666667 | AK9: 0 | AL9: =IF(Z9<($Z$4*0.5),0,(Z9*AK9)/360) -> 0 | AM9: =$AO$12 -> 3243.372667 | AU9: =B9 -> 2017-06-02 | AV9: 49000000 | AW9: 1492.777 | AX9: 60000000 | AY9: 1713.888 | AZ9: 187568000 | BA9: 5731.902 | BB9: 333650000 | BC9: 10815.584 | BD9: =+AV9+AZ9+BB9+AX9 -> 630218000 | BE9: =+AW9+BA9+BC9+AY9 -> 19754.151
B10: =B9+1 -> 2017-06-03 | C10: 630218000 | D10: 19754.151 | E10: 4252.276667 | F10: 3243.372667 | G10: 0.01578212162 | H10: 130218000 | I10: 2017-06-03 | K10: 0 | M10: =[7]Rates!D6 -> 0.025 | O10: 0 | Q10: 25000000 | S10: 0.00125 | U10: 85.61 | X10: 2017-06-03 | Z10: 0 | AB10: =[7]Rates!C6+0 -> 0.04 | AD10: 0 | AF10: 1500000000 | AH10: 0.001 | AJ10: =AF10*AH10/360 -> 4166.666667 | AK10: 0 | AL10: =IF(Z10<($Z$4*0.5),0,(Z10*AK10)/360) -> 0 | AM10: 3243.372667 | AN10: days in month | AO10: 30 | AU10: 2017-06-03 | AV10: 49000000 | AW10: 1492.777 | AX10: 60000000 | AY10: 1713.888 | AZ10: 187568000 | BA10: 5731.902 | BB10: 333650000 | BC10: 10815.584 | BD10: =+AV10+AZ10+BB10+AX10 -> 630218000 | BE10: =+AW10+BA10+BC10+AY10 -> 19754.151
B11: 2017-06-04 | C11: 630218000 | D11: 19754.151 | E11: 4252.276667 | F11: 3243.372667 | G11: 0.01578212162 | H11: 130218000 | I11: 2017-06-04 | K11: 0 | M11: =[7]Rates!D7 -> 0.025 | O11: 0 | Q11: 25000000 | S11: 0.00125 | U11: 85.61 | X11: 2017-06-04 | Z11: 0 | AB11: =[7]Rates!C7+0 -> 0.04 | AD11: 0 | AF11: 1500000000 | AH11: 0.001 | AJ11: 4166.666667 | AK11: 0 | AL11: =IF(Z11<($Z$4*0.5),0,(Z11*AK11)/360) -> 0 | AM11: 3243.372667 | AU11: 2017-06-04 | AV11: 49000000 | AW11: 1492.777 | AX11: 60000000 | AY11: 1713.888 | AZ11: 187568000 | BA11: 5731.902 | BB11: 333650000 | BC11: 10815.584 | BD11: =+AV11+AZ11+BB11+AX11 -> 630218000 | BE11: =+AW11+BA11+BC11+AY11 -> 19754.151
B12: 2017-06-05 | C12: 620218000 | D12: 19379.151 | E12: 4252.276667 | F12: 3243.372667 | G12: 0.01581589396 | H12: 120218000 | I12: 2017-06-05 | K12: 0 | M12: =[7]Rates!D8 -> 0.025 | O12: 0 | Q12: 25000000 | S12: 0.00125 | U12: 85.61 | X12: 2017-06-05 | Z12: 0 | AB12: =[7]Rates!C8+0 -> 0.04 | AD12: 0 | AF12: 1500000000 | AH12: 0.001 | AJ12: 4166.666667 | AK12: 0 | AL12: 0 | AM12: 3243.372667 | AN12: Expense per day | AO12: =AO8/AO10 -> 3243.372667 | AU12: 2017-06-05 | AV12: 49000000 | AW12: 1492.777 | AX12: 60000000 | AY12: 1713.888 | AZ12: 187568000 | BA12: 5731.902 | BB12: 323650000 | BC12: 10440.584 | BD12: 620218000 | BE12: 19379.151
